Workbook

Sheet Mini Canal
B2: =IF(data!$R$2=7,"Effektsimulering Under DBE (Hybrid)","Selectiontool Mini Canal") -> Selectiontool Mini Canal
G4: Taal/Language/Sprache/Språk/Jazyk | J4: English
G5: =IF(data!$R$2=1,NL!G3,IF(data!$R$2=2,EN!G3,IF(data!$R$2=3,DE!G3,IF(data!$R$2=4,FR!G3,IF(data!$R$2=5,NR!G3,IF(data!$R$2=6,SP!G3,IF(data!$R$2=7,SW!G3,IF(data!$R$2=8,TS!G3,IF(data!$R$2=9,ExtraTaal1!G3,IF(data!$R$2=10,ExtraTaal2!G3,IF(data!$R$2=11,ExtraTaal3!G3,))))))))))) -> Device | H5: =IF(data!$R$2=1,NL!H3,IF(data!$R$2=2,EN!H3,IF(data!$R$2=3,DE!H3,IF(data!$R$2=4,FR!H3,)))) -> 0 | I5: =IF(data!$R$2=1,NL!I3,IF(data!$R$2=2,EN!I3,IF(data!$R$2=3,DE!I3,IF(data!$R$2=4,FR!I3,)))) -> 0 | J5: Mini Canal Hybrid
G6: =IF(data!$R$2=1,NL!G4,IF(data!$R$2=2,EN!G4,IF(data!$R$2=3,DE!G4,IF(data!$R$2=4,FR!G4,IF(data!$R$2=5,NR!G4,IF(data!$R$2=6,SP!G4,IF(data!$R$2=7,SW!G4,IF(data!$R$2=8,TS!G4,IF(data!$R$2=9,ExtraTaal1!G4,IF(data!$R$2=10,ExtraTaal2!G4,IF(data!$R$2=11,ExtraTaal3!G4,))))))))))) -> Version | H6: =IF(data!$R$2=1,NL!H4,IF(data!$R$2=2,EN!H4,IF(data!$R$2=3,DE!H4,IF(data!$R$2=4,FR!H4,)))) -> 0 | I6: =IF(data!$R$2=1,NL!I4,IF(data!$R$2=2,EN!I4,IF(data!$R$2=3,DE!I4,IF(data!$R$2=4,FR!I4,)))) -> 0 | J6: 14 | K6: 34 | L6: 290
J7: =IF(data!$R$2=1,NL!J6,IF(data!$R$2=2,EN!J6,IF(data!$R$2=3,DE!J6,IF(data!$R$2=4,FR!J6,IF(data!$R$2=5,NR!J6,IF(data!$R$2=6,SP!J6,IF(data!$R$2=7,SW!J6,IF(data!$R$2=8,TS!J6,IF(data!$R$2=9,ExtraTaal1!J6,IF(data!$R$2=10,ExtraTaal2!J6,IF(data!$R$2=11,ExtraTaal3!J6,))))))))))) -> Heigth | K7: =IF(data!$R$2=1,NL!K6,IF(data!$R$2=2,EN!K6,IF(data!$R$2=3,DE!K6,IF(data!$R$2=4,FR!K6,IF(data!$R$2=5,NR!K6,IF(data!$R$2=6,SP!K6,IF(data!$R$2=7,SW!K6,IF(data!$R$2=8,TS!K6,IF(data!$R$2=9,ExtraTaal1!K6,IF(data!$R$2=10,ExtraTaal2!K6,IF(data!$R$2=11,ExtraTaal3!K6,))))))))))) -> Width | L7: =IF(data!$R$2=1,NL!L6,IF(data!$R$2=2,EN!L6,IF(data!$R$2=3,DE!L6,IF(data!$R$2=4,FR!L6,IF(data!$R$2=5,NR!L6,IF(data!$R$2=6,SP!L6,IF(data!$R$2=7,SW!L6,IF(data!$R$2=8,TS!L6,IF(data!$R$2=9,ExtraTaal1!L6,IF(data!$R$2=10,ExtraTaal2!L6,IF(data!$R$2=11,ExtraTaal3!L6,))))))))))) -> Length | M7: =IF(data!$R$2=1,NL!M6,IF(data!$R$2=2,EN!M6,IF(data!$R$2=3,DE!M6,IF(data!$R$2=4,FR!M6,IF(data!$R$2=5,NR!M6,))))) -> Type
B8: =IF(data!$R$2=1,NL!A6,IF(data!$R$2=2,EN!A6,IF(data!$R$2=3,DE!A6,IF(data!$R$2=4,FR!A6,IF(data!$R$2=5,NR!A6,IF(data!$R$2=6,SP!A6,IF(data!$R$2=7,SW!A6,IF(data!$R$2=8,TS!A6,IF(data!$R$2=9,ExtraTaal1!A6,IF(data!$R$2=10,ExtraTaal2!A6,IF(data!$R$2=11,ExtraTaal3!A6,))))))))))) -> Temperatures | J8: =IF(data!$R$2=1,NL!J6,IF(data!$R$2=2,EN!J6,IF(data!$R$2=3,DE!J6,IF(data!$R$2=4,FR!J6,)))) -> Heigth | K8: =IF(data!$R$2=1,NL!K6,IF(data!$R$2=2,EN!K6,IF(data!$R$2=3,DE!K6,IF(data!$R$2=4,FR!K6,)))) -> Width | L8: =IF(data!$R$2=1,NL!L6,IF(data!$R$2=2,EN!L6,IF(data!$R$2=3,DE!L6,IF(data!$R$2=4,FR!L6,)))) -> Length | M8: =IF(data!$R$2=1,NL!M6,IF(data!$R$2=2,EN!M6,IF(data!$R$2=3,DE!M6,IF(data!$R$2=4,FR!M6,)))) -> Type
B9: =IF(data!$R$2=1,NL!A7,IF(data!$R$2=2,EN!A7,IF(data!$R$2=3,DE!A7,IF(data!$R$2=4,FR!A7,IF(data!$R$2=5,NR!A7,IF(data!$R$2=6,SP!A7,IF(data!$R$2=7,SW!A7,IF(data!$R$2=8,TS!A7,IF(data!$R$2=9,ExtraTaal1!A7,IF(data!$R$2=10,ExtraTaal2!A7,IF(data!$R$2=11,ExtraTaal3!A7,))))))))))) -> Heating: | G9: =IF(data!$R$2=1,NL!F7,IF(data!$R$2=2,EN!F7,IF(data!$R$2=3,DE!F7,IF(data!$R$2=4,FR!F7,IF(data!$R$2=5,NR!F7,IF(data!$R$2=6,SP!F7,IF(data!$R$2=7,SW!F7,IF(data!$R$2=8,TS!F7,IF(data!$R$2=9,ExtraTaal1!F7,IF(data!$R$2=10,ExtraTaal2!F7,IF(data!$R$2=11,ExtraTaal3!F7,))))))))))) -> Cooling:
B10: =IF(data!$R$2=1,NL!A8,IF(data!$R$2=2,EN!A8,IF(data!$R$2=3,DE!A8,IF(data!$R$2=4,FR!A8,IF(data!$R$2=5,NR!A8,IF(data!$R$2=6,SP!A8,IF(data!$R$2=7,SW!A8,IF(data!$R$2=8,TS!A8,IF(data!$R$2=9,ExtraTaal1!A8,IF(data!$R$2=10,ExtraTaal2!A8,IF(data!$R$2=11,ExtraTaal3!A8,))))))))))) -> Inlet temp. | C10: =IF(data!$R$2=1,NL!B8,IF(data!$R$2=2,EN!B8,IF(data!$R$2=3,DE!B8,IF(data!$R$2=4,FR!B8,IF(data!$R$2=5,NR!B8,IF(data!$R$2=6,SP!B8,IF(data!$R$2=7,SW!B8,IF(data!$R$2=8,TS!B8,IF(data!$R$2=9,ExtraTaal1!B8,IF(data!$R$2=10,ExtraTaal2!B8,IF(data!$R$2=11,ExtraTaal3!B8,))))))))))) -> 0 | D10: =IF(data!$R$2=1,NL!C8,IF(data!$R$2=2,EN!C8,IF(data!$R$2=3,DE!C8,IF(data!$R$2=4,FR!C8,IF(data!$R$2=5,NR!C8,IF(data!$R$2=6,SP!C8,IF(data!$R$2=7,SW!C8,IF(data!$R$2=8,TS!C8,IF(data!$R$2=9,ExtraTaal1!C8,IF(data!$R$2=10,ExtraTaal2!C8,IF(data!$R$2=11,ExtraTaal3!C8,))))))))))) -> 0 | E10: 35 | F10: =IF(data!$P$1=1,"°C",IF(data!$P$1=2,"°F")) -> °C | G10: =B10 -> Inlet temp. | H10: =IF(data!$R$2=1,NL!G8,IF(data!$R$2=2,EN!G8,IF(data!$R$2=3,DE!G8,IF(data!$R$2=4,FR!G8,)))) -> 0 | I10: =IF(data!$R$2=1,NL!H8,IF(data!$R$2=2,EN!H8,IF(data!$R$2=3,DE!H8,IF(data!$R$2=4,FR!H8,)))) -> 0 | J10: 16 | K10: =F10 -> °C | L10: =IF(data!$R$2=1,NL!L8,IF(data!$R$2=2,EN!L8,IF(data!$R$2=3,DE!L8,IF(data!$R$2=4,FR!L8,IF(data!$R$2=5,NR!L8,IF(data!$R$2=6,SP!L8,IF(data!$R$2=7,SW!L8,IF(data!$R$2=8,TS!L8,IF(data!$R$2=9,ExtraTaal1!L8,IF(data!$R$2=10,ExtraTaal2!L8,IF(data!$R$2=11,ExtraTaal3!L8,))))))))))) -> Unit conversion | M10: =IF(data!$R$2=1,NL!L8,IF(data!$R$2=2,EN!L8,IF(data!$R$2=3,DE!L8,IF(data!$R$2=4,FR!L8,IF(data!$R$2=5,NR!L8,IF(data!$R$2=6,SP!L8,IF(data!$R$2=7,SW!L8,IF(data!$R$2=8,TS!L8,IF(data!$R$2=9,ExtraTaal1!L8,IF(data!$R$2=10,ExtraTaal2!L8,IF(data!$R$2=11,ExtraTaal3!L8,))))))))))) -> Unit conversion
B11: =IF(data!$R$2=1,NL!A9,IF(data!$R$2=2,EN!A9,IF(data!$R$2=3,DE!A9,IF(data!$R$2=4,FR!A9,IF(data!$R$2=5,NR!A9,IF(data!$R$2=6,SP!A9,IF(data!$R$2=7,SW!A9,IF(data!$R$2=8,TS!A9,IF(data!$R$2=9,ExtraTaal1!A9,IF(data!$R$2=10,ExtraTaal2!A9,IF(data!$R$2=11,ExtraTaal3!A9,))))))))))) -> Return temp. | C11: =IF(data!$R$2=1,NL!B9,IF(data!$R$2=2,EN!B9,IF(data!$R$2=3,DE!B9,IF(data!$R$2=4,FR!B9,IF(data!$R$2=5,NR!B9,IF(data!$R$2=6,SP!B9,IF(data!$R$2=7,SW!B9,IF(data!$R$2=8,TS!B9,IF(data!$R$2=9,ExtraTaal1!B9,IF(data!$R$2=10,ExtraTaal2!B9,IF(data!$R$2=11,ExtraTaal3!B9,))))))))))) -> 0 | D11: =IF(data!$R$2=1,NL!C9,IF(data!$R$2=2,EN!C9,IF(data!$R$2=3,DE!C9,IF(data!$R$2=4,FR!C9,IF(data!$R$2=5,NR!C9,IF(data!$R$2=6,SP!C9,IF(data!$R$2=7,SW!C9,IF(data!$R$2=8,TS!C9,IF(data!$R$2=9,ExtraTaal1!C9,IF(data!$R$2=10,ExtraTaal2!C9,IF(data!$R$2=11,ExtraTaal3!C9,))))))))))) -> 0 | E11: 30 | F11: =F10 -> °C | G11: =B11 -> Return temp. | H11: =IF(data!$R$2=1,NL!G9,IF(data!$R$2=2,EN!G9,IF(data!$R$2=3,DE!G9,IF(data!$R$2=4,FR!G9,)))) -> 0 | I11: =IF(data!$R$2=1,NL!H9,IF(data!$R$2=2,EN!H9,IF(data!$R$2=3,DE!H9,IF(data!$R$2=4,FR!H9,)))) -> 0 | J11: 18 | K11: =F10 -> °C
B12: =IF(data!$R$2=1,NL!A10,IF(data!$R$2=2,EN!A10,IF(data!$R$2=3,DE!A10,IF(data!$R$2=4,FR!A10,IF(data!$R$2=5,NR!A10,IF(data!$R$2=6,SP!A10,IF(data!$R$2=7,SW!A10,IF(data!$R$2=8,TS!A10,IF(data!$R$2=9,ExtraTaal1!A10,IF(data!$R$2=10,ExtraTaal2!A10,IF(data!$R$2=11,ExtraTaal3!A10,))))))))))) -> Room temp. | C12: =IF(data!$R$2=1,NL!B10,IF(data!$R$2=2,EN!B10,IF(data!$R$2=3,DE!B10,IF(data!$R$2=4,FR!B10,IF(data!$R$2=5,NR!B10,IF(data!$R$2=6,SP!B10,IF(data!$R$2=7,SW!B10,IF(data!$R$2=8,TS!B10,IF(data!$R$2=9,ExtraTaal1!B10,IF(data!$R$2=10,ExtraTaal2!B10,IF(data!$R$2=11,ExtraTaal3!B10,))))))))))) -> 0 | D12: =IF(data!$R$2=1,NL!C10,IF(data!$R$2=2,EN!C10,IF(data!$R$2=3,DE!C10,IF(data!$R$2=4,FR!C10,IF(data!$R$2=5,NR!C10,IF(data!$R$2=6,SP!C10,IF(data!$R$2=7,SW!C10,IF(data!$R$2=8,TS!C10,IF(data!$R$2=9,ExtraTaal1!C10,IF(data!$R$2=10,ExtraTaal2!C10,IF(data!$R$2=11,ExtraTaal3!C10,))))))))))) -> 0 | E12: 20 | F12: =F10 -> °C | G12: =B12 -> Room temp. | H12: =IF(data!$R$2=1,NL!G10,IF(data!$R$2=2,EN!G10,IF(data!$R$2=3,DE!G10,IF(data!$R$2=4,FR!G10,)))) -> 0 | I12: =IF(data!$R$2=1,NL!H10,IF(data!$R$2=2,EN!H10,IF(data!$R$2=3,DE!H10,IF(data!$R$2=4,FR!H10,)))) -> 0 | J12: 27 | K12: =F10 -> °C
G13: =IF(data!$R$2=1,NL!F11,IF(data!$R$2=2,EN!F11,IF(data!$R$2=3,DE!F11,IF(data!$R$2=4,FR!F11,IF(data!$R$2=5,NR!F11,IF(data!$R$2=6,SP!F11,IF(data!$R$2=7,SW!F11,IF(data!$R$2=8,TS!F11,IF(data!$R$2=9,ExtraTaal1!F11,IF(data!$R$2=10,ExtraTaal2!F11,IF(data!$R$2=11,ExtraTaal3!F11,))))))))))) -> rel. humid. [%] | H13: =IF(data!$R$2=1,NL!G11,IF(data!$R$2=2,EN!G11,IF(data!$R$2=3,DE!G11,IF(data!$R$2=4,FR!G11,IF(data!$R$2=5,NR!G11,IF(data!$R$2=6,SP!G11,IF(data!$R$2=7,SW!G11,IF(data!$R$2=8,TS!G11,IF(data!$R$2=9,ExtraTaal1!G11,IF(data!$R$2=10,ExtraTaal2!G11,IF(data!$R$2=11,ExtraTaal3!G11,))))))))))) -> 0 | I13: =IF(data!$R$2=1,NL!H11,IF(data!$R$2=2,EN!H11,IF(data!$R$2=3,DE!H11,IF(data!$R$2=4,FR!H11,IF(data!$R$2=5,NR!H11,IF(data!$R$2=6,SP!H11,IF(data!$R$2=7,SW!H11,IF(data!$R$2=8,TS!H11,IF(data!$R$2=9,ExtraTaal1!H11,IF(data!$R$2=10,ExtraTaal2!H11,IF(data!$R$2=11,ExtraTaal3!H11,))))))))))) -> 0 | J13: 50%
B16: =IF(data!$R$2=1,NL!A14,IF(data!$R$2=2,EN!A14,IF(data!$R$2=3,DE!A14,IF(data!$R$2=4,FR!A14,IF(data!$R$2=5,NR!A14,IF(data!$R$2=6,SP!A14,IF(data!$R$2=7,SW!A14,IF(data!$R$2=8,TS!A14,IF(data!$R$2=9,ExtraTaal1!A14,IF(data!$R$2=10,ExtraTaal2!A14,IF(data!$R$2=11,ExtraTaal3!A14,))))))))))) -> Speed level: | C16: =IF(data!$R$2=1,NL!B14,IF(data!$R$2=2,EN!B14,IF(data!$R$2=3,DE!B14,IF(data!$R$2=4,FR!B14,IF(data!$R$2=5,NR!B14,IF(data!$R$2=6,SP!B14,IF(data!$R$2=7,SW!B14,IF(data!$R$2=8,TS!B14,IF(data!$R$2=9,ExtraTaal1!B14,IF(data!$R$2=10,ExtraTaal2!B14,IF(data!$R$2=11,ExtraTaal3!B14,))))))))))) -> Control voltage [V] | D16: =IF(data!$R$2=1,NL!C14,IF(data!$R$2=2,EN!C14,IF(data!$R$2=3,DE!C14,IF(data!$R$2=4,FR!C14,IF(data!$R$2=5,NR!C14,IF(data!$R$2=6,SP!C14,IF(data!$R$2=7,SW!C14,IF(data!$R$2=8,TS!C14,IF(data!$R$2=9,ExtraTaal1!C14,IF(data!$R$2=10,ExtraTaal2!C14,IF(data!$R$2=11,ExtraTaal3!C14,))))))))))) -> Heat output * 35/30/20 [W] | E16: =IF(data!$R$2=1,NL!D14,IF(data!$R$2=2,EN!D14,IF(data!$R$2=3,DE!D14,IF(data!$R$2=4,FR!D14,IF(data!$R$2=5,NR!D14,IF(data!$R$2=6,SP!D14,IF(data!$R$2=7,SW!D14,IF(data!$R$2=8,TS!D14,IF(data!$R$2=9,ExtraTaal1!D14,IF(data!$R$2=10,ExtraTaal2!D14,IF(data!$R$2=11,ExtraTaal3!D14,))))))))))) -> Water flowrate, heating [l/h] | F16: =IF(data!$R$2=1,NL!E14,IF(data!$R$2=2,EN!E14,IF(data!$R$2=3,DE!E14,IF(data!$R$2=4,FR!E14,IF(data!$R$2=5,NR!E14,IF(data!$R$2=6,SP!E14,IF(data!$R$2=7,SW!E14,IF(data!$R$2=8,TS!E14,IF(data!$R$2=9,ExtraTaal1!E14,IF(data!$R$2=10,ExtraTaal2!E14,IF(data!$R$2=11,ExtraTaal3!E14,))))))))))) -> Watersided pressure loss [kPa] | G16: =IF(data!$R$2=1,NL!F14,IF(data!$R$2=2,EN!F14,IF(data!$R$2=3,DE!F14,IF(data!$R$2=4,FR!F14,IF(data!$R$2=5,NR!F14,IF(data!$R$2=6,SP!F14,IF(data!$R$2=7,SW!F14,IF(data!$R$2=8,TS!F14,IF(data!$R$2=9,ExtraTaal1!F14,IF(data!$R$2=10,ExtraTaal2!F14,IF(data!$R$2=11,ExtraTaal3!F14,))))))))))) -> Cooling capacity * 16/18/27 [W] | H16: =IF(data!$R$2=1,NL!H14,IF(data!$R$2=2,EN!H14,IF(data!$R$2=3,DE!H14,IF(data!$R$2=4,FR!H14,IF(data!$R$2=5,NR!H14,IF(data!$R$2=6,SP!H14,IF(data!$R$2=7,SW!H14,IF(data!$R$2=8,TS!H14,IF(data!$R$2=9,ExtraTaal1!H14,IF(data!$R$2=10,ExtraTaal2!H14,IF(data!$R$2=11,ExtraTaal3!H14,))))))))))) -> Water flowrate, cooling [l/h] | I16: =IF(data!$R$2=1,NL!E14,IF(data!$R$2=2,EN!E14,IF(data!$R$2=3,DE!E14,IF(data!$R$2=4,FR!E14,IF(data!$R$2=5,NR!E14,IF(data!$R$2=6,SP!E14,IF(data!$R$2=7,SW!E14,IF(data!$R$2=8,TS!E14,IF(data!$R$2=9,ExtraTaal1!E14,IF(data!$R$2=10,ExtraTaal2!E14,IF(data!$R$2=11,ExtraTaal3!E14,))))))))))) -> Watersided pressure loss [kPa] | J16: =IF(data!$R$2=1,NL!J14,IF(data!$R$2=2,EN!J14,IF(data!$R$2=3,DE!J14,IF(data!$R$2=4,FR!J14,IF(data!$R$2=5,NR!J14,IF(data!$R$2=6,SP!J14,IF(data!$R$2=7,SW!J14,IF(data!$R$2=8,TS!J14,IF(data!$R$2=9,ExtraTaal1!J14,IF(data!$R$2=10,ExtraTaal2!J14,IF(data!$R$2=11,ExtraTaal3!J14,))))))))))) -> Sound pressure *** [dB(A)] | K16: =IF(data!$R$2=1,NL!K14,IF(data!$R$2=2,EN!K14,IF(data!$R$2=3,DE!K14,IF(data!$R$2=4,FR!K14,IF(data!$R$2=5,NR!K14,IF(data!$R$2=6,SP!K14,IF(data!$R$2=7,SW!K14,IF(data!$R$2=8,TS!K14,IF(data!$R$2=9,ExtraTaal1!K14,IF(data!$R$2=10,ExtraTaal2!K14,IF(data!$R$2=11,ExtraTaal3!K14,))))))))))) -> Sound power ** [dB(A)] | L16: =IF(data!$R$2=1,NL!L14,IF(data!$R$2=2,EN!L14,IF(data!$R$2=3,DE!L14,IF(data!$R$2=4,FR!L14,IF(data!$R$2=5,NR!L14,IF(data!$R$2=6,SP!L14,IF(data!$R$2=7,SW!L14,IF(data!$R$2=8,TS!L14,IF(data!$R$2=9,ExtraTaal1!L14,IF(data!$R$2=10,ExtraTaal2!L14,IF(data!$R$2=11,ExtraTaal3!L14,))))))))))) -> Electrical power [W] | M16: =IF(data!$R$2=1,NL!M14,IF(data!$R$2=2,EN!M14,IF(data!$R$2=3,DE!M14,IF(data!$R$2=4,FR!M14,IF(data!$R$2=5,NR!M14,IF(data!$R$2=6,SP!M14,IF(data!$R$2=7,SW!M14,IF(data!$R$2=8,TS!M14,IF(data!$R$2=9,ExtraTaal1!M14,IF(data!$R$2=10,ExtraTaal2!M14,IF(data!$R$2=11,ExtraTaal3!M14,))))))))))) -> Water volume [l]
B17: =IF(data!$R$2=1,NL!A15,IF(data!$R$2=2,EN!A15,IF(data!$R$2=3,DE!A15,IF(data!$R$2=4,FR!A15,IF(data!$R$2=5,NR!A15,IF(data!$R$2=6,SP!A15,IF(data!$R$2=7,SW!A15,IF(data!$R$2=8,TS!A15,IF(data!$R$2=9,ExtraTaal1!A15,IF(data!$R$2=10,ExtraTaal2!A15,IF(data!$R$2=11,ExtraTaal3!A15,))))))))))) -> Mini Canal, Length 290cm, Heigth 14cm, Width 34cm | C17: =IF(data!$R$2=1,NL!B15,IF(data!$R$2=2,EN!B15,IF(data!$R$2=3,DE!B15,IF(data!$R$2=4,FR!B15,IF(data!$R$2=5,NR!B15,IF(data!$R$2=6,SP!B15,IF(data!$R$2=7,SW!B15,IF(data!$R$2=8,TS!B15,IF(data!$R$2=9,ExtraTaal1!B15,IF(data!$R$2=10,ExtraTaal2!B15,IF(data!$R$2=11,ExtraTaal3!B15,))))))))))) -> 0 | D17: =IF(data!$R$2=1,NL!C15,IF(data!$R$2=2,EN!C15,IF(data!$R$2=3,DE!C15,IF(data!$R$2=4,FR!C15,IF(data!$R$2=5,NR!C15,IF(data!$R$2=6,SP!C15,IF(data!$R$2=7,SW!C15,IF(data!$R$2=8,TS!C15,IF(data!$R$2=9,ExtraTaal1!C15,IF(data!$R$2=10,ExtraTaal2!C15,IF(data!$R$2=11,ExtraTaal3!C15,))))))))))) -> 0 | E17: =IF(data!$R$2=1,NL!D15,IF(data!$R$2=2,EN!D15,IF(data!$R$2=3,DE!D15,IF(data!$R$2=4,FR!D15,IF(data!$R$2=5,NR!D15,IF(data!$R$2=6,SP!D15,IF(data!$R$2=7,SW!D15,IF(data!$R$2=8,TS!D15,IF(data!$R$2=9,ExtraTaal1!D15,IF(data!$R$2=10,ExtraTaal2!D15,IF(data!$R$2=11,ExtraTaal3!D15,))))))))))) -> 0 | F17: =IF(data!$R$2=1,NL!E15,IF(data!$R$2=2,EN!E15,IF(data!$R$2=3,DE!E15,IF(data!$R$2=4,FR!E15,IF(data!$R$2=5,NR!E15,IF(data!$R$2=6,SP!E15,IF(data!$R$2=7,SW!E15,IF(data!$R$2=8,TS!E15,IF(data!$R$2=9,ExtraTaal1!E15,IF(data!$R$2=10,ExtraTaal2!E15,IF(data!$R$2=11,ExtraTaal3!E15,))))))))))) -> 0 | G17: =IF(data!$R$2=1,NL!F15,IF(data!$R$2=2,EN!F15,IF(data!$R$2=3,DE!F15,IF(data!$R$2=4,FR!F15,IF(data!$R$2=5,NR!F15,IF(data!$R$2=6,SP!F15,IF(data!$R$2=7,SW!F15,IF(data!$R$2=8,TS!F15,IF(data!$R$2=9,ExtraTaal1!F15,IF(data!$R$2=10,ExtraTaal2!F15,IF(data!$R$2=11,ExtraTaal3!F15,))))))))))) -> 0 | H17: =IF(data!$R$2=1,NL!G15,IF(data!$R$2=2,EN!G15,IF(data!$R$2=3,DE!G15,IF(data!$R$2=4,FR!G15,IF(data!$R$2=5,NR!G15,IF(data!$R$2=6,SP!G15,IF(data!$R$2=7,SW!G15,IF(data!$R$2=8,TS!G15,IF(data!$R$2=9,ExtraTaal1!G15,IF(data!$R$2=10,ExtraTaal2!G15,IF(data!$R$2=11,ExtraTaal3!G15,))))))))))) -> 0 | I17: =IF(data!$R$2=1,NL!H15,IF(data!$R$2=2,EN!H15,IF(data!$R$2=3,DE!H15,IF(data!$R$2=4,FR!H15,IF(data!$R$2=5,NR!H15,IF(data!$R$2=6,SP!H15,IF(data!$R$2=7,SW!H15,IF(data!$R$2=8,TS!H15,IF(data!$R$2=9,ExtraTaal1!H15,IF(data!$R$2=10,ExtraTaal2!H15,IF(data!$R$2=11,ExtraTaal3!H15,))))))))))) -> 0 | J17: =IF(data!$R$2=1,NL!I15,IF(data!$R$2=2,EN!I15,IF(data!$R$2=3,DE!I15,IF(data!$R$2=4,FR!I15,IF(data!$R$2=5,NR!I15,IF(data!$R$2=6,SP!I15,IF(data!$R$2=7,SW!I15,IF(data!$R$2=8,TS!I15,IF(data!$R$2=9,ExtraTaal1!I15,IF(data!$R$2=10,ExtraTaal2!I15,IF(data!$R$2=11,ExtraTaal3!I15,))))))))))) -> 0 | K17: =IF(data!$R$2=1,NL!J15,IF(data!$R$2=2,EN!J15,IF(data!$R$2=3,DE!J15,IF(data!$R$2=4,FR!J15,IF(data!$R$2=5,NR!J15,IF(data!$R$2=6,SP!J15,IF(data!$R$2=7,SW!J15,IF(data!$R$2=8,TS!J15,IF(data!$R$2=9,ExtraTaal1!J15,IF(data!$R$2=10,ExtraTaal2!J15,IF(data!$R$2=11,ExtraTaal3!J15,))))))))))) -> 0 | L17: =IF(data!$R$2=1,NL!K15,IF(data!$R$2=2,EN!K15,IF(data!$R$2=3,DE!K15,IF(data!$R$2=4,FR!K15,IF(data!$R$2=5,NR!K15,IF(data!$R$2=6,SP!K15,IF(data!$R$2=7,SW!K15,IF(data!$R$2=8,TS!K15,IF(data!$R$2=9,ExtraTaal1!K15,IF(data!$R$2=10,ExtraTaal2!K15,IF(data!$R$2=11,ExtraTaal3!K15,))))))))))) -> 0 | M17: =IF(data!$R$2=1,NL!L15,IF(data!$R$2=2,EN!L15,IF(data!$R$2=3,DE!L15,IF(data!$R$2=4,FR!L15,IF(data!$R$2=5,NR!L15,IF(data!$R$2=6,SP!L15,IF(data!$R$2=7,SW!L15,IF(data!$R$2=8,TS!L15,IF(data!$R$2=9,ExtraTaal1!L15,IF(data!$R$2=10,ExtraTaal2!L15,IF(data!$R$2=11,ExtraTaal3!L15,))))))))))) -> 0
B18: =IF(J5=data!Z1,data!S8,"") -> 0 | C18: =IF(J5=data!Z1,data!BG5,data!AA2) -> 0.0 | D18: =ROUND(IF(data!$P$1=1,data!S5,IF(data!$P$1=2,data!S5*3.412141633,)),0) -> 183 | E18: =IF(data!$P$1=1,ROUND(data!W5,0),IF(data!$P$1=2,ROUND(data!W5/272.7654,1),)) -> 31 | F18: =IF(data!$P$1=1,data!AA5,IF(data!$P$1=2,data!AA5*0.334552563,)) -> 0.46 | J18: 0.0 | K18: 0.0 | L18: 0.0 | M18: =data!AW5 -> 2.90
B19: =data!T8 -> 1 | C19: =data!BH5 -> 6.1 | D19: =ROUND(IF(data!$P$1=1,data!T5,IF(data!$P$1=2,data!T5*3.412141633,)),0) -> 1219 | E19: =IF(data!$P$1=1,ROUND(data!X5,0),IF(data!$P$1=2,ROUND(data!X5/272.7654,1),)) -> 210 | F19: =IF(data!$P$1=1,data!AB5,IF(data!$P$1=2,data!AB5*0.334552563,)) -> 13.56 | G19: =IF(data!AQ5>data!AK5,"",ROUND(IF(data!$P$1=1,data!AQ5,IF(data!$P$1=2,data!AQ5*3.412141633,)),0)) -> 292 | H19: =IF(data!AQ5>data!AK5,"",IF(data!$P$1=1,ROUND(data!AN5,0),IF(data!$P$1=2,ROUND(data!AN5/272.7654,1),))) -> 126 | I19: =IF(data!AQ5>data!AK5,"",IF(data!$P$1=1,data!AT5,IF(data!$P$1=2,data!AT5*0.334552563,))) -> 5.49 | J19: =data!H5 -> 26.0 | K19: =J19+8 -> 34.0 | L19: =data!AX5 -> 26.5 | M19: =data!AW5 -> 2.90
B20: =data!U8 -> 2 | C20: =data!BI5 -> 6.9 | D20: =ROUND(IF(data!$P$1=1,data!U5,IF(data!$P$1=2,data!U5*3.412141633,)),0) -> 1355 | E20: =IF(data!$P$1=1,ROUND(data!Y5,0),IF(data!$P$1=2,ROUND(data!Y5/272.7654,1),)) -> 233 | F20: =IF(data!$P$1=1,data!AC5,IF(data!$P$1=2,data!AC5*0.334552563,)) -> 16.30 | G20: =IF(data!AR5>data!AL5,"",ROUND(IF(data!$P$1=1,data!AR5,IF(data!$P$1=2,data!AR5*3.412141633,)),0)) -> 343 | H20: =IF(data!AR5>data!AL5,"",IF(data!$P$1=1,ROUND(data!AO5,0),IF(data!$P$1=2,ROUND(data!AO5/272.7654,1),))) -> 147 | I20: =IF(data!AR5>data!AL5,"",IF(data!$P$1=1,data!AU5,IF(data!$P$1=2,data!AU5*0.334552563,))) -> 7.21 | J20: =data!I5 -> 30.0 | K20: =J20+8 -> 38.0 | L20: =data!AY5 -> 29.4 | M20: =data!AW5 -> 2.90
B21: =data!V8 -> 3 | C21: =data!BJ5 -> 9.0 | D21: =ROUND(IF(data!$P$1=1,data!V5,IF(data!$P$1=2,data!V5*3.412141633,)),0) -> 1536 | E21: =IF(data!$P$1=1,ROUND(data!Z5,0),IF(data!$P$1=2,ROUND(data!Z5/272.7654,1),)) -> 264 | F21: =IF(data!$P$1=1,data!AD5,IF(data!$P$1=2,data!AD5*0.334552563,)) -> 20.33 | G21: =IF(data!AS5>data!AM5,"",ROUND(IF(data!$P$1=1,data!AS5,IF(data!$P$1=2,data!AS5*3.412141633,)),0)) -> 403 | H21: =IF(data!AS5>data!AM5,"",IF(data!$P$1=1,ROUND(data!AP5,0),IF(data!$P$1=2,ROUND(data!AP5/272.7654,1),))) -> 173 | I21: =IF(data!AS5>data!AM5,"",IF(data!$P$1=1,data!AV5,IF(data!$P$1=2,data!AV5*0.334552563,))) -> 9.62 | J21: =data!J5 -> 38.1 | K21: =J21+8 -> 46.1 | L21: =data!AZ5 -> 36.8 | M21: =data!AW5 -> 2.90
B22: * | C22: =IF(data!$R$2=1,NL!A20,IF(data!$R$2=2,EN!A20,IF(data!$R$2=3,DE!A20,IF(data!$R$2=4,FR!A20,IF(data!$R$2=5,NR!A20,IF(data!$R$2=6,SP!A20,IF(data!$R$2=7,SW!A20,IF(data!$R$2=8,TS!A20,IF(data!$R$2=9,ExtraTaal1!A20,IF(data!$R$2=10,ExtraTaal2!A20,IF(data!$R$2=11,ExtraTaal3!A20,))))))))))) -> Values according to EN 16430 | M22: v2023-06-16
B23: ** | C23: =IF(data!$R$2=1,NL!A21,IF(data!$R$2=2,EN!A21,IF(data!$R$2=3,DE!A21,IF(data!$R$2=4,FR!A21,IF(data!$R$2=5,NR!A21,IF(data!$R$2=6,SP!A21,IF(data!$R$2=7,SW!A21,IF(data!$R$2=8,TS!A21,IF(data!$R$2=9,ExtraTaal1!A21,IF(data!$R$2=10,ExtraTaal2!A21,IF(data!$R$2=11,ExtraTaal3!A21,))))))))))) -> Sound power according to ISO 3741:2010
B24: *** | C24: =IF(data!$R$2=1,NL!A22,IF(data!$R$2=2,EN!A22,IF(data!$R$2=3,DE!A22,IF(data!$R$2=4,FR!A22,IF(data!$R$2=5,NR!A22,IF(data!$R$2=6,SP!A22,IF(data!$R$2=7,SW!A22,IF(data!$R$2=8,TS!A22,IF(data!$R$2=9,ExtraTaal1!A22,IF(data!$R$2=10,ExtraTaal2!A22,IF(data!$R$2=11,ExtraTaal3!A22,))))))))))) -> Sound pressure with an assumed room damping of 8dB(A)
M343: TRUE

Sheet data (hidden)
K1: heating | L1: Ti | M1: =IF($P$1=1,$N1,IF($P$1=2,(N1-32)/1.8,)) -> 35 | N1: ='Mini Canal'!E10 -> 35 | P1: 1 | X1: Mini Canal | Y1: Mini Canal Pro | Z1: Mini Canal Hybrid | AE1: cooling | AF1: Ti | AG1: =IF($P$1=1,$AH1,IF($P$1=2,($AH1-32)/1.8,)) -> 16 | AH1: ='Mini Canal'!J10 -> 16 | AY1: Nederlands | AZ1: English | BA1: Deutsch | BB1: Français | BC1: Norsk | BD1: Español | BE1: Svenska | BF1: Čeština | BG1: ExtraTaal1 | BH1: ExtraTaal2 | BI1: ExtraTaal3
L2: Tr | M2: =IF($P$1=1,$N2,IF($P$1=2,(N2-32)/1.8,)) -> 30 | N2: ='Mini Canal'!E11 -> 30 | P2: SI/Imperial | R2: =IF('Mini Canal'!J4=data!AY1,1,IF('Mini Canal'!J4=data!AZ1,2,IF('Mini Canal'!J4=data!BA1,3,IF('Mini Canal'!J4=data!BB1,4,IF('Mini Canal'!J4=data!BC1,5,IF('Mini Canal'!J4=data!BD1,6,IF('Mini Canal'!J4=data!BE1,7,IF('Mini Canal'!J4=data!BF1,8,IF('Mini Canal'!J4=data!BG1,9,IF('Mini Canal'!J4=data!BH1,10,IF('Mini Canal'!J4=data!BI1,11,"ERROR"))))))))))) -> 2 | X2: =IF('Mini Canal'!J5=data!X1,2,IF('Mini Canal'!J5=data!Y1,3,IF('Mini Canal'!J5=data!Z1,1,))) -> 1 | AA2: =IF(R2=1,"Statisch",IF(R2=2,"Static",IF(R2=3,"Statisch",IF(R2=4,"Statique",IF(R2=5,"Statisk",IF(R2=6,"Estático",IF(R2=7,"Statisk","ERROR"))))))) -> Static | AF2: Tr | AG2: =IF($P$1=1,$AH2,IF($P$1=2,($AH2-32)/1.8,)) -> 18 | AH2: ='Mini Canal'!J11 -> 18 | BS2: Hoogte | BT2: lengte | BU2: breedte | BW2: =IF($R$2=1,NL!Q7,IF($R$2=2,EN!Q7,IF($R$2=3,DE!Q7,IF($R$2=4,FR!Q7,IF($R$2=5,NR!Q7,IF($R$2=6,SP!Q7,IF($R$2=7,SW!Q7,IF($R$2=8,TS!Q7,IF($R$2=9,ExtraTaal1!Q7,IF($R$2=10,ExtraTaal2!Q7,IF($R$2=11,ExtraTaal3!Q7,))))))))))) -> Copy all data
L3: Ta | M3: =IF($P$1=1,$N3,IF($P$1=2,(N3-32)/1.8,)) -> 20 | N3: ='Mini Canal'!E12 -> 20 | AF3: Ta | AG3: =IF($P$1=1,$AH3,IF($P$1=2,($AH3-32)/1.8,)) -> 27 | AH3: ='Mini Canal'!J12 -> 27 | BS3: geselecteerd | BW3: =IF($R$2=1,NL!Q8,IF($R$2=2,EN!Q8,IF($R$2=3,DE!Q8,IF($R$2=4,FR!Q8,IF($R$2=5,NR!Q8,IF($R$2=6,SP!Q8,IF($R$2=7,SW!Q8,IF($R$2=8,TS!Q8,IF($R$2=9,ExtraTaal1!Q8,IF($R$2=10,ExtraTaal2!Q8,IF($R$2=11,ExtraTaal3!Q8,))))))))))) -> SI-units
A4: kolomindex | B4: 2 | C4: 3 | D4: 4 | E4: 5 | F4: 6 | G4: 7 | H4: 8 | I4: 9 | J4: 10 | K4: 11 | L4: 12 | M4: 13 | N4: 14 | O4: 15 | P4: 16 | Q4: 17 | R4: 18 | S4: 19 | T4: 20 | U4: 21 | V4: 22 | W4: 23 | X4: 24 | Y4: 25 | Z4: 26 | AA4: 27 | AB4: 28 | AC4: 29 | AD4: 30 | AE4: 31 | AF4: 32 | AG4: 33 | AH4: 34 | AI4: 35 | AJ4: 36 | AK4: 37 | AL4: 38 | AM4: 39 | AN4: 40 | AO4: 41 | AP4: 42 | AQ4: 43 | AR4: 44 | AS4: 45 | AT4: 46 | AU4: 47 | AV4: 48 | AW4: 49 | AX4: 50 | AY4: 51 | AZ4: 52 | BA4: 53 | BB4: 54 | BC4: 55 | BD4: 56 | BE4: 57 | BF4: 58 | BG4: 59 | BH4: 60 | BI4: 61 | BJ4: 62 | BK4: 62 | BL4: 63 | BM4: 64 | BN4: 65 | BO4: 66 | BP4: 67 | BS4: =IF('Mini Canal'!$J$5=data!$X$1,"Standaard",IF('Mini Canal'!$J$5=data!$Y$1,"PRO",IF('Mini Canal'!$J$5=data!$Z$1,"DBE",))) -> DBE | BT4: =CONCATENATE($BS$4,"_L") -> DBE_L | BU4: =CONCATENATE($BS$4,"_B") -> DBE_B | BW4: =IF($R$2=1,NL!Q9,IF($R$2=2,EN!Q9,IF($R$2=3,DE!Q9,IF($R$2=4,FR!Q9,IF($R$2=5,NR!Q9,IF($R$2=6,SP!Q9,IF($R$2=7,SW!Q9,IF($R$2=8,TS!Q9,IF($R$2=9,ExtraTaal1!Q9,IF($R$2=10,ExtraTaal2!Q9,IF($R$2=11,ExtraTaal3!Q9,))))))))))) -> Imperial-units
A5: =CONCATENATE('Mini Canal'!J6,'Mini Canal'!L6,'Mini Canal'!K6,$X$2) -> 14290341 | B5: =VLOOKUP($A$5,$A$9:$BK$981,B4,0) -> 14 | C5: 290 | D5: 1 | E5: 34 | F5: 15 | G5: 0 | H5: 26 | I5: 30 | J5: 38.12842681 | K5: 1227 | L5: 5665 | M5: 6295 | N5: 7138 | O5: 1.362 | P5: 1.1 | Q5: 1.1 | R5: 1.1 | S5: 183 | T5: 1219 | U5: 1355 | V5: =VLOOKUP($A$5,$A$9:$BK$981,V4,0) -> 1536 | W5: 31 | X5: 210 | Y5: 233 | Z5: 264 | AA5: 0.459626027 | AB5: 13.56176253 | AC5: 16.30047093 | AD5: 20.33361558 | AE5: 292 | AF5: 343 | AG5: 403 | AH5: 0.98 | AI5: 0.98 | AJ5: 0.98 | AK5: 292 | AL5: 343 | AM5: 403 | AN5: 126 | AO5: 147 | AP5: 173 | AQ5: 292 | AR5: 343 | AS5: 403 | AT5: 5.492030247 | AU5: 7.214284956 | AV5: 9.623957352 | AW5: 2.9 | AX5: 26.5 | AY5: 29.4 | AZ5: 36.8 | BA5: 0 | BB5: 0 | BC5: 506 | BD5: 576 | BE5: 757 | BF5: 0 | BG5: 0 | BH5: 6.051559471 | BI5: 6.873631145 | BJ5: 9 | BK5: =VLOOKUP($A$5,$A$9:$BK$981,BK4,0) -> 9 | BL5: =VLOOKUP($A$5,$A$9:$BP$981,BL4,0) -> 0 | BM5: =VLOOKUP($A$5,$A$9:$BP$981,BM4,0) -> 0 | BN5: =VLOOKUP($A$5,$A$9:$BP$981,BN4,0) -> 0.0001956332036 | BO5: =VLOOKUP($A$5,$A$9:$BP$981,BO4,0) -> 0.0004470845885 | BP5: =VLOOKUP($A$5,$A$9:$BP$981,BP4,0) -> 1.766459433
F7: Type | G7: soundpressure level | K7: power | L7: 75/65/20 | O7: n | S7: result | T7: power | W7: result | X7: flow | AD7: dP | AE7: power | AF7: 16/18/27 | AH7: n | AK7: result | AL7: power | AN7: result | AO7: flow | AQ7: Total power, result | AV7: dP | AW7: Water content | AX7: electrical power nominal | BC7: Airflow | BI7: BMS-stuurspanning
A8: lookup code | B8: height | C8: length | D8: DBE? | E8: depth | F8: WW | G8: 0 | H8: 1 | I8: 2 | J8: 3 | K8: 0 | L8: 1 | M8: 2 | N8: 3 | O8: 0 | P8: 1 | Q8: 2 | R8: 3 | S8: 0 | T8: 1 | U8: 2 | V8: 3 | W8: 0 | X8: 1 | Y8: 2 | Z8: 3 | AA8: 0 | AB8: 1 | AC8: 2 | AD8: 3 | AE8: 1 | AF8: 2 | AG8: 3 | AH8: 1 | AI8: 2 | AJ8: 3 | AK8: 1 | AL8: 2 | AM8: 3 | AN8: 1 | AO8: 2 | AP8: 3 | AQ8: 1 | AR8: 2 | AS8: 3 | AT8: 1 | AU8: 2 | AV8: 3 | AX8: 1 | AY8: 2 | AZ8: 3 | BB8: 0 | BC8: 1 | BD8: 2 | BE8: 3 | BG8: 0 | BH8: 1 | BI8: 2 | BJ8: 3 | BM8: k1 | BN8: k2 | BO8: x | BP8: t
A9: =CONCATENATE(B9,C9,E9,D9) -> 1470261 | B9: 14 | C9: 70 | D9: 1 | E9: 26 | F9: =IF($E9=26,10,IF($E9=34,15,IF($E9=42,20,))) -> 10 | G9: 0 | H9: 21.22878745 | I9: 25.22878745 | J9: 31.0 | K9: 143 | L9: 517 | M9: 550 | N9: 570 | O9: 1.362 | P9: 1.1 | Q9: 1.1 | R9: 1.1 | S9: =ROUND(K9*POWER((($M$1-$M$2)/LN(($M$1-$M$3)/($M$2-$M$3)))/((75-65)/LN((75-20)/(65-20))),O9),0) -> 21 | T9: 111 | U9: 118 | V9: 123 | W9: =ROUND(S9*3600/(4186*ABS($M$1-$M$2)),0) -> 4 | X9: 19 | Y9: 20 | Z9: 21 | AA9: =0.0098*(($BM9*(W9^$BO9)*($C9-14.4)*$BP9)+($BN9*W9*W9)) -> 0.01247449286 | AB9: =0.0098*(($BM9*(X9^$BO9)*($C9-14.4)*$BP9)+($BN9*X9*X9)) -> 0.127266446 | AC9: =0.0098*(($BM9*(Y9^$BO9)*($C9-14.4)*$BP9)+($BN9*Y9*Y9)) -> 0.1373909966 | AD9: 0.1477689798 | AE9: 49 | AF9: 52 | AG9: 52 | AH9: 0.98 | AI9: 0.98 | AJ9: 0.98 | AK9: =ROUND(AE9*POWER((($AG$1-$AG$2)/LN(($AG$1-$AG$3)/($AG$2-$AG$3)))/((16-18)/LN((16-27)/(18-27))),AH9),0) -> 49 | AL9: =ROUND(AF9*POWER((($AG$1-$AG$2)/LN(($AG$1-$AG$3)/($AG$2-$AG$3)))/((16-18)/LN((16-27)/(18-27))),AI9),0) -> 52 | AM9: =ROUND(AG9*POWER((($AG$1-$AG$2)/LN(($AG$1-$AG$3)/($AG$2-$AG$3)))/((16-18)/LN((16-27)/(18-27))),AJ9),0) -> 52 | AN9: =ROUND(AK9*3600/(4186*ABS($AG$1-$AG$2)),0) -> 21 | AO9: =ROUND(AL9*3600/(4186*ABS($AG$1-$AG$2)),0) -> 22 | AP9: =ROUND(AM9*3600/(4186*ABS($AG$1-$AG$2)),0) -> 22 | AQ9: =(AK9/(IF((237.3*LN(('Mini Canal'!$J$13*EXP(17.27*(data!$AG$3/(data!$AG$3+237.3))))))/(17.27-LN(('Mini Canal'!$J$13*EXP(17.27*(data!$AG$3/(data!$AG$3+237.3))))))<((data!$AG$1+data!$AG$2)/2),1,IF(1/(1+((2258*((0.622/((101325/(1*611*EXP(17.27*(((data!$AG$1+data!$AG$2)/2)/(((data!$AG$1+data!$AG$2)/2)+237.3))))))-1)*1000-(0.622/((101325/('Mini Canal'!$J$13*611*EXP(17.27*(data!$AG$3/(data!$AG$3+237.3))))))-1)*1000))/(1005*(((data!$AG$1+data!$AG$2)/2)-data!$AG$3))))>1,1,1/(1+((2258*((0.622/((101325/(1*611*EXP(17.27*(((data!$AG$1+data!$AG$2)/2)/(((data!$AG$1+data!$AG$2)/2)+237.3))))))-1)*1000-(0.622/((101325/('Mini Canal'!$J$13*611*EXP(17.27*(data!$AG$3/(data!$AG$3+237.3))))))-1)*1000))/(1005*(((data!$AG$1+data!$AG$2)/2)-data!$AG$3)))))))) -> 49 | AR9: =(AL9/(IF((237.3*LN(('Mini Canal'!$J$13*EXP(17.27*(data!$AG$3/(data!$AG$3+237.3))))))/(17.27-LN(('Mini Canal'!$J$13*EXP(17.27*(data!$AG$3/(data!$AG$3+237.3))))))<((data!$AG$1+data!$AG$2)/2),1,IF(1/(1+((2258*((0.622/((101325/(1*611*EXP(17.27*(((data!$AG$1+data!$AG$2)/2)/(((data!$AG$1+data!$AG$2)/2)+237.3))))))-1)*1000-(0.622/((101325/('Mini Canal'!$J$13*611*EXP(17.27*(data!$AG$3/(data!$AG$3+237.3))))))-1)*1000))/(1005*(((data!$AG$1+data!$AG$2)/2)-data!$AG$3))))>1,1,1/(1+((2258*((0.622/((101325/(1*611*EXP(17.27*(((data!$AG$1+data!$AG$2)/2)/(((data!$AG$1+data!$AG$2)/2)+237.3))))))-1)*1000-(0.622/((101325/('Mini Canal'!$J$13*611*EXP(17.27*(data!$AG$3/(data!$AG$3+237.3))))))-1)*1000))/(1005*(((data!$AG$1+data!$AG$2)/2)-data!$AG$3)))))))) -> 52 | AS9: =(AM9/(IF((237.3*LN(('Mini Canal'!$J$13*EXP(17.27*(data!$AG$3/(data!$AG$3+237.3))))))/(17.27-LN(('Mini Canal'!$J$13*EXP(17.27*(data!$AG$3/(data!$AG$3+237.3))))))<((data!$AG$1+data!$AG$2)/2),1,IF(1/(1+((2258*((0.622/((101325/(1*611*EXP(17.27*(((data!$AG$1+data!$AG$2)/2)/(((data!$AG$1+data!$AG$2)/2)+237.3))))))-1)*1000-(0.622/((101325/('Mini Canal'!$J$13*611*EXP(17.27*(data!$AG$3/(data!$AG$3+237.3))))))-1)*1000))/(1005*(((data!$AG$1+data!$AG$2)/2)-data!$AG$3))))>1,1,1/(1+((2258*((0.622/((101325/(1*611*EXP(17.27*(((data!$AG$1+data!$AG$2)/2)/(((data!$AG$1+data!$AG$2)/2)+237.3))))))-1)*1000-(0.622/((101325/('Mini Canal'!$J$13*611*EXP(17.27*(data!$AG$3/(data!$AG$3+237.3))))))-1)*1000))/(1005*(((data!$AG$1+data!$AG$2)/2)-data!$AG$3)))))))) -> 52 | AT9: =0.0098*(($BM9*(AN9^$BO9)*($C9-14.4)*$BP9)+($BN9*AN9*AN9)) -> 0.1477689798 | AU9: =0.0098*(($BM9*(AO9^$BO9)*($C9-14.4)*$BP9)+($BN9*AO9*AO9)) -> 0.1583943095 | AV9: =0.0098*(($BM9*(AP9^$BO9)*($C9-14.4)*$BP9)+($BN9*AP9*AP9)) -> 0.1583943095 | AW9: =IF($F9=$BR$70,$C9*$BS$70,IF($F9=$BR$71,$C9*$BS$71,IF($F9=$BR$72,$C9*$BS$72,IF($F9=$BR$73,$C9*$BS$73,IF($F9=$BR$74,$C9*$BS$74,IF($F9=$BR$75,$C9*$BS$75,IF($F9=$BR$76,$C9*$BS$76,IF($F9=$BR$77,$C9*$BS$77,IF($F9=$BR$78,$C9*$BS$78,IF($F9=$BR$79,$C9*$BS$79,IF($F9=$BR$80,$C9*$BS$80,))))))))))) -> 0.47 | AX9: =(0.1175*$C9)-4.485 -> 3.7 | AY9: =(0.1312*$C9)-5.1167 -> 4.1 | AZ9: =(0.1832*$C9)-8.1317 -> 4.7 | BB9: 0 | BC9: =(2.215*$C9)-76.45 -> 78.6 | BD9: =($C9*2.515)-85.45 -> 90.6 | BE9: =($C9*3.83)-161.5 -> 106.6 | BG9: 0 | BH9: 7.245893006 | BI9: 8.27052181 | BJ9: 10 | BM9: =IF($F9=$BR$70,$BT$70,IF($F9=$BR$71,$BT$71,IF($F9=$BR$72,$BT$72,IF($F9=$BR$73,$BT$73,IF($F9=$BR$74,$BT$74,IF($F9=$BR$75,$BT$75,IF($F9=$BR$76,$BT$76,IF($F9=$BR$77,$BT$77,IF($F9=$BR$78,$BT$78,IF($F9=$BR$79,$BT$79,IF($F9=$BR$80,$BT$80,))))))))))) -> 0.001450187971 | BN9: =IF($F9=$BR$70,$BU$70,IF($F9=$BR$71,$BU$71,IF($F9=$BR$72,$BU$72,IF($F9=$BR$73,$BU$73,IF($F9=$BR$74,$BU$74,IF($F9=$BR$75,$BU$75,IF($F9=$BR$76,$BU$76,IF($F9=$BR$77,$BU$77,IF($F9=$BR$78,$BU$78,IF($F9=$BR$79,$BU$79,IF($F9=$BR$80,$BU$80,))))))))))) -> 0.0003783163265 | BO9: =IF($F9=$BR$70,$BV$70,IF($F9=$BR$71,$BV$71,IF($F9=$BR$72,$BV$72,IF($F9=$BR$73,$BV$73,IF($F9=$BR$74,$BV$74,IF($F9=$BR$75,$BV$75,IF($F9=$BR$76,$BV$76,IF($F9=$BR$77,$BV$77,IF($F9=$BR$78,$BV$78,IF($F9=$BR$79,$BV$79,IF($F9=$BR$80,$BV$80,))))))))))) -> 1.486891044 | BP9: =IF($F9=$BR$70,$BW$70,IF($F9=$BR$71,$BW$71,IF($F9=$BR$72,$BW$72,IF($F9=$BR$73,$BW$73,IF($F9=$BR$74,$BW$74,IF($F9=$BR$75,$BW$75,IF($F9=$BR$76,$BW$76,IF($F9=$BR$77,$BW$77,IF($F9=$BR$78,$BW$78,IF($F9=$BR$79,$BW$79,IF($F9=$BR$80,$BW$80,))))))))))) -> 2
A10: 1470341 | B10: 14 | C10: 70 | D10: 1 | E10: 34 | F10: =IF($E10=26,10,IF($E10=34,15,IF($E10=42,20,))) -> 15 | G10: 0 | H10: 21.22878745 | I10: 25.22878745 | J10: 31.0 | K10: 188 | L10: 670 | M10: 711 | N10: 726 | O10: 1.362 | P10: 1.1 | Q10: 1.1 | R10: 1.1 | S10: 28 | T10: 144 | U10: 153 | V10: 156 | W10: 5 | X10: 25 | Y10: 26 | Z10: 27 | AA10: =0.0098*(($BM10*(W10^$BO10)*($C10-14.4)*$BP10)+($BN10*W10*W10)) -> 0.003769489386 | AB10: 0.06556993884 | AC10: =0.0098*(($BM10*(Y10^$BO10)*($C10-14.4)*$BP10)+($BN10*Y10*Y10)) -> 0.07030081252 | AD10: =0.0098*(($BM10*(Z10^$BO10)*($C10-14.4)*$BP10)+($BN10*Z10*Z10)) -> 0.07517532299 | AE10: 56 | AF10: 61 | AG10: 61 | AH10: 0.98 | AI10: 0.98 | AJ10: 0.98 | AK10: 56 | AL10: 61 | AM10: 61 | AN10: 24 | AO10: 26 | AP10: 26 | AQ10: =(AK10/(IF((237.3*LN(('Mini Canal'!$J$13*EXP(17.27*(data!$AG$3/(data!$AG$3+237.3))))))/(17.27-LN(('Mini Canal'!$J$13*EXP(17.27*(data!$AG$3/(data!$AG$3+237.3))))))<((data!$AG$1+data!$AG$2)/2),1,IF(1/(1+((2258*((0.622/((101325/(1*611*EXP(17.27*(((data!$AG$1+data!$AG$2)/2)/(((data!$AG$1+data!$AG$2)/2)+237.3))))))-1)*1000-(0.622/((101325/('Mini Canal'!$J$13*611*EXP(17.27*(data!$AG$3/(data!$AG$3+237.3))))))-1)*1000))/(1005*(((data!$AG$1+data!$AG$2)/2)-data!$AG$3))))>1,1,1/(1+((2258*((0.622/((101325/(1*611*EXP(17.27*(((data!$AG$1+data!$AG$2)/2)/(((data!$AG$1+data!$AG$2)/2)+237.3))))))-1)*1000-(0.622/((101325/('Mini Canal'!$J$13*611*EXP(17.27*(data!$AG$3/(data!$AG$3+237.3))))))-1)*1000))/(1005*(((data!$AG$1+data!$AG$2)/2)-data!$AG$3)))))))) -> 56 | AR10: =(AL10/(IF((237.3*LN(('Mini Canal'!$J$13*EXP(17.27*(data!$AG$3/(data!$AG$3+237.3))))))/(17.27-LN(('Mini Canal'!$J$13*EXP(17.27*(data!$AG$3/(data!$AG$3+237.3))))))<((data!$AG$1+data!$AG$2)/2),1,IF(1/(1+((2258*((0.622/((101325/(1*611*EXP(17.27*(((data!$AG$1+data!$AG$2)/2)/(((data!$AG$1+data!$AG$2)/2)+237.3))))))-1)*1000-(0.622/((101325/('Mini Canal'!$J$13*611*EXP(17.27*(data!$AG$3/(data!$AG$3+237.3))))))-1)*1000))/(1005*(((data!$AG$1+data!$AG$2)/2)-data!$AG$3))))>1,1,1/(1+((2258*((0.622/((101325/(1*611*EXP(17.27*(((data!$AG$1+data!$AG$2)/2)/(((data!$AG$1+data!$AG$2)/2)+237.3))))))-1)*1000-(0.622/((101325/('Mini Canal'!$J$13*611*EXP(17.27*(data!$AG$3/(data!$AG$3+237.3))))))-1)*1000))/(1005*(((data!$AG$1+data!$AG$2)/2)-data!$AG$3)))))))) -> 61 | AS10: =(AM10/(IF((237.3*LN(('Mini Canal'!$J$13*EXP(17.27*(data!$AG$3/(data!$AG$3+237.3))))))/(17.27-LN(('Mini Canal'!$J$13*EXP(17.27*(data!$AG$3/(data!$AG$3+237.3))))))<((data!$AG$1+data!$AG$2)/2),1,IF(1/(1+((2258*((0.622/((101325/(1*611*EXP(17.27*(((data!$AG$1+data!$AG$2)/2)/(((data!$AG$1+data!$AG$2)/2)+237.3))))))-1)*1000-(0.622/((101325/('Mini Canal'!$J$13*611*EXP(17.27*(data!$AG$3/(data!$AG$3+237.3))))))-1)*1000))/(1005*(((data!$AG$1+data!$AG$2)/2)-data!$AG$3))))>1,1,1/(1+((2258*((0.622/((101325/(1*611*EXP(17.27*(((data!$AG$1+data!$AG$2)/2)/(((data!$AG$1+data!$AG$2)/2)+237.3))))))-1)*1000-(0.622/((101325/('Mini Canal'!$J$13*611*EXP(17.27*(data!$AG$3/(data!$AG$3+237.3))))))-1)*1000))/(1005*(((data!$AG$1+data!$AG$2)/2)-data!$AG$3)))))))) -> 61 | AT10: =0.0098*(($BM10*(AN10^$BO10)*($C10-14.4)*$BP10)+($BN10*AN10*AN10)) -> 0.06098394342 | AU10: =0.0098*(($BM10*(AO10^$BO10)*($C10-14.4)*$BP10)+($BN10*AO10*AO10)) -> 0.07030081252 | AV10: =0.0098*(($BM10*(AP10^$BO10)*($C10-14.4)*$BP10)+($BN10*AP10*AP10)) -> 0.07030081252 | AW10: 0.70 | AX10: =(0.1175*$C10)-4.485 -> 3.7 | AY10: =(0.1312*$C10)-5.1167 -> 4.1 | AZ10: =(0.1832*$C10)-8.1317 -> 4.7 | BB10: 0 | BC10: =(2.215*$C10)-76.45 -> 78.6 | BD10: =($C10*2.515)-85.45 -> 90.6 | BE10: =($C10*3.83)-161.5 -> 106.6 | BG10: 0 | BH10: 7.245893006 | BI10: 8.27052181 | BJ10: 10 | BM10: =IF($F10=$BR$70,$BT$70,IF($F10=$BR$71,$BT$71,IF($F10=$BR$72,$BT$72,IF($F10=$BR$73,$BT$73,IF($F10=$BR$74,$BT$74,IF($F10=$BR$75,$BT$75,IF($F10=$BR$76,$BT$76,IF($F10=$BR$77,$BT$77,IF($F10=$BR$78,$BT$78,IF($F10=$BR$79,$BT$79,IF($F10=$BR$80,$BT$80,))))))))))) -> 0.0001956332036 | BN10: =IF($F10=$BR$70,$BU$70,IF($F10=$BR$71,$BU$71,IF($F10=$BR$72,$BU$72,IF($F10=$BR$73,$BU$73,IF($F10=$BR$74,$BU$74,IF($F10=$BR$75,$BU$75,IF($F10=$BR$76,$BU$76,IF($F10=$BR$77,$BU$77,IF($F10=$BR$78,$BU$78,IF($F10=$BR$79,$BU$79,IF($F10=$BR$80,$BU$80,))))))))))) -> 0.0004470845885 | BO10: =IF($F10=$BR$70,$BV$70,IF($F10=$BR$71,$BV$71,IF($F10=$BR$72,$BV$72,IF($F10=$BR$73,$BV$73,IF($F10=$BR$74,$BV$74,IF($F10=$BR$75,$BV$75,IF($F10=$BR$76,$BV$76,IF($F10=$BR$77,$BV$77,IF($F10=$BR$78,$BV$78,IF($F10=$BR$79,$BV$79,IF($F10=$BR$80,$BV$80,))))))))))) -> 1.766459433 | BP10: =IF($F10=$BR$70,$BW$70,IF($F10=$BR$71,$BW$71,IF($F10=$BR$72,$BW$72,IF($F10=$BR$73,$BW$73,IF($F10=$BR$74,$BW$74,IF($F10=$BR$75,$BW$75,IF($F10=$BR$76,$BW$76,IF($F10=$BR$77,$BW$77,IF($F10=$BR$78,$BW$78,IF($F10=$BR$79,$BW$79,IF($F10=$BR$80,$BW$80,))))))))))) -> 2
A11: 1470421 | B11: 14 | C11: 70 | D11: 1 | E11: 42 | F11: 20 | G11: 0 | H11: 21.22878745 | I11: 25.22878745 | J11: 31.0 | K11: 233 | L11: 792 | M11: 838 | N11: 855 | O11: 1.362 | P11: 1.1 | Q11: 1.1 | R11: 1.1 | S11: 35 | T11: 170 | U11: 180 | V11: 184 | W11: 6 | X11: 29 | Y11: 31 | Z11: 32 | AA11: 0.02131343352 | AB11: 0.1860027547 | AC11: 0.2039144726 | AD11: 0.2130395683 | AE11: 30 | AF11: 32 | AG11: 32 | AH11: 0.98 | AI11: 0.98 | AJ11: 0.98 | AK11: 30 | AL11: 32 | AM11: 32 | AN11: 13 | AO11: 14 | AP11: 14 | AQ11: =(AK11/(IF((237.3*LN(('Mini Canal'!$J$13*EXP(17.27*(data!$AG$3/(data!$AG$3+237.3))))))/(17.27-LN(('Mini Canal'!$J$13*EXP(17.27*(data!$AG$3/(data!$AG$3+237.3))))))<((data!$AG$1+data!$AG$2)/2),1,IF(1/(1+((2258*((0.622/((101325/(1*611*EXP(17.27*(((data!$AG$1+data!$AG$2)/2)/(((data!$AG$1+data!$AG$2)/2)+237.3))))))-1)*1000-(0.622/((101325/('Mini Canal'!$J$13*611*EXP(17.27*(data!$AG$3/(data!$AG$3+237.3))))))-1)*1000))/(1005*(((data!$AG$1+data!$AG$2)/2)-data!$AG$3))))>1,1,1/(1+((2258*((0.622/((101325/(1*611*EXP(17.27*(((data!$AG$1+data!$AG$2)/2)/(((data!$AG$1+data!$AG$2)/2)+237.3))))))-1)*1000-(0.622/((101325/('Mini Canal'!$J$13*611*EXP(17.27*(data!$AG$3/(data!$AG$3+237.3))))))-1)*1000))/(1005*(((data!$AG$1+data!$AG$2)/2)-data!$AG$3)))))))) -> 30 | AR11: =(AL11/(IF((237.3*LN(('Mini Canal'!$J$13*EXP(17.27*(data!$AG$3/(data!$AG$3+237.3))))))/(17.27-LN(('Mini Canal'!$J$13*EXP(17.27*(data!$AG$3/(data!$AG$3+237.3))))))<((data!$AG$1+data!$AG$2)/2),1,IF(1/(1+((2258*((0.622/((101325/(1*611*EXP(17.27*(((data!$AG$1+data!$AG$2)/2)/(((data!$AG$1+data!$AG$2)/2)+237.3))))))-1)*1000-(0.622/((101325/('Mini Canal'!$J$13*611*EXP(17.27*(data!$AG$3/(data!$AG$3+237.3))))))-1)*1000))/(1005*(((data!$AG$1+data!$AG$2)/2)-data!$AG$3))))>1,1,1/(1+((2258*((0.622/((101325/(1*611*EXP(17.27*(((data!$AG$1+data!$AG$2)/2)/(((data!$AG$1+data!$AG$2)/2)+237.3))))))-1)*1000-(0.622/((101325/('Mini Canal'!$J$13*611*EXP(17.27*(data!$AG$3/(data!$AG$3+237.3))))))-1)*1000))/(1005*(((data!$AG$1+data!$AG$2)/2)-data!$AG$3)))))))) -> 32 | AS11: =(AM11/(IF((237.3*LN(('Mini Canal'!$J$13*EXP(17.27*(data!$AG$3/(data!$AG$3+237.3))))))/(17.27-LN(('Mini Canal'!$J$13*EXP(17.27*(data!$AG$3/(data!$AG$3+237.3))))))<((data!$AG$1+data!$AG$2)/2),1,IF(1/(1+((2258*((0.622/((101325/(1*611*EXP(17.27*(((data!$AG$1+data!$AG$2)/2)/(((data!$AG$1+data!$AG$2)/2)+237.3))))))-1)*1000-(0.622/((101325/('Mini Canal'!$J$13*611*EXP(17.27*(data!$AG$3/(data!$AG$3+237.3))))))-1)*1000))/(1005*(((data!$AG$1+data!$AG$2)/2)-data!$AG$3))))>1,1,1/(1+((2258*((0.622/((101325/(1*611*EXP(17.27*(((data!$AG$1+data!$AG$2)/2)/(((data!$AG$1+data!$AG$2)/2)+237.3))))))-1)*1000-(0.622/((101325/('Mini Canal'!$J$13*611*EXP(17.27*(data!$AG$3/(data!$AG$3+237.3))))))-1)*1000))/(1005*(((data!$AG$1+data!$AG$2)/2)-data!$AG$3)))))))) -> 32 | AT11: 0.0616450859 | AU11: 0.06825726703 | AV11: 0.06825726703 | AW11: 0.93 | AX11: 3.7 | AY11: 4.1 | AZ11: 4.7 | BB11: 0 | BC11: 78.6 | BD11: 90.6 | BE11: 106.6 | BG11: 0 | BH11: 7.245893006 | BI11: 8.27052181 | BJ11: 10 | BM11: 0.001673095004 | BN11: 0.0003292952395 | BO11: 1.369178837 | BP11: 2
A12: 1480261 | B12: 14 | C12: 80 | D12: 1 | E12: 26 | F12: 10 | G12: 0 | H12: 24.23908741 | I12: 28.23908741 | J12: 33.98459991 | K12: 178 | L12: 927 | M12: 991 | N12: 1033 | O12: 1.362 | P12: 1.1 | Q12: 1.1 | R12: 1.1 | S12: 27 | T12: 199 | U12: 213 | V12: 222 | W12: 5 | X12: 34 | Y12: 37 | Z12: 38 | AA12: 0.0205042593 | AB12: 0.3572466868 | AC12: 0.4053236948 | AD12: 0.4217915717 | AE12: 61 | AF12: 65 | AG12: 65 | AH12: 0.98 | AI12: 0.98 | AJ12: 0.98 | AK12: 61 | AL12: 65 | AM12: 65 | AN12: 26 | AO12: 28 | AP12: 28 | AQ12: =(AK12/(IF((237.3*LN(('Mini Canal'!$J$13*EXP(17.27*(data!$AG$3/(data!$AG$3+237.3))))))/(17.27-LN(('Mini Canal'!$J$13*EXP(17.27*(data!$AG$3/(data!$AG$3+237.3))))))<((data!$AG$1+data!$AG$2)/2),1,IF(1/(1+((2258*((0.622/((101325/(1*611*EXP(17.27*(((data!$AG$1+data!$AG$2)/2)/(((data!$AG$1+data!$AG$2)/2)+237.3))))))-1)*1000-(0.622/((101325/('Mini Canal'!$J$13*611*EXP(17.27*(data!$AG$3/(data!$AG$3+237.3))))))-1)*1000))/(1005*(((data!$AG$1+data!$AG$2)/2)-data!$AG$3))))>1,1,1/(1+((2258*((0.622/((101325/(1*611*EXP(17.27*(((data!$AG$1+data!$AG$2)/2)/(((data!$AG$1+data!$AG$2)/2)+237.3))))))-1)*1000-(0.622/((101325/('Mini Canal'!$J$13*611*EXP(17.27*(data!$AG$3/(data!$AG$3+237.3))))))-1)*1000))/(1005*(((data!$AG$1+data!$AG$2)/2)-data!$AG$3)))))))) -> 61 | AR12: =(AL12/(IF((237.3*LN(('Mini Canal'!$J$13*EXP(17.27*(data!$AG$3/(data!$AG$3+237.3))))))/(17.27-LN(('Mini Canal'!$J$13*EXP(17.27*(data!$AG$3/(data!$AG$3+237.3))))))<((data!$AG$1+data!$AG$2)/2),1,IF(1/(1+((2258*((0.622/((101325/(1*611*EXP(17.27*(((data!$AG$1+data!$AG$2)/2)/(((data!$AG$1+data!$AG$2)/2)+237.3))))))-1)*1000-(0.622/((101325/('Mini Canal'!$J$13*611*EXP(17.27*(data!$AG$3/(data!$AG$3+237.3))))))-1)*1000))/(1005*(((data!$AG$1+data!$AG$2)/2)-data!$AG$3))))>1,1,1/(1+((2258*((0.622/((101325/(1*611*EXP(17.27*(((data!$AG$1+data!$AG$2)/2)/(((data!$AG$1+data!$AG$2)/2)+237.3))))))-1)*1000-(0.622/((101325/('Mini Canal'!$J$13*611*EXP(17.27*(data!$AG$3/(data!$AG$3+237.3))))))-1)*1000))/(1005*(((data!$AG$1+data!$AG$2)/2)-data!$AG$3)))))))) -> 65 | AS12: =(AM12/(IF((237.3*LN(('Mini Canal'!$J$13*EXP(17.27*(data!$AG$3/(data!$AG$3+237.3))))))/(17.27-LN(('Mini Canal'!$J$13*EXP(17.27*(data!$AG$3/(data!$AG$3+237.3))))))<((data!$AG$1+data!$AG$2)/2),1,IF(1/(1+((2258*((0.622/((101325/(1*611*EXP(17.27*(((data!$AG$1+data!$AG$2)/2)/(((data!$AG$1+data!$AG$2)/2)+237.3))))))-1)*1000-(0.622/((101325/('Mini Canal'!$J$13*611*EXP(17.27*(data!$AG$3/(data!$AG$3+237.3))))))-1)*1000))/(1005*(((data!$AG$1+data!$AG$2)/2)-data!$AG$3))))>1,1,1/(1+((2258*((0.622/((101325/(1*611*EXP(17.27*(((data!$AG$1+data!$AG$2)/2)/(((data!$AG$1+data!$AG$2)/2)+237.3))))))-1)*1000-(0.622/((101325/('Mini Canal'!$J$13*611*EXP(17.27*(data!$AG$3/(data!$AG$3+237.3))))))-1)*1000))/(1005*(((data!$AG$1+data!$AG$2)/2)-data!$AG$3)))))))) -> 65 | AT12: 0.239368279 | AU12: 0.2673609148 | AV12: 0.2673609148 | AW12: 0.53 | AX12: 4.9 | AY12: 5.4 | AZ12: 6.5 | BB12: 0 | BC12: 100.75 | BD12: 115.75 | BE12: 144.9 | BG12: 0 | BH12: 7.245893006 | BI12: 8.27052181 | BJ12: 10 | BM12: 0.001450187971 | BN12: 0.0003783163265 | BO12: 1.486891044 | BP12: 2
A13: 1480341 | B13: 14 | C13: 80 | D13: 1 | E13: 34 | F13: 15 | G13: 0 | H13: 24.23908741 | I13: 28.23908741 | J13: 33.98459991 | K13: 235 | L13: 1198 | M13: 1280 | N13: 1311 | O13: 1.362 | P13: 1.1 | Q13: 1.1 | R13: 1.1 | S13: =ROUND(K13*POWER((($M$1-$M$2)/LN(($M$1-$M$3)/($M$2-$M$3)))/((75-65)/LN((75-20)/(65-20))),O13),0) -> 35 | T13: =ROUND(L13*POWER((($M$1-$M$2)/LN(($M$1-$M$3)/($M$2-$M$3)))/((75-65)/LN((75-20)/(65-20))),P13),0) -> 258 | U13: =ROUND(M13*POWER((($M$1-$M$2)/LN(($M$1-$M$3)/($M$2-$M$3)))/((75-65)/LN((75-20)/(65-20))),Q13),0) -> 275 | V13: 282 | W13: =ROUND(S13*3600/(4186*ABS($M$1-$M$2)),0) -> 6 | X13: 44 | Y13: 47 | Z13: 49 | AA13: 0.006116754881 | AB13: 0.2097134809 | AC13: 0.2357759466 | AD13: 0.2538888268 | AE13: 69 | AF13: 76 | AG13: 76 | AH13: 0.98 | AI13: 0.98 | AJ13: 0.98 | AK13: 69 | AL13: 76 | AM13: 76 | AN13: 30 | AO13: 33 | AP13: 33 | AQ13: =(AK13/(IF((237.3*LN(('Mini Canal'!$J$13*EXP(17.27*(data!$AG$3/(data!$AG$3+237.3))))))/(17.27-LN(('Mini Canal'!$J$13*EXP(17.27*(data!$AG$3/(data!$AG$3+237.3))))))<((data!$AG$1+data!$AG$2)/2),1,IF(1/(1+((2258*((0.622/((101325/(1*611*EXP(17.27*(((data!$AG$1+data!$AG$2)/2)/(((data!$AG$1+data!$AG$2)/2)+237.3))))))-1)*1000-(0.622/((101325/('Mini Canal'!$J$13*611*EXP(17.27*(data!$AG$3/(data!$AG$3+237.3))))))-1)*1000))/(1005*(((data!$AG$1+data!$AG$2)/2)-data!$AG$3))))>1,1,1/(1+((2258*((0.622/((101325/(1*611*EXP(17.27*(((data!$AG$1+data!$AG$2)/2)/(((data!$AG$1+data!$AG$2)/2)+237.3))))))-1)*1000-(0.622/((101325/('Mini Canal'!$J$13*611*EXP(17.27*(data!$AG$3/(data!$AG$3+237.3))))))-1)*1000))/(1005*(((data!$AG$1+data!$AG$2)/2)-data!$AG$3)))))))) -> 69 | AR13: =(AL13/(IF((237.3*LN(('Mini Canal'!$J$13*EXP(17.27*(data!$AG$3/(data!$AG$3+237.3))))))/(17.27-LN(('Mini Canal'!$J$13*EXP(17.27*(data!$AG$3/(data!$AG$3+237.3))))))<((data!$AG$1+data!$AG$2)/2),1,IF(1/(1+((2258*((0.622/((101325/(1*611*EXP(17.27*(((data!$AG$1+data!$AG$2)/2)/(((data!$AG$1+data!$AG$2)/2)+237.3))))))-1)*1000-(0.622/((101325/('Mini Canal'!$J$13*611*EXP(17.27*(data!$AG$3/(data!$AG$3+237.3))))))-1)*1000))/(1005*(((data!$AG$1+data!$AG$2)/2)-data!$AG$3))))>1,1,1/(1+((2258*((0.622/((101325/(1*611*EXP(17.27*(((data!$AG$1+data!$AG$2)/2)/(((data!$AG$1+data!$AG$2)/2)+237.3))))))-1)*1000-(0.622/((101325/('Mini Canal'!$J$13*611*EXP(17.27*(data!$AG$3/(data!$AG$3+237.3))))))-1)*1000))/(1005*(((data!$AG$1+data!$AG$2)/2)-data!$AG$3)))))))) -> 76 | AS13: =(AM13/(IF((237.3*LN(('Mini Canal'!$J$13*EXP(17.27*(data!$AG$3/(data!$AG$3+237.3))))))/(17.27-LN(('Mini Canal'!$J$13*EXP(17.27*(data!$AG$3/(data!$AG$3+237.3))))))<((data!$AG$1+data!$AG$2)/2),1,IF(1/(1+((2258*((0.622/((101325/(1*611*EXP(17.27*(((data!$AG$1+data!$AG$2)/2)/(((data!$AG$1+data!$AG$2)/2)+237.3))))))-1)*1000-(0.622/((101325/('Mini Canal'!$J$13*611*EXP(17.27*(data!$AG$3/(data!$AG$3+237.3))))))-1)*1000))/(1005*(((data!$AG$1+data!$AG$2)/2)-data!$AG$3))))>1,1,1/(1+((2258*((0.622/((101325/(1*611*EXP(17.27*(((data!$AG$1+data!$AG$2)/2)/(((data!$AG$1+data!$AG$2)/2)+237.3))))))-1)*1000-(0.622/((101325/('Mini Canal'!$J$13*611*EXP(17.27*(data!$AG$3/(data!$AG$3+237.3))))))-1)*1000))/(1005*(((data!$AG$1+data!$AG$2)/2)-data!$AG$3)))))))) -> 76 | AT13: 0.106243667 | AU13: 0.1258300048 | AV13: 0.1258300048 | AW13: 0.80 | AX13: 4.9 | AY13: 5.4 | AZ13: 6.5 | BB13: 0 | BC13: 100.75 | BD13: 115.75 | BE13: 144.9 | BG13: 0 | BH13: 7.245893006 | BI13: 8.27052181 | BJ13: 10 | BM13: 0.0001956332036 | BN13: 0.0004470845885 | BO13: 1.766459433 | BP13: 2
A14: 1480421 | B14: 14 | C14: 80 | D14: 1 | E14: 42 | F14: 20 | G14: 0 | H14: 24.23908741 | I14: 28.23908741 | J14: 33.98459991 | K14: 291 | L14: 1408 | M14: 1500 | N14: 1535 | O14: 1.362 | P14: 1.1 | Q14: 1.1 | R14: 1.1 | S14: 43 | T14: 303 | U14: 323 | V14: 330 | W14: 7 | X14: 52 | Y14: 56 | Z14: 57 | AA14: 0.03104478167 | AB14: 0.489782436 | AC14: 0.5425502189 | AD14: 0.5559753436 | AE14: 60 | AF14: 64 | AG14: 64 | AH14: 0.98 | AI14: 0.98 | AJ14: 0.98 | AK14: 60 | AL14: 64 | AM14: 64 | AN14: 26 | AO14: 28 | AP14: 28 | AQ14: =(AK14/(IF((237.3*LN(('Mini Canal'!$J$13*EXP(17.27*(data!$AG$3/(data!$AG$3+237.3))))))/(17.27-LN(('Mini Canal'!$J$13*EXP(17.27*(data!$AG$3/(data!$AG$3+237.3))))))<((data!$AG$1+data!$AG$2)/2),1,IF(1/(1+((2258*((0.622/((101325/(1*611*EXP(17.27*(((data!$AG$1+data!$AG$2)/2)/(((data!$AG$1+data!$AG$2)/2)+237.3))))))-1)*1000-(0.622/((101325/('Mini Canal'!$J$13*611*EXP(17.27*(data!$AG$3/(data!$AG$3+237.3))))))-1)*1000))/(1005*(((data!$AG$1+data!$AG$2)/2)-data!$AG$3))))>1,1,1/(1+((2258*((0.622/((101325/(1*611*EXP(17.27*(((data!$AG$1+data!$AG$2)/2)/(((data!$AG$1+data!$AG$2)/2)+237.3))))))-1)*1000-(0.622/((101325/('Mini Canal'!$J$13*611*EXP(17.27*(data!$AG$3/(data!$AG$3+237.3))))))-1)*1000))/(1005*(((data!$AG$1+data!$AG$2)/2)-data!$AG$3)))))))) -> 60 | AR14: =(AL14/(IF((237.3*LN(('Mini Canal'!$J$13*EXP(17.27*(data!$AG$3/(data!$AG$3+237.3))))))/(17.27-LN(('Mini Canal'!$J$13*EXP(17.27*(data!$AG$3/(data!$AG$3+237.3))))))<((data!$AG$1+data!$AG$2)/2),1,IF(1/(1+((2258*((0.622/((101325/(1*611*EXP(17.27*(((data!$AG$1+data!$AG$2)/2)/(((data!$AG$1+data!$AG$2)/2)+237.3))))))-1)*1000-(0.622/((101325/('Mini Canal'!$J$13*611*EXP(17.27*(data!$AG$3/(data!$AG$3+237.3))))))-1)*1000))/(1005*(((data!$AG$1+data!$AG$2)/2)-data!$AG$3))))>1,1,1/(1+((2258*((0.622/((101325/(1*611*EXP(17.27*(((data!$AG$1+data!$AG$2)/2)/(((data!$AG$1+data!$AG$2)/2)+237.3))))))-1)*1000-(0.622/((101325/('Mini Canal'!$J$13*611*EXP(17.27*(data!$AG$3/(data!$AG$3+237.3))))))-1)*1000))/(1005*(((data!$AG$1+data!$AG$2)/2)-data!$AG$3)))))))) -> 64 | AS14: =(AM14/(IF((237.3*LN(('Mini Canal'!$J$13*EXP(17.27*(data!$AG$3/(data!$AG$3+237.3))))))/(17.27-LN(('Mini Canal'!$J$13*EXP(17.27*(data!$AG$3/(data!$AG$3+237.3))))))<((data!$AG$1+data!$AG$2)/2),1,IF(1/(1+((2258*((0.622/((101325/(1*611*EXP(17.27*(((data!$AG$1+data!$AG$2)/2)/(((data!$AG$1+data!$AG$2)/2)+237.3))))))-1)*1000-(0.622/((101325/('Mini Canal'!$J$13*611*EXP(17.27*(data!$AG$3/(data!$AG$3+237.3))))))-1)*1000))/(1005*(((data!$AG$1+data!$AG$2)/2)-data!$AG$3))))>1,1,1/(1+((2258*((0.622/((101325/(1*611*EXP(17.27*(((data!$AG$1+data!$AG$2)/2)/(((data!$AG$1+data!$AG$2)/2)+237.3))))))-1)*1000-(0.622/((101325/('Mini Canal'!$J$13*611*EXP(17.27*(data!$AG$3/(data!$AG$3+237.3))))))-1)*1000))/(1005*(((data!$AG$1+data!$AG$2)/2)-data!$AG$3)))))))) -> 64 | AT14: 0.1884039821 | AU14: 0.2086398512 | AV14: 0.2086398512 | AW14: 1.07 | AX14: 4.9 | AY14: 5.4 | AZ14: 6.5 | BB14: 0 | BC14: 100.75 | BD14: 115.75 | BE14: 144.9 | BG14: 0 | BH14: 7.245893006 | BI14: 8.27052181 | BJ14: 10 | BM14: 0.001673095004 | BN14: 0.0003292952395 | BO14: 1.369178837 | BP14: 2
A15: 1490261 | B15: 14 | C15: 90 | D15: 1 | E15: 26 | F15: 10 | G15: 0 | H15: 24.23908741 | I15: 28.23908741 | J15: 33.98459991 | K15: 214 | L15: 963 | M15: 1027 | N15: 1069 | O15: 1.362 | P15: 1.1 | Q15: 1.1 | R15: 1.1 | S15: 32 | T15: 207 | U15: 221 | V15: 230 | W15: 6 | X15: 36 | Y15: 38 | Z15: 40 | AA15: 0.03098156082 | AB15: 0.4476526432 | AC15: 0.4852729652 | AD15: 0.5238855561 | AE15: 73 | AF15: 78 | AG15: 78 | AH15: 0.98 | AI15: 0.98 | AJ15: 0.98 | AK15: 73 | AL15: 78 | AM15: 78 | AN15: 31 | AO15: 34 | AP15: 34 | AQ15: =(AK15/(IF((237.3*LN(('Mini Canal'!$J$13*EXP(17.27*(data!$AG$3/(data!$AG$3+237.3))))))/(17.27-LN(('Mini Canal'!$J$13*EXP(17.27*(data!$AG$3/(data!$AG$3+237.3))))))<((data!$AG$1+data!$AG$2)/2),1,IF(1/(1+((2258*((0.622/((101325/(1*611*EXP(17.27*(((data!$AG$1+data!$AG$2)/2)/(((data!$AG$1+data!$AG$2)/2)+237.3))))))-1)*1000-(0.622/((101325/('Mini Canal'!$J$13*611*EXP(17.27*(data!$AG$3/(data!$AG$3+237.3))))))-1)*1000))/(1005*(((data!$AG$1+data!$AG$2)/2)-data!$AG$3))))>1,1,1/(1+((2258*((0.622/((101325/(1*611*EXP(17.27*(((data!$AG$1+data!$AG$2)/2)/(((data!$AG$1+data!$AG$2)/2)+237.3))))))-1)*1000-(0.622/((101325/('Mini Canal'!$J$13*611*EXP(17.27*(data!$AG$3/(data!$AG$3+237.3))))))-1)*1000))/(1005*(((data!$AG$1+data!$AG$2)/2)-data!$AG$3)))))))) -> 73 | AR15: =(AL15/(IF((237.3*LN(('Mini Canal'!$J$13*EXP(17.27*(data!$AG$3/(data!$AG$3+237.3))))))/(17.27-LN(('Mini Canal'!$J$13*EXP(17.27*(data!$AG$3/(data!$AG$3+237.3))))))<((data!$AG$1+data!$AG$2)/2),1,IF(1/(1+((2258*((0.622/((101325/(1*611*EXP(17.27*(((data!$AG$1+data!$AG$2)/2)/(((data!$AG$1+data!$AG$2)/2)+237.3))))))-1)*1000-(0.622/((101325/('Mini Canal'!$J$13*611*EXP(17.27*(data!$AG$3/(data!$AG$3+237.3))))))-1)*1000))/(1005*(((data!$AG$1+data!$AG$2)/2)-data!$AG$3))))>1,1,1/(1+((2258*((0.622/((101325/(1*611*EXP(17.27*(((data!$AG$1+data!$AG$2)/2)/(((data!$AG$1+data!$AG$2)/2)+237.3))))))-1)*1000-(0.622/((101325/('Mini Canal'!$J$13*611*EXP(17.27*(data!$AG$3/(data!$AG$3+237.3))))))-1)*1000))/(1005*(((data!$AG$1+data!$AG$2)/2)-data!$AG$3)))))))) -> 78 | AS15: =(AM15/(IF((237.3*LN(('Mini Canal'!$J$13*EXP(17.27*(data!$AG$3/(data!$AG$3+237.3))))))/(17.27-LN(('Mini Canal'!$J$13*EXP(17.27*(data!$AG$3/(data!$AG$3+237.3))))))<((data!$AG$1+data!$AG$2)/2),1,IF(1/(1+((2258*((0.622/((101325/(1*611*EXP(17.27*(((data!$AG$1+data!$AG$2)/2)/(((data!$AG$1+data!$AG$2)/2)+237.3))))))-1)*1000-(0.622/((101325/('Mini Canal'!$J$13*611*EXP(17.27*(data!$AG$3/(data!$AG$3+237.3))))))-1)*1000))/(1005*(((data!$AG$1+data!$AG$2)/2)-data!$AG$3))))>1,1,1/(1+((2258*((0.622/((101325/(1*611*EXP(17.27*(((data!$AG$1+data!$AG$2)/2)/(((data!$AG$1+data!$AG$2)/2)+237.3))))))-1)*1000-(0.622/((101325/('Mini Canal'!$J$13*611*EXP(17.27*(data!$AG$3/(data!$AG$3+237.3))))))-1)*1000))/(1005*(((data!$AG$1+data!$AG$2)/2)-data!$AG$3)))))))) -> 78 | AT15: 0.3581268044 | AU15: 0.4110516893 | AV15: 0.4110516893 | AW15: 0.60 | AX15: 6.1 | AY15: 6.7 | AZ15: 8.4 | BB15: 0 | BC15: 122.9 | BD15: 140.9 | BE15: 183.2 | BG15: 0 | BH15: 7.245893006 | BI15: 8.27052181 | BJ15: 10 | BM15: 0.001450187971 | BN15: 0.0003783163265 | BO15: 1.486891044 | BP15: 2
A16: 1490341 | B16: 14 | C16: 90 | D16: 1 | E16: 34 | F16: 15 | G16: 0 | H16: 26 | I16: 30 | J16: 33.98459991 | K16: 282 | L16: 1245 | M16: 1328 | N16: 1358 | O16: 1.362 | P16: 1.1 | Q16: 1.1 | R16: 1.1 | S16: 42 | T16: 268 | U16: 286 | V16: 292 | W16: 7 | X16: 46 | Y16: 49 | Z16: 50 | AA16: 0.009231477582 | AB16: 0.260121441 | AC16: 0.2909877621 | AD16: 0.3016114 | AE16: 83 | AF16: 91 | AG16: 91 | AH16: 0.98 | AI16: 0.98 | AJ16: 0.98 | AK16: 83 | AL16: 91 | AM16: 91 | AN16: 36 | AO16: 39 | AP16: 39 | AQ16: =(AK16/(IF((237.3*LN(('Mini Canal'!$J$13*EXP(17.27*(data!$AG$3/(data!$AG$3+237.3))))))/(17.27-LN(('Mini Canal'!$J$13*EXP(17.27*(data!$AG$3/(data!$AG$3+237.3))))))<((data!$AG$1+data!$AG$2)/2),1,IF(1/(1+((2258*((0.622/((101325/(1*611*EXP(17.27*(((data!$AG$1+data!$AG$2)/2)/(((data!$AG$1+data!$AG$2)/2)+237.3))))))-1)*1000-(0.622/((101325/('Mini Canal'!$J$13*611*EXP(17.27*(data!$AG$3/(data!$AG$3+237.3))))))-1)*1000))/(1005*(((data!$AG$1+data!$AG$2)/2)-data!$AG$3))))>1,1,1/(1+((2258*((0.622/((101325/(1*611*EXP(17.27*(((data!$AG$1+data!$AG$2)/2)/(((data!$AG$1+data!$AG$2)/2)+237.3))))))-1)*1000-(0.622/((101325/('Mini Canal'!$J$13*611*EXP(17.27*(data!$AG$3/(data!$AG$3+237.3))))))-1)*1000))/(1005*(((data!$AG$1+data!$AG$2)/2)-data!$AG$3)))))))) -> 83 | AR16: =(AL16/(IF((237.3*LN(('Mini Canal'!$J$13*EXP(17.27*(data!$AG$3/(data!$AG$3+237.3))))))/(17.27-LN(('Mini Canal'!$J$13*EXP(17.27*(data!$AG$3/(data!$AG$3+237.3))))))<((data!$AG$1+data!$AG$2)/2),1,IF(1/(1+((2258*((0.622/((101325/(1*611*EXP(17.27*(((data!$AG$1+data!$AG$2)/2)/(((data!$AG$1+data!$AG$2)/2)+237.3))))))-1)*1000-(0.622/((101325/('Mini Canal'!$J$13*611*EXP(17.27*(data!$AG$3/(data!$AG$3+237.3))))))-1)*1000))/(1005*(((data!$AG$1+data!$AG$2)/2)-data!$AG$3))))>1,1,1/(1+((2258*((0.622/((101325/(1*611*EXP(17.27*(((data!$AG$1+data!$AG$2)/2)/(((data!$AG$1+data!$AG$2)/2)+237.3))))))-1)*1000-(0.622/((101325/('Mini Canal'!$J$13*611*EXP(17.27*(data!$AG$3/(data!$AG$3+237.3))))))-1)*1000))/(1005*(((data!$AG$1+data!$AG$2)/2)-data!$AG$3)))))))) -> 91 | AS16: =(AM16/(IF((237.3*LN(('Mini Canal'!$J$13*EXP(17.27*(data!$AG$3/(data!$AG$3+237.3))))))/(17.27-LN(('Mini Canal'!$J$13*EXP(17.27*(data!$AG$3/(data!$AG$3+237.3))))))<((data!$AG$1+data!$AG$2)/2),1,IF(1/(1+((2258*((0.622/((101325/(1*611*EXP(17.27*(((data!$AG$1+data!$AG$2)/2)/(((data!$AG$1+data!$AG$2)/2)+237.3))))))-1)*1000-(0.622/((101325/('Mini Canal'!$J$13*611*EXP(17.27*(data!$AG$3/(data!$AG$3+237.3))))))-1)*1000))/(1005*(((data!$AG$1+data!$AG$2)/2)-data!$AG$3))))>1,1,1/(1+((2258*((0.622/((101325/(1*611*EXP(17.27*(((data!$AG$1+data!$AG$2)/2)/(((data!$AG$1+data!$AG$2)/2)+237.3))))))-1)*1000-(0.622/((101325/('Mini Canal'!$J$13*611*EXP(17.27*(data!$AG$3/(data!$AG$3+237.3))))))-1)*1000))/(1005*(((data!$AG$1+data!$AG$2)/2)-data!$AG$3)))))))) -> 91 | AT16: 0.1683701326 | AU16: 0.1940649862 | AV16: 0.1940649862 | AW16: 0.90 | AX16: 6.1 | AY16: 6.7 | AZ16: 8.4 | BB16: 0 | BC16: 122.9 | BD16: 140.9 | BE16: 183.2 | BG16: 0 | BH16: 7.245893006 | BI16: 8.27052181 | BJ16: 10 | BM16: 0.0001956332036 | BN16: 0.0004470845885 | BO16: 1.766459433 | BP16: 2
A17: 1490421 | B17: 14 | C17: 90 | D17: 1 | E17: 42 | F17: 20 | G17: 0 | H17: 26 | I17: 30 | J17: 33.98459991 | K17: 350 | L17: 1467 | M17: 1558 | N17: 1593 | O17: 1.362 | P17: 1.1 | Q17: 1.1 | R17: 1.1 | S17: 52 | T17: 316 | U17: =ROUND(M17*POWER((($M$1-$M$2)/LN(($M$1-$M$3)/($M$2-$M$3)))/((75-65)/LN((75-20)/(65-20))),Q17),0) -> 335 | V17: =ROUND(N17*POWER((($M$1-$M$2)/LN(($M$1-$M$3)/($M$2-$M$3)))/((75-65)/LN((75-20)/(65-20))),R17),0) -> 343 | W17: =ROUND(S17*3600/(4186*ABS($M$1-$M$2)),0) -> 9 | X17: =ROUND(T17*3600/(4186*ABS($M$1-$M$2)),0) -> 54 | Y17: =ROUND(U17*3600/(4186*ABS($M$1-$M$2)),0) -> 58 | Z17: =ROUND(V17*3600/(4186*ABS($M$1-$M$2)),0) -> 59 | AA17: 0.05047566048 | AB17: 0.5931984439 | AC17: 0.6546496947 | AD17: 0.6702731961 | AE17: 60 | AF17: 64 | AG17: 64 | AH17: 0.98 | AI17: 0.98 | AJ17: 0.98 | AK17: 60 | AL17: 64 | AM17: 64 | AN17: 26 | AO17: 28 | AP17: 28 | AQ17: =(AK17/(IF((237.3*LN(('Mini Canal'!$J$13*EXP(17.27*(data!$AG$3/(data!$AG$3+237.3))))))/(17.27-LN(('Mini Canal'!$J$13*EXP(17.27*(data!$AG$3/(data!$AG$3+237.3))))))<((data!$AG$1+data!$AG$2)/2),1,IF(1/(1+((2258*((0.622/((101325/(1*611*EXP(17.27*(((data!$AG$1+data!$AG$2)/2)/(((data!$AG$1+data!$AG$2)/2)+237.3))))))-1)*1000-(0.622/((101325/('Mini Canal'!$J$13*611*EXP(17.27*(data!$AG$3/(data!$AG$3+237.3))))))-1)*1000))/(1005*(((data!$AG$1+data!$AG$2)/2)-data!$AG$3))))>1,1,1/(1+((2258*((0.622/((101325/(1*611*EXP(17.27*(((data!$AG$1+data!$AG$2)/2)/(((data!$AG$1+data!$AG$2)/2)+237.3))))))-1)*1000-(0.622/((101325/('Mini Canal'!$J$13*611*EXP(17.27*(data!$AG$3/(data!$AG$3+237.3))))))-1)*1000))/(1005*(((data!$AG$1+data!$AG$2)/2)-data!$AG$3)))))))) -> 60 | AR17: =(AL17/(IF((237.3*LN(('Mini Canal'!$J$13*EXP(17.27*(data!$AG$3/(data!$AG$3+237.3))))))/(17.27-LN(('Mini Canal'!$J$13*EXP(17.27*(data!$AG$3/(data!$AG$3+237.3))))))<((data!$AG$1+data!$AG$2)/2),1,IF(1/(1+((2258*((0.622/((101325/(1*611*EXP(17.27*(((data!$AG$1+data!$AG$2)/2)/(((data!$AG$1+data!$AG$2)/2)+237.3))))))-1)*1000-(0.622/((101325/('Mini Canal'!$J$13*611*EXP(17.27*(data!$AG$3/(data!$AG$3+237.3))))))-1)*1000))/(1005*(((data!$AG$1+data!$AG$2)/2)-data!$AG$3))))>1,1,1/(1+((2258*((0.622/((101325/(1*611*EXP(17.27*(((data!$AG$1+data!$AG$2)/2)/(((data!$AG$1+data!$AG$2)/2)+237.3))))))-1)*1000-(0.622/((101325/('Mini Canal'!$J$13*611*EXP(17.27*(data!$AG$3/(data!$AG$3+237.3))))))-1)*1000))/(1005*(((data!$AG$1+data!$AG$2)/2)-data!$AG$3)))))))) -> 64 | AS17: =(AM17/(IF((237.3*LN(('Mini Canal'!$J$13*EXP(17.27*(data!$AG$3/(data!$AG$3+237.3))))))/(17.27-LN(('Mini Canal'!$J$13*EXP(17.27*(data!$AG$3/(data!$AG$3+237.3))))))<((data!$AG$1+data!$AG$2)/2),1,IF(1/(1+((2258*((0.622/((101325/(1*611*EXP(17.27*(((data!$AG$1+data!$AG$2)/2)/(((data!$AG$1+data!$AG$2)/2)+237.3))))))-1)*1000-(0.622/((101325/('Mini Canal'!$J$13*611*EXP(17.27*(data!$AG$3/(data!$AG$3+237.3))))))-1)*1000))/(1005*(((data!$AG$1+data!$AG$2)/2)-data!$AG$3))))>1,1,1/(1+((2258*((0.622/((101325/(1*611*EXP(17.27*(((data!$AG$1+data!$AG$2)/2)/(((data!$AG$1+data!$AG$2)/2)+237.3))))))-1)*1000-(0.622/((101325/('Mini Canal'!$J$13*611*EXP(17.27*(data!$AG$3/(data!$AG$3+237.3))))))-1)*1000))/(1005*(((data!$AG$1+data!$AG$2)/2)-data!$AG$3)))))))) -> 64 | AT17: 0.2167915532 | AU17: 0.2400590295 | AV17: 0.2400590295 | AW17: 1.20 | AX17: 6.1 | AY17: 6.7 | AZ17: 8.4 | BB17: 0 | BC17: 122.9 | BD17: 140.9 | BE17: 183.2 | BG17: 0 | BH17: 7.245893006 | BI17: 8.27052181 | BJ17: 10 | BM17: 0.001673095004 | BN17: 0.0003292952395 | BO17: 1.369178837 | BP17: 2
A18: 14100261 | B18: 14 | C18: 100 | D18: 1 | E18: 26 | F18: 10 | G18: 0 | H18: 26 | I18: 30 | J18: 35.7455125 | K18: 251 | L18: 1375 | M18: 1471 | N18: 1534 | O18: 1.362 | P18: 1.1 | Q18: 1.1 | R18: 1.1 | S18: 37 | T18: 296 | U18: 317 | V18: 330 | W18: 6 | X18: 51 | Y18: 55 | Z18: 57 | AA18: 0.03506199611 | AB18: 0.8512804352 | AC18: 0.952852874 | AD18: 1.005044488 | AE18: 86 | AF18: 91 | AG18: 91 | AH18: 0.98 | AI18: 0.98 | AJ18: 0.98 | AK18: 86 | AL18: 91 | AM18: 91 | AN18: 37 | AO18: 39 | AP18: 39 | AQ18: =(AK18/(IF((237.3*LN(('Mini Canal'!$J$13*EXP(17.27*(data!$AG$3/(data!$AG$3+237.3))))))/(17.27-LN(('Mini Canal'!$J$13*EXP(17.27*(data!$AG$3/(data!$AG$3+237.3))))))<((data!$AG$1+data!$AG$2)/2),1,IF(1/(1+((2258*((0.622/((101325/(1*611*EXP(17.27*(((data!$AG$1+data!$AG$2)/2)/(((data!$AG$1+data!$AG$2)/2)+237.3))))))-1)*1000-(0.622/((101325/('Mini Canal'!$J$13*611*EXP(17.27*(data!$AG$3/(data!$AG$3+237.3))))))-1)*1000))/(1005*(((data!$AG$1+data!$AG$2)/2)-data!$AG$3))))>1,1,1/(1+((2258*((0.622/((101325/(1*611*EXP(17.27*(((data!$AG$1+data!$AG$2)/2)/(((data!$AG$1+data!$AG$2)/2)+237.3))))))-1)*1000-(0.622/((101325/('Mini Canal'!$J$13*611*EXP(17.27*(data!$AG$3/(data!$AG$3+237.3))))))-1)*1000))/(1005*(((data!$AG$1+data!$AG$2)/2)-data!$AG$3)))))))) -> 86 | AR18: =(AL18/(IF((237.3*LN(('Mini Canal'!$J$13*EXP(17.27*(data!$AG$3/(data!$AG$3+237.3))))))/(17.27-LN(('Mini Canal'!$J$13*EXP(17.27*(data!$AG$3/(data!$AG$3+237.3))))))<((data!$AG$1+data!$AG$2)/2),1,IF(1/(1+((2258*((0.622/((101325/(1*611*EXP(17.27*(((data!$AG$1+data!$AG$2)/2)/(((data!$AG$1+data!$AG$2)/2)+237.3))))))-1)*1000-(0.622/((101325/('Mini Canal'!$J$13*611*EXP(17.27*(data!$AG$3/(data!$AG$3+237.3))))))-1)*1000))/(1005*(((data!$AG$1+data!$AG$2)/2)-data!$AG$3))))>1,1,1/(1+((2258*((0.622/((101325/(1*611*EXP(17.27*(((data!$AG$1+data!$AG$2)/2)/(((data!$AG$1+data!$AG$2)/2)+237.3))))))-1)*1000-(0.622/((101325/('Mini Canal'!$J$13*611*EXP(17.27*(data!$AG$3/(data!$AG$3+237.3))))))-1)*1000))/(1005*(((data!$AG$1+data!$AG$2)/2)-data!$AG$3)))))))) -> 91 | AS18: =(AM18/(IF((237.3*LN(('Mini Canal'!$J$13*EXP(17.27*(data!$AG$3/(data!$AG$3+237.3))))))/(17.27-LN(('Mini Canal'!$J$13*EXP(17.27*(data!$AG$3/(data!$AG$3+237.3))))))<((data!$AG$1+data!$AG$2)/2),1,IF(1/(1+((2258*((0.622/((101325/(1*611*EXP(17.27*(((data!$AG$1+data!$AG$2)/2)/(((data!$AG$1+data!$AG$2)/2)+237.3))))))-1)*1000-(0.622/((101325/('Mini Canal'!$J$13*611*EXP(17.27*(data!$AG$3/(data!$AG$3+237.3))))))-1)*1000))/(1005*(((data!$AG$1+data!$AG$2)/2)-data!$AG$3))))>1,1,1/(1+((2258*((0.622/((101325/(1*611*EXP(17.27*(((data!$AG$1+data!$AG$2)/2)/(((data!$AG$1+data!$AG$2)/2)+237.3))))))-1)*1000-(0.622/((101325/('Mini Canal'!$J$13*611*EXP(17.27*(data!$AG$3/(data!$AG$3+237.3))))))-1)*1000))/(1005*(((data!$AG$1+data!$AG$2)/2)-data!$AG$3)))))))) -> 91 | AT18: 0.5273505629 | AU18: 0.5704380174 | AV18: 0.5704380174 | AW18: 0.67 | AX18: 7.3 | AY18: 8.0 | AZ18: 10.2 | BB18: 0 | BC18: 145.05 | BD18: 166.05 | BE18: =($C18*3.83)-191.5 -> 191.5 | BG18: 0 | BH18: 7.245893006 | BI18: 8.27052181 | BJ18: 10 | BM18: 0.001450187971 | BN18: 0.0003783163265 | BO18: 1.486891044 | BP18: 2
A19: 14100341 | B19: 14 | C19: 100 | D19: 1 | E19: 34 | F19: 15 | G19: 0 | H19: 26 | I19: 30 | J19: 35.7455125 | K19: 331 | L19: 1776 | M19: 1899 | N19: 1945 | O19: 1.362 | P19: 1.1 | Q19: 1.1 | R19: 1.1 | S19: 49 | T19: 382 | U19: 409 | V19: 419 | W19: 8 | X19: 66 | Y19: 70 | Z19: 72 | AA19: 0.0132058185 | AB19: 0.5565167976 | AC19: 0.6177668464 | AD19: 0.6494352848 | AE19: 97 | AF19: 106 | AG19: 106 | AH19: 0.98 | AI19: 0.98 | AJ19: 0.98 | AK19: 97 | AL19: 106 | AM19: 106 | AN19: 42 | AO19: 46 | AP19: 46 | AQ19: =(AK19/(IF((237.3*LN(('Mini Canal'!$J$13*EXP(17.27*(data!$AG$3/(data!$AG$3+237.3))))))/(17.27-LN(('Mini Canal'!$J$13*EXP(17.27*(data!$AG$3/(data!$AG$3+237.3))))))<((data!$AG$1+data!$AG$2)/2),1,IF(1/(1+((2258*((0.622/((101325/(1*611*EXP(17.27*(((data!$AG$1+data!$AG$2)/2)/(((data!$AG$1+data!$AG$2)/2)+237.3))))))-1)*1000-(0.622/((101325/('Mini Canal'!$J$13*611*EXP(17.27*(data!$AG$3/(data!$AG$3+237.3))))))-1)*1000))/(1005*(((data!$AG$1+data!$AG$2)/2)-data!$AG$3))))>1,1,1/(1+((2258*((0.622/((101325/(1*611*EXP(17.27*(((data!$AG$1+data!$AG$2)/2)/(((data!$AG$1+data!$AG$2)/2)+237.3))))))-1)*1000-(0.622/((101325/('Mini Canal'!$J$13*611*EXP(17.27*(data!$AG$3/(data!$AG$3+237.3))))))-1)*1000))/(1005*(((data!$AG$1+data!$AG$2)/2)-data!$AG$3)))))))) -> 97 | AR19: =(AL19/(IF((237.3*LN(('Mini Canal'!$J$13*EXP(17.27*(data!$AG$3/(data!$AG$3+237.3))))))/(17.27-LN(('Mini Canal'!$J$13*EXP(17.27*(data!$AG$3/(data!$AG$3+237.3))))))<((data!$AG$1+data!$AG$2)/2),1,IF(1/(1+((2258*((0.622/((101325/(1*611*EXP(17.27*(((data!$AG$1+data!$AG$2)/2)/(((data!$AG$1+data!$AG$2)/2)+237.3))))))-1)*1000-(0.622/((101325/('Mini Canal'!$J$13*611*EXP(17.27*(data!$AG$3/(data!$AG$3+237.3))))))-1)*1000))/(1005*(((data!$AG$1+data!$AG$2)/2)-data!$AG$3))))>1,1,1/(1+((2258*((0.622/((101325/(1*611*EXP(17.27*(((data!$AG$1+data!$AG$2)/2)/(((data!$AG$1+data!$AG$2)/2)+237.3))))))-1)*1000-(0.622/((101325/('Mini Canal'!$J$13*611*EXP(17.27*(data!$AG$3/(data!$AG$3+237.3))))))-1)*1000))/(1005*(((data!$AG$1+data!$AG$2)/2)-data!$AG$3)))))))) -> 106 | AS19: =(AM19/(IF((237.3*LN(('Mini Canal'!$J$13*EXP(17.27*(data!$AG$3/(data!$AG$3+237.3))))))/(17.27-LN(('Mini Canal'!$J$13*EXP(17.27*(data!$AG$3/(data!$AG$3+237.3))))))<((data!$AG$1+data!$AG$2)/2),1,IF(1/(1+((2258*((0.622/((101325/(1*611*EXP(17.27*(((data!$AG$1+data!$AG$2)/2)/(((data!$AG$1+data!$AG$2)/2)+237.3))))))-1)*1000-(0.622/((101325/('Mini Canal'!$J$13*611*EXP(17.27*(data!$AG$3/(data!$AG$3+237.3))))))-1)*1000))/(1005*(((data!$AG$1+data!$AG$2)/2)-data!$AG$3))))>1,1,1/(1+((2258*((0.622/((101325/(1*611*EXP(17.27*(((data!$AG$1+data!$AG$2)/2)/(((data!$AG$1+data!$AG$2)/2)+237.3))))))-1)*1000-(0.622/((101325/('Mini Canal'!$J$13*611*EXP(17.27*(data!$AG$3/(data!$AG$3+237.3))))))-1)*1000))/(1005*(((data!$AG$1+data!$AG$2)/2)-data!$AG$3)))))))) -> 106 | AT19: 0.2495957322 | AU19: 0.2933027025 | AV19: 0.2933027025 | AW19: 1.00 | AX19: 7.3 | AY19: 8.0 | AZ19: 10.2 | BB19: 0 | BC19: 145.05 | BD19: 166.05 | BE19: 191.5 | BG19: 0 | BH19: 7.245893006 | BI19: 8.27052181 | BJ19: 10 | BM19: 0.0001956332036 | BN19: 0.0004470845885 | BO19: 1.766459433 | BP19: 2
A20: 14100421 | B20: 14 | C20: 100 | D20: 1 | E20: 42 | F20: 20 | G20: 0 | H20: 26 | I20: 30 | J20: 35.7455125 | K20: 411 | L20: 2086 | M20: 2224 | N20: 2276 | O20: 1.362 | P20: 1.1 | Q20: 1.1 | R20: 1.1 | S20: 61 | T20: 449 | U20: 479 | V20: 490 | W20: 10 | X20: 77 | Y20: 82 | Z20: 84 | AA20: 0.0660021242 | AB20: 1.093601756 | AC20: 1.192825622 | AD20: 1.233181513 | AE20: 89 | AF20: 96 | AG20: 96 | AH20: 0.98 | AI20: 0.98 | AJ20: 0.98 | AK20: 89 | AL20: 96 | AM20: 96 | AN20: 38 | AO20: 41 | AP20: 41 | AQ20: =(AK20/(IF((237.3*LN(('Mini Canal'!$J$13*EXP(17.27*(data!$AG$3/(data!$AG$3+237.3))))))/(17.27-LN(('Mini Canal'!$J$13*EXP(17.27*(data!$AG$3/(data!$AG$3+237.3))))))<((data!$AG$1+data!$AG$2)/2),1,IF(1/(1+((2258*((0.622/((101325/(1*611*EXP(17.27*(((data!$AG$1+data!$AG$2)/2)/(((data!$AG$1+data!$AG$2)/2)+237.3))))))-1)*1000-(0.622/((101325/('Mini Canal'!$J$13*611*EXP(17.27*(data!$AG$3/(data!$AG$3+237.3))))))-1)*1000))/(1005*(((data!$AG$1+data!$AG$2)/2)-data!$AG$3))))>1,1,1/(1+((2258*((0.622/((101325/(1*611*EXP(17.27*(((data!$AG$1+data!$AG$2)/2)/(((data!$AG$1+data!$AG$2)/2)+237.3))))))-1)*1000-(0.622/((101325/('Mini Canal'!$J$13*611*EXP(17.27*(data!$AG$3/(data!$AG$3+237.3))))))-1)*1000))/(1005*(((data!$AG$1+data!$AG$2)/2)-data!$AG$3)))))))) -> 89 | AR20: =(AL20/(IF((237.3*LN(('Mini Canal'!$J$13*EXP(17.27*(data!$AG$3/(data!$AG$3+237.3))))))/(17.27-LN(('Mini Canal'!$J$13*EXP(17.27*(data!$AG$3/(data!$AG$3+237.3))))))<((data!$AG$1+data!$AG$2)/2),1,IF(1/(1+((2258*((0.622/((101325/(1*611*EXP(17.27*(((data!$AG$1+data!$AG$2)/2)/(((data!$AG$1+data!$AG$2)/2)+237.3))))))-1)*1000-(0.622/((101325/('Mini Canal'!$J$13*611*EXP(17.27*(data!$AG$3/(data!$AG$3+237.3))))))-1)*1000))/(1005*(((data!$AG$1+data!$AG$2)/2)-data!$AG$3))))>1,1,1/(1+((2258*((0.622/((101325/(1*611*EXP(17.27*(((data!$AG$1+data!$AG$2)/2)/(((data!$AG$1+data!$AG$2)/2)+237.3))))))-1)*1000-(0.622/((101325/('Mini Canal'!$J$13*611*EXP(17.27*(data!$AG$3/(data!$AG$3+237.3))))))-1)*1000))/(1005*(((data!$AG$1+data!$AG$2)/2)-data!$AG$3)))))))) -> 96 | AS20: =(AM20/(IF((237.3*LN(('Mini Canal'!$J$13*EXP(17.27*(data!$AG$3/(data!$AG$3+237.3))))))/(17.27-LN(('Mini Canal'!$J$13*EXP(17.27*(data!$AG$3/(data!$AG$3+237.3))))))<((data!$AG$1+data!$AG$2)/2),1,IF(1/(1+((2258*((0.622/((101325/(1*611*EXP(17.27*(((data!$AG$1+data!$AG$2)/2)/(((data!$AG$1+data!$AG$2)/2)+237.3))))))-1)*1000-(0.622/((101325/('Mini Canal'!$J$13*611*EXP(17.27*(data!$AG$3/(data!$AG$3+237.3))))))-1)*1000))/(1005*(((data!$AG$1+data!$AG$2)/2)-data!$AG$3))))>1,1,1/(1+((2258*((0.622/((101325/(1*611*EXP(17.27*(((data!$AG$1+data!$AG$2)/2)/(((data!$AG$1+data!$AG$2)/2)+237.3))))))-1)*1000-(0.622/((101325/('Mini Canal'!$J$13*611*EXP(17.27*(data!$AG$3/(data!$AG$3+237.3))))))-1)*1000))/(1005*(((data!$AG$1+data!$AG$2)/2)-data!$AG$3)))))))) -> 96 | AT20: 0.4132207324 | AU20: 0.4587813654 | AV20: 0.4587813654 | AW20: 1.33 | AX20: 7.3 | AY20: 8.0 | AZ20: 10.2 | BB20: 0 | BC20: 145.05 | BD20: 166.05 | BE20: 191.5 | BG20: 0 | BH20: 7.245893006 | BI20: 8.27052181 | BJ20: 10 | BM20: 0.001673095004 | BN20: 0.0003292952395 | BO20: 1.369178837 | BP20: 2
A21: 14110261 | B21: 14 | C21: 110 | D21: 1 | E21: 26 | F21: 10 | G21: 0 | H21: 26 | I21: 30 | J21: 35.7455125 | K21: 285 | L21: 1409 | M21: 1505 | N21: 1568 | O21: 1.362 | P21: 1.1 | Q21: 1.1 | R21: 1.1 | S21: 43 | T21: 303 | U21: 324 | V21: 337 | W21: 7 | X21: 52 | Y21: 56 | Z21: 58 | AA21: 0.04923934338 | AB21: 0.977519048 | AC21: 1.091824756 | AD21: 1.150527822 | AE21: 98 | AF21: 103 | AG21: 104 | AH21: 0.98 | AI21: 0.98 | AJ21: 0.98 | AK21: 98 | AL21: 103 | AM21: 104 | AN21: 42 | AO21: 44 | AP21: 45 | AQ21: =(AK21/(IF((237.3*LN(('Mini Canal'!$J$13*EXP(17.27*(data!$AG$3/(data!$AG$3+237.3))))))/(17.27-LN(('Mini Canal'!$J$13*EXP(17.27*(data!$AG$3/(data!$AG$3+237.3))))))<((data!$AG$1+data!$AG$2)/2),1,IF(1/(1+((2258*((0.622/((101325/(1*611*EXP(17.27*(((data!$AG$1+data!$AG$2)/2)/(((data!$AG$1+data!$AG$2)/2)+237.3))))))-1)*1000-(0.622/((101325/('Mini Canal'!$J$13*611*EXP(17.27*(data!$AG$3/(data!$AG$3+237.3))))))-1)*1000))/(1005*(((data!$AG$1+data!$AG$2)/2)-data!$AG$3))))>1,1,1/(1+((2258*((0.622/((101325/(1*611*EXP(17.27*(((data!$AG$1+data!$AG$2)/2)/(((data!$AG$1+data!$AG$2)/2)+237.3))))))-1)*1000-(0.622/((101325/('Mini Canal'!$J$13*611*EXP(17.27*(data!$AG$3/(data!$AG$3+237.3))))))-1)*1000))/(1005*(((data!$AG$1+data!$AG$2)/2)-data!$AG$3)))))))) -> 98 | AR21: =(AL21/(IF((237.3*LN(('Mini Canal'!$J$13*EXP(17.27*(data!$AG$3/(data!$AG$3+237.3))))))/(17.27-LN(('Mini Canal'!$J$13*EXP(17.27*(data!$AG$3/(data!$AG$3+237.3))))))<((data!$AG$1+data!$AG$2)/2),1,IF(1/(1+((2258*((0.622/((101325/(1*611*EXP(17.27*(((data!$AG$1+data!$AG$2)/2)/(((data!$AG$1+data!$AG$2)/2)+237.3))))))-1)*1000-(0.622/((101325/('Mini Canal'!$J$13*611*EXP(17.27*(data!$AG$3/(data!$AG$3+237.3))))))-1)*1000))/(1005*(((data!$AG$1+data!$AG$2)/2)-data!$AG$3))))>1,1,1/(1+((2258*((0.622/((101325/(1*611*EXP(17.27*(((data!$AG$1+data!$AG$2)/2)/(((data!$AG$1+data!$AG$2)/2)+237.3))))))-1)*1000-(0.622/((101325/('Mini Canal'!$J$13*611*EXP(17.27*(data!$AG$3/(data!$AG$3+237.3))))))-1)*1000))/(1005*(((data!$AG$1+data!$AG$2)/2)-data!$AG$3)))))))) -> 103 | AS21: =(AM21/(IF((237.3*LN(('Mini Canal'!$J$13*EXP(17.27*(data!$AG$3/(data!$AG$3+237.3))))))/(17.27-LN(('Mini Canal'!$J$13*EXP(17.27*(data!$AG$3/(data!$AG$3+237.3))))))<((data!$AG$1+data!$AG$2)/2),1,IF(1/(1+((2258*((0.622/((101325/(1*611*EXP(17.27*(((data!$AG$1+data!$AG$2)/2)/(((data!$AG$1+data!$AG$2)/2)+237.3))))))-1)*1000-(0.622/((101325/('Mini Canal'!$J$13*611*EXP(17.27*(data!$AG$3/(data!$AG$3+237.3))))))-1)*1000))/(1005*(((data!$AG$1+data!$AG$2)/2)-data!$AG$3))))>1,1,1/(1+((2258*((0.622/((101325/(1*611*EXP(17.27*(((data!$AG$1+data!$AG$2)/2)/(((data!$AG$1+data!$AG$2)/2)+237.3))))))-1)*1000-(0.622/((101325/('Mini Canal'!$J$13*611*EXP(17.27*(data!$AG$3/(data!$AG$3+237.3))))))-1)*1000))/(1005*(((data!$AG$1+data!$AG$2)/2)-data!$AG$3)))))))) -> 104 | AT21: 0.7108001476 | AU21: 0.7618759454 | AV21: 0.7878499769 | AW21: 0.73 | AX21: 8.4 | AY21: 9.4 | AZ21: 11.0 | BB21: 0 | BC21: 166 | BD21: 190 | BE21: 230 | BG21: 0 | BH21: 7.245893006 | BI21: 8.27052181 | BJ21: 10 | BM21: 0.001450187971 | BN21: 0.0003783163265 | BO21: 1.486891044 | BP21: 2
A22: 14110341 | B22: 14 | C22: 110 | D22: 1 | E22: 34 | F22: 15 | G22: 0 | H22: 26 | I22: 30 | J22: 35.7455125 | K22: 376 | L22: 1821 | M22: 1944 | N22: 1990 | O22: 1.362 | P22: 1.1 | Q22: 1.1 | R22: 1.1 | S22: 56 | T22: 392 | U22: 418 | V22: 428 | W22: 10 | X22: 67 | Y22: 72 | Z22: 74 | AA22: 0.02184810817 | AB22: 0.6360412115 | AC22: 0.7226504667 | AD22: 0.7586394069 | AE22: 111 | AF22: 121 | AG22: 122 | AH22: 0.98 | AI22: 0.98 | AJ22: 0.98 | AK22: 111 | AL22: 121 | AM22: 122 | AN22: 48 | AO22: 52 | AP22: 52 | AQ22: =(AK22/(IF((237.3*LN(('Mini Canal'!$J$13*EXP(17.27*(data!$AG$3/(data!$AG$3+237.3))))))/(17.27-LN(('Mini Canal'!$J$13*EXP(17.27*(data!$AG$3/(data!$AG$3+237.3))))))<((data!$AG$1+data!$AG$2)/2),1,IF(1/(1+((2258*((0.622/((101325/(1*611*EXP(17.27*(((data!$AG$1+data!$AG$2)/2)/(((data!$AG$1+data!$AG$2)/2)+237.3))))))-1)*1000-(0.622/((101325/('Mini Canal'!$J$13*611*EXP(17.27*(data!$AG$3/(data!$AG$3+237.3))))))-1)*1000))/(1005*(((data!$AG$1+data!$AG$2)/2)-data!$AG$3))))>1,1,1/(1+((2258*((0.622/((101325/(1*611*EXP(17.27*(((data!$AG$1+data!$AG$2)/2)/(((data!$AG$1+data!$AG$2)/2)+237.3))))))-1)*1000-(0.622/((101325/('Mini Canal'!$J$13*611*EXP(17.27*(data!$AG$3/(data!$AG$3+237.3))))))-1)*1000))/(1005*(((data!$AG$1+data!$AG$2)/2)-data!$AG$3)))))))) -> 111 | AR22: =(AL22/(IF((237.3*LN(('Mini Canal'!$J$13*EXP(17.27*(data!$AG$3/(data!$AG$3+237.3))))))/(17.27-LN(('Mini Canal'!$J$13*EXP(17.27*(data!$AG$3/(data!$AG$3+237.3))))))<((data!$AG$1+data!$AG$2)/2),1,IF(1/(1+((2258*((0.622/((101325/(1*611*EXP(17.27*(((data!$AG$1+data!$AG$2)/2)/(((data!$AG$1+data!$AG$2)/2)+237.3))))))-1)*1000-(0.622/((101325/('Mini Canal'!$J$13*611*EXP(17.27*(data!$AG$3/(data!$AG$3+237.3))))))-1)*1000))/(1005*(((data!$AG$1+data!$AG$2)/2)-data!$AG$3))))>1,1,1/(1+((2258*((0.622/((101325/(1*611*EXP(17.27*(((data!$AG$1+data!$AG$2)/2)/(((data!$AG$1+data!$AG$2)/2)+237.3))))))-1)*1000-(0.622/((101325/('Mini Canal'!$J$13*611*EXP(17.27*(data!$AG$3/(data!$AG$3+237.3))))))-1)*1000))/(1005*(((data!$AG$1+data!$AG$2)/2)-data!$AG$3)))))))) -> 121 | AS22: =(AM22/(IF((237.3*LN(('Mini Canal'!$J$13*EXP(17.27*(data!$AG$3/(data!$AG$3+237.3))))))/(17.27-LN(('Mini Canal'!$J$13*EXP(17.27*(data!$AG$3/(data!$AG$3+237.3))))))<((data!$AG$1+data!$AG$2)/2),1,IF(1/(1+((2258*((0.622/((101325/(1*611*EXP(17.27*(((data!$AG$1+data!$AG$2)/2)/(((data!$AG$1+data!$AG$2)/2)+237.3))))))-1)*1000-(0.622/((101325/('Mini Canal'!$J$13*611*EXP(17.27*(data!$AG$3/(data!$AG$3+237.3))))))-1)*1000))/(1005*(((data!$AG$1+data!$AG$2)/2)-data!$AG$3))))>1,1,1/(1+((2258*((0.622/((101325/(1*611*EXP(17.27*(((data!$AG$1+data!$AG$2)/2)/(((data!$AG$1+data!$AG$2)/2)+237.3))))))-1)*1000-(0.622/((101325/('Mini Canal'!$J$13*611*EXP(17.27*(data!$AG$3/(data!$AG$3+237.3))))))-1)*1000))/(1005*(((data!$AG$1+data!$AG$2)/2)-data!$AG$3)))))))) -> 122 | AT22: 0.3520750206 | AU22: 0.4057662879 | AV22: 0.4057662879 | AW22: 1.10 | AX22: 8.4 | AY22: 9.4 | AZ22: 11.0 | BB22: 0 | BC22: 166 | BD22: 190 | BE22: 230 | BG22: 0 | BH22: 7.245893006 | BI22: 8.27052181 | BJ22: 10 | BM22: 0.0001956332036 | BN22: 0.0004470845885 | BO22: 1.766459433 | BP22: 2
A23: 14110421 | B23: 14 | C23: 110 | D23: 1 | E23: 42 | F23: 20 | G23: 0 | H23: 26 | I23: 30 | J23: 35.7455125 | K23: 466 | L23: 2141 | M23: 2279 | N23: 2332 | O23: 1.362 | P23: 1.1 | Q23: 1.1 | R23: 1.1 | S23: =ROUND(K23*POWER((($M$1-$M$2)/LN(($M$1-$M$3)/($M$2-$M$3)))/((75-65)/LN((75-20)/(65-20))),O23),0) -> 70 | T23: 461 | U23: 490 | V23: 502 | W23: 12 | X23: 79 | Y23: 84 | Z23: 86 | AA23: 0.09461608123 | AB23: 1.263009471 | AC23: 1.374584683 | AD23: 1.41994308 | AE23: 89 | AF23: 96 | AG23: 96 | AH23: 0.98 | AI23: 0.98 | AJ23: 0.98 | AK23: 89 | AL23: 96 | AM23: 96 | AN23: 38 | AO23: 41 | AP23: 41 | AQ23: =(AK23/(IF((237.3*LN(('Mini Canal'!$J$13*EXP(17.27*(data!$AG$3/(data!$AG$3+237.3))))))/(17.27-LN(('Mini Canal'!$J$13*EXP(17.27*(data!$AG$3/(data!$AG$3+237.3))))))<((data!$AG$1+data!$AG$2)/2),1,IF(1/(1+((2258*((0.622/((101325/(1*611*EXP(17.27*(((data!$AG$1+data!$AG$2)/2)/(((data!$AG$1+data!$AG$2)/2)+237.3))))))-1)*1000-(0.622/((101325/('Mini Canal'!$J$13*611*EXP(17.27*(data!$AG$3/(data!$AG$3+237.3))))))-1)*1000))/(1005*(((data!$AG$1+data!$AG$2)/2)-data!$AG$3))))>1,1,1/(1+((2258*((0.622/((101325/(1*611*EXP(17.27*(((data!$AG$1+data!$AG$2)/2)/(((data!$AG$1+data!$AG$2)/2)+237.3))))))-1)*1000-(0.622/((101325/('Mini Canal'!$J$13*611*EXP(17.27*(data!$AG$3/(data!$AG$3+237.3))))))-1)*1000))/(1005*(((data!$AG$1+data!$AG$2)/2)-data!$AG$3)))))))) -> 89 | AR23: =(AL23/(IF((237.3*LN(('Mini Canal'!$J$13*EXP(17.27*(data!$AG$3/(data!$AG$3+237.3))))))/(17.27-LN(('Mini Canal'!$J$13*EXP(17.27*(data!$AG$3/(data!$AG$3+237.3))))))<((data!$AG$1+data!$AG$2)/2),1,IF(1/(1+((2258*((0.622/((101325/(1*611*EXP(17.27*(((data!$AG$1+data!$AG$2)/2)/(((data!$AG$1+data!$AG$2)/2)+237.3))))))-1)*1000-(0.622/((101325/('Mini Canal'!$J$13*611*EXP(17.27*(data!$AG$3/(data!$AG$3+237.3))))))-1)*1000))/(1005*(((data!$AG$1+data!$AG$2)/2)-data!$AG$3))))>1,1,1/(1+((2258*((0.622/((101325/(1*611*EXP(17.27*(((data!$AG$1+data!$AG$2)/2)/(((data!$AG$1+data!$AG$2)/2)+237.3))))))-1)*1000-(0.622/((101325/('Mini Canal'!$J$13*611*EXP(17.27*(data!$AG$3/(data!$AG$3+237.3))))))-1)*1000))/(1005*(((data!$AG$1+data!$AG$2)/2)-data!$AG$3)))))))) -> 96 | AS23: =(AM23/(IF((237.3*LN(('Mini Canal'!$J$13*EXP(17.27*(data!$AG$3/(data!$AG$3+237.3))))))/(17.27-LN(('Mini Canal'!$J$13*EXP(17.27*(data!$AG$3/(data!$AG$3+237.3))))))<((data!$AG$1+data!$AG$2)/2),1,IF(1/(1+((2258*((0.622/((101325/(1*611*EXP(17.27*(((data!$AG$1+data!$AG$2)/2)/(((data!$AG$1+data!$AG$2)/2)+237.3))))))-1)*1000-(0.622/((101325/('Mini Canal'!$J$13*611*EXP(17.27*(data!$AG$3/(data!$AG$3+237.3))))))-1)*1000))/(1005*(((data!$AG$1+data!$AG$2)/2)-data!$AG$3))))>1,1,1/(1+((2258*((0.622/((101325/(1*611*EXP(17.27*(((data!$AG$1+data!$AG$2)/2)/(((data!$AG$1+data!$AG$2)/2)+237.3))))))-1)*1000-(0.622/((101325/('Mini Canal'!$J$13*611*EXP(17.27*(data!$AG$3/(data!$AG$3+237.3))))))-1)*1000))/(1005*(((data!$AG$1+data!$AG$2)/2)-data!$AG$3)))))))) -> 96 | AT23: 0.4609497989 | AU23: 0.5117435875 | AV23: 0.5117435875 | AW23: 1.47 | AX23: 8.4 | AY23: 9.4 | AZ23: 11.0 | BB23: 0 | BC23: 166 | BD23: 190 | BE23: 230 | BG23: 0 | BH23: 7.245893006 | BI23: 8.27052181 | BJ23: 10 | BM23: 0.001673095004 | BN23: 0.0003292952395 | BO23: 1.369178837 | BP23: 2
A24: 14120261 | B24: 14 | C24: 120 | D24: 1 | E24: 26 | F24: 10 | G24: 0 | H24: 26 | I24: 30 | J24: 36.99489987 | K24: 335 | L24: 1787 | M24: 1925 | N24: 2045 | O24: 1.362 | P24: 1.1 | Q24: 1.1 | R24: 1.1 | S24: =ROUND(K24*POWER((($M$1-$M$2)/LN(($M$1-$M$3)/($M$2-$M$3)))/((75-65)/LN((75-20)/(65-20))),O24),0) -> 50 | T24: 385 | U24: 414 | V24: 440 | W24: 9 | X24: 66 | Y24: 71 | Z24: 76 | AA24: 0.07904094554 | AB24: 1.539528541 | AC24: 1.716791407 | AD24: 1.900338351 | AE24: 108 | AF24: 115 | AG24: 117 | AH24: 0.98 | AI24: 0.98 | AJ24: 0.98 | AK24: 108 | AL24: 115 | AM24: 117 | AN24: 46 | AO24: 49 | AP24: 50 | AQ24: =(AK24/(IF((237.3*LN(('Mini Canal'!$J$13*EXP(17.27*(data!$AG$3/(data!$AG$3+237.3))))))/(17.27-LN(('Mini Canal'!$J$13*EXP(17.27*(data!$AG$3/(data!$AG$3+237.3))))))<((data!$AG$1+data!$AG$2)/2),1,IF(1/(1+((2258*((0.622/((101325/(1*611*EXP(17.27*(((data!$AG$1+data!$AG$2)/2)/(((data!$AG$1+data!$AG$2)/2)+237.3))))))-1)*1000-(0.622/((101325/('Mini Canal'!$J$13*611*EXP(17.27*(data!$AG$3/(data!$AG$3+237.3))))))-1)*1000))/(1005*(((data!$AG$1+data!$AG$2)/2)-data!$AG$3))))>1,1,1/(1+((2258*((0.622/((101325/(1*611*EXP(17.27*(((data!$AG$1+data!$AG$2)/2)/(((data!$AG$1+data!$AG$2)/2)+237.3))))))-1)*1000-(0.622/((101325/('Mini Canal'!$J$13*611*EXP(17.27*(data!$AG$3/(data!$AG$3+237.3))))))-1)*1000))/(1005*(((data!$AG$1+data!$AG$2)/2)-data!$AG$3)))))))) -> 108 | AR24: =(AL24/(IF((237.3*LN(('Mini Canal'!$J$13*EXP(17.27*(data!$AG$3/(data!$AG$3+237.3))))))/(17.27-LN(('Mini Canal'!$J$13*EXP(17.27*(data!$AG$3/(data!$AG$3+237.3))))))<((data!$AG$1+data!$AG$2)/2),1,IF(1/(1+((2258*((0.622/((101325/(1*611*EXP(17.27*(((data!$AG$1+data!$AG$2)/2)/(((data!$AG$1+data!$AG$2)/2)+237.3))))))-1)*1000-(0.622/((101325/('Mini Canal'!$J$13*611*EXP(17.27*(data!$AG$3/(data!$AG$3+237.3))))))-1)*1000))/(1005*(((data!$AG$1+data!$AG$2)/2)-data!$AG$3))))>1,1,1/(1+((2258*((0.622/((101325/(1*611*EXP(17.27*(((data!$AG$1+data!$AG$2)/2)/(((data!$AG$1+data!$AG$2)/2)+237.3))))))-1)*1000-(0.622/((101325/('Mini Canal'!$J$13*611*EXP(17.27*(data!$AG$3/(data!$AG$3+237.3))))))-1)*1000))/(1005*(((data!$AG$1+data!$AG$2)/2)-data!$AG$3)))))))) -> 115 | AS24: =(AM24/(IF((237.3*LN(('Mini Canal'!$J$13*EXP(17.27*(data!$AG$3/(data!$AG$3+237.3))))))/(17.27-LN(('Mini Canal'!$J$13*EXP(17.27*(data!$AG$3/(data!$AG$3+237.3))))))<((data!$AG$1+data!$AG$2)/2),1,IF(1/(1+((2258*((0.622/((101325/(1*611*EXP(17.27*(((data!$AG$1+data!$AG$2)/2)/(((data!$AG$1+data!$AG$2)/2)+237.3))))))-1)*1000-(0.622/((101325/('Mini Canal'!$J$13*611*EXP(17.27*(data!$AG$3/(data!$AG$3+237.3))))))-1)*1000))/(1005*(((data!$AG$1+data!$AG$2)/2)-data!$AG$3))))>1,1,1/(1+((2258*((0.622/((101325/(1*611*EXP(17.27*(((data!$AG$1+data!$AG$2)/2)/(((data!$AG$1+data!$AG$2)/2)+237.3))))))-1)*1000-(0.622/((101325/('Mini Canal'!$J$13*611*EXP(17.27*(data!$AG$3/(data!$AG$3+237.3))))))-1)*1000))/(1005*(((data!$AG$1+data!$AG$2)/2)-data!$AG$3)))))))) -> 117 | AT24: 0.8984477898 | AU24: 0.9872234439 | AV24: 1.017424363 | AW24: 0.80 | AX24: =(0.1175*$C24)-4.485 -> 9.6 | AY24: 10.6 | AZ24: 13.9 | BB24: 0 | BC24: =(2.215*$C24)-76.45 -> 189.35 | BD24: =($C24*2.515)-85.45 -> 216.35 | BE24: =($C24*3.83)-191.5 -> 268.1 | BG24: 0 | BH24: 6.960594862 | BI24: 7.930446398 | BJ24: 10 | BM24: 0.001450187971 | BN24: 0.0003783163265 | BO24: 1.486891044 | BP24: 2
A25: 14120341 | B25: 14 | C25: 120 | D25: 1 | E25: 34 | F25: 15 | G25: 0 | H25: 26 | I25: 30 | J25: 36.99489987 | K25: 442 | L25: 2305 | M25: 2488 | N25: 2593 | O25: 1.362 | P25: 1.1 | Q25: 1.1 | R25: 1.1 | S25: 66 | T25: 496 | U25: 535 | V25: 558 | W25: 11 | X25: 85 | Y25: 92 | Z25: 96 | AA25: 0.02851613087 | AB25: 1.068235804 | AC25: 1.229188256 | AD25: 1.325560182 | AE25: 120 | AF25: 133 | AG25: 137 | AH25: 0.98 | AI25: 0.98 | AJ25: 0.98 | AK25: 120 | AL25: 133 | AM25: 137 | AN25: 52 | AO25: 57 | AP25: 59 | AQ25: =(AK25/(IF((237.3*LN(('Mini Canal'!$J$13*EXP(17.27*(data!$AG$3/(data!$AG$3+237.3))))))/(17.27-LN(('Mini Canal'!$J$13*EXP(17.27*(data!$AG$3/(data!$AG$3+237.3))))))<((data!$AG$1+data!$AG$2)/2),1,IF(1/(1+((2258*((0.622/((101325/(1*611*EXP(17.27*(((data!$AG$1+data!$AG$2)/2)/(((data!$AG$1+data!$AG$2)/2)+237.3))))))-1)*1000-(0.622/((101325/('Mini Canal'!$J$13*611*EXP(17.27*(data!$AG$3/(data!$AG$3+237.3))))))-1)*1000))/(1005*(((data!$AG$1+data!$AG$2)/2)-data!$AG$3))))>1,1,1/(1+((2258*((0.622/((101325/(1*611*EXP(17.27*(((data!$AG$1+data!$AG$2)/2)/(((data!$AG$1+data!$AG$2)/2)+237.3))))))-1)*1000-(0.622/((101325/('Mini Canal'!$J$13*611*EXP(17.27*(data!$AG$3/(data!$AG$3+237.3))))))-1)*1000))/(1005*(((data!$AG$1+data!$AG$2)/2)-data!$AG$3)))))))) -> 120 | AR25: =(AL25/(IF((237.3*LN(('Mini Canal'!$J$13*EXP(17.27*(data!$AG$3/(data!$AG$3+237.3))))))/(17.27-LN(('Mini Canal'!$J$13*EXP(17.27*(data!$AG$3/(data!$AG$3+237.3))))))<((data!$AG$1+data!$AG$2)/2),1,IF(1/(1+((2258*((0.622/((101325/(1*611*EXP(17.27*(((data!$AG$1+data!$AG$2)/2)/(((data!$AG$1+data!$AG$2)/2)+237.3))))))-1)*1000-(0.622/((101325/('Mini Canal'!$J$13*611*EXP(17.27*(data!$AG$3/(data!$AG$3+237.3))))))-1)*1000))/(1005*(((data!$AG$1+data!$AG$2)/2)-data!$AG$3))))>1,1,1/(1+((2258*((0.622/((101325/(1*611*EXP(17.27*(((data!$AG$1+data!$AG$2)/2)/(((data!$AG$1+data!$AG$2)/2)+237.3))))))-1)*1000-(0.622/((101325/('Mini Canal'!$J$13*611*EXP(17.27*(data!$AG$3/(data!$AG$3+237.3))))))-1)*1000))/(1005*(((data!$AG$1+data!$AG$2)/2)-data!$AG$3)))))))) -> 133 | AS25: =(AM25/(IF((237.3*LN(('Mini Canal'!$J$13*EXP(17.27*(data!$AG$3/(data!$AG$3+237.3))))))/(17.27-LN(('Mini Canal'!$J$13*EXP(17.27*(data!$AG$3/(data!$AG$3+237.3))))))<((data!$AG$1+data!$AG$2)/2),1,IF(1/(1+((2258*((0.622/((101325/(1*611*EXP(17.27*(((data!$AG$1+data!$AG$2)/2)/(((data!$AG$1+data!$AG$2)/2)+237.3))))))-1)*1000-(0.622/((101325/('Mini Canal'!$J$13*611*EXP(17.27*(data!$AG$3/(data!$AG$3+237.3))))))-1)*1000))/(1005*(((data!$AG$1+data!$AG$2)/2)-data!$AG$3))))>1,1,1/(1+((2258*((0.622/((101325/(1*611*EXP(17.27*(((data!$AG$1+data!$AG$2)/2)/(((data!$AG$1+data!$AG$2)/2)+237.3))))))-1)*1000-(0.622/((101325/('Mini Canal'!$J$13*611*EXP(17.27*(data!$AG$3/(data!$AG$3+237.3))))))-1)*1000))/(1005*(((data!$AG$1+data!$AG$2)/2)-data!$AG$3)))))))) -> 137 | AT25: 0.4469711942 | AU25: 0.5259692445 | AV25: 0.5591288826 | AW25: 1.20 | AX25: 9.6 | AY25: 10.6 | AZ25: 13.9 | BB25: 0 | BC25: 189.35 | BD25: 216.35 | BE25: 268.1 | BG25: 0 | BH25: 6.960594862 | BI25: 7.930446398 | BJ25: 10 | BM25: 0.0001956332036 | BN25: 0.0004470845885 | BO25: 1.766459433 | BP25: 2
A26: 14120421 | B26: 14 | C26: 120 | D26: 1 | E26: 42 | F26: 20 | G26: 0 | H26: 26 | I26: 30 | J26: 36.99489987 | K26: 547 | L26: 2711 | M26: 2915 | N26: 3034 | O26: 1.362 | P26: 1.1 | Q26: 1.1 | R26: 1.1 | S26: 82 | T26: 583 | U26: 627 | V26: 653 | W26: 14 | X26: 100 | Y26: 108 | Z26: 112 | AA26: 0.1290708972 | AB26: 1.928096018 | AC26: 2.144140334 | AD26: 2.254526152 | AE26: 115 | AF26: 126 | AG26: 128 | AH26: 0.98 | AI26: 0.98 | AJ26: 0.98 | AK26: 115 | AL26: 126 | AM26: 128 | AN26: 49 | AO26: 54 | AP26: 55 | AQ26: =(AK26/(IF((237.3*LN(('Mini Canal'!$J$13*EXP(17.27*(data!$AG$3/(data!$AG$3+237.3))))))/(17.27-LN(('Mini Canal'!$J$13*EXP(17.27*(data!$AG$3/(data!$AG$3+237.3))))))<((data!$AG$1+data!$AG$2)/2),1,IF(1/(1+((2258*((0.622/((101325/(1*611*EXP(17.27*(((data!$AG$1+data!$AG$2)/2)/(((data!$AG$1+data!$AG$2)/2)+237.3))))))-1)*1000-(0.622/((101325/('Mini Canal'!$J$13*611*EXP(17.27*(data!$AG$3/(data!$AG$3+237.3))))))-1)*1000))/(1005*(((data!$AG$1+data!$AG$2)/2)-data!$AG$3))))>1,1,1/(1+((2258*((0.622/((101325/(1*611*EXP(17.27*(((data!$AG$1+data!$AG$2)/2)/(((data!$AG$1+data!$AG$2)/2)+237.3))))))-1)*1000-(0.622/((101325/('Mini Canal'!$J$13*611*EXP(17.27*(data!$AG$3/(data!$AG$3+237.3))))))-1)*1000))/(1005*(((data!$AG$1+data!$AG$2)/2)-data!$AG$3)))))))) -> 115 | AR26: =(AL26/(IF((237.3*LN(('Mini Canal'!$J$13*EXP(17.27*(data!$AG$3/(data!$AG$3+237.3))))))/(17.27-LN(('Mini Canal'!$J$13*EXP(17.27*(data!$AG$3/(data!$AG$3+237.3))))))<((data!$AG$1+data!$AG$2)/2),1,IF(1/(1+((2258*((0.622/((101325/(1*611*EXP(17.27*(((data!$AG$1+data!$AG$2)/2)/(((data!$AG$1+data!$AG$2)/2)+237.3))))))-1)*1000-(0.622/((101325/('Mini Canal'!$J$13*611*EXP(17.27*(data!$AG$3/(data!$AG$3+237.3))))))-1)*1000))/(1005*(((data!$AG$1+data!$AG$2)/2)-data!$AG$3))))>1,1,1/(1+((2258*((0.622/((101325/(1*611*EXP(17.27*(((data!$AG$1+data!$AG$2)/2)/(((data!$AG$1+data!$AG$2)/2)+237.3))))))-1)*1000-(0.622/((101325/('Mini Canal'!$J$13*611*EXP(17.27*(data!$AG$3/(data!$AG$3+237.3))))))-1)*1000))/(1005*(((data!$AG$1+data!$AG$2)/2)-data!$AG$3)))))))) -> 126 | AS26: =(AM26/(IF((237.3*LN(('Mini Canal'!$J$13*EXP(17.27*(data!$AG$3/(data!$AG$3+237.3))))))/(17.27-LN(('Mini Canal'!$J$13*EXP(17.27*(data!$AG$3/(data!$AG$3+237.3))))))<((data!$AG$1+data!$AG$2)/2),1,IF(1/(1+((2258*((0.622/((101325/(1*611*EXP(17.27*(((data!$AG$1+data!$AG$2)/2)/(((data!$AG$1+data!$AG$2)/2)+237.3))))))-1)*1000-(0.622/((101325/('Mini Canal'!$J$13*611*EXP(17.27*(data!$AG$3/(data!$AG$3+237.3))))))-1)*1000))/(1005*(((data!$AG$1+data!$AG$2)/2)-data!$AG$3))))>1,1,1/(1+((2258*((0.622/((101325/(1*611*EXP(17.27*(((data!$AG$1+data!$AG$2)/2)/(((data!$AG$1+data!$AG$2)/2)+237.3))))))-1)*1000-(0.622/((101325/('Mini Canal'!$J$13*611*EXP(17.27*(data!$AG$3/(data!$AG$3+237.3))))))-1)*1000))/(1005*(((data!$AG$1+data!$AG$2)/2)-data!$AG$3)))))))) -> 128 | AT26: 0.7216218069 | AU26: 0.8248604438 | AV26: 0.8459584749 | AW26: 1.60 | AX26: 9.6 | AY26: 10.6 | AZ26: 13.9 | BB26: 0 | BC26: 189.35 | BD26: 216.35 | BE26: 268.1 | BG26: 0 | BH26: 6.960594862 | BI26: 7.930446398 | BJ26: 10 | BM26: 0.001673095004 | BN26: 0.0003292952395 | BO26: 1.369178837 | BP26: 2
A27: 14130261 | B27: 14 | C27: 130 | D27: 1 | E27: 26 | F27: 10 | G27: 0 | H27: 26 | I27: 30 | J27: 36.99489987 | K27: 359 | L27: 1810 | M27: 1949 | N27: 2068 | O27: 1.362 | P27: 1.1 | Q27: 1.1 | R27: 1.1 | S27: 54 | T27: 390 | U27: 419 | V27: 445 | W27: 9 | X27: 67 | Y27: 72 | Z27: 77 | AA27: 0.08649744535 | AB27: 1.721988841 | AC27: 1.917189312 | AD27: 2.119203593 | AE27: 120 | AF27: 128 | AG27: 130 | AH27: 0.98 | AI27: 0.98 | AJ27: 0.98 | AK27: 120 | AL27: 128 | AM27: 130 | AN27: 52 | AO27: 55 | AP27: 56 | AQ27: =(AK27/(IF((237.3*LN(('Mini Canal'!$J$13*EXP(17.27*(data!$AG$3/(data!$AG$3+237.3))))))/(17.27-LN(('Mini Canal'!$J$13*EXP(17.27*(data!$AG$3/(data!$AG$3+237.3))))))<((data!$AG$1+data!$AG$2)/2),1,IF(1/(1+((2258*((0.622/((101325/(1*611*EXP(17.27*(((data!$AG$1+data!$AG$2)/2)/(((data!$AG$1+data!$AG$2)/2)+237.3))))))-1)*1000-(0.622/((101325/('Mini Canal'!$J$13*611*EXP(17.27*(data!$AG$3/(data!$AG$3+237.3))))))-1)*1000))/(1005*(((data!$AG$1+data!$AG$2)/2)-data!$AG$3))))>1,1,1/(1+((2258*((0.622/((101325/(1*611*EXP(17.27*(((data!$AG$1+data!$AG$2)/2)/(((data!$AG$1+data!$AG$2)/2)+237.3))))))-1)*1000-(0.622/((101325/('Mini Canal'!$J$13*611*EXP(17.27*(data!$AG$3/(data!$AG$3+237.3))))))-1)*1000))/(1005*(((data!$AG$1+data!$AG$2)/2)-data!$AG$3)))))))) -> 120 | AR27: =(AL27/(IF((237.3*LN(('Mini Canal'!$J$13*EXP(17.27*(data!$AG$3/(data!$AG$3+237.3))))))/(17.27-LN(('Mini Canal'!$J$13*EXP(17.27*(data!$AG$3/(data!$AG$3+237.3))))))<((data!$AG$1+data!$AG$2)/2),1,IF(1/(1+((2258*((0.622/((101325/(1*611*EXP(17.27*(((data!$AG$1+data!$AG$2)/2)/(((data!$AG$1+data!$AG$2)/2)+237.3))))))-1)*1000-(0.622/((101325/('Mini Canal'!$J$13*611*EXP(17.27*(data!$AG$3/(data!$AG$3+237.3))))))-1)*1000))/(1005*(((data!$AG$1+data!$AG$2)/2)-data!$AG$3))))>1,1,1/(1+((2258*((0.622/((101325/(1*611*EXP(17.27*(((data!$AG$1+data!$AG$2)/2)/(((data!$AG$1+data!$AG$2)/2)+237.3))))))-1)*1000-(0.622/((101325/('Mini Canal'!$J$13*611*EXP(17.27*(data!$AG$3/(data!$AG$3+237.3))))))-1)*1000))/(1005*(((data!$AG$1+data!$AG$2)/2)-data!$AG$3)))))))) -> 128 | AS27: =(AM27/(IF((237.3*LN(('Mini Canal'!$J$13*EXP(17.27*(data!$AG$3/(data!$AG$3+237.3))))))/(17.27-LN(('Mini Canal'!$J$13*EXP(17.27*(data!$AG$3/(data!$AG$3+237.3))))))<((data!$AG$1+data!$AG$2)/2),1,IF(1/(1+((2258*((0.622/((101325/(1*611*EXP(17.27*(((data!$AG$1+data!$AG$2)/2)/(((data!$AG$1+data!$AG$2)/2)+237.3))))))-1)*1000-(0.622/((101325/('Mini Canal'!$J$13*611*EXP(17.27*(data!$AG$3/(data!$AG$3+237.3))))))-1)*1000))/(1005*(((data!$AG$1+data!$AG$2)/2)-data!$AG$3))))>1,1,1/(1+((2258*((0.622/((101325/(1*611*EXP(17.27*(((data!$AG$1+data!$AG$2)/2)/(((data!$AG$1+data!$AG$2)/2)+237.3))))))-1)*1000-(0.622/((101325/('Mini Canal'!$J$13*611*EXP(17.27*(data!$AG$3/(data!$AG$3+237.3))))))-1)*1000))/(1005*(((data!$AG$1+data!$AG$2)/2)-data!$AG$3)))))))) -> 130 | AT27: 1.179923644 | AU27: 1.282866082 | AV27: 1.317807609 | AW27: 0.87 | AX27: 10.8 | AY27: 12.0 | AZ27: 14.7 | BB27: 0 | BC27: 212 | BD27: 242 | BE27: 306 | BG27: 0 | BH27: 6.960594862 | BI27: 7.930446398 | BJ27: 10 | BM27: 0.001450187971 | BN27: 0.0003783163265 | BO27: 1.486891044 | BP27: 2
A28: 14130341 | B28: 14 | C28: 130 | D28: 1 | E28: 34 | F28: 15 | G28: 0 | H28: 26 | I28: 30 | J28: 36.99489987 | K28: 473 | L28: 2336 | M28: 2519 | N28: 2624 | O28: 1.362 | P28: 1.1 | Q28: 1.1 | R28: 1.1 | S28: 71 | T28: 503 | U28: 542 | V28: 565 | W28: 12 | X28: 87 | Y28: 93 | Z28: 97 | AA28: 0.03635708781 | AB28: 1.215492603 | AC28: 1.368048427 | AD28: 1.474099327 | AE28: 134 | AF28: 148 | AG28: 152 | AH28: 0.98 | AI28: 0.98 | AJ28: 0.98 | AK28: 134 | AL28: 148 | AM28: 152 | AN28: 58 | AO28: 64 | AP28: 65 | AQ28: =(AK28/(IF((237.3*LN(('Mini Canal'!$J$13*EXP(17.27*(data!$AG$3/(data!$AG$3+237.3))))))/(17.27-LN(('Mini Canal'!$J$13*EXP(17.27*(data!$AG$3/(data!$AG$3+237.3))))))<((data!$AG$1+data!$AG$2)/2),1,IF(1/(1+((2258*((0.622/((101325/(1*611*EXP(17.27*(((data!$AG$1+data!$AG$2)/2)/(((data!$AG$1+data!$AG$2)/2)+237.3))))))-1)*1000-(0.622/((101325/('Mini Canal'!$J$13*611*EXP(17.27*(data!$AG$3/(data!$AG$3+237.3))))))-1)*1000))/(1005*(((data!$AG$1+data!$AG$2)/2)-data!$AG$3))))>1,1,1/(1+((2258*((0.622/((101325/(1*611*EXP(17.27*(((data!$AG$1+data!$AG$2)/2)/(((data!$AG$1+data!$AG$2)/2)+237.3))))))-1)*1000-(0.622/((101325/('Mini Canal'!$J$13*611*EXP(17.27*(data!$AG$3/(data!$AG$3+237.3))))))-1)*1000))/(1005*(((data!$AG$1+data!$AG$2)/2)-data!$AG$3)))))))) -> 134 | AR28: =(AL28/(IF((237.3*LN(('Mini Canal'!$J$13*EXP(17.27*(data!$AG$3/(data!$AG$3+237.3))))))/(17.27-LN(('Mini Canal'!$J$13*EXP(17.27*(data!$AG$3/(data!$AG$3+237.3))))))<((data!$AG$1+data!$AG$2)/2),1,IF(1/(1+((2258*((0.622/((101325/(1*611*EXP(17.27*(((data!$AG$1+data!$AG$2)/2)/(((data!$AG$1+data!$AG$2)/2)+237.3))))))-1)*1000-(0.622/((101325/('Mini Canal'!$J$13*611*EXP(17.27*(data!$AG$3/(data!$AG$3+237.3))))))-1)*1000))/(1005*(((data!$AG$1+data!$AG$2)/2)-data!$AG$3))))>1,1,1/(1+((2258*((0.622/((101325/(1*611*EXP(17.27*(((data!$AG$1+data!$AG$2)/2)/(((data!$AG$1+data!$AG$2)/2)+237.3))))))-1)*1000-(0.622/((101325/('Mini Canal'!$J$13*611*EXP(17.27*(data!$AG$3/(data!$AG$3+237.3))))))-1)*1000))/(1005*(((data!$AG$1+data!$AG$2)/2)-data!$AG$3)))))))) -> 148 | AS28: =(AM28/(IF((237.3*LN(('Mini Canal'!$J$13*EXP(17.27*(data!$AG$3/(data!$AG$3+237.3))))))/(17.27-LN(('Mini Canal'!$J$13*EXP(17.27*(data!$AG$3/(data!$AG$3+237.3))))))<((data!$AG$1+data!$AG$2)/2),1,IF(1/(1+((2258*((0.622/((101325/(1*611*EXP(17.27*(((data!$AG$1+data!$AG$2)/2)/(((data!$AG$1+data!$AG$2)/2)+237.3))))))-1)*1000-(0.622/((101325/('Mini Canal'!$J$13*611*EXP(17.27*(data!$AG$3/(data!$AG$3+237.3))))))-1)*1000))/(1005*(((data!$AG$1+data!$AG$2)/2)-data!$AG$3))))>1,1,1/(1+((2258*((0.622/((101325/(1*611*EXP(17.27*(((data!$AG$1+data!$AG$2)/2)/(((data!$AG$1+data!$AG$2)/2)+237.3))))))-1)*1000-(0.622/((101325/('Mini Canal'!$J$13*611*EXP(17.27*(data!$AG$3/(data!$AG$3+237.3))))))-1)*1000))/(1005*(((data!$AG$1+data!$AG$2)/2)-data!$AG$3)))))))) -> 152 | AT28: 0.5924100195 | AU28: 0.7053314489 | AV28: 0.7249825897 | AW28: 1.30 | AX28: 10.8 | AY28: 12.0 | AZ28: 14.7 | BB28: 0 | BC28: 212 | BD28: 242 | BE28: 306 | BG28: 0 | BH28: 6.960594862 | BI28: 7.930446398 | BJ28: 10 | BM28: 0.0001956332036 | BN28: 0.0004470845885 | BO28: 1.766459433 | BP28: 2
A29: 14130421 | B29: 14 | C29: 130 | D29: 1 | E29: 42 | F29: 20 | G29: 0 | H29: 26 | I29: 30 | J29: 36.99489987 | K29: 586 | L29: 2749 | M29: 2953 | N29: 3072 | O29: 1.362 | P29: 1.1 | Q29: 1.1 | R29: 1.1 | S29: 87 | T29: 592 | U29: 635 | V29: 661 | W29: 15 | X29: 102 | Y29: 109 | Z29: 114 | AA29: 0.1552564394 | AB29: 2.1659682 | AC29: 2.373603836 | AD29: 2.525101567 | AE29: 115 | AF29: 126 | AG29: 128 | AH29: 0.98 | AI29: 0.98 | AJ29: 0.98 | AK29: 115 | AL29: 126 | AM29: 128 | AN29: 49 | AO29: 54 | AP29: 55 | AQ29: =(AK29/(IF((237.3*LN(('Mini Canal'!$J$13*EXP(17.27*(data!$AG$3/(data!$AG$3+237.3))))))/(17.27-LN(('Mini Canal'!$J$13*EXP(17.27*(data!$AG$3/(data!$AG$3+237.3))))))<((data!$AG$1+data!$AG$2)/2),1,IF(1/(1+((2258*((0.622/((101325/(1*611*EXP(17.27*(((data!$AG$1+data!$AG$2)/2)/(((data!$AG$1+data!$AG$2)/2)+237.3))))))-1)*1000-(0.622/((101325/('Mini Canal'!$J$13*611*EXP(17.27*(data!$AG$3/(data!$AG$3+237.3))))))-1)*1000))/(1005*(((data!$AG$1+data!$AG$2)/2)-data!$AG$3))))>1,1,1/(1+((2258*((0.622/((101325/(1*611*EXP(17.27*(((data!$AG$1+data!$AG$2)/2)/(((data!$AG$1+data!$AG$2)/2)+237.3))))))-1)*1000-(0.622/((101325/('Mini Canal'!$J$13*611*EXP(17.27*(data!$AG$3/(data!$AG$3+237.3))))))-1)*1000))/(1005*(((data!$AG$1+data!$AG$2)/2)-data!$AG$3)))))))) -> 115 | AR29: =(AL29/(IF((237.3*LN(('Mini Canal'!$J$13*EXP(17.27*(data!$AG$3/(data!$AG$3+237.3))))))/(17.27-LN(('Mini Canal'!$J$13*EXP(17.27*(data!$AG$3/(data!$AG$3+237.3))))))<((data!$AG$1+data!$AG$2)/2),1,IF(1/(1+((2258*((0.622/((101325/(1*611*EXP(17.27*(((data!$AG$1+data!$AG$2)/2)/(((data!$AG$1+data!$AG$2)/2)+237.3))))))-1)*1000-(0.622/((101325/('Mini Canal'!$J$13*611*EXP(17.27*(data!$AG$3/(data!$AG$3+237.3))))))-1)*1000))/(1005*(((data!$AG$1+data!$AG$2)/2)-data!$AG$3))))>1,1,1/(1+((2258*((0.622/((101325/(1*611*EXP(17.27*(((data!$AG$1+data!$AG$2)/2)/(((data!$AG$1+data!$AG$2)/2)+237.3))))))-1)*1000-(0.622/((101325/('Mini Canal'!$J$13*611*EXP(17.27*(data!$AG$3/(data!$AG$3+237.3))))))-1)*1000))/(1005*(((data!$AG$1+data!$AG$2)/2)-data!$AG$3)))))))) -> 126 | AS29: =(AM29/(IF((237.3*LN(('Mini Canal'!$J$13*EXP(17.27*(data!$AG$3/(data!$AG$3+237.3))))))/(17.27-LN(('Mini Canal'!$J$13*EXP(17.27*(data!$AG$3/(data!$AG$3+237.3))))))<((data!$AG$1+data!$AG$2)/2),1,IF(1/(1+((2258*((0.622/((101325/(1*611*EXP(17.27*(((data!$AG$1+data!$AG$2)/2)/(((data!$AG$1+data!$AG$2)/2)+237.3))))))-1)*1000-(0.622/((101325/('Mini Canal'!$J$13*611*EXP(17.27*(data!$AG$3/(data!$AG$3+237.3))))))-1)*1000))/(1005*(((data!$AG$1+data!$AG$2)/2)-data!$AG$3))))>1,1,1/(1+((2258*((0.622/((101325/(1*611*EXP(17.27*(((data!$AG$1+data!$AG$2)/2)/(((data!$AG$1+data!$AG$2)/2)+237.3))))))-1)*1000-(0.622/((101325/('Mini Canal'!$J$13*611*EXP(17.27*(data!$AG$3/(data!$AG$3+237.3))))))-1)*1000))/(1005*(((data!$AG$1+data!$AG$2)/2)-data!$AG$3)))))))) -> 128 | AT29: 0.7892234693 | AU29: 0.9020811104 | AV29: 0.9251437512 | AW29: 1.73 | AX29: 10.8 | AY29: 12.0 | AZ29: 14.7 | BB29: 0 | BC29: 212 | BD29: 242 | BE29: 306 | BG29: 0 | BH29: 6.960594862 | BI29: 7.930446398 | BJ29: 10 | BM29: 0.001673095004 | BN29: 0.0003292952395 | BO29: 1.369178837 | BP29: 2
A30: 14150261 | B30: 14 | C30: 150 | D30: 1 | E30: 26 | F30: 10 | G30: 0 | H30: 26 | I30: 30 | J30: 37.964 | K30: 430 | L30: 2198 | M30: 2379 | N30: 2567 | O30: 1.362 | P30: 1.1 | Q30: 1.1 | R30: 1.1 | S30: 64 | T30: 473 | U30: 512 | V30: 552 | W30: 11 | X30: 81 | Y30: 88 | Z30: 95 | AA30: 0.1367114727 | AB30: 2.676787956 | AC30: 3.029074775 | AD30: 3.395474643 | AE30: 141 | AF30: 151 | AG30: 155 | AH30: 0.98 | AI30: 0.98 | AJ30: 0.98 | AK30: 141 | AL30: 151 | AM30: 155 | AN30: 61 | AO30: 65 | AP30: 67 | AQ30: =(AK30/(IF((237.3*LN(('Mini Canal'!$J$13*EXP(17.27*(data!$AG$3/(data!$AG$3+237.3))))))/(17.27-LN(('Mini Canal'!$J$13*EXP(17.27*(data!$AG$3/(data!$AG$3+237.3))))))<((data!$AG$1+data!$AG$2)/2),1,IF(1/(1+((2258*((0.622/((101325/(1*611*EXP(17.27*(((data!$AG$1+data!$AG$2)/2)/(((data!$AG$1+data!$AG$2)/2)+237.3))))))-1)*1000-(0.622/((101325/('Mini Canal'!$J$13*611*EXP(17.27*(data!$AG$3/(data!$AG$3+237.3))))))-1)*1000))/(1005*(((data!$AG$1+data!$AG$2)/2)-data!$AG$3))))>1,1,1/(1+((2258*((0.622/((101325/(1*611*EXP(17.27*(((data!$AG$1+data!$AG$2)/2)/(((data!$AG$1+data!$AG$2)/2)+237.3))))))-1)*1000-(0.622/((101325/('Mini Canal'!$J$13*611*EXP(17.27*(data!$AG$3/(data!$AG$3+237.3))))))-1)*1000))/(1005*(((data!$AG$1+data!$AG$2)/2)-data!$AG$3)))))))) -> 141 | AR30: =(AL30/(IF((237.3*LN(('Mini Canal'!$J$13*EXP(17.27*(data!$AG$3/(data!$AG$3+237.3))))))/(17.27-LN(('Mini Canal'!$J$13*EXP(17.27*(data!$AG$3/(data!$AG$3+237.3))))))<((data!$AG$1+data!$AG$2)/2),1,IF(1/(1+((2258*((0.622/((101325/(1*611*EXP(17.27*(((data!$AG$1+data!$AG$2)/2)/(((data!$AG$1+data!$AG$2)/2)+237.3))))))-1)*1000-(0.622/((101325/('Mini Canal'!$J$13*611*EXP(17.27*(data!$AG$3/(data!$AG$3+237.3))))))-1)*1000))/(1005*(((data!$AG$1+data!$AG$2)/2)-data!$AG$3))))>1,1,1/(1+((2258*((0.622/((101325/(1*611*EXP(17.27*(((data!$AG$1+data!$AG$2)/2)/(((data!$AG$1+data!$AG$2)/2)+237.3))))))-1)*1000-(0.622/((101325/('Mini Canal'!$J$13*611*EXP(17.27*(data!$AG$3/(data!$AG$3+237.3))))))-1)*1000))/(1005*(((data!$AG$1+data!$AG$2)/2)-data!$AG$3)))))))) -> 151 | AS30: =(AM30/(IF((237.3*LN(('Mini Canal'!$J$13*EXP(17.27*(data!$AG$3/(data!$AG$3+237.3))))))/(17.27-LN(('Mini Canal'!$J$13*EXP(17.27*(data!$AG$3/(data!$AG$3+237.3))))))<((data!$AG$1+data!$AG$2)/2),1,IF(1/(1+((2258*((0.622/((101325/(1*611*EXP(17.27*(((data!$AG$1+data!$AG$2)/2)/(((data!$AG$1+data!$AG$2)/2)+237.3))))))-1)*1000-(0.622/((101325/('Mini Canal'!$J$13*611*EXP(17.27*(data!$AG$3/(data!$AG$3+237.3))))))-1)*1000))/(1005*(((data!$AG$1+data!$AG$2)/2)-data!$AG$3))))>1,1,1/(1+((2258*((0.622/((101325/(1*611*EXP(17.27*(((data!$AG$1+data!$AG$2)/2)/(((data!$AG$1+data!$AG$2)/2)+237.3))))))-1)*1000-(0.622/((101325/('Mini Canal'!$J$13*611*EXP(17.27*(data!$AG$3/(data!$AG$3+237.3))))))-1)*1000))/(1005*(((data!$AG$1+data!$AG$2)/2)-data!$AG$3)))))))) -> 155 | AT30: 1.753722507 | AU30: 1.927914294 | AV30: 2.017031379 | AW30: 1.00 | AX30: 13.2 | AY30: 14.6 | AZ30: 18.3 | BB30: 0 | BC30: 257 | BD30: 293 | BE30: 383 | BG30: 0 | BH30: 6.74859117 | BI30: 7.679599175 | BJ30: 10 | BM30: 0.001450187971 | BN30: 0.0003783163265 | BO30: 1.486891044 | BP30: 2
A31: 14150341 | B31: 14 | C31: 150 | D31: 1 | E31: 34 | F31: 15 | G31: 0 | H31: 26 | I31: 30 | J31: 37.964 | K31: 566 | L31: 2831 | M31: 3076 | N31: 3256 | O31: 1.362 | P31: 1.1 | Q31: 1.1 | R31: 1.1 | S31: 84 | T31: 609 | U31: 662 | V31: 701 | W31: 14 | X31: 105 | Y31: 114 | Z31: 121 | AA31: 0.05588210741 | AB31: 1.981640773 | AC31: 2.292557539 | AD31: 2.547934593 | AE31: 155 | AF31: 174 | AG31: 182 | AH31: 0.98 | AI31: 0.98 | AJ31: 0.98 | AK31: 155 | AL31: 174 | AM31: 182 | AN31: 67 | AO31: 75 | AP31: 78 | AQ31: =(AK31/(IF((237.3*LN(('Mini Canal'!$J$13*EXP(17.27*(data!$AG$3/(data!$AG$3+237.3))))))/(17.27-LN(('Mini Canal'!$J$13*EXP(17.27*(data!$AG$3/(data!$AG$3+237.3))))))<((data!$AG$1+data!$AG$2)/2),1,IF(1/(1+((2258*((0.622/((101325/(1*611*EXP(17.27*(((data!$AG$1+data!$AG$2)/2)/(((data!$AG$1+data!$AG$2)/2)+237.3))))))-1)*1000-(0.622/((101325/('Mini Canal'!$J$13*611*EXP(17.27*(data!$AG$3/(data!$AG$3+237.3))))))-1)*1000))/(1005*(((data!$AG$1+data!$AG$2)/2)-data!$AG$3))))>1,1,1/(1+((2258*((0.622/((101325/(1*611*EXP(17.27*(((data!$AG$1+data!$AG$2)/2)/(((data!$AG$1+data!$AG$2)/2)+237.3))))))-1)*1000-(0.622/((101325/('Mini Canal'!$J$13*611*EXP(17.27*(data!$AG$3/(data!$AG$3+237.3))))))-1)*1000))/(1005*(((data!$AG$1+data!$AG$2)/2)-data!$AG$3)))))))) -> 155 | AR31: =(AL31/(IF((237.3*LN(('Mini Canal'!$J$13*EXP(17.27*(data!$AG$3/(data!$AG$3+237.3))))))/(17.27-LN(('Mini Canal'!$J$13*EXP(17.27*(data!$AG$3/(data!$AG$3+237.3))))))<((data!$AG$1+data!$AG$2)/2),1,IF(1/(1+((2258*((0.622/((101325/(1*611*EXP(17.27*(((data!$AG$1+data!$AG$2)/2)/(((data!$AG$1+data!$AG$2)/2)+237.3))))))-1)*1000-(0.622/((101325/('Mini Canal'!$J$13*611*EXP(17.27*(data!$AG$3/(data!$AG$3+237.3))))))-1)*1000))/(1005*(((data!$AG$1+data!$AG$2)/2)-data!$AG$3))))>1,1,1/(1+((2258*((0.622/((101325/(1*611*EXP(17.27*(((data!$AG$1+data!$AG$2)/2)/(((data!$AG$1+data!$AG$2)/2)+237.3))))))-1)*1000-(0.622/((101325/('Mini Canal'!$J$13*611*EXP(17.27*(data!$AG$3/(data!$AG$3+237.3))))))-1)*1000))/(1005*(((data!$AG$1+data!$AG$2)/2)-data!$AG$3)))))))) -> 174 | AS31: =(AM31/(IF((237.3*LN(('Mini Canal'!$J$13*EXP(17.27*(data!$AG$3/(data!$AG$3+237.3))))))/(17.27-LN(('Mini Canal'!$J$13*EXP(17.27*(data!$AG$3/(data!$AG$3+237.3))))))<((data!$AG$1+data!$AG$2)/2),1,IF(1/(1+((2258*((0.622/((101325/(1*611*EXP(17.27*(((data!$AG$1+data!$AG$2)/2)/(((data!$AG$1+data!$AG$2)/2)+237.3))))))-1)*1000-(0.622/((101325/('Mini Canal'!$J$13*611*EXP(17.27*(data!$AG$3/(data!$AG$3+237.3))))))-1)*1000))/(1005*(((data!$AG$1+data!$AG$2)/2)-data!$AG$3))))>1,1,1/(1+((2258*((0.622/((101325/(1*611*EXP(17.27*(((data!$AG$1+data!$AG$2)/2)/(((data!$AG$1+data!$AG$2)/2)+237.3))))))-1)*1000-(0.622/((101325/('Mini Canal'!$J$13*611*EXP(17.27*(data!$AG$3/(data!$AG$3+237.3))))))-1)*1000))/(1005*(((data!$AG$1+data!$AG$2)/2)-data!$AG$3)))))))) -> 182 | AT31: 0.8939378545 | AU31: 1.091678862 | AV31: 1.170236968 | AW31: 1.50 | AX31: 13.2 | AY31: 14.6 | AZ31: 18.3 | BB31: 0 | BC31: 257 | BD31: 293 | BE31: 383 | BG31: 0 | BH31: 6.74859117 | BI31: 7.679599175 | BJ31: 10 | BM31: 0.0001956332036 | BN31: 0.0004470845885 | BO31: 1.766459433 | BP31: 2
A32: 14150421 | B32: 14 | C32: 150 | D32: 1 | E32: 42 | F32: 20 | G32: 0 | H32: 26 | I32: 30 | J32: 37.964 | K32: 702 | L32: 3334 | M32: 3607 | N32: 3810 | O32: 1.362 | P32: 1.1 | Q32: 1.1 | R32: 1.1 | S32: 105 | T32: 717 | U32: 776 | V32: 820 | W32: 18 | X32: 123 | Y32: 133 | Z32: 141 | AA32: 0.2337094289 | AB32: 3.280963057 | AC32: 3.654321307 | AD32: 3.960900159 | AE32: 140 | AF32: 155 | AG32: 160 | AH32: 0.98 | AI32: 0.98 | AJ32: 0.98 | AK32: 140 | AL32: 155 | AM32: 160 | AN32: 60 | AO32: 67 | AP32: 69 | AQ32: =(AK32/(IF((237.3*LN(('Mini Canal'!$J$13*EXP(17.27*(data!$AG$3/(data!$AG$3+237.3))))))/(17.27-LN(('Mini Canal'!$J$13*EXP(17.27*(data!$AG$3/(data!$AG$3+237.3))))))<((data!$AG$1+data!$AG$2)/2),1,IF(1/(1+((2258*((0.622/((101325/(1*611*EXP(17.27*(((data!$AG$1+data!$AG$2)/2)/(((data!$AG$1+data!$AG$2)/2)+237.3))))))-1)*1000-(0.622/((101325/('Mini Canal'!$J$13*611*EXP(17.27*(data!$AG$3/(data!$AG$3+237.3))))))-1)*1000))/(1005*(((data!$AG$1+data!$AG$2)/2)-data!$AG$3))))>1,1,1/(1+((2258*((0.622/((101325/(1*611*EXP(17.27*(((data!$AG$1+data!$AG$2)/2)/(((data!$AG$1+data!$AG$2)/2)+237.3))))))-1)*1000-(0.622/((101325/('Mini Canal'!$J$13*611*EXP(17.27*(data!$AG$3/(data!$AG$3+237.3))))))-1)*1000))/(1005*(((data!$AG$1+data!$AG$2)/2)-data!$AG$3)))))))) -> 140 | AR32: =(AL32/(IF((237.3*LN(('Mini Canal'!$J$13*EXP(17.27*(data!$AG$3/(data!$AG$3+237.3))))))/(17.27-LN(('Mini Canal'!$J$13*EXP(17.27*(data!$AG$3/(data!$AG$3+237.3))))))<((data!$AG$1+data!$AG$2)/2),1,IF(1/(1+((2258*((0.622/((101325/(1*611*EXP(17.27*(((data!$AG$1+data!$AG$2)/2)/(((data!$AG$1+data!$AG$2)/2)+237.3))))))-1)*1000-(0.622/((101325/('Mini Canal'!$J$13*611*EXP(17.27*(data!$AG$3/(data!$AG$3+237.3))))))-1)*1000))/(1005*(((data!$AG$1+data!$AG$2)/2)-data!$AG$3))))>1,1,1/(1+((2258*((0.622/((101325/(1*611*EXP(17.27*(((data!$AG$1+data!$AG$2)/2)/(((data!$AG$1+data!$AG$2)/2)+237.3))))))-1)*1000-(0.622/((101325/('Mini Canal'!$J$13*611*EXP(17.27*(data!$AG$3/(data!$AG$3+237.3))))))-1)*1000))/(1005*(((data!$AG$1+data!$AG$2)/2)-data!$AG$3)))))))) -> 155 | AS32: =(AM32/(IF((237.3*LN(('Mini Canal'!$J$13*EXP(17.27*(data!$AG$3/(data!$AG$3+237.3))))))/(17.27-LN(('Mini Canal'!$J$13*EXP(17.27*(data!$AG$3/(data!$AG$3+237.3))))))<((data!$AG$1+data!$AG$2)/2),1,IF(1/(1+((2258*((0.622/((101325/(1*611*EXP(17.27*(((data!$AG$1+data!$AG$2)/2)/(((data!$AG$1+data!$AG$2)/2)+237.3))))))-1)*1000-(0.622/((101325/('Mini Canal'!$J$13*611*EXP(17.27*(data!$AG$3/(data!$AG$3+237.3))))))-1)*1000))/(1005*(((data!$AG$1+data!$AG$2)/2)-data!$AG$3))))>1,1,1/(1+((2258*((0.622/((101325/(1*611*EXP(17.27*(((data!$AG$1+data!$AG$2)/2)/(((data!$AG$1+data!$AG$2)/2)+237.3))))))-1)*1000-(0.622/((101325/('Mini Canal'!$J$13*611*EXP(17.27*(data!$AG$3/(data!$AG$3+237.3))))))-1)*1000))/(1005*(((data!$AG$1+data!$AG$2)/2)-data!$AG$3)))))))) -> 160 | AT32: 1.221222119 | AU32: 1.421373813 | AV32: 1.480067364 | AW32: 2.00 | AX32: 13.2 | AY32: 14.6 | AZ32: 18.3 | BB32: 0 | BC32: 257 | BD32: 293 | BE32: 383 | BG32: 0 | BH32: 6.74859117 | BI32: 7.679599175 | BJ32: 10 | BM32: 0.001673095004 | BN32: 0.0003292952395 | BO32: 1.369178837 | BP32: 2 | BR32: standaard | BT32: PRO | BV32: DBE
A33: 14170261 | B33: 14 | C33: 170 | D33: 1 | E33: 26 | F33: 10 | G33: 0 | H33: 26 | I33: 30 | J33: 38.75581246 | K33: 503 | L33: 2577 | M33: 2802 | N33: 3067 | O33: 1.362 | P33: 1.1 | Q33: 1.1 | R33: 1.1 | S33: 75 | T33: 555 | U33: 603 | V33: 660 | W33: 13 | X33: 95 | Y33: 104 | Z33: 114 | AA33: 0.2010748581 | AB33: 3.891346982 | AC33: 4.453759265 | AD33: 5.107400342 | AE33: 161 | AF33: 174 | AG33: 181 | AH33: 0.98 | AI33: 0.98 | AJ33: 0.98 | AK33: 161 | AL33: 174 | AM33: 181 | AN33: 69 | AO33: 75 | AP33: 78 | AQ33: =(AK33/(IF((237.3*LN(('Mini Canal'!$J$13*EXP(17.27*(data!$AG$3/(data!$AG$3+237.3))))))/(17.27-LN(('Mini Canal'!$J$13*EXP(17.27*(data!$AG$3/(data!$AG$3+237.3))))))<((data!$AG$1+data!$AG$2)/2),1,IF(1/(1+((2258*((0.622/((101325/(1*611*EXP(17.27*(((data!$AG$1+data!$AG$2)/2)/(((data!$AG$1+data!$AG$2)/2)+237.3))))))-1)*1000-(0.622/((101325/('Mini Canal'!$J$13*611*EXP(17.27*(data!$AG$3/(data!$AG$3+237.3))))))-1)*1000))/(1005*(((data!$AG$1+data!$AG$2)/2)-data!$AG$3))))>1,1,1/(1+((2258*((0.622/((101325/(1*611*EXP(17.27*(((data!$AG$1+data!$AG$2)/2)/(((data!$AG$1+data!$AG$2)/2)+237.3))))))-1)*1000-(0.622/((101325/('Mini Canal'!$J$13*611*EXP(17.27*(data!$AG$3/(data!$AG$3+237.3))))))-1)*1000))/(1005*(((data!$AG$1+data!$AG$2)/2)-data!$AG$3)))))))) -> 161 | AR33: =(AL33/(IF((237.3*LN(('Mini Canal'!$J$13*EXP(17.27*(data!$AG$3/(data!$AG$3+237.3))))))/(17.27-LN(('Mini Canal'!$J$13*EXP(17.27*(data!$AG$3/(data!$AG$3+237.3))))))<((data!$AG$1+data!$AG$2)/2),1,IF(1/(1+((2258*((0.622/((101325/(1*611*EXP(17.27*(((data!$AG$1+data!$AG$2)/2)/(((data!$AG$1+data!$AG$2)/2)+237.3))))))-1)*1000-(0.622/((101325/('Mini Canal'!$J$13*611*EXP(17.27*(data!$AG$3/(data!$AG$3+237.3))))))-1)*1000))/(1005*(((data!$AG$1+data!$AG$2)/2)-data!$AG$3))))>1,1,1/(1+((2258*((0.622/((101325/(1*611*EXP(17.27*(((data!$AG$1+data!$AG$2)/2)/(((data!$AG$1+data!$AG$2)/2)+237.3))))))-1)*1000-(0.622/((101325/('Mini Canal'!$J$13*611*EXP(17.27*(data!$AG$3/(data!$AG$3+237.3))))))-1)*1000))/(1005*(((data!$AG$1+data!$AG$2)/2)-data!$AG$3)))))))) -> 174 | AS33: =(AM33/(IF((237.3*LN(('Mini Canal'!$J$13*EXP(17.27*(data!$AG$3/(data!$AG$3+237.3))))))/(17.27-LN(('Mini Canal'!$J$13*EXP(17.27*(data!$AG$3/(data!$AG$3+237.3))))))<((data!$AG$1+data!$AG$2)/2),1,IF(1/(1+((2258*((0.622/((101325/(1*611*EXP(17.27*(((data!$AG$1+data!$AG$2)/2)/(((data!$AG$1+data!$AG$2)/2)+237.3))))))-1)*1000-(0.622/((101325/('Mini Canal'!$J$13*611*EXP(17.27*(data!$AG$3/(data!$AG$3+237.3))))))-1)*1000))/(1005*(((data!$AG$1+data!$AG$2)/2)-data!$AG$3))))>1,1,1/(1+((2258*((0.622/((101325/(1*611*EXP(17.27*(((data!$AG$1+data!$AG$2)/2)/(((data!$AG$1+data!$AG$2)/2)+237.3))))))-1)*1000-(0.622/((101325/('Mini Canal'!$J$13*611*EXP(17.27*(data!$AG$3/(data!$AG$3+237.3))))))-1)*1000))/(1005*(((data!$AG$1+data!$AG$2)/2)-data!$AG$3)))))))) -> 181 | AT33: 2.415701262 | AU33: 2.735429173 | AV33: 2.90014356 | AW33: 1.13 | AX33: 15.5 | AY33: 17.2 | AZ33: 22.0 | BB33: 0 | BC33: 301 | BD33: 343 | BE33: 460 | BG33: 0 | BH33: 6.580727319 | BI33: 7.482644568 | BJ33: 10 | BM33: 0.001450187971 | BN33: 0.0003783163265 | BO33: 1.486891044 | BP33: 2 | BR33: 9 | BT33: 9 | BV33: 14
A34: 14170341 | B34: 14 | C34: 170 | D34: 1 | E34: 34 | F34: 15 | G34: 0 | H34: 26 | I34: 30 | J34: 38.75581246 | K34: 663 | L34: 3315 | M34: 3622 | N34: 3890 | O34: 1.362 | P34: 1.1 | Q34: 1.1 | R34: 1.1 | S34: 99 | T34: 713 | U34: 779 | V34: 837 | W34: 17 | X34: 123 | Y34: 134 | Z34: 144 | AA34: 0.09023679502 | AB34: 3.000156379 | AC34: 3.491800861 | AD34: 3.966712706 | AE34: 176 | AF34: 200 | AG34: 213 | AH34: 0.98 | AI34: 0.98 | AJ34: 0.98 | AK34: 176 | AL34: 200 | AM34: 213 | AN34: 76 | AO34: 86 | AP34: 92 | AQ34: =(AK34/(IF((237.3*LN(('Mini Canal'!$J$13*EXP(17.27*(data!$AG$3/(data!$AG$3+237.3))))))/(17.27-LN(('Mini Canal'!$J$13*EXP(17.27*(data!$AG$3/(data!$AG$3+237.3))))))<((data!$AG$1+data!$AG$2)/2),1,IF(1/(1+((2258*((0.622/((101325/(1*611*EXP(17.27*(((data!$AG$1+data!$AG$2)/2)/(((data!$AG$1+data!$AG$2)/2)+237.3))))))-1)*1000-(0.622/((101325/('Mini Canal'!$J$13*611*EXP(17.27*(data!$AG$3/(data!$AG$3+237.3))))))-1)*1000))/(1005*(((data!$AG$1+data!$AG$2)/2)-data!$AG$3))))>1,1,1/(1+((2258*((0.622/((101325/(1*611*EXP(17.27*(((data!$AG$1+data!$AG$2)/2)/(((data!$AG$1+data!$AG$2)/2)+237.3))))))-1)*1000-(0.622/((101325/('Mini Canal'!$J$13*611*EXP(17.27*(data!$AG$3/(data!$AG$3+237.3))))))-1)*1000))/(1005*(((data!$AG$1+data!$AG$2)/2)-data!$AG$3)))))))) -> 176 | AR34: =(AL34/(IF((237.3*LN(('Mini Canal'!$J$13*EXP(17.27*(data!$AG$3/(data!$AG$3+237.3))))))/(17.27-LN(('Mini Canal'!$J$13*EXP(17.27*(data!$AG$3/(data!$AG$3+237.3))))))<((data!$AG$1+data!$AG$2)/2),1,IF(1/(1+((2258*((0.622/((101325/(1*611*EXP(17.27*(((data!$AG$1+data!$AG$2)/2)/(((data!$AG$1+data!$AG$2)/2)+237.3))))))-1)*1000-(0.622/((101325/('Mini Canal'!$J$13*611*EXP(17.27*(data!$AG$3/(data!$AG$3+237.3))))))-1)*1000))/(1005*(((data!$AG$1+data!$AG$2)/2)-data!$AG$3))))>1,1,1/(1+((2258*((0.622/((101325/(1*611*EXP(17.27*(((data!$AG$1+data!$AG$2)/2)/(((data!$AG$1+data!$AG$2)/2)+237.3))))))-1)*1000-(0.622/((101325/('Mini Canal'!$J$13*611*EXP(17.27*(data!$AG$3/(data!$AG$3+237.3))))))-1)*1000))/(1005*(((data!$AG$1+data!$AG$2)/2)-data!$AG$3)))))))) -> 200 | AS34: =(AM34/(IF((237.3*LN(('Mini Canal'!$J$13*EXP(17.27*(data!$AG$3/(data!$AG$3+237.3))))))/(17.27-LN(('Mini Canal'!$J$13*EXP(17.27*(data!$AG$3/(data!$AG$3+237.3))))))<((data!$AG$1+data!$AG$2)/2),1,IF(1/(1+((2258*((0.622/((101325/(1*611*EXP(17.27*(((data!$AG$1+data!$AG$2)/2)/(((data!$AG$1+data!$AG$2)/2)+237.3))))))-1)*1000-(0.622/((101325/('Mini Canal'!$J$13*611*EXP(17.27*(data!$AG$3/(data!$AG$3+237.3))))))-1)*1000))/(1005*(((data!$AG$1+data!$AG$2)/2)-data!$AG$3))))>1,1,1/(1+((2258*((0.622/((101325/(1*611*EXP(17.27*(((data!$AG$1+data!$AG$2)/2)/(((data!$AG$1+data!$AG$2)/2)+237.3))))))-1)*1000-(0.622/((101325/('Mini Canal'!$J$13*611*EXP(17.27*(data!$AG$3/(data!$AG$3+237.3))))))-1)*1000))/(1005*(((data!$AG$1+data!$AG$2)/2)-data!$AG$3)))))))) -> 213 | AT34: 1.27870555 | AU34: 1.591674847 | AV34: 1.793631362 | AW34: 1.70 | AX34: 15.5 | AY34: 17.2 | AZ34: 22.0 | BB34: 0 | BC34: 301 | BD34: 343 | BE34: 460 | BG34: 0 | BH34: 6.580727319 | BI34: 7.482644568 | BJ34: 10 | BM34: 0.0001956332036 | BN34: 0.0004470845885 | BO34: 1.766459433 | BP34: 2 | BR34: 11 | BT34: 12
A35: 14170421 | B35: 14 | C35: 170 | D35: 1 | E35: 42 | F35: 20 | G35: 0 | H35: 26 | I35: 30 | J35: 38.75581246 | K35: 821 | L35: 3908 | M35: 4249 | N35: 4552 | O35: 1.362 | P35: 1.1 | Q35: 1.1 | R35: 1.1 | S35: 123 | T35: 841 | U35: 914 | V35: 980 | W35: 21 | X35: 145 | Y35: 157 | Z35: 169 | AA35: 0.3311398464 | AB35: 4.713917975 | AC35: 5.259972098 | AD35: 5.822260987 | AE35: 164 | AF35: 183 | AG35: 192 | AH35: 0.98 | AI35: 0.98 | AJ35: 0.98 | AK35: 164 | AL35: 183 | AM35: 192 | AN35: 71 | AO35: 79 | AP35: 83 | AQ35: =(AK35/(IF((237.3*LN(('Mini Canal'!$J$13*EXP(17.27*(data!$AG$3/(data!$AG$3+237.3))))))/(17.27-LN(('Mini Canal'!$J$13*EXP(17.27*(data!$AG$3/(data!$AG$3+237.3))))))<((data!$AG$1+data!$AG$2)/2),1,IF(1/(1+((2258*((0.622/((101325/(1*611*EXP(17.27*(((data!$AG$1+data!$AG$2)/2)/(((data!$AG$1+data!$AG$2)/2)+237.3))))))-1)*1000-(0.622/((101325/('Mini Canal'!$J$13*611*EXP(17.27*(data!$AG$3/(data!$AG$3+237.3))))))-1)*1000))/(1005*(((data!$AG$1+data!$AG$2)/2)-data!$AG$3))))>1,1,1/(1+((2258*((0.622/((101325/(1*611*EXP(17.27*(((data!$AG$1+data!$AG$2)/2)/(((data!$AG$1+data!$AG$2)/2)+237.3))))))-1)*1000-(0.622/((101325/('Mini Canal'!$J$13*611*EXP(17.27*(data!$AG$3/(data!$AG$3+237.3))))))-1)*1000))/(1005*(((data!$AG$1+data!$AG$2)/2)-data!$AG$3)))))))) -> 164 | AR35: =(AL35/(IF((237.3*LN(('Mini Canal'!$J$13*EXP(17.27*(data!$AG$3/(data!$AG$3+237.3))))))/(17.27-LN(('Mini Canal'!$J$13*EXP(17.27*(data!$AG$3/(data!$AG$3+237.3))))))<((data!$AG$1+data!$AG$2)/2),1,IF(1/(1+((2258*((0.622/((101325/(1*611*EXP(17.27*(((data!$AG$1+data!$AG$2)/2)/(((data!$AG$1+data!$AG$2)/2)+237.3))))))-1)*1000-(0.622/((101325/('Mini Canal'!$J$13*611*EXP(17.27*(data!$AG$3/(data!$AG$3+237.3))))))-1)*1000))/(1005*(((data!$AG$1+data!$AG$2)/2)-data!$AG$3))))>1,1,1/(1+((2258*((0.622/((101325/(1*611*EXP(17.27*(((data!$AG$1+data!$AG$2)/2)/(((data!$AG$1+data!$AG$2)/2)+237.3))))))-1)*1000-(0.622/((101325/('Mini Canal'!$J$13*611*EXP(17.27*(data!$AG$3/(data!$AG$3+237.3))))))-1)*1000))/(1005*(((data!$AG$1+data!$AG$2)/2)-data!$AG$3)))))))) -> 183 | AS35: =(AM35/(IF((237.3*LN(('Mini Canal'!$J$13*EXP(17.27*(data!$AG$3/(data!$AG$3+237.3))))))/(17.27-LN(('Mini Canal'!$J$13*EXP(17.27*(data!$AG$3/(data!$AG$3+237.3))))))<((data!$AG$1+data!$AG$2)/2),1,IF(1/(1+((2258*((0.622/((101325/(1*611*EXP(17.27*(((data!$AG$1+data!$AG$2)/2)/(((data!$AG$1+data!$AG$2)/2)+237.3))))))-1)*1000-(0.622/((101325/('Mini Canal'!$J$13*611*EXP(17.27*(data!$AG$3/(data!$AG$3+237.3))))))-1)*1000))/(1005*(((data!$AG$1+data!$AG$2)/2)-data!$AG$3))))>1,1,1/(1+((2258*((0.622/((101325/(1*611*EXP(17.27*(((data!$AG$1+data!$AG$2)/2)/(((data!$AG$1+data!$AG$2)/2)+237.3))))))-1)*1000-(0.622/((101325/('Mini Canal'!$J$13*611*EXP(17.27*(data!$AG$3/(data!$AG$3+237.3))))))-1)*1000))/(1005*(((data!$AG$1+data!$AG$2)/2)-data!$AG$3)))))))) -> 192 | AT35: 1.76406087 | AU35: 2.043052891 | AV35: 2.186680542 | AW35: 2.27 | AX35: 15.5 | AY35: 17.2 | AZ35: 22.0 | BB35: 0 | BC35: 301 | BD35: 343 | BE35: 460 | BG35: 0 | BH35: 6.580727319 | BI35: 7.482644568 | BJ35: 10 | BM35: 0.001673095004 | BN35: 0.0003292952395 | BO35: 1.369178837 | BP35: 2 | BR35: 14 | BT35: 15
A36: 14190261 | B36: 14 | C36: 190 | D36: 1 | E36: 26 | F36: 10 | G36: 0 | H36: 26 | I36: 30 | J36: 39.4 | K36: 587 | L36: 2960 | M36: 3228 | N36: 3578 | O36: 1.362 | P36: 1.1 | Q36: 1.1 | R36: 1.1 | S36: 88 | T36: 637 | U36: 695 | V36: 770 | W36: 15 | X36: 110 | Y36: 120 | Z36: 132 | AA36: 0.2806836274 | AB36: 5.459049388 | AC36: 6.215376109 | AD36: 7.16474531 | AE36: 181 | AF36: 197 | AG36: 207 | AH36: 0.98 | AI36: 0.98 | AJ36: 0.98 | AK36: 181 | AL36: 197 | AM36: 207 | AN36: 78 | AO36: 85 | AP36: 89 | AQ36: =(AK36/(IF((237.3*LN(('Mini Canal'!$J$13*EXP(17.27*(data!$AG$3/(data!$AG$3+237.3))))))/(17.27-LN(('Mini Canal'!$J$13*EXP(17.27*(data!$AG$3/(data!$AG$3+237.3))))))<((data!$AG$1+data!$AG$2)/2),1,IF(1/(1+((2258*((0.622/((101325/(1*611*EXP(17.27*(((data!$AG$1+data!$AG$2)/2)/(((data!$AG$1+data!$AG$2)/2)+237.3))))))-1)*1000-(0.622/((101325/('Mini Canal'!$J$13*611*EXP(17.27*(data!$AG$3/(data!$AG$3+237.3))))))-1)*1000))/(1005*(((data!$AG$1+data!$AG$2)/2)-data!$AG$3))))>1,1,1/(1+((2258*((0.622/((101325/(1*611*EXP(17.27*(((data!$AG$1+data!$AG$2)/2)/(((data!$AG$1+data!$AG$2)/2)+237.3))))))-1)*1000-(0.622/((101325/('Mini Canal'!$J$13*611*EXP(17.27*(data!$AG$3/(data!$AG$3+237.3))))))-1)*1000))/(1005*(((data!$AG$1+data!$AG$2)/2)-data!$AG$3)))))))) -> 181 | AR36: =(AL36/(IF((237.3*LN(('Mini Canal'!$J$13*EXP(17.27*(data!$AG$3/(data!$AG$3+237.3))))))/(17.27-LN(('Mini Canal'!$J$13*EXP(17.27*(data!$AG$3/(data!$AG$3+237.3))))))<((data!$AG$1+data!$AG$2)/2),1,IF(1/(1+((2258*((0.622/((101325/(1*611*EXP(17.27*(((data!$AG$1+data!$AG$2)/2)/(((data!$AG$1+data!$AG$2)/2)+237.3))))))-1)*1000-(0.622/((101325/('Mini Canal'!$J$13*611*EXP(17.27*(data!$AG$3/(data!$AG$3+237.3))))))-1)*1000))/(1005*(((data!$AG$1+data!$AG$2)/2)-data!$AG$3))))>1,1,1/(1+((2258*((0.622/((101325/(1*611*EXP(17.27*(((data!$AG$1+data!$AG$2)/2)/(((data!$AG$1+data!$AG$2)/2)+237.3))))))-1)*1000-(0.622/((101325/('Mini Canal'!$J$13*611*EXP(17.27*(data!$AG$3/(data!$AG$3+237.3))))))-1)*1000))/(1005*(((data!$AG$1+data!$AG$2)/2)-data!$AG$3)))))))) -> 197 | AS36: =(AM36/(IF((237.3*LN(('Mini Canal'!$J$13*EXP(17.27*(data!$AG$3/(data!$AG$3+237.3))))))/(17.27-LN(('Mini Canal'!$J$13*EXP(17.27*(data!$AG$3/(data!$AG$3+237.3))))))<((data!$AG$1+data!$AG$2)/2),1,IF(1/(1+((2258*((0.622/((101325/(1*611*EXP(17.27*(((data!$AG$1+data!$AG$2)/2)/(((data!$AG$1+data!$AG$2)/2)+237.3))))))-1)*1000-(0.622/((101325/('Mini Canal'!$J$13*611*EXP(17.27*(data!$AG$3/(data!$AG$3+237.3))))))-1)*1000))/(1005*(((data!$AG$1+data!$AG$2)/2)-data!$AG$3))))>1,1,1/(1+((2258*((0.622/((101325/(1*611*EXP(17.27*(((data!$AG$1+data!$AG$2)/2)/(((data!$AG$1+data!$AG$2)/2)+237.3))))))-1)*1000-(0.622/((101325/('Mini Canal'!$J$13*611*EXP(17.27*(data!$AG$3/(data!$AG$3+237.3))))))-1)*1000))/(1005*(((data!$AG$1+data!$AG$2)/2)-data!$AG$3)))))))) -> 207 | AT36: 3.270013371 | AU36: 3.716907654 | AV36: 3.980625438 | AW36: 1.27 | AX36: 17.8 | AY36: 19.7 | AZ36: 25.7 | BB36: 0 | BC36: 343 | BD36: 391 | BE36: 536 | BG36: 0 | BH36: 6.442201121 | BI36: 7.321401284 | BJ36: 10 | BM36: 0.001450187971 | BN36: 0.0003783163265 | BO36: 1.486891044 | BP36: 2 | BR36: 19 | BT36: 20
A37: 14190341 | B37: 14 | C37: 190 | D37: 1 | E37: 34 | F37: 15 | G37: 0 | H37: 26 | I37: 30 | J37: 39.4 | K37: 773 | L37: 3801 | M37: 4171 | N37: 4539 | O37: 1.362 | P37: 1.1 | Q37: 1.1 | R37: 1.1 | S37: 115 | T37: 818 | U37: 898 | V37: 977 | W37: 20 | X37: 141 | Y37: 154 | Z37: 168 | AA37: 0.1355475634 | AB37: 4.301466146 | AC37: 5.028723153 | AD37: 5.866699857 | AE37: 196 | AF37: 224 | AG37: 243 | AH37: 0.98 | AI37: 0.98 | AJ37: 0.98 | AK37: 196 | AL37: 224 | AM37: 243 | AN37: 84 | AO37: 96 | AP37: 104 | AQ37: =(AK37/(IF((237.3*LN(('Mini Canal'!$J$13*EXP(17.27*(data!$AG$3/(data!$AG$3+237.3))))))/(17.27-LN(('Mini Canal'!$J$13*EXP(17.27*(data!$AG$3/(data!$AG$3+237.3))))))<((data!$AG$1+data!$AG$2)/2),1,IF(1/(1+((2258*((0.622/((101325/(1*611*EXP(17.27*(((data!$AG$1+data!$AG$2)/2)/(((data!$AG$1+data!$AG$2)/2)+237.3))))))-1)*1000-(0.622/((101325/('Mini Canal'!$J$13*611*EXP(17.27*(data!$AG$3/(data!$AG$3+237.3))))))-1)*1000))/(1005*(((data!$AG$1+data!$AG$2)/2)-data!$AG$3))))>1,1,1/(1+((2258*((0.622/((101325/(1*611*EXP(17.27*(((data!$AG$1+data!$AG$2)/2)/(((data!$AG$1+data!$AG$2)/2)+237.3))))))-1)*1000-(0.622/((101325/('Mini Canal'!$J$13*611*EXP(17.27*(data!$AG$3/(data!$AG$3+237.3))))))-1)*1000))/(1005*(((data!$AG$1+data!$AG$2)/2)-data!$AG$3)))))))) -> 196 | AR37: =(AL37/(IF((237.3*LN(('Mini Canal'!$J$13*EXP(17.27*(data!$AG$3/(data!$AG$3+237.3))))))/(17.27-LN(('Mini Canal'!$J$13*EXP(17.27*(data!$AG$3/(data!$AG$3+237.3))))))<((data!$AG$1+data!$AG$2)/2),1,IF(1/(1+((2258*((0.622/((101325/(1*611*EXP(17.27*(((data!$AG$1+data!$AG$2)/2)/(((data!$AG$1+data!$AG$2)/2)+237.3))))))-1)*1000-(0.622/((101325/('Mini Canal'!$J$13*611*EXP(17.27*(data!$AG$3/(data!$AG$3+237.3))))))-1)*1000))/(1005*(((data!$AG$1+data!$AG$2)/2)-data!$AG$3))))>1,1,1/(1+((2258*((0.622/((101325/(1*611*EXP(17.27*(((data!$AG$1+data!$AG$2)/2)/(((data!$AG$1+data!$AG$2)/2)+237.3))))))-1)*1000-(0.622/((101325/('Mini Canal'!$J$13*611*EXP(17.27*(data!$AG$3/(data!$AG$3+237.3))))))-1)*1000))/(1005*(((data!$AG$1+data!$AG$2)/2)-data!$AG$3)))))))) -> 224 | AS37: =(AM37/(IF((237.3*LN(('Mini Canal'!$J$13*EXP(17.27*(data!$AG$3/(data!$AG$3+237.3))))))/(17.27-LN(('Mini Canal'!$J$13*EXP(17.27*(data!$AG$3/(data!$AG$3+237.3))))))<((data!$AG$1+data!$AG$2)/2),1,IF(1/(1+((2258*((0.622/((101325/(1*611*EXP(17.27*(((data!$AG$1+data!$AG$2)/2)/(((data!$AG$1+data!$AG$2)/2)+237.3))))))-1)*1000-(0.622/((101325/('Mini Canal'!$J$13*611*EXP(17.27*(data!$AG$3/(data!$AG$3+237.3))))))-1)*1000))/(1005*(((data!$AG$1+data!$AG$2)/2)-data!$AG$3))))>1,1,1/(1+((2258*((0.622/((101325/(1*611*EXP(17.27*(((data!$AG$1+data!$AG$2)/2)/(((data!$AG$1+data!$AG$2)/2)+237.3))))))-1)*1000-(0.622/((101325/('Mini Canal'!$J$13*611*EXP(17.27*(data!$AG$3/(data!$AG$3+237.3))))))-1)*1000))/(1005*(((data!$AG$1+data!$AG$2)/2)-data!$AG$3)))))))) -> 243 | AT37: 1.718962016 | AU37: 2.177479361 | AV37: 2.509064549 | AW37: 1.90 | AX37: 17.8 | AY37: 19.7 | AZ37: 25.7 | BB37: 0 | BC37: 343 | BD37: 391 | BE37: 536 | BG37: 0 | BH37: 6.442201121 | BI37: 7.321401284 | BJ37: 10 | BM37: 0.0001956332036 | BN37: 0.0004470845885 | BO37: 1.766459433 | BP37: 2
A38: 14190421 | B38: 14 | C38: 190 | D38: 1 | E38: 42 | F38: 20 | G38: 0 | H38: 26 | I38: 30 | J38: 39.4 | K38: 958 | L38: 4485 | M38: 4897 | N38: 5310 | O38: 1.362 | P38: 1.1 | Q38: 1.1 | R38: 1.1 | S38: 143 | T38: 965 | U38: 1054 | V38: 1143 | W38: 25 | X38: 166 | Y38: 181 | Z38: 197 | AA38: 0.4744399626 | AB38: 6.398879805 | AC38: 7.209133259 | AD38: 8.102170315 | AE38: 187 | AF38: 210 | AG38: 224 | AH38: 0.98 | AI38: 0.98 | AJ38: 0.98 | AK38: 187 | AL38: 210 | AM38: 224 | AN38: 80 | AO38: 90 | AP38: 96 | AQ38: =(AK38/(IF((237.3*LN(('Mini Canal'!$J$13*EXP(17.27*(data!$AG$3/(data!$AG$3+237.3))))))/(17.27-LN(('Mini Canal'!$J$13*EXP(17.27*(data!$AG$3/(data!$AG$3+237.3))))))<((data!$AG$1+data!$AG$2)/2),1,IF(1/(1+((2258*((0.622/((101325/(1*611*EXP(17.27*(((data!$AG$1+data!$AG$2)/2)/(((data!$AG$1+data!$AG$2)/2)+237.3))))))-1)*1000-(0.622/((101325/('Mini Canal'!$J$13*611*EXP(17.27*(data!$AG$3/(data!$AG$3+237.3))))))-1)*1000))/(1005*(((data!$AG$1+data!$AG$2)/2)-data!$AG$3))))>1,1,1/(1+((2258*((0.622/((101325/(1*611*EXP(17.27*(((data!$AG$1+data!$AG$2)/2)/(((data!$AG$1+data!$AG$2)/2)+237.3))))))-1)*1000-(0.622/((101325/('Mini Canal'!$J$13*611*EXP(17.27*(data!$AG$3/(data!$AG$3+237.3))))))-1)*1000))/(1005*(((data!$AG$1+data!$AG$2)/2)-data!$AG$3)))))))) -> 187 | AR38: =(AL38/(IF((237.3*LN(('Mini Canal'!$J$13*EXP(17.27*(data!$AG$3/(data!$AG$3+237.3))))))/(17.27-LN(('Mini Canal'!$J$13*EXP(17.27*(data!$AG$3/(data!$AG$3+237.3))))))<((data!$AG$1+data!$AG$2)/2),1,IF(1/(1+((2258*((0.622/((101325/(1*611*EXP(17.27*(((data!$AG$1+data!$AG$2)/2)/(((data!$AG$1+data!$AG$2)/2)+237.3))))))-1)*1000-(0.622/((101325/('Mini Canal'!$J$13*611*EXP(17.27*(data!$AG$3/(data!$AG$3+237.3))))))-1)*1000))/(1005*(((data!$AG$1+data!$AG$2)/2)-data!$AG$3))))>1,1,1/(1+((2258*((0.622/((101325/(1*611*EXP(17.27*(((data!$AG$1+data!$AG$2)/2)/(((data!$AG$1+data!$AG$2)/2)+237.3))))))-1)*1000-(0.622/((101325/('Mini Canal'!$J$13*611*EXP(17.27*(data!$AG$3/(data!$AG$3+237.3))))))-1)*1000))/(1005*(((data!$AG$1+data!$AG$2)/2)-data!$AG$3)))))))) -> 210 | AS38: =(AM38/(IF((237.3*LN(('Mini Canal'!$J$13*EXP(17.27*(data!$AG$3/(data!$AG$3+237.3))))))/(17.27-LN(('Mini Canal'!$J$13*EXP(17.27*(data!$AG$3/(data!$AG$3+237.3))))))<((data!$AG$1+data!$AG$2)/2),1,IF(1/(1+((2258*((0.622/((101325/(1*611*EXP(17.27*(((data!$AG$1+data!$AG$2)/2)/(((data!$AG$1+data!$AG$2)/2)+237.3))))))-1)*1000-(0.622/((101325/('Mini Canal'!$J$13*611*EXP(17.27*(data!$AG$3/(data!$AG$3+237.3))))))-1)*1000))/(1005*(((data!$AG$1+data!$AG$2)/2)-data!$AG$3))))>1,1,1/(1+((2258*((0.622/((101325/(1*611*EXP(17.27*(((data!$AG$1+data!$AG$2)/2)/(((data!$AG$1+data!$AG$2)/2)+237.3))))))-1)*1000-(0.622/((101325/('Mini Canal'!$J$13*611*EXP(17.27*(data!$AG$3/(data!$AG$3+237.3))))))-1)*1000))/(1005*(((data!$AG$1+data!$AG$2)/2)-data!$AG$3)))))))) -> 224 | AT38: 2.343238948 | AU38: 2.755171725 | AV38: 3.010898975 | AW38: 2.53 | AX38: 17.8 | AY38: 19.7 | AZ38: 25.7 | BB38: 0 | BC38: 343 | BD38: 391 | BE38: 536 | BG38: 0 | BH38: 6.442201121 | BI38: 7.321401284 | BJ38: 10 | BM38: 0.001673095004 | BN38: 0.0003292952395 | BO38: 1.369178837 | BP38: 2
A39: 14210261 | B39: 14 | C39: 210 | D39: 1 | E39: 26 | F39: 10 | G39: 0 | H39: 26 | I39: 30 | J39: 39.42528036 | K39: 644 | L39: 3017 | M39: 3285 | N39: 3636 | O39: 1.362 | P39: 1.1 | Q39: 1.1 | R39: 1.1 | S39: 96 | T39: 649 | U39: 707 | V39: 782 | W39: 17 | X39: 112 | Y39: 122 | Z39: 135 | AA39: 0.3765565624 | AB39: 6.241105142 | AC39: 7.089775308 | AD39: 8.24512322 | AE39: 204 | AF39: 222 | AG39: 233 | AH39: 0.98 | AI39: 0.98 | AJ39: 0.98 | AK39: 204 | AL39: 222 | AM39: 233 | AN39: 88 | AO39: 95 | AP39: 100 | AQ39: =(AK39/(IF((237.3*LN(('Mini Canal'!$J$13*EXP(17.27*(data!$AG$3/(data!$AG$3+237.3))))))/(17.27-LN(('Mini Canal'!$J$13*EXP(17.27*(data!$AG$3/(data!$AG$3+237.3))))))<((data!$AG$1+data!$AG$2)/2),1,IF(1/(1+((2258*((0.622/((101325/(1*611*EXP(17.27*(((data!$AG$1+data!$AG$2)/2)/(((data!$AG$1+data!$AG$2)/2)+237.3))))))-1)*1000-(0.622/((101325/('Mini Canal'!$J$13*611*EXP(17.27*(data!$AG$3/(data!$AG$3+237.3))))))-1)*1000))/(1005*(((data!$AG$1+data!$AG$2)/2)-data!$AG$3))))>1,1,1/(1+((2258*((0.622/((101325/(1*611*EXP(17.27*(((data!$AG$1+data!$AG$2)/2)/(((data!$AG$1+data!$AG$2)/2)+237.3))))))-1)*1000-(0.622/((101325/('Mini Canal'!$J$13*611*EXP(17.27*(data!$AG$3/(data!$AG$3+237.3))))))-1)*1000))/(1005*(((data!$AG$1+data!$AG$2)/2)-data!$AG$3)))))))) -> 204 | AR39: =(AL39/(IF((237.3*LN(('Mini Canal'!$J$13*EXP(17.27*(data!$AG$3/(data!$AG$3+237.3))))))/(17.27-LN(('Mini Canal'!$J$13*EXP(17.27*(data!$AG$3/(data!$AG$3+237.3))))))<((data!$AG$1+data!$AG$2)/2),1,IF(1/(1+((2258*((0.622/((101325/(1*611*EXP(17.27*(((data!$AG$1+data!$AG$2)/2)/(((data!$AG$1+data!$AG$2)/2)+237.3))))))-1)*1000-(0.622/((101325/('Mini Canal'!$J$13*611*EXP(17.27*(data!$AG$3/(data!$AG$3+237.3))))))-1)*1000))/(1005*(((data!$AG$1+data!$AG$2)/2)-data!$AG$3))))>1,1,1/(1+((2258*((0.622/((101325/(1*611*EXP(17.27*(((data!$AG$1+data!$AG$2)/2)/(((data!$AG$1+data!$AG$2)/2)+237.3))))))-1)*1000-(0.622/((101325/('Mini Canal'!$J$13*611*EXP(17.27*(data!$AG$3/(data!$AG$3+237.3))))))-1)*1000))/(1005*(((data!$AG$1+data!$AG$2)/2)-data!$AG$3)))))))) -> 222 | AS39: =(AM39/(IF((237.3*LN(('Mini Canal'!$J$13*EXP(17.27*(data!$AG$3/(data!$AG$3+237.3))))))/(17.27-LN(('Mini Canal'!$J$13*EXP(17.27*(data!$AG$3/(data!$AG$3+237.3))))))<((data!$AG$1+data!$AG$2)/2),1,IF(1/(1+((2258*((0.622/((101325/(1*611*EXP(17.27*(((data!$AG$1+data!$AG$2)/2)/(((data!$AG$1+data!$AG$2)/2)+237.3))))))-1)*1000-(0.622/((101325/('Mini Canal'!$J$13*611*EXP(17.27*(data!$AG$3/(data!$AG$3+237.3))))))-1)*1000))/(1005*(((data!$AG$1+data!$AG$2)/2)-data!$AG$3))))>1,1,1/(1+((2258*((0.622/((101325/(1*611*EXP(17.27*(((data!$AG$1+data!$AG$2)/2)/(((data!$AG$1+data!$AG$2)/2)+237.3))))))-1)*1000-(0.622/((101325/('Mini Canal'!$J$13*611*EXP(17.27*(data!$AG$3/(data!$AG$3+237.3))))))-1)*1000))/(1005*(((data!$AG$1+data!$AG$2)/2)-data!$AG$3)))))))) -> 233 | AT39: 4.356669418 | AU39: 4.883091659 | AV39: 5.271045966 | AW39: 1.40 | AX39: 17.8 | AY39: 19.7 | AZ39: 25.7 | BB39: 0 | BC39: 343 | BD39: 391 | BE39: 536 | BG39: 0 | BH39: 6.442201121 | BI39: 7.321401284 | BJ39: 10 | BM39: 0.001450187971 | BN39: 0.0003783163265 | BO39: 1.486891044 | BP39: 2
A40: 14210341 | B40: 14 | C40: 210 | D40: 1 | E40: 34 | F40: 15 | G40: 0 | H40: 26 | I40: 30 | J40: 39.42528036 | K40: 849 | L40: 3877 | M40: 4247 | N40: 4614 | O40: 1.362 | P40: 1.1 | Q40: 1.1 | R40: 1.1 | S40: 127 | T40: 834 | U40: 914 | V40: 993 | W40: 22 | X40: 143 | Y40: 157 | Z40: 171 | AA40: 0.1784816696 | AB40: 4.902211304 | AC40: 5.783903163 | AD40: 6.728430354 | AE40: 220 | AF40: 252 | AG40: 274 | AH40: 0.98 | AI40: 0.98 | AJ40: 0.98 | AK40: 220 | AL40: 252 | AM40: 274 | AN40: 95 | AO40: 108 | AP40: 118 | AQ40: =(AK40/(IF((237.3*LN(('Mini Canal'!$J$13*EXP(17.27*(data!$AG$3/(data!$AG$3+237.3))))))/(17.27-LN(('Mini Canal'!$J$13*EXP(17.27*(data!$AG$3/(data!$AG$3+237.3))))))<((data!$AG$1+data!$AG$2)/2),1,IF(1/(1+((2258*((0.622/((101325/(1*611*EXP(17.27*(((data!$AG$1+data!$AG$2)/2)/(((data!$AG$1+data!$AG$2)/2)+237.3))))))-1)*1000-(0.622/((101325/('Mini Canal'!$J$13*611*EXP(17.27*(data!$AG$3/(data!$AG$3+237.3))))))-1)*1000))/(1005*(((data!$AG$1+data!$AG$2)/2)-data!$AG$3))))>1,1,1/(1+((2258*((0.622/((101325/(1*611*EXP(17.27*(((data!$AG$1+data!$AG$2)/2)/(((data!$AG$1+data!$AG$2)/2)+237.3))))))-1)*1000-(0.622/((101325/('Mini Canal'!$J$13*611*EXP(17.27*(data!$AG$3/(data!$AG$3+237.3))))))-1)*1000))/(1005*(((data!$AG$1+data!$AG$2)/2)-data!$AG$3)))))))) -> 220 | AR40: =(AL40/(IF((237.3*LN(('Mini Canal'!$J$13*EXP(17.27*(data!$AG$3/(data!$AG$3+237.3))))))/(17.27-LN(('Mini Canal'!$J$13*EXP(17.27*(data!$AG$3/(data!$AG$3+237.3))))))<((data!$AG$1+data!$AG$2)/2),1,IF(1/(1+((2258*((0.622/((101325/(1*611*EXP(17.27*(((data!$AG$1+data!$AG$2)/2)/(((data!$AG$1+data!$AG$2)/2)+237.3))))))-1)*1000-(0.622/((101325/('Mini Canal'!$J$13*611*EXP(17.27*(data!$AG$3/(data!$AG$3+237.3))))))-1)*1000))/(1005*(((data!$AG$1+data!$AG$2)/2)-data!$AG$3))))>1,1,1/(1+((2258*((0.622/((101325/(1*611*EXP(17.27*(((data!$AG$1+data!$AG$2)/2)/(((data!$AG$1+data!$AG$2)/2)+237.3))))))-1)*1000-(0.622/((101325/('Mini Canal'!$J$13*611*EXP(17.27*(data!$AG$3/(data!$AG$3+237.3))))))-1)*1000))/(1005*(((data!$AG$1+data!$AG$2)/2)-data!$AG$3)))))))) -> 252 | AS40: =(AM40/(IF((237.3*LN(('Mini Canal'!$J$13*EXP(17.27*(data!$AG$3/(data!$AG$3+237.3))))))/(17.27-LN(('Mini Canal'!$J$13*EXP(17.27*(data!$AG$3/(data!$AG$3+237.3))))))<((data!$AG$1+data!$AG$2)/2),1,IF(1/(1+((2258*((0.622/((101325/(1*611*EXP(17.27*(((data!$AG$1+data!$AG$2)/2)/(((data!$AG$1+data!$AG$2)/2)+237.3))))))-1)*1000-(0.622/((101325/('Mini Canal'!$J$13*611*EXP(17.27*(data!$AG$3/(data!$AG$3+237.3))))))-1)*1000))/(1005*(((data!$AG$1+data!$AG$2)/2)-data!$AG$3))))>1,1,1/(1+((2258*((0.622/((101325/(1*611*EXP(17.27*(((data!$AG$1+data!$AG$2)/2)/(((data!$AG$1+data!$AG$2)/2)+237.3))))))-1)*1000-(0.622/((101325/('Mini Canal'!$J$13*611*EXP(17.27*(data!$AG$3/(data!$AG$3+237.3))))))-1)*1000))/(1005*(((data!$AG$1+data!$AG$2)/2)-data!$AG$3)))))))) -> 274 | AT40: 2.376420213 | AU40: 2.982187617 | AV40: 3.488392898 | AW40: 2.10 | AX40: 17.8 | AY40: 19.7 | AZ40: 25.7 | BB40: 0 | BC40: 343 | BD40: 391 | BE40: 536 | BG40: 0 | BH40: 6.442201121 | BI40: 7.321401284 | BJ40: 10 | BM40: 0.0001956332036 | BN40: 0.0004470845885 | BO40: 1.766459433 | BP40: 2 | BR40: 14 | BT40: 14 | BV40: 26
A41: 14210421 | B41: 14 | C41: 210 | D41: 1 | E41: 42 | F41: 20 | G41: 0 | H41: 26 | I41: 30 | J41: 39.42528036 | K41: 1052 | L41: 4579 | M41: 4990 | N41: 5404 | O41: 1.362 | P41: 1.1 | Q41: 1.1 | R41: 1.1 | S41: 157 | T41: 985 | U41: 1074 | V41: 1163 | W41: 27 | X41: 169 | Y41: 185 | Z41: 200 | AA41: 0.5870598263 | AB41: 7.295292343 | AC41: 8.26329017 | AD41: 9.200332914 | AE41: 187 | AF41: 210 | AG41: 224 | AH41: 0.98 | AI41: 0.98 | AJ41: 0.98 | AK41: 187 | AL41: 210 | AM41: 224 | AN41: 80 | AO41: 90 | AP41: 96 | AQ41: =(AK41/(IF((237.3*LN(('Mini Canal'!$J$13*EXP(17.27*(data!$AG$3/(data!$AG$3+237.3))))))/(17.27-LN(('Mini Canal'!$J$13*EXP(17.27*(data!$AG$3/(data!$AG$3+237.3))))))<((data!$AG$1+data!$AG$2)/2),1,IF(1/(1+((2258*((0.622/((101325/(1*611*EXP(17.27*(((data!$AG$1+data!$AG$2)/2)/(((data!$AG$1+data!$AG$2)/2)+237.3))))))-1)*1000-(0.622/((101325/('Mini Canal'!$J$13*611*EXP(17.27*(data!$AG$3/(data!$AG$3+237.3))))))-1)*1000))/(1005*(((data!$AG$1+data!$AG$2)/2)-data!$AG$3))))>1,1,1/(1+((2258*((0.622/((101325/(1*611*EXP(17.27*(((data!$AG$1+data!$AG$2)/2)/(((data!$AG$1+data!$AG$2)/2)+237.3))))))-1)*1000-(0.622/((101325/('Mini Canal'!$J$13*611*EXP(17.27*(data!$AG$3/(data!$AG$3+237.3))))))-1)*1000))/(1005*(((data!$AG$1+data!$AG$2)/2)-data!$AG$3)))))))) -> 187 | AR41: =(AL41/(IF((237.3*LN(('Mini Canal'!$J$13*EXP(17.27*(data!$AG$3/(data!$AG$3+237.3))))))/(17.27-LN(('Mini Canal'!$J$13*EXP(17.27*(data!$AG$3/(data!$AG$3+237.3))))))<((data!$AG$1+data!$AG$2)/2),1,IF(1/(1+((2258*((0.622/((101325/(1*611*EXP(17.27*(((data!$AG$1+data!$AG$2)/2)/(((data!$AG$1+data!$AG$2)/2)+237.3))))))-1)*1000-(0.622/((101325/('Mini Canal'!$J$13*611*EXP(17.27*(data!$AG$3/(data!$AG$3+237.3))))))-1)*1000))/(1005*(((data!$AG$1+data!$AG$2)/2)-data!$AG$3))))>1,1,1/(1+((2258*((0.622/((101325/(1*611*EXP(17.27*(((data!$AG$1+data!$AG$2)/2)/(((data!$AG$1+data!$AG$2)/2)+237.3))))))-1)*1000-(0.622/((101325/('Mini Canal'!$J$13*611*EXP(17.27*(data!$AG$3/(data!$AG$3+237.3))))))-1)*1000))/(1005*(((data!$AG$1+data!$AG$2)/2)-data!$AG$3)))))))) -> 210 | AS41: =(AM41/(IF((237.3*LN(('Mini Canal'!$J$13*EXP(17.27*(data!$AG$3/(data!$AG$3+237.3))))))/(17.27-LN(('Mini Canal'!$J$13*EXP(17.27*(data!$AG$3/(data!$AG$3+237.3))))))<((data!$AG$1+data!$AG$2)/2),1,IF(1/(1+((2258*((0.622/((101325/(1*611*EXP(17.27*(((data!$AG$1+data!$AG$2)/2)/(((data!$AG$1+data!$AG$2)/2)+237.3))))))-1)*1000-(0.622/((101325/('Mini Canal'!$J$13*611*EXP(17.27*(data!$AG$3/(data!$AG$3+237.3))))))-1)*1000))/(1005*(((data!$AG$1+data!$AG$2)/2)-data!$AG$3))))>1,1,1/(1+((2258*((0.622/((101325/(1*611*EXP(17.27*(((data!$AG$1+data!$AG$2)/2)/(((data!$AG$1+data!$AG$2)/2)+237.3))))))-1)*1000-(0.622/((101325/('Mini Canal'!$J$13*611*EXP(17.27*(data!$AG$3/(data!$AG$3+237.3))))))-1)*1000))/(1005*(((data!$AG$1+data!$AG$2)/2)-data!$AG$3)))))))) -> 224 | AT41: 2.607770332 | AU41: 3.065995446 | AV41: 3.35043862 | AW41: 2.80 | AX41: 17.8 | AY41: 19.7 | AZ41: 25.7 | BB41: 0 | BC41: 343 | BD41: 391 | BE41: 536 | BG41: 0 | BH41: 6.442201121 | BI41: 7.321401284 | BJ41: 10 | BM41: 0.001673095004 | BN41: 0.0003292952395 | BO41: 1.369178837 | BP41: 2 | BR41: 18 | BT41: 18 | BV41: 34
A42: 14230261 | B42: 14 | C42: 230 | D42: 1 | E42: 26 | F42: 10 | G42: 0 | H42: 26 | I42: 30 | J42: 40.00519983 | K42: 717 | L42: 3345 | M42: 3658 | N42: 4100 | O42: 1.362 | P42: 1.1 | Q42: 1.1 | R42: 1.1 | S42: 107 | T42: 720 | U42: 787 | V42: 882 | W42: 18 | X42: 124 | Y42: 135 | Z42: 152 | AA42: 0.4517922918 | AB42: 8.000637891 | AC42: 9.081273939 | AD42: 10.83774626 | AE42: 223 | AF42: 244 | AG42: 259 | AH42: 0.98 | AI42: 0.98 | AJ42: 0.98 | AK42: 223 | AL42: 244 | AM42: 259 | AN42: 96 | AO42: 105 | AP42: 111 | AQ42: =(AK42/(IF((237.3*LN(('Mini Canal'!$J$13*EXP(17.27*(data!$AG$3/(data!$AG$3+237.3))))))/(17.27-LN(('Mini Canal'!$J$13*EXP(17.27*(data!$AG$3/(data!$AG$3+237.3))))))<((data!$AG$1+data!$AG$2)/2),1,IF(1/(1+((2258*((0.622/((101325/(1*611*EXP(17.27*(((data!$AG$1+data!$AG$2)/2)/(((data!$AG$1+data!$AG$2)/2)+237.3))))))-1)*1000-(0.622/((101325/('Mini Canal'!$J$13*611*EXP(17.27*(data!$AG$3/(data!$AG$3+237.3))))))-1)*1000))/(1005*(((data!$AG$1+data!$AG$2)/2)-data!$AG$3))))>1,1,1/(1+((2258*((0.622/((101325/(1*611*EXP(17.27*(((data!$AG$1+data!$AG$2)/2)/(((data!$AG$1+data!$AG$2)/2)+237.3))))))-1)*1000-(0.622/((101325/('Mini Canal'!$J$13*611*EXP(17.27*(data!$AG$3/(data!$AG$3+237.3))))))-1)*1000))/(1005*(((data!$AG$1+data!$AG$2)/2)-data!$AG$3)))))))) -> 223 | AR42: =(AL42/(IF((237.3*LN(('Mini Canal'!$J$13*EXP(17.27*(data!$AG$3/(data!$AG$3+237.3))))))/(17.27-LN(('Mini Canal'!$J$13*EXP(17.27*(data!$AG$3/(data!$AG$3+237.3))))))<((data!$AG$1+data!$AG$2)/2),1,IF(1/(1+((2258*((0.622/((101325/(1*611*EXP(17.27*(((data!$AG$1+data!$AG$2)/2)/(((data!$AG$1+data!$AG$2)/2)+237.3))))))-1)*1000-(0.622/((101325/('Mini Canal'!$J$13*611*EXP(17.27*(data!$AG$3/(data!$AG$3+237.3))))))-1)*1000))/(1005*(((data!$AG$1+data!$AG$2)/2)-data!$AG$3))))>1,1,1/(1+((2258*((0.622/((101325/(1*611*EXP(17.27*(((data!$AG$1+data!$AG$2)/2)/(((data!$AG$1+data!$AG$2)/2)+237.3))))))-1)*1000-(0.622/((101325/('Mini Canal'!$J$13*611*EXP(17.27*(data!$AG$3/(data!$AG$3+237.3))))))-1)*1000))/(1005*(((data!$AG$1+data!$AG$2)/2)-data!$AG$3)))))))) -> 244 | AS42: =(AM42/(IF((237.3*LN(('Mini Canal'!$J$13*EXP(17.27*(data!$AG$3/(data!$AG$3+237.3))))))/(17.27-LN(('Mini Canal'!$J$13*EXP(17.27*(data!$AG$3/(data!$AG$3+237.3))))))<((data!$AG$1+data!$AG$2)/2),1,IF(1/(1+((2258*((0.622/((101325/(1*611*EXP(17.27*(((data!$AG$1+data!$AG$2)/2)/(((data!$AG$1+data!$AG$2)/2)+237.3))))))-1)*1000-(0.622/((101325/('Mini Canal'!$J$13*611*EXP(17.27*(data!$AG$3/(data!$AG$3+237.3))))))-1)*1000))/(1005*(((data!$AG$1+data!$AG$2)/2)-data!$AG$3))))>1,1,1/(1+((2258*((0.622/((101325/(1*611*EXP(17.27*(((data!$AG$1+data!$AG$2)/2)/(((data!$AG$1+data!$AG$2)/2)+237.3))))))-1)*1000-(0.622/((101325/('Mini Canal'!$J$13*611*EXP(17.27*(data!$AG$3/(data!$AG$3+237.3))))))-1)*1000))/(1005*(((data!$AG$1+data!$AG$2)/2)-data!$AG$3)))))))) -> 259 | AT42: 5.463551216 | AU42: 6.244098193 | AV42: 6.783223054 | AW42: 1.53 | AX42: 20.0 | AY42: 22.2 | AZ42: 29.3 | BB42: 0 | BC42: 385 | BD42: 438 | BE42: 613 | BG42: 0 | BH42: 6.324513728 | BI42: 7.185399651 | BJ42: 10 | BM42: 0.001450187971 | BN42: 0.0003783163265 | BO42: 1.486891044 | BP42: 2 | BR42: 26 | BT42: 23 | BV42: 42
A43: 14230341 | B43: 14 | C43: 230 | D43: 1 | E43: 34 | F43: 15 | G43: 0 | H43: 26 | I43: 30 | J43: 40.00519983 | K43: 945 | L43: 4338 | M43: 4772 | N43: 5248 | O43: 1.362 | P43: 1.1 | Q43: 1.1 | R43: 1.1 | S43: 141 | T43: 934 | U43: 1027 | V43: 1129 | W43: 24 | X43: 161 | Y43: 177 | Z43: 194 | AA43: 0.2292148508 | AB43: 6.654143749 | AC43: 7.86942833 | AD43: 9.256834836 | AE43: 239 | AF43: 275 | AG43: 304 | AH43: 0.98 | AI43: 0.98 | AJ43: 0.98 | AK43: 239 | AL43: 275 | AM43: 304 | AN43: 103 | AO43: 118 | AP43: 131 | AQ43: =(AK43/(IF((237.3*LN(('Mini Canal'!$J$13*EXP(17.27*(data!$AG$3/(data!$AG$3+237.3))))))/(17.27-LN(('Mini Canal'!$J$13*EXP(17.27*(data!$AG$3/(data!$AG$3+237.3))))))<((data!$AG$1+data!$AG$2)/2),1,IF(1/(1+((2258*((0.622/((101325/(1*611*EXP(17.27*(((data!$AG$1+data!$AG$2)/2)/(((data!$AG$1+data!$AG$2)/2)+237.3))))))-1)*1000-(0.622/((101325/('Mini Canal'!$J$13*611*EXP(17.27*(data!$AG$3/(data!$AG$3+237.3))))))-1)*1000))/(1005*(((data!$AG$1+data!$AG$2)/2)-data!$AG$3))))>1,1,1/(1+((2258*((0.622/((101325/(1*611*EXP(17.27*(((data!$AG$1+data!$AG$2)/2)/(((data!$AG$1+data!$AG$2)/2)+237.3))))))-1)*1000-(0.622/((101325/('Mini Canal'!$J$13*611*EXP(17.27*(data!$AG$3/(data!$AG$3+237.3))))))-1)*1000))/(1005*(((data!$AG$1+data!$AG$2)/2)-data!$AG$3)))))))) -> 239 | AR43: =(AL43/(IF((237.3*LN(('Mini Canal'!$J$13*EXP(17.27*(data!$AG$3/(data!$AG$3+237.3))))))/(17.27-LN(('Mini Canal'!$J$13*EXP(17.27*(data!$AG$3/(data!$AG$3+237.3))))))<((data!$AG$1+data!$AG$2)/2),1,IF(1/(1+((2258*((0.622/((101325/(1*611*EXP(17.27*(((data!$AG$1+data!$AG$2)/2)/(((data!$AG$1+data!$AG$2)/2)+237.3))))))-1)*1000-(0.622/((101325/('Mini Canal'!$J$13*611*EXP(17.27*(data!$AG$3/(data!$AG$3+237.3))))))-1)*1000))/(1005*(((data!$AG$1+data!$AG$2)/2)-data!$AG$3))))>1,1,1/(1+((2258*((0.622/((101325/(1*611*EXP(17.27*(((data!$AG$1+data!$AG$2)/2)/(((data!$AG$1+data!$AG$2)/2)+237.3))))))-1)*1000-(0.622/((101325/('Mini Canal'!$J$13*611*EXP(17.27*(data!$AG$3/(data!$AG$3+237.3))))))-1)*1000))/(1005*(((data!$AG$1+data!$AG$2)/2)-data!$AG$3)))))))) -> 275 | AS43: =(AM43/(IF((237.3*LN(('Mini Canal'!$J$13*EXP(17.27*(data!$AG$3/(data!$AG$3+237.3))))))/(17.27-LN(('Mini Canal'!$J$13*EXP(17.27*(data!$AG$3/(data!$AG$3+237.3))))))<((data!$AG$1+data!$AG$2)/2),1,IF(1/(1+((2258*((0.622/((101325/(1*611*EXP(17.27*(((data!$AG$1+data!$AG$2)/2)/(((data!$AG$1+data!$AG$2)/2)+237.3))))))-1)*1000-(0.622/((101325/('Mini Canal'!$J$13*611*EXP(17.27*(data!$AG$3/(data!$AG$3+237.3))))))-1)*1000))/(1005*(((data!$AG$1+data!$AG$2)/2)-data!$AG$3))))>1,1,1/(1+((2258*((0.622/((101325/(1*611*EXP(17.27*(((data!$AG$1+data!$AG$2)/2)/(((data!$AG$1+data!$AG$2)/2)+237.3))))))-1)*1000-(0.622/((101325/('Mini Canal'!$J$13*611*EXP(17.27*(data!$AG$3/(data!$AG$3+237.3))))))-1)*1000))/(1005*(((data!$AG$1+data!$AG$2)/2)-data!$AG$3)))))))) -> 304 | AT43: 3.017756536 | AU43: 3.838841352 | AV43: 4.619011033 | AW43: 2.30 | AX43: 20.0 | AY43: 22.2 | AZ43: 29.3 | BB43: 0 | BC43: 385 | BD43: 438 | BE43: 613 | BG43: 0 | BH43: 6.324513728 | BI43: 7.185399651 | BJ43: 10 | BM43: 0.0001956332036 | BN43: 0.0004470845885 | BO43: 1.766459433 | BP43: 2 | BR43: 34 | BT43: 30
A44: 14230421 | B44: 14 | C44: 230 | D44: 1 | E44: 42 | F44: 20 | G44: 0 | H44: 26 | I44: 30 | J44: 40.00519983 | K44: 1171 | L44: 5126 | M44: 5609 | N44: 6144 | O44: 1.362 | P44: 1.1 | Q44: 1.1 | R44: 1.1 | S44: 175 | T44: 1103 | U44: 1207 | V44: 1322 | W44: 30 | X44: 190 | Y44: 208 | Z44: 227 | AA44: 0.7474110514 | AB44: 9.437157398 | AC44: 10.69001126 | AD44: 12.0580499 | AE44: 210 | AF44: 237 | AG44: 256 | AH44: 0.98 | AI44: 0.98 | AJ44: 0.98 | AK44: 210 | AL44: 237 | AM44: 256 | AN44: 90 | AO44: 102 | AP44: 110 | AQ44: =(AK44/(IF((237.3*LN(('Mini Canal'!$J$13*EXP(17.27*(data!$AG$3/(data!$AG$3+237.3))))))/(17.27-LN(('Mini Canal'!$J$13*EXP(17.27*(data!$AG$3/(data!$AG$3+237.3))))))<((data!$AG$1+data!$AG$2)/2),1,IF(1/(1+((2258*((0.622/((101325/(1*611*EXP(17.27*(((data!$AG$1+data!$AG$2)/2)/(((data!$AG$1+data!$AG$2)/2)+237.3))))))-1)*1000-(0.622/((101325/('Mini Canal'!$J$13*611*EXP(17.27*(data!$AG$3/(data!$AG$3+237.3))))))-1)*1000))/(1005*(((data!$AG$1+data!$AG$2)/2)-data!$AG$3))))>1,1,1/(1+((2258*((0.622/((101325/(1*611*EXP(17.27*(((data!$AG$1+data!$AG$2)/2)/(((data!$AG$1+data!$AG$2)/2)+237.3))))))-1)*1000-(0.622/((101325/('Mini Canal'!$J$13*611*EXP(17.27*(data!$AG$3/(data!$AG$3+237.3))))))-1)*1000))/(1005*(((data!$AG$1+data!$AG$2)/2)-data!$AG$3)))))))) -> 210 | AR44: =(AL44/(IF((237.3*LN(('Mini Canal'!$J$13*EXP(17.27*(data!$AG$3/(data!$AG$3+237.3))))))/(17.27-LN(('Mini Canal'!$J$13*EXP(17.27*(data!$AG$3/(data!$AG$3+237.3))))))<((data!$AG$1+data!$AG$2)/2),1,IF(1/(1+((2258*((0.622/((101325/(1*611*EXP(17.27*(((data!$AG$1+data!$AG$2)/2)/(((data!$AG$1+data!$AG$2)/2)+237.3))))))-1)*1000-(0.622/((101325/('Mini Canal'!$J$13*611*EXP(17.27*(data!$AG$3/(data!$AG$3+237.3))))))-1)*1000))/(1005*(((data!$AG$1+data!$AG$2)/2)-data!$AG$3))))>1,1,1/(1+((2258*((0.622/((101325/(1*611*EXP(17.27*(((data!$AG$1+data!$AG$2)/2)/(((data!$AG$1+data!$AG$2)/2)+237.3))))))-1)*1000-(0.622/((101325/('Mini Canal'!$J$13*611*EXP(17.27*(data!$AG$3/(data!$AG$3+237.3))))))-1)*1000))/(1005*(((data!$AG$1+data!$AG$2)/2)-data!$AG$3)))))))) -> 237 | AS44: =(AM44/(IF((237.3*LN(('Mini Canal'!$J$13*EXP(17.27*(data!$AG$3/(data!$AG$3+237.3))))))/(17.27-LN(('Mini Canal'!$J$13*EXP(17.27*(data!$AG$3/(data!$AG$3+237.3))))))<((data!$AG$1+data!$AG$2)/2),1,IF(1/(1+((2258*((0.622/((101325/(1*611*EXP(17.27*(((data!$AG$1+data!$AG$2)/2)/(((data!$AG$1+data!$AG$2)/2)+237.3))))))-1)*1000-(0.622/((101325/('Mini Canal'!$J$13*611*EXP(17.27*(data!$AG$3/(data!$AG$3+237.3))))))-1)*1000))/(1005*(((data!$AG$1+data!$AG$2)/2)-data!$AG$3))))>1,1,1/(1+((2258*((0.622/((101325/(1*611*EXP(17.27*(((data!$AG$1+data!$AG$2)/2)/(((data!$AG$1+data!$AG$2)/2)+237.3))))))-1)*1000-(0.622/((101325/('Mini Canal'!$J$13*611*EXP(17.27*(data!$AG$3/(data!$AG$3+237.3))))))-1)*1000))/(1005*(((data!$AG$1+data!$AG$2)/2)-data!$AG$3)))))))) -> 256 | AT44: 3.376819167 | AU44: 4.010599274 | AV44: 4.449235717 | AW44: 3.07 | AX44: 20.0 | AY44: 22.2 | AZ44: 29.3 | BB44: 0 | BC44: 385 | BD44: 438 | BE44: 613 | BG44: 0 | BH44: 6.324513728 | BI44: 7.185399651 | BJ44: 10 | BM44: 0.001673095004 | BN44: 0.0003292952395 | BO44: 1.369178837 | BP44: 2 | BR44: 42 | BT44: 38
A45: 14250261 | B45: 14 | C45: 250 | D45: 1 | E45: 26 | F45: 10 | G45: 0 | H45: 26 | I45: 30 | J45: 40.51672505 | K45: 788 | L45: 3738 | M45: 4095 | N45: 4634 | O45: 1.362 | P45: 1.1 | Q45: 1.1 | R45: 1.1 | S45: 118 | T45: 804 | U45: 881 | V45: 997 | W45: 20 | X45: 138 | Y45: 152 | Z45: 171 | AA45: 0.5773809135 | AB45: 10.24767432 | AC45: 11.83515704 | AD45: 14.10678443 | AE45: 243 | AF45: 265 | AG45: 285 | AH45: 0.98 | AI45: 0.98 | AJ45: 0.98 | AK45: 243 | AL45: 265 | AM45: 285 | AN45: 104 | AO45: 114 | AP45: 123 | AQ45: =(AK45/(IF((237.3*LN(('Mini Canal'!$J$13*EXP(17.27*(data!$AG$3/(data!$AG$3+237.3))))))/(17.27-LN(('Mini Canal'!$J$13*EXP(17.27*(data!$AG$3/(data!$AG$3+237.3))))))<((data!$AG$1+data!$AG$2)/2),1,IF(1/(1+((2258*((0.622/((101325/(1*611*EXP(17.27*(((data!$AG$1+data!$AG$2)/2)/(((data!$AG$1+data!$AG$2)/2)+237.3))))))-1)*1000-(0.622/((101325/('Mini Canal'!$J$13*611*EXP(17.27*(data!$AG$3/(data!$AG$3+237.3))))))-1)*1000))/(1005*(((data!$AG$1+data!$AG$2)/2)-data!$AG$3))))>1,1,1/(1+((2258*((0.622/((101325/(1*611*EXP(17.27*(((data!$AG$1+data!$AG$2)/2)/(((data!$AG$1+data!$AG$2)/2)+237.3))))))-1)*1000-(0.622/((101325/('Mini Canal'!$J$13*611*EXP(17.27*(data!$AG$3/(data!$AG$3+237.3))))))-1)*1000))/(1005*(((data!$AG$1+data!$AG$2)/2)-data!$AG$3)))))))) -> 243 | AR45: =(AL45/(IF((237.3*LN(('Mini Canal'!$J$13*EXP(17.27*(data!$AG$3/(data!$AG$3+237.3))))))/(17.27-LN(('Mini Canal'!$J$13*EXP(17.27*(data!$AG$3/(data!$AG$3+237.3))))))<((data!$AG$1+data!$AG$2)/2),1,IF(1/(1+((2258*((0.622/((101325/(1*611*EXP(17.27*(((data!$AG$1+data!$AG$2)/2)/(((data!$AG$1+data!$AG$2)/2)+237.3))))))-1)*1000-(0.622/((101325/('Mini Canal'!$J$13*611*EXP(17.27*(data!$AG$3/(data!$AG$3+237.3))))))-1)*1000))/(1005*(((data!$AG$1+data!$AG$2)/2)-data!$AG$3))))>1,1,1/(1+((2258*((0.622/((101325/(1*611*EXP(17.27*(((data!$AG$1+data!$AG$2)/2)/(((data!$AG$1+data!$AG$2)/2)+237.3))))))-1)*1000-(0.622/((101325/('Mini Canal'!$J$13*611*EXP(17.27*(data!$AG$3/(data!$AG$3+237.3))))))-1)*1000))/(1005*(((data!$AG$1+data!$AG$2)/2)-data!$AG$3)))))))) -> 265 | AS45: =(AM45/(IF((237.3*LN(('Mini Canal'!$J$13*EXP(17.27*(data!$AG$3/(data!$AG$3+237.3))))))/(17.27-LN(('Mini Canal'!$J$13*EXP(17.27*(data!$AG$3/(data!$AG$3+237.3))))))<((data!$AG$1+data!$AG$2)/2),1,IF(1/(1+((2258*((0.622/((101325/(1*611*EXP(17.27*(((data!$AG$1+data!$AG$2)/2)/(((data!$AG$1+data!$AG$2)/2)+237.3))))))-1)*1000-(0.622/((101325/('Mini Canal'!$J$13*611*EXP(17.27*(data!$AG$3/(data!$AG$3+237.3))))))-1)*1000))/(1005*(((data!$AG$1+data!$AG$2)/2)-data!$AG$3))))>1,1,1/(1+((2258*((0.622/((101325/(1*611*EXP(17.27*(((data!$AG$1+data!$AG$2)/2)/(((data!$AG$1+data!$AG$2)/2)+237.3))))))-1)*1000-(0.622/((101325/('Mini Canal'!$J$13*611*EXP(17.27*(data!$AG$3/(data!$AG$3+237.3))))))-1)*1000))/(1005*(((data!$AG$1+data!$AG$2)/2)-data!$AG$3)))))))) -> 285 | AT45: 6.722992656 | AU45: 7.708540533 | AV45: 8.632724225 | AW45: 1.67 | AX45: 22.2 | AY45: 24.6 | AZ45: 33.0 | BB45: 0 | BC45: 426 | BD45: 485 | BE45: 689 | BG45: 0 | BH45: 6.222353975 | BI45: 7.068105048 | BJ45: 10 | BM45: 0.001450187971 | BN45: 0.0003783163265 | BO45: 1.486891044 | BP45: 2
A46: 14250341 | B46: 14 | C46: 250 | D46: 1 | E46: 34 | F46: 15 | G46: 0 | H46: 26 | I46: 30 | J46: 40.51672505 | K46: 1039 | L46: 4789 | M46: 5287 | N46: 5880 | O46: 1.362 | P46: 1.1 | Q46: 1.1 | R46: 1.1 | S46: 155 | T46: 1031 | U46: 1138 | V46: 1265 | W46: 27 | X46: 177 | Y46: 196 | Z46: 218 | AA46: 0.3082081832 | AB46: 8.586697582 | AC46: 10.2853061 | AD46: 12.41672717 | AE46: 257 | AF46: 298 | AG46: 334 | AH46: 0.98 | AI46: 0.98 | AJ46: 0.98 | AK46: 257 | AL46: 298 | AM46: 334 | AN46: 111 | AO46: 128 | AP46: 144 | AQ46: =(AK46/(IF((237.3*LN(('Mini Canal'!$J$13*EXP(17.27*(data!$AG$3/(data!$AG$3+237.3))))))/(17.27-LN(('Mini Canal'!$J$13*EXP(17.27*(data!$AG$3/(data!$AG$3+237.3))))))<((data!$AG$1+data!$AG$2)/2),1,IF(1/(1+((2258*((0.622/((101325/(1*611*EXP(17.27*(((data!$AG$1+data!$AG$2)/2)/(((data!$AG$1+data!$AG$2)/2)+237.3))))))-1)*1000-(0.622/((101325/('Mini Canal'!$J$13*611*EXP(17.27*(data!$AG$3/(data!$AG$3+237.3))))))-1)*1000))/(1005*(((data!$AG$1+data!$AG$2)/2)-data!$AG$3))))>1,1,1/(1+((2258*((0.622/((101325/(1*611*EXP(17.27*(((data!$AG$1+data!$AG$2)/2)/(((data!$AG$1+data!$AG$2)/2)+237.3))))))-1)*1000-(0.622/((101325/('Mini Canal'!$J$13*611*EXP(17.27*(data!$AG$3/(data!$AG$3+237.3))))))-1)*1000))/(1005*(((data!$AG$1+data!$AG$2)/2)-data!$AG$3)))))))) -> 257 | AR46: =(AL46/(IF((237.3*LN(('Mini Canal'!$J$13*EXP(17.27*(data!$AG$3/(data!$AG$3+237.3))))))/(17.27-LN(('Mini Canal'!$J$13*EXP(17.27*(data!$AG$3/(data!$AG$3+237.3))))))<((data!$AG$1+data!$AG$2)/2),1,IF(1/(1+((2258*((0.622/((101325/(1*611*EXP(17.27*(((data!$AG$1+data!$AG$2)/2)/(((data!$AG$1+data!$AG$2)/2)+237.3))))))-1)*1000-(0.622/((101325/('Mini Canal'!$J$13*611*EXP(17.27*(data!$AG$3/(data!$AG$3+237.3))))))-1)*1000))/(1005*(((data!$AG$1+data!$AG$2)/2)-data!$AG$3))))>1,1,1/(1+((2258*((0.622/((101325/(1*611*EXP(17.27*(((data!$AG$1+data!$AG$2)/2)/(((data!$AG$1+data!$AG$2)/2)+237.3))))))-1)*1000-(0.622/((101325/('Mini Canal'!$J$13*611*EXP(17.27*(data!$AG$3/(data!$AG$3+237.3))))))-1)*1000))/(1005*(((data!$AG$1+data!$AG$2)/2)-data!$AG$3)))))))) -> 298 | AS46: =(AM46/(IF((237.3*LN(('Mini Canal'!$J$13*EXP(17.27*(data!$AG$3/(data!$AG$3+237.3))))))/(17.27-LN(('Mini Canal'!$J$13*EXP(17.27*(data!$AG$3/(data!$AG$3+237.3))))))<((data!$AG$1+data!$AG$2)/2),1,IF(1/(1+((2258*((0.622/((101325/(1*611*EXP(17.27*(((data!$AG$1+data!$AG$2)/2)/(((data!$AG$1+data!$AG$2)/2)+237.3))))))-1)*1000-(0.622/((101325/('Mini Canal'!$J$13*611*EXP(17.27*(data!$AG$3/(data!$AG$3+237.3))))))-1)*1000))/(1005*(((data!$AG$1+data!$AG$2)/2)-data!$AG$3))))>1,1,1/(1+((2258*((0.622/((101325/(1*611*EXP(17.27*(((data!$AG$1+data!$AG$2)/2)/(((data!$AG$1+data!$AG$2)/2)+237.3))))))-1)*1000-(0.622/((101325/('Mini Canal'!$J$13*611*EXP(17.27*(data!$AG$3/(data!$AG$3+237.3))))))-1)*1000))/(1005*(((data!$AG$1+data!$AG$2)/2)-data!$AG$3)))))))) -> 334 | AT46: 3.759544805 | AU46: 4.838013746 | AV46: 5.959442471 | AW46: 2.50 | AX46: 22.2 | AY46: 24.6 | AZ46: 33.0 | BB46: 0 | BC46: 426 | BD46: 485 | BE46: 689 | BG46: 0 | BH46: 6.222353975 | BI46: 7.068105048 | BJ46: 10 | BM46: 0.0001956332036 | BN46: 0.0004470845885 | BO46: 1.766459433 | BP46: 2
A47: 14250421 | B47: 14 | C47: 250 | D47: 1 | E47: 42 | F47: 20 | G47: 0 | H47: 26 | I47: 30 | J47: 40.51672505 | K47: 1287 | L47: 5662 | M47: 6217 | N47: 6883 | O47: 1.362 | P47: 1.1 | Q47: 1.1 | R47: 1.1 | S47: 192 | T47: 1218 | U47: 1338 | V47: 1481 | W47: 33 | X47: 209 | Y47: 230 | Z47: 255 | AA47: 0.9304916267 | AB47: 11.74601632 | AC47: 13.40131907 | AD47: 15.44811807 | AE47: 231 | AF47: 263 | AG47: 288 | AH47: 0.98 | AI47: 0.98 | AJ47: 0.98 | AK47: 231 | AL47: 263 | AM47: 288 | AN47: 99 | AO47: 113 | AP47: 124 | AQ47: =(AK47/(IF((237.3*LN(('Mini Canal'!$J$13*EXP(17.27*(data!$AG$3/(data!$AG$3+237.3))))))/(17.27-LN(('Mini Canal'!$J$13*EXP(17.27*(data!$AG$3/(data!$AG$3+237.3))))))<((data!$AG$1+data!$AG$2)/2),1,IF(1/(1+((2258*((0.622/((101325/(1*611*EXP(17.27*(((data!$AG$1+data!$AG$2)/2)/(((data!$AG$1+data!$AG$2)/2)+237.3))))))-1)*1000-(0.622/((101325/('Mini Canal'!$J$13*611*EXP(17.27*(data!$AG$3/(data!$AG$3+237.3))))))-1)*1000))/(1005*(((data!$AG$1+data!$AG$2)/2)-data!$AG$3))))>1,1,1/(1+((2258*((0.622/((101325/(1*611*EXP(17.27*(((data!$AG$1+data!$AG$2)/2)/(((data!$AG$1+data!$AG$2)/2)+237.3))))))-1)*1000-(0.622/((101325/('Mini Canal'!$J$13*611*EXP(17.27*(data!$AG$3/(data!$AG$3+237.3))))))-1)*1000))/(1005*(((data!$AG$1+data!$AG$2)/2)-data!$AG$3)))))))) -> 231 | AR47: =(AL47/(IF((237.3*LN(('Mini Canal'!$J$13*EXP(17.27*(data!$AG$3/(data!$AG$3+237.3))))))/(17.27-LN(('Mini Canal'!$J$13*EXP(17.27*(data!$AG$3/(data!$AG$3+237.3))))))<((data!$AG$1+data!$AG$2)/2),1,IF(1/(1+((2258*((0.622/((101325/(1*611*EXP(17.27*(((data!$AG$1+data!$AG$2)/2)/(((data!$AG$1+data!$AG$2)/2)+237.3))))))-1)*1000-(0.622/((101325/('Mini Canal'!$J$13*611*EXP(17.27*(data!$AG$3/(data!$AG$3+237.3))))))-1)*1000))/(1005*(((data!$AG$1+data!$AG$2)/2)-data!$AG$3))))>1,1,1/(1+((2258*((0.622/((101325/(1*611*EXP(17.27*(((data!$AG$1+data!$AG$2)/2)/(((data!$AG$1+data!$AG$2)/2)+237.3))))))-1)*1000-(0.622/((101325/('Mini Canal'!$J$13*611*EXP(17.27*(data!$AG$3/(data!$AG$3+237.3))))))-1)*1000))/(1005*(((data!$AG$1+data!$AG$2)/2)-data!$AG$3)))))))) -> 263 | AS47: =(AM47/(IF((237.3*LN(('Mini Canal'!$J$13*EXP(17.27*(data!$AG$3/(data!$AG$3+237.3))))))/(17.27-LN(('Mini Canal'!$J$13*EXP(17.27*(data!$AG$3/(data!$AG$3+237.3))))))<((data!$AG$1+data!$AG$2)/2),1,IF(1/(1+((2258*((0.622/((101325/(1*611*EXP(17.27*(((data!$AG$1+data!$AG$2)/2)/(((data!$AG$1+data!$AG$2)/2)+237.3))))))-1)*1000-(0.622/((101325/('Mini Canal'!$J$13*611*EXP(17.27*(data!$AG$3/(data!$AG$3+237.3))))))-1)*1000))/(1005*(((data!$AG$1+data!$AG$2)/2)-data!$AG$3))))>1,1,1/(1+((2258*((0.622/((101325/(1*611*EXP(17.27*(((data!$AG$1+data!$AG$2)/2)/(((data!$AG$1+data!$AG$2)/2)+237.3))))))-1)*1000-(0.622/((101325/('Mini Canal'!$J$13*611*EXP(17.27*(data!$AG$3/(data!$AG$3+237.3))))))-1)*1000))/(1005*(((data!$AG$1+data!$AG$2)/2)-data!$AG$3)))))))) -> 288 | AT47: 4.203524363 | AU47: 5.041362302 | AV47: 5.727949777 | AW47: 3.33 | AX47: 22.2 | AY47: 24.6 | AZ47: 33.0 | BB47: 0 | BC47: 426 | BD47: 485 | BE47: 689 | BG47: 0 | BH47: 6.222353975 | BI47: 7.068105048 | BJ47: 10 | BM47: 0.001673095004 | BN47: 0.0003292952395 | BO47: 1.369178837 | BP47: 2
A48: 14270261 | B48: 14 | C48: 270 | D48: 1 | E48: 26 | F48: 10 | G48: 0 | H48: 26 | I48: 30 | J48: 40.97429996 | K48: 860 | L48: 4089 | M48: 4491 | N48: 5134 | O48: 1.362 | P48: 1.1 | Q48: 1.1 | R48: 1.1 | S48: 128 | T48: 880 | U48: 966 | V48: 1105 | W48: 22 | X48: 151 | Y48: 166 | Z48: 190 | AA48: 0.7217032284 | AB48: 12.70695184 | AC48: 14.63331612 | AD48: 17.89615466 | AE48: 262 | AF48: 287 | AG48: 311 | AH48: 0.98 | AI48: 0.98 | AJ48: 0.98 | AK48: 262 | AL48: 287 | AM48: 311 | AN48: 113 | AO48: 123 | AP48: 134 | AQ48: =(AK48/(IF((237.3*LN(('Mini Canal'!$J$13*EXP(17.27*(data!$AG$3/(data!$AG$3+237.3))))))/(17.27-LN(('Mini Canal'!$J$13*EXP(17.27*(data!$AG$3/(data!$AG$3+237.3))))))<((data!$AG$1+data!$AG$2)/2),1,IF(1/(1+((2258*((0.622/((101325/(1*611*EXP(17.27*(((data!$AG$1+data!$AG$2)/2)/(((data!$AG$1+data!$AG$2)/2)+237.3))))))-1)*1000-(0.622/((101325/('Mini Canal'!$J$13*611*EXP(17.27*(data!$AG$3/(data!$AG$3+237.3))))))-1)*1000))/(1005*(((data!$AG$1+data!$AG$2)/2)-data!$AG$3))))>1,1,1/(1+((2258*((0.622/((101325/(1*611*EXP(17.27*(((data!$AG$1+data!$AG$2)/2)/(((data!$AG$1+data!$AG$2)/2)+237.3))))))-1)*1000-(0.622/((101325/('Mini Canal'!$J$13*611*EXP(17.27*(data!$AG$3/(data!$AG$3+237.3))))))-1)*1000))/(1005*(((data!$AG$1+data!$AG$2)/2)-data!$AG$3)))))))) -> 262 | AR48: =(AL48/(IF((237.3*LN(('Mini Canal'!$J$13*EXP(17.27*(data!$AG$3/(data!$AG$3+237.3))))))/(17.27-LN(('Mini Canal'!$J$13*EXP(17.27*(data!$AG$3/(data!$AG$3+237.3))))))<((data!$AG$1+data!$AG$2)/2),1,IF(1/(1+((2258*((0.622/((101325/(1*611*EXP(17.27*(((data!$AG$1+data!$AG$2)/2)/(((data!$AG$1+data!$AG$2)/2)+237.3))))))-1)*1000-(0.622/((101325/('Mini Canal'!$J$13*611*EXP(17.27*(data!$AG$3/(data!$AG$3+237.3))))))-1)*1000))/(1005*(((data!$AG$1+data!$AG$2)/2)-data!$AG$3))))>1,1,1/(1+((2258*((0.622/((101325/(1*611*EXP(17.27*(((data!$AG$1+data!$AG$2)/2)/(((data!$AG$1+data!$AG$2)/2)+237.3))))))-1)*1000-(0.622/((101325/('Mini Canal'!$J$13*611*EXP(17.27*(data!$AG$3/(data!$AG$3+237.3))))))-1)*1000))/(1005*(((data!$AG$1+data!$AG$2)/2)-data!$AG$3)))))))) -> 287 | AS48: =(AM48/(IF((237.3*LN(('Mini Canal'!$J$13*EXP(17.27*(data!$AG$3/(data!$AG$3+237.3))))))/(17.27-LN(('Mini Canal'!$J$13*EXP(17.27*(data!$AG$3/(data!$AG$3+237.3))))))<((data!$AG$1+data!$AG$2)/2),1,IF(1/(1+((2258*((0.622/((101325/(1*611*EXP(17.27*(((data!$AG$1+data!$AG$2)/2)/(((data!$AG$1+data!$AG$2)/2)+237.3))))))-1)*1000-(0.622/((101325/('Mini Canal'!$J$13*611*EXP(17.27*(data!$AG$3/(data!$AG$3+237.3))))))-1)*1000))/(1005*(((data!$AG$1+data!$AG$2)/2)-data!$AG$3))))>1,1,1/(1+((2258*((0.622/((101325/(1*611*EXP(17.27*(((data!$AG$1+data!$AG$2)/2)/(((data!$AG$1+data!$AG$2)/2)+237.3))))))-1)*1000-(0.622/((101325/('Mini Canal'!$J$13*611*EXP(17.27*(data!$AG$3/(data!$AG$3+237.3))))))-1)*1000))/(1005*(((data!$AG$1+data!$AG$2)/2)-data!$AG$3)))))))) -> 311 | AT48: 8.249820886 | AU48: 9.360791582 | AV48: 10.63509481 | AW48: 1.80 | AX48: 24.4 | AY48: 27.0 | AZ48: 36.7 | BB48: 0 | BC48: 467 | BD48: 531 | BE48: 766 | BG48: 0 | BH48: 6.132190147 | BI48: 6.96518538 | BJ48: 10 | BM48: 0.001450187971 | BN48: 0.0003783163265 | BO48: 1.486891044 | BP48: 2 | BR48: 70 | BT48: 70 | BV48: 70
A49: 14270341 | B49: 14 | C49: 270 | D49: 1 | E49: 34 | F49: 15 | G49: 0 | H49: 26 | I49: 30 | J49: 40.97429996 | K49: 1133 | L49: 5230 | M49: 5794 | N49: 6511 | O49: 1.362 | P49: 1.1 | Q49: 1.1 | R49: 1.1 | S49: 169 | T49: 1126 | U49: 1247 | V49: 1401 | W49: 29 | X49: 194 | Y49: 214 | Z49: 241 | AA49: 0.3791124059 | AB49: 10.9436503 | AC49: 13.01926029 | AD49: 16.0668111 | AE49: 275 | AF49: 321 | AG49: 365 | AH49: 0.98 | AI49: 0.98 | AJ49: 0.98 | AK49: 275 | AL49: 321 | AM49: 365 | AN49: 118 | AO49: 138 | AP49: 157 | AQ49: =(AK49/(IF((237.3*LN(('Mini Canal'!$J$13*EXP(17.27*(data!$AG$3/(data!$AG$3+237.3))))))/(17.27-LN(('Mini Canal'!$J$13*EXP(17.27*(data!$AG$3/(data!$AG$3+237.3))))))<((data!$AG$1+data!$AG$2)/2),1,IF(1/(1+((2258*((0.622/((101325/(1*611*EXP(17.27*(((data!$AG$1+data!$AG$2)/2)/(((data!$AG$1+data!$AG$2)/2)+237.3))))))-1)*1000-(0.622/((101325/('Mini Canal'!$J$13*611*EXP(17.27*(data!$AG$3/(data!$AG$3+237.3))))))-1)*1000))/(1005*(((data!$AG$1+data!$AG$2)/2)-data!$AG$3))))>1,1,1/(1+((2258*((0.622/((101325/(1*611*EXP(17.27*(((data!$AG$1+data!$AG$2)/2)/(((data!$AG$1+data!$AG$2)/2)+237.3))))))-1)*1000-(0.622/((101325/('Mini Canal'!$J$13*611*EXP(17.27*(data!$AG$3/(data!$AG$3+237.3))))))-1)*1000))/(1005*(((data!$AG$1+data!$AG$2)/2)-data!$AG$3)))))))) -> 275 | AR49: =(AL49/(IF((237.3*LN(('Mini Canal'!$J$13*EXP(17.27*(data!$AG$3/(data!$AG$3+237.3))))))/(17.27-LN(('Mini Canal'!$J$13*EXP(17.27*(data!$AG$3/(data!$AG$3+237.3))))))<((data!$AG$1+data!$AG$2)/2),1,IF(1/(1+((2258*((0.622/((101325/(1*611*EXP(17.27*(((data!$AG$1+data!$AG$2)/2)/(((data!$AG$1+data!$AG$2)/2)+237.3))))))-1)*1000-(0.622/((101325/('Mini Canal'!$J$13*611*EXP(17.27*(data!$AG$3/(data!$AG$3+237.3))))))-1)*1000))/(1005*(((data!$AG$1+data!$AG$2)/2)-data!$AG$3))))>1,1,1/(1+((2258*((0.622/((101325/(1*611*EXP(17.27*(((data!$AG$1+data!$AG$2)/2)/(((data!$AG$1+data!$AG$2)/2)+237.3))))))-1)*1000-(0.622/((101325/('Mini Canal'!$J$13*611*EXP(17.27*(data!$AG$3/(data!$AG$3+237.3))))))-1)*1000))/(1005*(((data!$AG$1+data!$AG$2)/2)-data!$AG$3)))))))) -> 321 | AS49: =(AM49/(IF((237.3*LN(('Mini Canal'!$J$13*EXP(17.27*(data!$AG$3/(data!$AG$3+237.3))))))/(17.27-LN(('Mini Canal'!$J$13*EXP(17.27*(data!$AG$3/(data!$AG$3+237.3))))))<((data!$AG$1+data!$AG$2)/2),1,IF(1/(1+((2258*((0.622/((101325/(1*611*EXP(17.27*(((data!$AG$1+data!$AG$2)/2)/(((data!$AG$1+data!$AG$2)/2)+237.3))))))-1)*1000-(0.622/((101325/('Mini Canal'!$J$13*611*EXP(17.27*(data!$AG$3/(data!$AG$3+237.3))))))-1)*1000))/(1005*(((data!$AG$1+data!$AG$2)/2)-data!$AG$3))))>1,1,1/(1+((2258*((0.622/((101325/(1*611*EXP(17.27*(((data!$AG$1+data!$AG$2)/2)/(((data!$AG$1+data!$AG$2)/2)+237.3))))))-1)*1000-(0.622/((101325/('Mini Canal'!$J$13*611*EXP(17.27*(data!$AG$3/(data!$AG$3+237.3))))))-1)*1000))/(1005*(((data!$AG$1+data!$AG$2)/2)-data!$AG$3)))))))) -> 365 | AT49: 4.539738261 | AU49: 5.98910869 | AV49: 7.524978414 | AW49: 2.70 | AX49: 24.4 | AY49: 27.0 | AZ49: 36.7 | BB49: 0 | BC49: 467 | BD49: 531 | BE49: 766 | BG49: 0 | BH49: 6.132190147 | BI49: 6.96518538 | BJ49: 10 | BM49: 0.0001956332036 | BN49: 0.0004470845885 | BO49: 1.766459433 | BP49: 2 | BR49: 80 | BT49: 80 | BV49: 80
A50: 14270421 | B50: 14 | C50: 270 | D50: 1 | E50: 42 | F50: 20 | G50: 0 | H50: 26 | I50: 30 | J50: 40.97429996 | K50: 1404 | L50: 6188 | M50: 6816 | N50: 7622 | O50: 1.362 | P50: 1.1 | Q50: 1.1 | R50: 1.1 | S50: 210 | T50: 1332 | U50: 1467 | V50: 1640 | W50: 36 | X50: 229 | Y50: 252 | Z50: 282 | AA50: 1.137088558 | AB50: 14.43760072 | AC50: 16.47106645 | AD50: 19.23097437 | AE50: 253 | AF50: 288 | AG50: 321 | AH50: 0.98 | AI50: 0.98 | AJ50: 0.98 | AK50: 253 | AL50: 288 | AM50: 321 | AN50: 109 | AO50: 124 | AP50: 138 | AQ50: =(AK50/(IF((237.3*LN(('Mini Canal'!$J$13*EXP(17.27*(data!$AG$3/(data!$AG$3+237.3))))))/(17.27-LN(('Mini Canal'!$J$13*EXP(17.27*(data!$AG$3/(data!$AG$3+237.3))))))<((data!$AG$1+data!$AG$2)/2),1,IF(1/(1+((2258*((0.622/((101325/(1*611*EXP(17.27*(((data!$AG$1+data!$AG$2)/2)/(((data!$AG$1+data!$AG$2)/2)+237.3))))))-1)*1000-(0.622/((101325/('Mini Canal'!$J$13*611*EXP(17.27*(data!$AG$3/(data!$AG$3+237.3))))))-1)*1000))/(1005*(((data!$AG$1+data!$AG$2)/2)-data!$AG$3))))>1,1,1/(1+((2258*((0.622/((101325/(1*611*EXP(17.27*(((data!$AG$1+data!$AG$2)/2)/(((data!$AG$1+data!$AG$2)/2)+237.3))))))-1)*1000-(0.622/((101325/('Mini Canal'!$J$13*611*EXP(17.27*(data!$AG$3/(data!$AG$3+237.3))))))-1)*1000))/(1005*(((data!$AG$1+data!$AG$2)/2)-data!$AG$3)))))))) -> 253 | AR50: =(AL50/(IF((237.3*LN(('Mini Canal'!$J$13*EXP(17.27*(data!$AG$3/(data!$AG$3+237.3))))))/(17.27-LN(('Mini Canal'!$J$13*EXP(17.27*(data!$AG$3/(data!$AG$3+237.3))))))<((data!$AG$1+data!$AG$2)/2),1,IF(1/(1+((2258*((0.622/((101325/(1*611*EXP(17.27*(((data!$AG$1+data!$AG$2)/2)/(((data!$AG$1+data!$AG$2)/2)+237.3))))))-1)*1000-(0.622/((101325/('Mini Canal'!$J$13*611*EXP(17.27*(data!$AG$3/(data!$AG$3+237.3))))))-1)*1000))/(1005*(((data!$AG$1+data!$AG$2)/2)-data!$AG$3))))>1,1,1/(1+((2258*((0.622/((101325/(1*611*EXP(17.27*(((data!$AG$1+data!$AG$2)/2)/(((data!$AG$1+data!$AG$2)/2)+237.3))))))-1)*1000-(0.622/((101325/('Mini Canal'!$J$13*611*EXP(17.27*(data!$AG$3/(data!$AG$3+237.3))))))-1)*1000))/(1005*(((data!$AG$1+data!$AG$2)/2)-data!$AG$3)))))))) -> 288 | AS50: =(AM50/(IF((237.3*LN(('Mini Canal'!$J$13*EXP(17.27*(data!$AG$3/(data!$AG$3+237.3))))))/(17.27-LN(('Mini Canal'!$J$13*EXP(17.27*(data!$AG$3/(data!$AG$3+237.3))))))<((data!$AG$1+data!$AG$2)/2),1,IF(1/(1+((2258*((0.622/((101325/(1*611*EXP(17.27*(((data!$AG$1+data!$AG$2)/2)/(((data!$AG$1+data!$AG$2)/2)+237.3))))))-1)*1000-(0.622/((101325/('Mini Canal'!$J$13*611*EXP(17.27*(data!$AG$3/(data!$AG$3+237.3))))))-1)*1000))/(1005*(((data!$AG$1+data!$AG$2)/2)-data!$AG$3))))>1,1,1/(1+((2258*((0.622/((101325/(1*611*EXP(17.27*(((data!$AG$1+data!$AG$2)/2)/(((data!$AG$1+data!$AG$2)/2)+237.3))))))-1)*1000-(0.622/((101325/('Mini Canal'!$J$13*611*EXP(17.27*(data!$AG$3/(data!$AG$3+237.3))))))-1)*1000))/(1005*(((data!$AG$1+data!$AG$2)/2)-data!$AG$3)))))))) -> 321 | AT50: 5.201776705 | AU50: 6.209981185 | AV50: 7.193511729 | AW50: 3.60 | AX50: 24.4 | AY50: 27.0 | AZ50: 36.7 | BB50: 0 | BC50: 467 | BD50: 531 | BE50: 766 | BG50: 0 | BH50: 6.132190147 | BI50: 6.96518538 | BJ50: 10 | BM50: 0.001673095004 | BN50: 0.0003292952395 | BO50: 1.369178837 | BP50: 2 | BR50: 90 | BT50: 90 | BV50: 90
A51: 14290261 | B51: 14 | C51: 290 | D51: 1 | E51: 26 | F51: 10 | G51: 0 | H51: 26 | I51: 30 | J51: 38.12842681 | K51: 931 | L51: 4434 | M51: 4881 | N51: 5556 | O51: 1.362 | P51: 1.1 | Q51: 1.1 | R51: 1.1 | S51: 139 | T51: 954 | U51: 1050 | V51: 1196 | W51: 24 | X51: 164 | Y51: 181 | Z51: 206 | AA51: 0.8855882515 | AB51: 15.48803184 | AC51: 17.94039204 | AD51: 21.7560523 | AE51: 280 | AF51: 308 | AG51: 341 | AH51: 0.98 | AI51: 0.98 | AJ51: 0.98 | AK51: 280 | AL51: 308 | AM51: 341 | AN51: 120 | AO51: 132 | AP51: 147 | AQ51: =(AK51/(IF((237.3*LN(('Mini Canal'!$J$13*EXP(17.27*(data!$AG$3/(data!$AG$3+237.3))))))/(17.27-LN(('Mini Canal'!$J$13*EXP(17.27*(data!$AG$3/(data!$AG$3+237.3))))))<((data!$AG$1+data!$AG$2)/2),1,IF(1/(1+((2258*((0.622/((101325/(1*611*EXP(17.27*(((data!$AG$1+data!$AG$2)/2)/(((data!$AG$1+data!$AG$2)/2)+237.3))))))-1)*1000-(0.622/((101325/('Mini Canal'!$J$13*611*EXP(17.27*(data!$AG$3/(data!$AG$3+237.3))))))-1)*1000))/(1005*(((data!$AG$1+data!$AG$2)/2)-data!$AG$3))))>1,1,1/(1+((2258*((0.622/((101325/(1*611*EXP(17.27*(((data!$AG$1+data!$AG$2)/2)/(((data!$AG$1+data!$AG$2)/2)+237.3))))))-1)*1000-(0.622/((101325/('Mini Canal'!$J$13*611*EXP(17.27*(data!$AG$3/(data!$AG$3+237.3))))))-1)*1000))/(1005*(((data!$AG$1+data!$AG$2)/2)-data!$AG$3)))))))) -> 280 | AR51: =(AL51/(IF((237.3*LN(('Mini Canal'!$J$13*EXP(17.27*(data!$AG$3/(data!$AG$3+237.3))))))/(17.27-LN(('Mini Canal'!$J$13*EXP(17.27*(data!$AG$3/(data!$AG$3+237.3))))))<((data!$AG$1+data!$AG$2)/2),1,IF(1/(1+((2258*((0.622/((101325/(1*611*EXP(17.27*(((data!$AG$1+data!$AG$2)/2)/(((data!$AG$1+data!$AG$2)/2)+237.3))))))-1)*1000-(0.622/((101325/('Mini Canal'!$J$13*611*EXP(17.27*(data!$AG$3/(data!$AG$3+237.3))))))-1)*1000))/(1005*(((data!$AG$1+data!$AG$2)/2)-data!$AG$3))))>1,1,1/(1+((2258*((0.622/((101325/(1*611*EXP(17.27*(((data!$AG$1+data!$AG$2)/2)/(((data!$AG$1+data!$AG$2)/2)+237.3))))))-1)*1000-(0.622/((101325/('Mini Canal'!$J$13*611*EXP(17.27*(data!$AG$3/(data!$AG$3+237.3))))))-1)*1000))/(1005*(((data!$AG$1+data!$AG$2)/2)-data!$AG$3)))))))) -> 308 | AS51: =(AM51/(IF((237.3*LN(('Mini Canal'!$J$13*EXP(17.27*(data!$AG$3/(data!$AG$3+237.3))))))/(17.27-LN(('Mini Canal'!$J$13*EXP(17.27*(data!$AG$3/(data!$AG$3+237.3))))))<((data!$AG$1+data!$AG$2)/2),1,IF(1/(1+((2258*((0.622/((101325/(1*611*EXP(17.27*(((data!$AG$1+data!$AG$2)/2)/(((data!$AG$1+data!$AG$2)/2)+237.3))))))-1)*1000-(0.622/((101325/('Mini Canal'!$J$13*611*EXP(17.27*(data!$AG$3/(data!$AG$3+237.3))))))-1)*1000))/(1005*(((data!$AG$1+data!$AG$2)/2)-data!$AG$3))))>1,1,1/(1+((2258*((0.622/((101325/(1*611*EXP(17.27*(((data!$AG$1+data!$AG$2)/2)/(((data!$AG$1+data!$AG$2)/2)+237.3))))))-1)*1000-(0.622/((101325/('Mini Canal'!$J$13*611*EXP(17.27*(data!$AG$3/(data!$AG$3+237.3))))))-1)*1000))/(1005*(((data!$AG$1+data!$AG$2)/2)-data!$AG$3)))))))) -> 341 | AT51: 9.724480955 | AU51: 11.20810854 | AV51: 13.15760302 | AW51: 1.93 | AX51: 26.5 | AY51: 29.4 | AZ51: 36.8 | BB51: 0 | BC51: 506 | BD51: 576 | BE51: 757 | BG51: 0 | BH51: 6.051559471 | BI51: 6.873631145 | BJ51: 9 | BM51: 0.001450187971 | BN51: 0.0003783163265 | BO51: 1.486891044 | BP51: 2 | BR51: 100 | BT51: 100 | BV51: 100
A52: 14290341 | B52: 14 | C52: 290 | D52: 1 | E52: 34 | F52: 15 | G52: 0 | H52: 26 | I52: 30 | J52: 38.12842681 | K52: 1227 | L52: 5665 | M52: 6295 | N52: 7138 | O52: 1.362 | P52: 1.1 | Q52: 1.1 | R52: 1.1 | S52: 183 | T52: 1219 | U52: 1355 | V52: 1536 | W52: 31 | X52: 210 | Y52: 233 | Z52: 264 | AA52: 0.459626027 | AB52: 13.56176253 | AC52: 16.30047093 | AD52: 20.33361558 | AE52: 292 | AF52: 343 | AG52: 403 | AH52: 0.98 | AI52: 0.98 | AJ52: 0.98 | AK52: 292 | AL52: 343 | AM52: 403 | AN52: 126 | AO52: 147 | AP52: 173 | AQ52: =(AK52/(IF((237.3*LN(('Mini Canal'!$J$13*EXP(17.27*(data!$AG$3/(data!$AG$3+237.3))))))/(17.27-LN(('Mini Canal'!$J$13*EXP(17.27*(data!$AG$3/(data!$AG$3+237.3))))))<((data!$AG$1+data!$AG$2)/2),1,IF(1/(1+((2258*((0.622/((101325/(1*611*EXP(17.27*(((data!$AG$1+data!$AG$2)/2)/(((data!$AG$1+data!$AG$2)/2)+237.3))))))-1)*1000-(0.622/((101325/('Mini Canal'!$J$13*611*EXP(17.27*(data!$AG$3/(data!$AG$3+237.3))))))-1)*1000))/(1005*(((data!$AG$1+data!$AG$2)/2)-data!$AG$3))))>1,1,1/(1+((2258*((0.622/((101325/(1*611*EXP(17.27*(((data!$AG$1+data!$AG$2)/2)/(((data!$AG$1+data!$AG$2)/2)+237.3))))))-1)*1000-(0.622/((101325/('Mini Canal'!$J$13*611*EXP(17.27*(data!$AG$3/(data!$AG$3+237.3))))))-1)*1000))/(1005*(((data!$AG$1+data!$AG$2)/2)-data!$AG$3)))))))) -> 292 | AR52: =(AL52/(IF((237.3*LN(('Mini Canal'!$J$13*EXP(17.27*(data!$AG$3/(data!$AG$3+237.3))))))/(17.27-LN(('Mini Canal'!$J$13*EXP(17.27*(data!$AG$3/(data!$AG$3+237.3))))))<((data!$AG$1+data!$AG$2)/2),1,IF(1/(1+((2258*((0.622/((101325/(1*611*EXP(17.27*(((data!$AG$1+data!$AG$2)/2)/(((data!$AG$1+data!$AG$2)/2)+237.3))))))-1)*1000-(0.622/((101325/('Mini Canal'!$J$13*611*EXP(17.27*(data!$AG$3/(data!$AG$3+237.3))))))-1)*1000))/(1005*(((data!$AG$1+data!$AG$2)/2)-data!$AG$3))))>1,1,1/(1+((2258*((0.622/((101325/(1*611*EXP(17.27*(((data!$AG$1+data!$AG$2)/2)/(((data!$AG$1+data!$AG$2)/2)+237.3))))))-1)*1000-(0.622/((101325/('Mini Canal'!$J$13*611*EXP(17.27*(data!$AG$3/(data!$AG$3+237.3))))))-1)*1000))/(1005*(((data!$AG$1+data!$AG$2)/2)-data!$AG$3)))))))) -> 343 | AS52: =(AM52/(IF((237.3*LN(('Mini Canal'!$J$13*EXP(17.27*(data!$AG$3/(data!$AG$3+237.3))))))/(17.27-LN(('Mini Canal'!$J$13*EXP(17.27*(data!$AG$3/(data!$AG$3+237.3))))))<((data!$AG$1+data!$AG$2)/2),1,IF(1/(1+((2258*((0.622/((101325/(1*611*EXP(17.27*(((data!$AG$1+data!$AG$2)/2)/(((data!$AG$1+data!$AG$2)/2)+237.3))))))-1)*1000-(0.622/((101325/('Mini Canal'!$J$13*611*EXP(17.27*(data!$AG$3/(data!$AG$3+237.3))))))-1)*1000))/(1005*(((data!$AG$1+data!$AG$2)/2)-data!$AG$3))))>1,1,1/(1+((2258*((0.622/((101325/(1*611*EXP(17.27*(((data!$AG$1+data!$AG$2)/2)/(((data!$AG$1+data!$AG$2)/2)+237.3))))))-1)*1000-(0.622/((101325/('Mini Canal'!$J$13*611*EXP(17.27*(data!$AG$3/(data!$AG$3+237.3))))))-1)*1000))/(1005*(((data!$AG$1+data!$AG$2)/2)-data!$AG$3)))))))) -> 403 | AT52: 5.492030247 | AU52: 7.214284956 | AV52: 9.623957352 | AW52: 2.90 | AX52: 26.5 | AY52: 29.4 | AZ52: 36.8 | BB52: 0 | BC52: 506 | BD52: 576 | BE52: 757 | BG52: 0 | BH52: 6.051559471 | BI52: 6.873631145 | BJ52: 9 | BM52: 0.0001956332036 | BN52: 0.0004470845885 | BO52: 1.766459433 | BP52: 2 | BR52: 110 | BT52: 110 | BV52: 110
A53: 14290421 | B53: 14 | C53: 290 | D53: 1 | E53: 42 | F53: 20 | G53: 0 | H53: 26 | I53: 30 | J53: 38.12842681 | K53: 1520 | L53: 6706 | M53: 7407 | N53: 8350 | O53: 1.362 | P53: 1.1 | Q53: 1.1 | R53: 1.1 | S53: 227 | T53: 1443 | U53: 1594 | V53: 1797 | W53: 39 | X53: 248 | Y53: 274 | Z53: 309 | AA53: 1.36794613 | AB53: 17.35734006 | AC53: 19.91082828 | AD53: 23.49564822 | AE53: 273 | AF53: 313 | AG53: 359 | AH53: 0.98 | AI53: 0.98 | AJ53: 0.98 | AK53: 273 | AL53: 313 | AM53: 359 | AN53: 117 | AO53: 135 | AP53: 154 | AQ53: =(AK53/(IF((237.3*LN(('Mini Canal'!$J$13*EXP(17.27*(data!$AG$3/(data!$AG$3+237.3))))))/(17.27-LN(('Mini Canal'!$J$13*EXP(17.27*(data!$AG$3/(data!$AG$3+237.3))))))<((data!$AG$1+data!$AG$2)/2),1,IF(1/(1+((2258*((0.622/((101325/(1*611*EXP(17.27*(((data!$AG$1+data!$AG$2)/2)/(((data!$AG$1+data!$AG$2)/2)+237.3))))))-1)*1000-(0.622/((101325/('Mini Canal'!$J$13*611*EXP(17.27*(data!$AG$3/(data!$AG$3+237.3))))))-1)*1000))/(1005*(((data!$AG$1+data!$AG$2)/2)-data!$AG$3))))>1,1,1/(1+((2258*((0.622/((101325/(1*611*EXP(17.27*(((data!$AG$1+data!$AG$2)/2)/(((data!$AG$1+data!$AG$2)/2)+237.3))))))-1)*1000-(0.622/((101325/('Mini Canal'!$J$13*611*EXP(17.27*(data!$AG$3/(data!$AG$3+237.3))))))-1)*1000))/(1005*(((data!$AG$1+data!$AG$2)/2)-data!$AG$3)))))))) -> 273 | AR53: =(AL53/(IF((237.3*LN(('Mini Canal'!$J$13*EXP(17.27*(data!$AG$3/(data!$AG$3+237.3))))))/(17.27-LN(('Mini Canal'!$J$13*EXP(17.27*(data!$AG$3/(data!$AG$3+237.3))))))<((data!$AG$1+data!$AG$2)/2),1,IF(1/(1+((2258*((0.622/((101325/(1*611*EXP(17.27*(((data!$AG$1+data!$AG$2)/2)/(((data!$AG$1+data!$AG$2)/2)+237.3))))))-1)*1000-(0.622/((101325/('Mini Canal'!$J$13*611*EXP(17.27*(data!$AG$3/(data!$AG$3+237.3))))))-1)*1000))/(1005*(((data!$AG$1+data!$AG$2)/2)-data!$AG$3))))>1,1,1/(1+((2258*((0.622/((101325/(1*611*EXP(17.27*(((data!$AG$1+data!$AG$2)/2)/(((data!$AG$1+data!$AG$2)/2)+237.3))))))-1)*1000-(0.622/((101325/('Mini Canal'!$J$13*611*EXP(17.27*(data!$AG$3/(data!$AG$3+237.3))))))-1)*1000))/(1005*(((data!$AG$1+data!$AG$2)/2)-data!$AG$3)))))))) -> 313 | AS53: =(AM53/(IF((237.3*LN(('Mini Canal'!$J$13*EXP(17.27*(data!$AG$3/(data!$AG$3+237.3))))))/(17.27-LN(('Mini Canal'!$J$13*EXP(17.27*(data!$AG$3/(data!$AG$3+237.3))))))<((data!$AG$1+data!$AG$2)/2),1,IF(1/(1+((2258*((0.622/((101325/(1*611*EXP(17.27*(((data!$AG$1+data!$AG$2)/2)/(((data!$AG$1+data!$AG$2)/2)+237.3))))))-1)*1000-(0.622/((101325/('Mini Canal'!$J$13*611*EXP(17.27*(data!$AG$3/(data!$AG$3+237.3))))))-1)*1000))/(1005*(((data!$AG$1+data!$AG$2)/2)-data!$AG$3))))>1,1,1/(1+((2258*((0.622/((101325/(1*611*EXP(17.27*(((data!$AG$1+data!$AG$2)/2)/(((data!$AG$1+data!$AG$2)/2)+237.3))))))-1)*1000-(0.622/((101325/('Mini Canal'!$J$13*611*EXP(17.27*(data!$AG$3/(data!$AG$3+237.3))))))-1)*1000))/(1005*(((data!$AG$1+data!$AG$2)/2)-data!$AG$3)))))))) -> 359 | AT53: 6.178577207 | AU53: 7.520960737 | AV53: 9.012941213 | AW53: 3.87 | AX53: 26.5 | AY53: 29.4 | AZ53: 36.8 | BB53: 0 | BC53: 506 | BD53: 576 | BE53: 757 | BG53: 0 | BH53: 6.051559471 | BI53: 6.873631145 | BJ53: 9 | BM53: 0.001673095004 | BN53: 0.0003292952395 | BO53: 1.369178837 | BP53: 2 | BR53: 120 | BT53: 120 | BV53: 120
A54: 14310261 | B54: 14 | C54: 310 | D54: 1 | E54: 26 | F54: 10 | G54: 0 | H54: 26 | I54: 30 | J54: 35.03251242 | K54: 1006 | L54: 4779 | M54: 5272 | N54: 5800 | O54: 1.362 | P54: 1.1 | Q54: 1.1 | R54: 1.1 | S54: 150 | T54: 1028 | U54: 1135 | V54: 1248 | W54: 26 | X54: 177 | Y54: 195 | Z54: 215 | AA54: 1.069829591 | AB54: 18.60356417 | AC54: 21.49190562 | AD54: 24.85828484 | AE54: 299 | AF54: 329 | AG54: 358 | AH54: 0.98 | AI54: 0.98 | AJ54: 0.98 | AK54: 299 | AL54: 329 | AM54: 358 | AN54: 129 | AO54: 141 | AP54: 154 | AQ54: =(AK54/(IF((237.3*LN(('Mini Canal'!$J$13*EXP(17.27*(data!$AG$3/(data!$AG$3+237.3))))))/(17.27-LN(('Mini Canal'!$J$13*EXP(17.27*(data!$AG$3/(data!$AG$3+237.3))))))<((data!$AG$1+data!$AG$2)/2),1,IF(1/(1+((2258*((0.622/((101325/(1*611*EXP(17.27*(((data!$AG$1+data!$AG$2)/2)/(((data!$AG$1+data!$AG$2)/2)+237.3))))))-1)*1000-(0.622/((101325/('Mini Canal'!$J$13*611*EXP(17.27*(data!$AG$3/(data!$AG$3+237.3))))))-1)*1000))/(1005*(((data!$AG$1+data!$AG$2)/2)-data!$AG$3))))>1,1,1/(1+((2258*((0.622/((101325/(1*611*EXP(17.27*(((data!$AG$1+data!$AG$2)/2)/(((data!$AG$1+data!$AG$2)/2)+237.3))))))-1)*1000-(0.622/((101325/('Mini Canal'!$J$13*611*EXP(17.27*(data!$AG$3/(data!$AG$3+237.3))))))-1)*1000))/(1005*(((data!$AG$1+data!$AG$2)/2)-data!$AG$3)))))))) -> 299 | AR54: =(AL54/(IF((237.3*LN(('Mini Canal'!$J$13*EXP(17.27*(data!$AG$3/(data!$AG$3+237.3))))))/(17.27-LN(('Mini Canal'!$J$13*EXP(17.27*(data!$AG$3/(data!$AG$3+237.3))))))<((data!$AG$1+data!$AG$2)/2),1,IF(1/(1+((2258*((0.622/((101325/(1*611*EXP(17.27*(((data!$AG$1+data!$AG$2)/2)/(((data!$AG$1+data!$AG$2)/2)+237.3))))))-1)*1000-(0.622/((101325/('Mini Canal'!$J$13*611*EXP(17.27*(data!$AG$3/(data!$AG$3+237.3))))))-1)*1000))/(1005*(((data!$AG$1+data!$AG$2)/2)-data!$AG$3))))>1,1,1/(1+((2258*((0.622/((101325/(1*611*EXP(17.27*(((data!$AG$1+data!$AG$2)/2)/(((data!$AG$1+data!$AG$2)/2)+237.3))))))-1)*1000-(0.622/((101325/('Mini Canal'!$J$13*611*EXP(17.27*(data!$AG$3/(data!$AG$3+237.3))))))-1)*1000))/(1005*(((data!$AG$1+data!$AG$2)/2)-data!$AG$3)))))))) -> 329 | AS54: =(AM54/(IF((237.3*LN(('Mini Canal'!$J$13*EXP(17.27*(data!$AG$3/(data!$AG$3+237.3))))))/(17.27-LN(('Mini Canal'!$J$13*EXP(17.27*(data!$AG$3/(data!$AG$3+237.3))))))<((data!$AG$1+data!$AG$2)/2),1,IF(1/(1+((2258*((0.622/((101325/(1*611*EXP(17.27*(((data!$AG$1+data!$AG$2)/2)/(((data!$AG$1+data!$AG$2)/2)+237.3))))))-1)*1000-(0.622/((101325/('Mini Canal'!$J$13*611*EXP(17.27*(data!$AG$3/(data!$AG$3+237.3))))))-1)*1000))/(1005*(((data!$AG$1+data!$AG$2)/2)-data!$AG$3))))>1,1,1/(1+((2258*((0.622/((101325/(1*611*EXP(17.27*(((data!$AG$1+data!$AG$2)/2)/(((data!$AG$1+data!$AG$2)/2)+237.3))))))-1)*1000-(0.622/((101325/('Mini Canal'!$J$13*611*EXP(17.27*(data!$AG$3/(data!$AG$3+237.3))))))-1)*1000))/(1005*(((data!$AG$1+data!$AG$2)/2)-data!$AG$3)))))))) -> 358 | AT54: 11.61222188 | AU54: 13.25747373 | AV54: 15.11899263 | AW54: 2.07 | AX54: 28.7 | AY54: 31.8 | AZ54: 36.4 | BB54: 0 | BC54: 546 | BD54: 621 | BE54: 733 | BG54: 0 | BH54: 5.978678812 | BI54: 6.791272143 | BJ54: 8 | BM54: 0.001450187971 | BN54: 0.0003783163265 | BO54: 1.486891044 | BP54: 2 | BR54: 130 | BT54: 130 | BV54: 130
A55: 14310341 | B55: 14 | C55: 310 | D55: 1 | E55: 34 | F55: 15 | G55: 0 | H55: 26 | I55: 30 | J55: 35.0 | K55: 1325 | L55: 6097 | M55: 6793 | N55: 7495 | O55: 1.362 | P55: 1.1 | Q55: 1.1 | R55: 1.1 | S55: 198 | T55: 1312 | U55: 1462 | V55: 1613 | W55: 34 | X55: 226 | Y55: 251 | Z55: 277 | AA55: 0.5801054497 | AB55: 16.54829478 | AC55: 19.924532 | AD55: 23.72156607 | AE55: 309 | AF55: 365 | AG55: 417 | AH55: 0.98 | AI55: 0.98 | AJ55: 0.98 | AK55: 309 | AL55: 365 | AM55: 417 | AN55: 133 | AO55: 157 | AP55: 179 | AQ55: =(AK55/(IF((237.3*LN(('Mini Canal'!$J$13*EXP(17.27*(data!$AG$3/(data!$AG$3+237.3))))))/(17.27-LN(('Mini Canal'!$J$13*EXP(17.27*(data!$AG$3/(data!$AG$3+237.3))))))<((data!$AG$1+data!$AG$2)/2),1,IF(1/(1+((2258*((0.622/((101325/(1*611*EXP(17.27*(((data!$AG$1+data!$AG$2)/2)/(((data!$AG$1+data!$AG$2)/2)+237.3))))))-1)*1000-(0.622/((101325/('Mini Canal'!$J$13*611*EXP(17.27*(data!$AG$3/(data!$AG$3+237.3))))))-1)*1000))/(1005*(((data!$AG$1+data!$AG$2)/2)-data!$AG$3))))>1,1,1/(1+((2258*((0.622/((101325/(1*611*EXP(17.27*(((data!$AG$1+data!$AG$2)/2)/(((data!$AG$1+data!$AG$2)/2)+237.3))))))-1)*1000-(0.622/((101325/('Mini Canal'!$J$13*611*EXP(17.27*(data!$AG$3/(data!$AG$3+237.3))))))-1)*1000))/(1005*(((data!$AG$1+data!$AG$2)/2)-data!$AG$3)))))))) -> 309 | AR55: =(AL55/(IF((237.3*LN(('Mini Canal'!$J$13*EXP(17.27*(data!$AG$3/(data!$AG$3+237.3))))))/(17.27-LN(('Mini Canal'!$J$13*EXP(17.27*(data!$AG$3/(data!$AG$3+237.3))))))<((data!$AG$1+data!$AG$2)/2),1,IF(1/(1+((2258*((0.622/((101325/(1*611*EXP(17.27*(((data!$AG$1+data!$AG$2)/2)/(((data!$AG$1+data!$AG$2)/2)+237.3))))))-1)*1000-(0.622/((101325/('Mini Canal'!$J$13*611*EXP(17.27*(data!$AG$3/(data!$AG$3+237.3))))))-1)*1000))/(1005*(((data!$AG$1+data!$AG$2)/2)-data!$AG$3))))>1,1,1/(1+((2258*((0.622/((101325/(1*611*EXP(17.27*(((data!$AG$1+data!$AG$2)/2)/(((data!$AG$1+data!$AG$2)/2)+237.3))))))-1)*1000-(0.622/((101325/('Mini Canal'!$J$13*611*EXP(17.27*(data!$AG$3/(data!$AG$3+237.3))))))-1)*1000))/(1005*(((data!$AG$1+data!$AG$2)/2)-data!$AG$3)))))))) -> 365 | AS55: =(AM55/(IF((237.3*LN(('Mini Canal'!$J$13*EXP(17.27*(data!$AG$3/(data!$AG$3+237.3))))))/(17.27-LN(('Mini Canal'!$J$13*EXP(17.27*(data!$AG$3/(data!$AG$3+237.3))))))<((data!$AG$1+data!$AG$2)/2),1,IF(1/(1+((2258*((0.622/((101325/(1*611*EXP(17.27*(((data!$AG$1+data!$AG$2)/2)/(((data!$AG$1+data!$AG$2)/2)+237.3))))))-1)*1000-(0.622/((101325/('Mini Canal'!$J$13*611*EXP(17.27*(data!$AG$3/(data!$AG$3+237.3))))))-1)*1000))/(1005*(((data!$AG$1+data!$AG$2)/2)-data!$AG$3))))>1,1,1/(1+((2258*((0.622/((101325/(1*611*EXP(17.27*(((data!$AG$1+data!$AG$2)/2)/(((data!$AG$1+data!$AG$2)/2)+237.3))))))-1)*1000-(0.622/((101325/('Mini Canal'!$J$13*611*EXP(17.27*(data!$AG$3/(data!$AG$3+237.3))))))-1)*1000))/(1005*(((data!$AG$1+data!$AG$2)/2)-data!$AG$3)))))))) -> 417 | AT55: 6.476336927 | AU55: 8.685695248 | AV55: 10.95414108 | AW55: 3.10 | AX55: 28.7 | AY55: 31.8 | AZ55: 36.4 | BB55: 0 | BC55: 546 | BD55: 621 | BE55: 733 | BG55: 0 | BH55: 5.978678812 | BI55: 6.791272143 | BJ55: 8 | BM55: 0.0001956332036 | BN55: 0.0004470845885 | BO55: 1.766459433 | BP55: 2 | BR55: 150 | BT55: 150 | BV55: 150
A56: 14310421 | B56: 14 | C56: 310 | D56: 1 | E56: 42 | F56: 20 | G56: 0 | H56: 26 | I56: 30 | J56: 35.0 | K56: 1642 | L56: 7222 | M56: 7997 | N56: 8779 | O56: 1.362 | P56: 1.1 | Q56: 1.1 | R56: 1.1 | S56: 245 | T56: 1554 | U56: 1721 | V56: 1889 | W56: 42 | X56: 267 | Y56: 296 | Z56: 325 | AA56: 1.623771433 | AB56: 20.59151879 | AC56: 23.73158772 | AD56: 26.99094938 | AE56: 294 | AF56: 338 | AG56: 380 | AH56: 0.98 | AI56: 0.98 | AJ56: 0.98 | AK56: 294 | AL56: 338 | AM56: 380 | AN56: 126 | AO56: 145 | AP56: 163 | AQ56: =(AK56/(IF((237.3*LN(('Mini Canal'!$J$13*EXP(17.27*(data!$AG$3/(data!$AG$3+237.3))))))/(17.27-LN(('Mini Canal'!$J$13*EXP(17.27*(data!$AG$3/(data!$AG$3+237.3))))))<((data!$AG$1+data!$AG$2)/2),1,IF(1/(1+((2258*((0.622/((101325/(1*611*EXP(17.27*(((data!$AG$1+data!$AG$2)/2)/(((data!$AG$1+data!$AG$2)/2)+237.3))))))-1)*1000-(0.622/((101325/('Mini Canal'!$J$13*611*EXP(17.27*(data!$AG$3/(data!$AG$3+237.3))))))-1)*1000))/(1005*(((data!$AG$1+data!$AG$2)/2)-data!$AG$3))))>1,1,1/(1+((2258*((0.622/((101325/(1*611*EXP(17.27*(((data!$AG$1+data!$AG$2)/2)/(((data!$AG$1+data!$AG$2)/2)+237.3))))))-1)*1000-(0.622/((101325/('Mini Canal'!$J$13*611*EXP(17.27*(data!$AG$3/(data!$AG$3+237.3))))))-1)*1000))/(1005*(((data!$AG$1+data!$AG$2)/2)-data!$AG$3)))))))) -> 294 | AR56: =(AL56/(IF((237.3*LN(('Mini Canal'!$J$13*EXP(17.27*(data!$AG$3/(data!$AG$3+237.3))))))/(17.27-LN(('Mini Canal'!$J$13*EXP(17.27*(data!$AG$3/(data!$AG$3+237.3))))))<((data!$AG$1+data!$AG$2)/2),1,IF(1/(1+((2258*((0.622/((101325/(1*611*EXP(17.27*(((data!$AG$1+data!$AG$2)/2)/(((data!$AG$1+data!$AG$2)/2)+237.3))))))-1)*1000-(0.622/((101325/('Mini Canal'!$J$13*611*EXP(17.27*(data!$AG$3/(data!$AG$3+237.3))))))-1)*1000))/(1005*(((data!$AG$1+data!$AG$2)/2)-data!$AG$3))))>1,1,1/(1+((2258*((0.622/((101325/(1*611*EXP(17.27*(((data!$AG$1+data!$AG$2)/2)/(((data!$AG$1+data!$AG$2)/2)+237.3))))))-1)*1000-(0.622/((101325/('Mini Canal'!$J$13*611*EXP(17.27*(data!$AG$3/(data!$AG$3+237.3))))))-1)*1000))/(1005*(((data!$AG$1+data!$AG$2)/2)-data!$AG$3)))))))) -> 338 | AS56: =(AM56/(IF((237.3*LN(('Mini Canal'!$J$13*EXP(17.27*(data!$AG$3/(data!$AG$3+237.3))))))/(17.27-LN(('Mini Canal'!$J$13*EXP(17.27*(data!$AG$3/(data!$AG$3+237.3))))))<((data!$AG$1+data!$AG$2)/2),1,IF(1/(1+((2258*((0.622/((101325/(1*611*EXP(17.27*(((data!$AG$1+data!$AG$2)/2)/(((data!$AG$1+data!$AG$2)/2)+237.3))))))-1)*1000-(0.622/((101325/('Mini Canal'!$J$13*611*EXP(17.27*(data!$AG$3/(data!$AG$3+237.3))))))-1)*1000))/(1005*(((data!$AG$1+data!$AG$2)/2)-data!$AG$3))))>1,1,1/(1+((2258*((0.622/((101325/(1*611*EXP(17.27*(((data!$AG$1+data!$AG$2)/2)/(((data!$AG$1+data!$AG$2)/2)+237.3))))))-1)*1000-(0.622/((101325/('Mini Canal'!$J$13*611*EXP(17.27*(data!$AG$3/(data!$AG$3+237.3))))))-1)*1000))/(1005*(((data!$AG$1+data!$AG$2)/2)-data!$AG$3)))))))) -> 380 | AT56: 7.333456821 | AU56: 8.894185116 | AV56: 10.44578355 | AW56: 4.13 | AX56: 28.7 | AY56: 31.8 | AZ56: 36.4 | BB56: 0 | BC56: 546 | BD56: 621 | BE56: 733 | BG56: 0 | BH56: 5.978678812 | BI56: 6.791272143 | BJ56: 8 | BM56: 0.001673095004 | BN56: 0.0003292952395 | BO56: 1.369178837 | BP56: 2 | BR56: 170 | BT56: 170 | BV56: 170
A57: =CONCATENATE(B57,C57,E57,D57) -> 970142 | B57: 9 | C57: 70 | D57: 2 | E57: 14 | F57: =IF($E57=14,4,IF($E57=18,9,IF($E57=26,9,IF($E57=34,14,IF($E57=42,19,))))) -> 4 | G57: 0 | H57: 0 | I57: 0 | J57: 0.0 | K57: 76 | L57: 0 | M57: 0 | N57: 0 | O57: 1.362 | P57: 1.1 | Q57: 1.1 | R57: 1.1 | S57: =ROUND(K57*POWER((($M$1-$M$2)/LN(($M$1-$M$3)/($M$2-$M$3)))/((75-65)/LN((75-20)/(65-20))),O57),0) -> 11 | T57: =ROUND(L57*POWER((($M$1-$M$2)/LN(($M$1-$M$3)/($M$2-$M$3)))/((75-65)/LN((75-20)/(65-20))),P57),0) -> 0 | U57: =ROUND(M57*POWER((($M$1-$M$2)/LN(($M$1-$M$3)/($M$2-$M$3)))/((75-65)/LN((75-20)/(65-20))),Q57),0) -> 0 | V57: =ROUND(N57*POWER((($M$1-$M$2)/LN(($M$1-$M$3)/($M$2-$M$3)))/((75-65)/LN((75-20)/(65-20))),R57),0) -> 0 | W57: =ROUND(S57*3600/(4186*ABS($M$1-$M$2)),0) -> 2 | X57: =ROUND(T57*3600/(4186*ABS($M$1-$M$2)),0) -> 0 | Y57: =ROUND(U57*3600/(4186*ABS($M$1-$M$2)),0) -> 0 | Z57: =ROUND(V57*3600/(4186*ABS($M$1-$M$2)),0) -> 0 | AA57: 0.00249984708 | AB57: 0 | AC57: 0 | AD57: 0 | AE57: 0 | AF57: 0 | AG57: 0 | AH57: 0.98 | AI57: 0.98 | AJ57: 0.98 | AK57: =ROUND(AE57*POWER((($AG$1-$AG$2)/LN(($AG$1-$AG$3)/($AG$2-$AG$3)))/((16-18)/LN((16-27)/(18-27))),AH57),0) -> 0 | AL57: =ROUND(AF57*POWER((($AG$1-$AG$2)/LN(($AG$1-$AG$3)/($AG$2-$AG$3)))/((16-18)/LN((16-27)/(18-27))),AI57),0) -> 0 | AM57: =ROUND(AG57*POWER((($AG$1-$AG$2)/LN(($AG$1-$AG$3)/($AG$2-$AG$3)))/((16-18)/LN((16-27)/(18-27))),AJ57),0) -> 0 | AN57: =ROUND(AK57*3600/(4186*ABS($AG$1-$AG$2)),0) -> 0 | AO57: =ROUND(AL57*3600/(4186*ABS($AG$1-$AG$2)),0) -> 0 | AP57: =ROUND(AM57*3600/(4186*ABS($AG$1-$AG$2)),0) -> 0 | AQ57: =(AK57/(IF((237.3*LN(('Mini Canal'!$J$13*EXP(17.27*(data!$AG$3/(data!$AG$3+237.3))))))/(17.27-LN(('Mini Canal'!$J$13*EXP(17.27*(data!$AG$3/(data!$AG$3+237.3))))))<((data!$AG$1+data!$AG$2)/2),1,IF(1/(1+((2258*((0.622/((101325/(1*611*EXP(17.27*(((data!$AG$1+data!$AG$2)/2)/(((data!$AG$1+data!$AG$2)/2)+237.3))))))-1)*1000-(0.622/((101325/('Mini Canal'!$J$13*611*EXP(17.27*(data!$AG$3/(data!$AG$3+237.3))))))-1)*1000))/(1005*(((data!$AG$1+data!$AG$2)/2)-data!$AG$3))))>1,1,1/(1+((2258*((0.622/((101325/(1*611*EXP(17.27*(((data!$AG$1+data!$AG$2)/2)/(((data!$AG$1+data!$AG$2)/2)+237.3))))))-1)*1000-(0.622/((101325/('Mini Canal'!$J$13*611*EXP(17.27*(data!$AG$3/(data!$AG$3+237.3))))))-1)*1000))/(1005*(((data!$AG$1+data!$AG$2)/2)-data!$AG$3)))))))) -> 0 | AR57: =(AL57/(IF((237.3*LN(('Mini Canal'!$J$13*EXP(17.27*(data!$AG$3/(data!$AG$3+237.3))))))/(17.27-LN(('Mini Canal'!$J$13*EXP(17.27*(data!$AG$3/(data!$AG$3+237.3))))))<((data!$AG$1+data!$AG$2)/2),1,IF(1/(1+((2258*((0.622/((101325/(1*611*EXP(17.27*(((data!$AG$1+data!$AG$2)/2)/(((data!$AG$1+data!$AG$2)/2)+237.3))))))-1)*1000-(0.622/((101325/('Mini Canal'!$J$13*611*EXP(17.27*(data!$AG$3/(data!$AG$3+237.3))))))-1)*1000))/(1005*(((data!$AG$1+data!$AG$2)/2)-data!$AG$3))))>1,1,1/(1+((2258*((0.622/((101325/(1*611*EXP(17.27*(((data!$AG$1+data!$AG$2)/2)/(((data!$AG$1+data!$AG$2)/2)+237.3))))))-1)*1000-(0.622/((101325/('Mini Canal'!$J$13*611*EXP(17.27*(data!$AG$3/(data!$AG$3+237.3))))))-1)*1000))/(1005*(((data!$AG$1+data!$AG$2)/2)-data!$AG$3)))))))) -> 0 | AS57: =(AM57/(IF((237.3*LN(('Mini Canal'!$J$13*EXP(17.27*(data!$AG$3/(data!$AG$3+237.3))))))/(17.27-LN(('Mini Canal'!$J$13*EXP(17.27*(data!$AG$3/(data!$AG$3+237.3))))))<((data!$AG$1+data!$AG$2)/2),1,IF(1/(1+((2258*((0.622/((101325/(1*611*EXP(17.27*(((data!$AG$1+data!$AG$2)/2)/(((data!$AG$1+data!$AG$2)/2)+237.3))))))-1)*1000-(0.622/((101325/('Mini Canal'!$J$13*611*EXP(17.27*(data!$AG$3/(data!$AG$3+237.3))))))-1)*1000))/(1005*(((data!$AG$1+data!$AG$2)/2)-data!$AG$3))))>1,1,1/(1+((2258*((0.622/((101325/(1*611*EXP(17.27*(((data!$AG$1+data!$AG$2)/2)/(((data!$AG$1+data!$AG$2)/2)+237.3))))))-1)*1000-(0.622/((101325/('Mini Canal'!$J$13*611*EXP(17.27*(data!$AG$3/(data!$AG$3+237.3))))))-1)*1000))/(1005*(((data!$AG$1+data!$AG$2)/2)-data!$AG$3)))))))) -> 0 | AT57: 0 | AU57: 0 | AV57: 0 | AW57: 0.12 | AX57: 0 | AY57: 0 | AZ57: 0 | BB57: 0 | BC57: 0 | BD57: 0 | BE57: 0 | BG57: 0 | BH57: 0 | BI57: 0 | BJ57: 0 | BM57: 0.001382333883 | BN57: 0.0003329081633 | BO57: 1.723172228 | BP57: 1 | BR57: 190 | BT57: 190 | BV57: 190
A58: 970182 | B58: 9 | C58: 70 | D58: 2 | E58: 18 | F58: =IF($E58=14,4,IF($E58=18,9,IF($E58=26,9,IF($E58=34,14,IF($E58=42,19,))))) -> 9 | G58: 0 | H58: 0 | I58: 0 | J58: 0.0 | K58: 90 | L58: 0 | M58: 0 | N58: 0 | O58: 1.362 | P58: 1.1 | Q58: 1.1 | R58: 1.1 | S58: 13 | T58: 0 | U58: 0 | V58: 0 | W58: 2 | X58: 0 | Y58: 0 | Z58: 0 | AA58: =0.0098*(($BM58*(W58^$BO58)*($C58-14.4)*$BP58)+($BN58*W58*W58)) -> 0.003101204865 | AB58: 0 | AC58: =0.0098*(($BM58*(Y58^$BO58)*($C58-14.4)*$BP58)+($BN58*Y58*Y58)) -> 0 | AD58: =0.0098*(($BM58*(Z58^$BO58)*($C58-14.4)*$BP58)+($BN58*Z58*Z58)) -> 0 | AE58: 0 | AF58: 0 | AG58: 0 | AH58: 0.98 | AI58: 0.98 | AJ58: 0.98 | AK58: 0 | AL58: 0 | AM58: 0 | AN58: 0 | AO58: 0 | AP58: 0 | AQ58: =(AK58/(IF((237.3*LN(('Mini Canal'!$J$13*EXP(17.27*(data!$AG$3/(data!$AG$3+237.3))))))/(17.27-LN(('Mini Canal'!$J$13*EXP(17.27*(data!$AG$3/(data!$AG$3+237.3))))))<((data!$AG$1+data!$AG$2)/2),1,IF(1/(1+((2258*((0.622/((101325/(1*611*EXP(17.27*(((data!$AG$1+data!$AG$2)/2)/(((data!$AG$1+data!$AG$2)/2)+237.3))))))-1)*1000-(0.622/((101325/('Mini Canal'!$J$13*611*EXP(17.27*(data!$AG$3/(data!$AG$3+237.3))))))-1)*1000))/(1005*(((data!$AG$1+data!$AG$2)/2)-data!$AG$3))))>1,1,1/(1+((2258*((0.622/((101325/(1*611*EXP(17.27*(((data!$AG$1+data!$AG$2)/2)/(((data!$AG$1+data!$AG$2)/2)+237.3))))))-1)*1000-(0.622/((101325/('Mini Canal'!$J$13*611*EXP(17.27*(data!$AG$3/(data!$AG$3+237.3))))))-1)*1000))/(1005*(((data!$AG$1+data!$AG$2)/2)-data!$AG$3)))))))) -> 0 | AR58: =(AL58/(IF((237.3*LN(('Mini Canal'!$J$13*EXP(17.27*(data!$AG$3/(data!$AG$3+237.3))))))/(17.27-LN(('Mini Canal'!$J$13*EXP(17.27*(data!$AG$3/(data!$AG$3+237.3))))))<((data!$AG$1+data!$AG$2)/2),1,IF(1/(1+((2258*((0.622/((101325/(1*611*EXP(17.27*(((data!$AG$1+data!$AG$2)/2)/(((data!$AG$1+data!$AG$2)/2)+237.3))))))-1)*1000-(0.622/((101325/('Mini Canal'!$J$13*611*EXP(17.27*(data!$AG$3/(data!$AG$3+237.3))))))-1)*1000))/(1005*(((data!$AG$1+data!$AG$2)/2)-data!$AG$3))))>1,1,1/(1+((2258*((0.622/((101325/(1*611*EXP(17.27*(((data!$AG$1+data!$AG$2)/2)/(((data!$AG$1+data!$AG$2)/2)+237.3))))))-1)*1000-(0.622/((101325/('Mini Canal'!$J$13*611*EXP(17.27*(data!$AG$3/(data!$AG$3+237.3))))))-1)*1000))/(1005*(((data!$AG$1+data!$AG$2)/2)-data!$AG$3)))))))) -> 0 | AS58: =(AM58/(IF((237.3*LN(('Mini Canal'!$J$13*EXP(17.27*(data!$AG$3/(data!$AG$3+237.3))))))/(17.27-LN(('Mini Canal'!$J$13*EXP(17.27*(data!$AG$3/(data!$AG$3+237.3))))))<((data!$AG$1+data!$AG$2)/2),1,IF(1/(1+((2258*((0.622/((101325/(1*611*EXP(17.27*(((data!$AG$1+data!$AG$2)/2)/(((data!$AG$1+data!$AG$2)/2)+237.3))))))-1)*1000-(0.622/((101325/('Mini Canal'!$J$13*611*EXP(17.27*(data!$AG$3/(data!$AG$3+237.3))))))-1)*1000))/(1005*(((data!$AG$1+data!$AG$2)/2)-data!$AG$3))))>1,1,1/(1+((2258*((0.622/((101325/(1*611*EXP(17.27*(((data!$AG$1+data!$AG$2)/2)/(((data!$AG$1+data!$AG$2)/2)+237.3))))))-1)*1000-(0.622/((101325/('Mini Canal'!$J$13*611*EXP(17.27*(data!$AG$3/(data!$AG$3+237.3))))))-1)*1000))/(1005*(((data!$AG$1+data!$AG$2)/2)-data!$AG$3)))))))) -> 0 | AT58: 0 | AU58: 0 | AV58: 0 | AW58: 0.23 | AX58: 0 | AY58: 0 | AZ58: 0 | BB58: 0 | BC58: 0 | BD58: 0 | BE58: 0 | BG58: 0 | BH58: 0 | BI58: 0 | BJ58: 0 | BM58: 0.000805344706 | BN58: 0.0003979505047 | BO58: 1.813864716 | BP58: 2 | BR58: 210 | BT58: 210 | BV58: 210
A59: 970262 | B59: 9 | C59: 70 | D59: 2 | E59: 26 | F59: 9 | G59: 0 | H59: 0 | I59: 0 | J59: 0.0 | K59: 119 | L59: 0 | M59: 0 | N59: 0 | O59: 1.362 | P59: 1.1 | Q59: 1.1 | R59: 1.1 | S59: 18 | T59: 0 | U59: 0 | V59: 0 | W59: 3 | X59: 0 | Y59: 0 | Z59: 0 | AA59: 0.006473026711 | AB59: 0 | AC59: 0 | AD59: 0 | AE59: 0 | AF59: 0 | AG59: 0 | AH59: 0.98 | AI59: 0.98 | AJ59: 0.98 | AK59: 0 | AL59: 0 | AM59: 0 | AN59: 0 | AO59: 0 | AP59: 0 | AQ59: =(AK59/(IF((237.3*LN(('Mini Canal'!$J$13*EXP(17.27*(data!$AG$3/(data!$AG$3+237.3))))))/(17.27-LN(('Mini Canal'!$J$13*EXP(17.27*(data!$AG$3/(data!$AG$3+237.3))))))<((data!$AG$1+data!$AG$2)/2),1,IF(1/(1+((2258*((0.622/((101325/(1*611*EXP(17.27*(((data!$AG$1+data!$AG$2)/2)/(((data!$AG$1+data!$AG$2)/2)+237.3))))))-1)*1000-(0.622/((101325/('Mini Canal'!$J$13*611*EXP(17.27*(data!$AG$3/(data!$AG$3+237.3))))))-1)*1000))/(1005*(((data!$AG$1+data!$AG$2)/2)-data!$AG$3))))>1,1,1/(1+((2258*((0.622/((101325/(1*611*EXP(17.27*(((data!$AG$1+data!$AG$2)/2)/(((data!$AG$1+data!$AG$2)/2)+237.3))))))-1)*1000-(0.622/((101325/('Mini Canal'!$J$13*611*EXP(17.27*(data!$AG$3/(data!$AG$3+237.3))))))-1)*1000))/(1005*(((data!$AG$1+data!$AG$2)/2)-data!$AG$3)))))))) -> 0 | AR59: =(AL59/(IF((237.3*LN(('Mini Canal'!$J$13*EXP(17.27*(data!$AG$3/(data!$AG$3+237.3))))))/(17.27-LN(('Mini Canal'!$J$13*EXP(17.27*(data!$AG$3/(data!$AG$3+237.3))))))<((data!$AG$1+data!$AG$2)/2),1,IF(1/(1+((2258*((0.622/((101325/(1*611*EXP(17.27*(((data!$AG$1+data!$AG$2)/2)/(((data!$AG$1+data!$AG$2)/2)+237.3))))))-1)*1000-(0.622/((101325/('Mini Canal'!$J$13*611*EXP(17.27*(data!$AG$3/(data!$AG$3+237.3))))))-1)*1000))/(1005*(((data!$AG$1+data!$AG$2)/2)-data!$AG$3))))>1,1,1/(1+((2258*((0.622/((101325/(1*611*EXP(17.27*(((data!$AG$1+data!$AG$2)/2)/(((data!$AG$1+data!$AG$2)/2)+237.3))))))-1)*1000-(0.622/((101325/('Mini Canal'!$J$13*611*EXP(17.27*(data!$AG$3/(data!$AG$3+237.3))))))-1)*1000))/(1005*(((data!$AG$1+data!$AG$2)/2)-data!$AG$3)))))))) -> 0 | AS59: =(AM59/(IF((237.3*LN(('Mini Canal'!$J$13*EXP(17.27*(data!$AG$3/(data!$AG$3+237.3))))))/(17.27-LN(('Mini Canal'!$J$13*EXP(17.27*(data!$AG$3/(data!$AG$3+237.3))))))<((data!$AG$1+data!$AG$2)/2),1,IF(1/(1+((2258*((0.622/((101325/(1*611*EXP(17.27*(((data!$AG$1+data!$AG$2)/2)/(((data!$AG$1+data!$AG$2)/2)+237.3))))))-1)*1000-(0.622/((101325/('Mini Canal'!$J$13*611*EXP(17.27*(data!$AG$3/(data!$AG$3+237.3))))))-1)*1000))/(1005*(((data!$AG$1+data!$AG$2)/2)-data!$AG$3))))>1,1,1/(1+((2258*((0.622/((101325/(1*611*EXP(17.27*(((data!$AG$1+data!$AG$2)/2)/(((data!$AG$1+data!$AG$2)/2)+237.3))))))-1)*1000-(0.622/((101325/('Mini Canal'!$J$13*611*EXP(17.27*(data!$AG$3/(data!$AG$3+237.3))))))-1)*1000))/(1005*(((data!$AG$1+data!$AG$2)/2)-data!$AG$3)))))))) -> 0 | AT59: 0 | AU59: 0 | AV59: 0 | AW59: 0.23 | AX59: 0 | AY59: 0 | AZ59: 0 | BB59: 0 | BC59: 0 | BD59: 0 | BE59: 0 | BG59: 0 | BH59: 0 | BI59: 0 | BJ59: 0 | BM59: 0.000805344706 | BN59: 0.0003979505047 | BO59: 1.813864716 | BP59: 2 | BR59: 230 | BT59: 230 | BV59: 230
A60: 970342 | B60: 9 | C60: 70 | D60: 2 | E60: 34 | F60: 14 | G60: 0 | H60: 0 | I60: 0 | J60: 0.0 | K60: 154 | L60: 0 | M60: 0 | N60: 0 | O60: 1.362 | P60: 1.1 | Q60: 1.1 | R60: 1.1 | S60: 23 | T60: 0 | U60: 0 | V60: 0 | W60: 4 | X60: 0 | Y60: 0 | Z60: 0 | AA60: 0.033277999 | AB60: 0 | AC60: 0 | AD60: 0 | AE60: 0 | AF60: 0 | AG60: 0 | AH60: 0.98 | AI60: 0.98 | AJ60: 0.98 | AK60: 0 | AL60: 0 | AM60: 0 | AN60: 0 | AO60: 0 | AP60: 0 | AQ60: =(AK60/(IF((237.3*LN(('Mini Canal'!$J$13*EXP(17.27*(data!$AG$3/(data!$AG$3+237.3))))))/(17.27-LN(('Mini Canal'!$J$13*EXP(17.27*(data!$AG$3/(data!$AG$3+237.3))))))<((data!$AG$1+data!$AG$2)/2),1,IF(1/(1+((2258*((0.622/((101325/(1*611*EXP(17.27*(((data!$AG$1+data!$AG$2)/2)/(((data!$AG$1+data!$AG$2)/2)+237.3))))))-1)*1000-(0.622/((101325/('Mini Canal'!$J$13*611*EXP(17.27*(data!$AG$3/(data!$AG$3+237.3))))))-1)*1000))/(1005*(((data!$AG$1+data!$AG$2)/2)-data!$AG$3))))>1,1,1/(1+((2258*((0.622/((101325/(1*611*EXP(17.27*(((data!$AG$1+data!$AG$2)/2)/(((data!$AG$1+data!$AG$2)/2)+237.3))))))-1)*1000-(0.622/((101325/('Mini Canal'!$J$13*611*EXP(17.27*(data!$AG$3/(data!$AG$3+237.3))))))-1)*1000))/(1005*(((data!$AG$1+data!$AG$2)/2)-data!$AG$3)))))))) -> 0 | AR60: =(AL60/(IF((237.3*LN(('Mini Canal'!$J$13*EXP(17.27*(data!$AG$3/(data!$AG$3+237.3))))))/(17.27-LN(('Mini Canal'!$J$13*EXP(17.27*(data!$AG$3/(data!$AG$3+237.3))))))<((data!$AG$1+data!$AG$2)/2),1,IF(1/(1+((2258*((0.622/((101325/(1*611*EXP(17.27*(((data!$AG$1+data!$AG$2)/2)/(((data!$AG$1+data!$AG$2)/2)+237.3))))))-1)*1000-(0.622/((101325/('Mini Canal'!$J$13*611*EXP(17.27*(data!$AG$3/(data!$AG$3+237.3))))))-1)*1000))/(1005*(((data!$AG$1+data!$AG$2)/2)-data!$AG$3))))>1,1,1/(1+((2258*((0.622/((101325/(1*611*EXP(17.27*(((data!$AG$1+data!$AG$2)/2)/(((data!$AG$1+data!$AG$2)/2)+237.3))))))-1)*1000-(0.622/((101325/('Mini Canal'!$J$13*611*EXP(17.27*(data!$AG$3/(data!$AG$3+237.3))))))-1)*1000))/(1005*(((data!$AG$1+data!$AG$2)/2)-data!$AG$3)))))))) -> 0 | AS60: =(AM60/(IF((237.3*LN(('Mini Canal'!$J$13*EXP(17.27*(data!$AG$3/(data!$AG$3+237.3))))))/(17.27-LN(('Mini Canal'!$J$13*EXP(17.27*(data!$AG$3/(data!$AG$3+237.3))))))<((data!$AG$1+data!$AG$2)/2),1,IF(1/(1+((2258*((0.622/((101325/(1*611*EXP(17.27*(((data!$AG$1+data!$AG$2)/2)/(((data!$AG$1+data!$AG$2)/2)+237.3))))))-1)*1000-(0.622/((101325/('Mini Canal'!$J$13*611*EXP(17.27*(data!$AG$3/(data!$AG$3+237.3))))))-1)*1000))/(1005*(((data!$AG$1+data!$AG$2)/2)-data!$AG$3))))>1,1,1/(1+((2258*((0.622/((101325/(1*611*EXP(17.27*(((data!$AG$1+data!$AG$2)/2)/(((data!$AG$1+data!$AG$2)/2)+237.3))))))-1)*1000-(0.622/((101325/('Mini Canal'!$J$13*611*EXP(17.27*(data!$AG$3/(data!$AG$3+237.3))))))-1)*1000))/(1005*(((data!$AG$1+data!$AG$2)/2)-data!$AG$3)))))))) -> 0 | AT60: 0 | AU60: 0 | AV60: 0 | AW60: 0.35 | AX60: 0 | AY60: 0 | AZ60: 0 | BB60: 0 | BC60: 0 | BD60: 0 | BE60: 0 | BG60: 0 | BH60: 0 | BI60: 0 | BJ60: 0 | BM60: 0.002558239829 | BN60: 0.0005616169468 | BO60: 1.494274772 | BP60: 3 | BR60: 250 | BT60: 250 | BV60: 250
A61: 970422 | B61: 9 | C61: 70 | D61: 2 | E61: 42 | F61: 19 | G61: 0 | H61: 0 | I61: 0 | J61: 0.0 | K61: 222 | L61: 0 | M61: 0 | N61: 0 | O61: 1.362 | P61: 1.1 | Q61: 1.1 | R61: 1.1 | S61: 33 | T61: 0 | U61: 0 | V61: 0 | W61: 6 | X61: 0 | Y61: 0 | Z61: 0 | AA61: 0.1092875231 | AB61: 0 | AC61: 0 | AD61: 0 | AE61: 0 | AF61: 0 | AG61: 0 | AH61: 0.98 | AI61: 0.98 | AJ61: 0.98 | AK61: 0 | AL61: 0 | AM61: 0 | AN61: 0 | AO61: 0 | AP61: 0 | AQ61: =(AK61/(IF((237.3*LN(('Mini Canal'!$J$13*EXP(17.27*(data!$AG$3/(data!$AG$3+237.3))))))/(17.27-LN(('Mini Canal'!$J$13*EXP(17.27*(data!$AG$3/(data!$AG$3+237.3))))))<((data!$AG$1+data!$AG$2)/2),1,IF(1/(1+((2258*((0.622/((101325/(1*611*EXP(17.27*(((data!$AG$1+data!$AG$2)/2)/(((data!$AG$1+data!$AG$2)/2)+237.3))))))-1)*1000-(0.622/((101325/('Mini Canal'!$J$13*611*EXP(17.27*(data!$AG$3/(data!$AG$3+237.3))))))-1)*1000))/(1005*(((data!$AG$1+data!$AG$2)/2)-data!$AG$3))))>1,1,1/(1+((2258*((0.622/((101325/(1*611*EXP(17.27*(((data!$AG$1+data!$AG$2)/2)/(((data!$AG$1+data!$AG$2)/2)+237.3))))))-1)*1000-(0.622/((101325/('Mini Canal'!$J$13*611*EXP(17.27*(data!$AG$3/(data!$AG$3+237.3))))))-1)*1000))/(1005*(((data!$AG$1+data!$AG$2)/2)-data!$AG$3)))))))) -> 0 | AR61: =(AL61/(IF((237.3*LN(('Mini Canal'!$J$13*EXP(17.27*(data!$AG$3/(data!$AG$3+237.3))))))/(17.27-LN(('Mini Canal'!$J$13*EXP(17.27*(data!$AG$3/(data!$AG$3+237.3))))))<((data!$AG$1+data!$AG$2)/2),1,IF(1/(1+((2258*((0.622/((101325/(1*611*EXP(17.27*(((data!$AG$1+data!$AG$2)/2)/(((data!$AG$1+data!$AG$2)/2)+237.3))))))-1)*1000-(0.622/((101325/('Mini Canal'!$J$13*611*EXP(17.27*(data!$AG$3/(data!$AG$3+237.3))))))-1)*1000))/(1005*(((data!$AG$1+data!$AG$2)/2)-data!$AG$3))))>1,1,1/(1+((2258*((0.622/((101325/(1*611*EXP(17.27*(((data!$AG$1+data!$AG$2)/2)/(((data!$AG$1+data!$AG$2)/2)+237.3))))))-1)*1000-(0.622/((101325/('Mini Canal'!$J$13*611*EXP(17.27*(data!$AG$3/(data!$AG$3+237.3))))))-1)*1000))/(1005*(((data!$AG$1+data!$AG$2)/2)-data!$AG$3)))))))) -> 0 | AS61: =(AM61/(IF((237.3*LN(('Mini Canal'!$J$13*EXP(17.27*(data!$AG$3/(data!$AG$3+237.3))))))/(17.27-LN(('Mini Canal'!$J$13*EXP(17.27*(data!$AG$3/(data!$AG$3+237.3))))))<((data!$AG$1+data!$AG$2)/2),1,IF(1/(1+((2258*((0.622/((101325/(1*611*EXP(17.27*(((data!$AG$1+data!$AG$2)/2)/(((data!$AG$1+data!$AG$2)/2)+237.3))))))-1)*1000-(0.622/((101325/('Mini Canal'!$J$13*611*EXP(17.27*(data!$AG$3/(data!$AG$3+237.3))))))-1)*1000))/(1005*(((data!$AG$1+data!$AG$2)/2)-data!$AG$3))))>1,1,1/(1+((2258*((0.622/((101325/(1*611*EXP(17.27*(((data!$AG$1+data!$AG$2)/2)/(((data!$AG$1+data!$AG$2)/2)+237.3))))))-1)*1000-(0.622/((101325/('Mini Canal'!$J$13*611*EXP(17.27*(data!$AG$3/(data!$AG$3+237.3))))))-1)*1000))/(1005*(((data!$AG$1+data!$AG$2)/2)-data!$AG$3)))))))) -> 0 | AT61: 0 | AU61: 0 | AV61: 0 | AW61: 0.47 | AX61: 0 | AY61: 0 | AZ61: 0 | BB61: 0 | BC61: 0 | BD61: 0 | BE61: 0 | BG61: 0 | BH61: 0 | BI61: 0 | BJ61: 0 | BM61: 0.01161629289 | BN61: 0.001655322747 | BO61: 1.586934682 | BP61: 1 | BR61: 270 | BT61: 270 | BV61: 270
A62: 980142 | B62: 9 | C62: 80 | D62: 2 | E62: 14 | F62: 4 | G62: 0 | H62: 0 | I62: 0 | J62: 0.0 | K62: 95 | L62: 0 | M62: 0 | N62: 0 | O62: 1.362 | P62: 1.1 | Q62: 1.1 | R62: 1.1 | S62: 14 | T62: 0 | U62: 0 | V62: 0 | W62: 2 | X62: 0 | Y62: 0 | Z62: 0 | AA62: 0.002947112742 | AB62: 0 | AC62: 0 | AD62: 0 | AE62: 0 | AF62: 0 | AG62: 0 | AH62: 0.98 | AI62: 0.98 | AJ62: 0.98 | AK62: 0 | AL62: 0 | AM62: 0 | AN62: 0 | AO62: 0 | AP62: 0 | AQ62: =(AK62/(IF((237.3*LN(('Mini Canal'!$J$13*EXP(17.27*(data!$AG$3/(data!$AG$3+237.3))))))/(17.27-LN(('Mini Canal'!$J$13*EXP(17.27*(data!$AG$3/(data!$AG$3+237.3))))))<((data!$AG$1+data!$AG$2)/2),1,IF(1/(1+((2258*((0.622/((101325/(1*611*EXP(17.27*(((data!$AG$1+data!$AG$2)/2)/(((data!$AG$1+data!$AG$2)/2)+237.3))))))-1)*1000-(0.622/((101325/('Mini Canal'!$J$13*611*EXP(17.27*(data!$AG$3/(data!$AG$3+237.3))))))-1)*1000))/(1005*(((data!$AG$1+data!$AG$2)/2)-data!$AG$3))))>1,1,1/(1+((2258*((0.622/((101325/(1*611*EXP(17.27*(((data!$AG$1+data!$AG$2)/2)/(((data!$AG$1+data!$AG$2)/2)+237.3))))))-1)*1000-(0.622/((101325/('Mini Canal'!$J$13*611*EXP(17.27*(data!$AG$3/(data!$AG$3+237.3))))))-1)*1000))/(1005*(((data!$AG$1+data!$AG$2)/2)-data!$AG$3)))))))) -> 0 | AR62: =(AL62/(IF((237.3*LN(('Mini Canal'!$J$13*EXP(17.27*(data!$AG$3/(data!$AG$3+237.3))))))/(17.27-LN(('Mini Canal'!$J$13*EXP(17.27*(data!$AG$3/(data!$AG$3+237.3))))))<((data!$AG$1+data!$AG$2)/2),1,IF(1/(1+((2258*((0.622/((101325/(1*611*EXP(17.27*(((data!$AG$1+data!$AG$2)/2)/(((data!$AG$1+data!$AG$2)/2)+237.3))))))-1)*1000-(0.622/((101325/('Mini Canal'!$J$13*611*EXP(17.27*(data!$AG$3/(data!$AG$3+237.3))))))-1)*1000))/(1005*(((data!$AG$1+data!$AG$2)/2)-data!$AG$3))))>1,1,1/(1+((2258*((0.622/((101325/(1*611*EXP(17.27*(((data!$AG$1+data!$AG$2)/2)/(((data!$AG$1+data!$AG$2)/2)+237.3))))))-1)*1000-(0.622/((101325/('Mini Canal'!$J$13*611*EXP(17.27*(data!$AG$3/(data!$AG$3+237.3))))))-1)*1000))/(1005*(((data!$AG$1+data!$AG$2)/2)-data!$AG$3)))))))) -> 0 | AS62: =(AM62/(IF((237.3*LN(('Mini Canal'!$J$13*EXP(17.27*(data!$AG$3/(data!$AG$3+237.3))))))/(17.27-LN(('Mini Canal'!$J$13*EXP(17.27*(data!$AG$3/(data!$AG$3+237.3))))))<((data!$AG$1+data!$AG$2)/2),1,IF(1/(1+((2258*((0.622/((101325/(1*611*EXP(17.27*(((data!$AG$1+data!$AG$2)/2)/(((data!$AG$1+data!$AG$2)/2)+237.3))))))-1)*1000-(0.622/((101325/('Mini Canal'!$J$13*611*EXP(17.27*(data!$AG$3/(data!$AG$3+237.3))))))-1)*1000))/(1005*(((data!$AG$1+data!$AG$2)/2)-data!$AG$3))))>1,1,1/(1+((2258*((0.622/((101325/(1*611*EXP(17.27*(((data!$AG$1+data!$AG$2)/2)/(((data!$AG$1+data!$AG$2)/2)+237.3))))))-1)*1000-(0.622/((101325/('Mini Canal'!$J$13*611*EXP(17.27*(data!$AG$3/(data!$AG$3+237.3))))))-1)*1000))/(1005*(((data!$AG$1+data!$AG$2)/2)-data!$AG$3)))))))) -> 0 | AT62: 0 | AU62: 0 | AV62: 0 | AW62: 0.13 | AX62: 0 | AY62: 0 | AZ62: 0 | BB62: 0 | BC62: 0 | BD62: 0 | BE62: 0 | BG62: 0 | BH62: 0 | BI62: 0 | BJ62: 0 | BM62: 0.001382333883 | BN62: 0.0003329081633 | BO62: 1.723172228 | BP62: 1 | BR62: 290 | BT62: 290 | BV62: 290
A63: 980182 | B63: 9 | C63: 80 | D63: 2 | E63: 18 | F63: 9 | G63: 0 | H63: 0 | I63: 0 | J63: 0.0 | K63: 113 | L63: 0 | M63: 0 | N63: 0 | O63: 1.362 | P63: 1.1 | Q63: 1.1 | R63: 1.1 | S63: 17 | T63: 0 | U63: 0 | V63: 0 | W63: 3 | X63: 0 | Y63: 0 | Z63: 0 | AA63: 0.007630927337 | AB63: 0 | AC63: 0 | AD63: 0 | AE63: 0 | AF63: 0 | AG63: 0 | AH63: 0.98 | AI63: 0.98 | AJ63: 0.98 | AK63: 0 | AL63: 0 | AM63: 0 | AN63: 0 | AO63: 0 | AP63: 0 | AQ63: =(AK63/(IF((237.3*LN(('Mini Canal'!$J$13*EXP(17.27*(data!$AG$3/(data!$AG$3+237.3))))))/(17.27-LN(('Mini Canal'!$J$13*EXP(17.27*(data!$AG$3/(data!$AG$3+237.3))))))<((data!$AG$1+data!$AG$2)/2),1,IF(1/(1+((2258*((0.622/((101325/(1*611*EXP(17.27*(((data!$AG$1+data!$AG$2)/2)/(((data!$AG$1+data!$AG$2)/2)+237.3))))))-1)*1000-(0.622/((101325/('Mini Canal'!$J$13*611*EXP(17.27*(data!$AG$3/(data!$AG$3+237.3))))))-1)*1000))/(1005*(((data!$AG$1+data!$AG$2)/2)-data!$AG$3))))>1,1,1/(1+((2258*((0.622/((101325/(1*611*EXP(17.27*(((data!$AG$1+data!$AG$2)/2)/(((data!$AG$1+data!$AG$2)/2)+237.3))))))-1)*1000-(0.622/((101325/('Mini Canal'!$J$13*611*EXP(17.27*(data!$AG$3/(data!$AG$3+237.3))))))-1)*1000))/(1005*(((data!$AG$1+data!$AG$2)/2)-data!$AG$3)))))))) -> 0 | AR63: =(AL63/(IF((237.3*LN(('Mini Canal'!$J$13*EXP(17.27*(data!$AG$3/(data!$AG$3+237.3))))))/(17.27-LN(('Mini Canal'!$J$13*EXP(17.27*(data!$AG$3/(data!$AG$3+237.3))))))<((data!$AG$1+data!$AG$2)/2),1,IF(1/(1+((2258*((0.622/((101325/(1*611*EXP(17.27*(((data!$AG$1+data!$AG$2)/2)/(((data!$AG$1+data!$AG$2)/2)+237.3))))))-1)*1000-(0.622/((101325/('Mini Canal'!$J$13*611*EXP(17.27*(data!$AG$3/(data!$AG$3+237.3))))))-1)*1000))/(1005*(((data!$AG$1+data!$AG$2)/2)-data!$AG$3))))>1,1,1/(1+((2258*((0.622/((101325/(1*611*EXP(17.27*(((data!$AG$1+data!$AG$2)/2)/(((data!$AG$1+data!$AG$2)/2)+237.3))))))-1)*1000-(0.622/((101325/('Mini Canal'!$J$13*611*EXP(17.27*(data!$AG$3/(data!$AG$3+237.3))))))-1)*1000))/(1005*(((data!$AG$1+data!$AG$2)/2)-data!$AG$3)))))))) -> 0 | AS63: =(AM63/(IF((237.3*LN(('Mini Canal'!$J$13*EXP(17.27*(data!$AG$3/(data!$AG$3+237.3))))))/(17.27-LN(('Mini Canal'!$J$13*EXP(17.27*(data!$AG$3/(data!$AG$3+237.3))))))<((data!$AG$1+data!$AG$2)/2),1,IF(1/(1+((2258*((0.622/((101325/(1*611*EXP(17.27*(((data!$AG$1+data!$AG$2)/2)/(((data!$AG$1+data!$AG$2)/2)+237.3))))))-1)*1000-(0.622/((101325/('Mini Canal'!$J$13*611*EXP(17.27*(data!$AG$3/(data!$AG$3+237.3))))))-1)*1000))/(1005*(((data!$AG$1+data!$AG$2)/2)-data!$AG$3))))>1,1,1/(1+((2258*((0.622/((101325/(1*611*EXP(17.27*(((data!$AG$1+data!$AG$2)/2)/(((data!$AG$1+data!$AG$2)/2)+237.3))))))-1)*1000-(0.622/((101325/('Mini Canal'!$J$13*611*EXP(17.27*(data!$AG$3/(data!$AG$3+237.3))))))-1)*1000))/(1005*(((data!$AG$1+data!$AG$2)/2)-data!$AG$3)))))))) -> 0 | AT63: 0 | AU63: 0 | AV63: 0 | AW63: 0.27 | AX63: 0 | AY63: 0 | AZ63: 0 | BB63: 0 | BC63: 0 | BD63: 0 | BE63: 0 | BG63: 0 | BH63: 0 | BI63: 0 | BJ63: 0 | BM63: 0.000805344706 | BN63: 0.0003979505047 | BO63: 1.813864716 | BP63: 2 | BR63: 310 | BT63: 310 | BV63: 310
A64: 980262 | B64: 9 | C64: 80 | D64: 2 | E64: 26 | F64: 9 | G64: 0 | H64: 0 | I64: 0 | J64: 0.0 | K64: 148 | L64: 0 | M64: 0 | N64: 0 | O64: 1.362 | P64: 1.1 | Q64: 1.1 | R64: 1.1 | S64: 22 | T64: 0 | U64: 0 | V64: 0 | W64: 4 | X64: 0 | Y64: 0 | Z64: 0 | AA64: 0.01286201915 | AB64: 0 | AC64: 0 | AD64: 0 | AE64: 0 | AF64: 0 | AG64: 0 | AH64: 0.98 | AI64: 0.98 | AJ64: 0.98 | AK64: 0 | AL64: 0 | AM64: 0 | AN64: 0 | AO64: 0 | AP64: 0 | AQ64: =(AK64/(IF((237.3*LN(('Mini Canal'!$J$13*EXP(17.27*(data!$AG$3/(data!$AG$3+237.3))))))/(17.27-LN(('Mini Canal'!$J$13*EXP(17.27*(data!$AG$3/(data!$AG$3+237.3))))))<((data!$AG$1+data!$AG$2)/2),1,IF(1/(1+((2258*((0.622/((101325/(1*611*EXP(17.27*(((data!$AG$1+data!$AG$2)/2)/(((data!$AG$1+data!$AG$2)/2)+237.3))))))-1)*1000-(0.622/((101325/('Mini Canal'!$J$13*611*EXP(17.27*(data!$AG$3/(data!$AG$3+237.3))))))-1)*1000))/(1005*(((data!$AG$1+data!$AG$2)/2)-data!$AG$3))))>1,1,1/(1+((2258*((0.622/((101325/(1*611*EXP(17.27*(((data!$AG$1+data!$AG$2)/2)/(((data!$AG$1+data!$AG$2)/2)+237.3))))))-1)*1000-(0.622/((101325/('Mini Canal'!$J$13*611*EXP(17.27*(data!$AG$3/(data!$AG$3+237.3))))))-1)*1000))/(1005*(((data!$AG$1+data!$AG$2)/2)-data!$AG$3)))))))) -> 0 | AR64: =(AL64/(IF((237.3*LN(('Mini Canal'!$J$13*EXP(17.27*(data!$AG$3/(data!$AG$3+237.3))))))/(17.27-LN(('Mini Canal'!$J$13*EXP(17.27*(data!$AG$3/(data!$AG$3+237.3))))))<((data!$AG$1+data!$AG$2)/2),1,IF(1/(1+((2258*((0.622/((101325/(1*611*EXP(17.27*(((data!$AG$1+data!$AG$2)/2)/(((data!$AG$1+data!$AG$2)/2)+237.3))))))-1)*1000-(0.622/((101325/('Mini Canal'!$J$13*611*EXP(17.27*(data!$AG$3/(data!$AG$3+237.3))))))-1)*1000))/(1005*(((data!$AG$1+data!$AG$2)/2)-data!$AG$3))))>1,1,1/(1+((2258*((0.622/((101325/(1*611*EXP(17.27*(((data!$AG$1+data!$AG$2)/2)/(((data!$AG$1+data!$AG$2)/2)+237.3))))))-1)*1000-(0.622/((101325/('Mini Canal'!$J$13*611*EXP(17.27*(data!$AG$3/(data!$AG$3+237.3))))))-1)*1000))/(1005*(((data!$AG$1+data!$AG$2)/2)-data!$AG$3)))))))) -> 0 | AS64: =(AM64/(IF((237.3*LN(('Mini Canal'!$J$13*EXP(17.27*(data!$AG$3/(data!$AG$3+237.3))))))/(17.27-LN(('Mini Canal'!$J$13*EXP(17.27*(data!$AG$3/(data!$AG$3+237.3))))))<((data!$AG$1+data!$AG$2)/2),1,IF(1/(1+((2258*((0.622/((101325/(1*611*EXP(17.27*(((data!$AG$1+data!$AG$2)/2)/(((data!$AG$1+data!$AG$2)/2)+237.3))))))-1)*1000-(0.622/((101325/('Mini Canal'!$J$13*611*EXP(17.27*(data!$AG$3/(data!$AG$3+237.3))))))-1)*1000))/(1005*(((data!$AG$1+data!$AG$2)/2)-data!$AG$3))))>1,1,1/(1+((2258*((0.622/((101325/(1*611*EXP(17.27*(((data!$AG$1+data!$AG$2)/2)/(((data!$AG$1+data!$AG$2)/2)+237.3))))))-1)*1000-(0.622/((101325/('Mini Canal'!$J$13*611*EXP(17.27*(data!$AG$3/(data!$AG$3+237.3))))))-1)*1000))/(1005*(((data!$AG$1+data!$AG$2)/2)-data!$AG$3)))))))) -> 0 | AT64: 0 | AU64: 0 | AV64: 0 | AW64: 0.27 | AX64: 0 | AY64: 0 | AZ64: 0 | BB64: 0 | BC64: 0 | BD64: 0 | BE64: 0 | BG64: 0 | BH64: 0 | BI64: 0 | BJ64: 0 | BM64: 0.000805344706 | BN64: 0.0003979505047 | BO64: 1.813864716 | BP64: 2 | BR64: 330 | BT64: 330
A65: 980342 | B65: 9 | C65: 80 | D65: 2 | E65: 34 | F65: 14 | G65: 0 | H65: 0 | I65: 0 | J65: 0.0 | K65: 193 | L65: 0 | M65: 0 | N65: 0 | O65: 1.362 | P65: 1.1 | Q65: 1.1 | R65: 1.1 | S65: 29 | T65: 0 | U65: 0 | V65: 0 | W65: 5 | X65: 0 | Y65: 0 | Z65: 0 | AA65: 0.05479458091 | AB65: 0 | AC65: 0 | AD65: 0 | AE65: 0 | AF65: 0 | AG65: 0 | AH65: 0.98 | AI65: 0.98 | AJ65: 0.98 | AK65: 0 | AL65: 0 | AM65: 0 | AN65: 0 | AO65: 0 | AP65: 0 | AQ65: =(AK65/(IF((237.3*LN(('Mini Canal'!$J$13*EXP(17.27*(data!$AG$3/(data!$AG$3+237.3))))))/(17.27-LN(('Mini Canal'!$J$13*EXP(17.27*(data!$AG$3/(data!$AG$3+237.3))))))<((data!$AG$1+data!$AG$2)/2),1,IF(1/(1+((2258*((0.622/((101325/(1*611*EXP(17.27*(((data!$AG$1+data!$AG$2)/2)/(((data!$AG$1+data!$AG$2)/2)+237.3))))))-1)*1000-(0.622/((101325/('Mini Canal'!$J$13*611*EXP(17.27*(data!$AG$3/(data!$AG$3+237.3))))))-1)*1000))/(1005*(((data!$AG$1+data!$AG$2)/2)-data!$AG$3))))>1,1,1/(1+((2258*((0.622/((101325/(1*611*EXP(17.27*(((data!$AG$1+data!$AG$2)/2)/(((data!$AG$1+data!$AG$2)/2)+237.3))))))-1)*1000-(0.622/((101325/('Mini Canal'!$J$13*611*EXP(17.27*(data!$AG$3/(data!$AG$3+237.3))))))-1)*1000))/(1005*(((data!$AG$1+data!$AG$2)/2)-data!$AG$3)))))))) -> 0 | AR65: =(AL65/(IF((237.3*LN(('Mini Canal'!$J$13*EXP(17.27*(data!$AG$3/(data!$AG$3+237.3))))))/(17.27-LN(('Mini Canal'!$J$13*EXP(17.27*(data!$AG$3/(data!$AG$3+237.3))))))<((data!$AG$1+data!$AG$2)/2),1,IF(1/(1+((2258*((0.622/((101325/(1*611*EXP(17.27*(((data!$AG$1+data!$AG$2)/2)/(((data!$AG$1+data!$AG$2)/2)+237.3))))))-1)*1000-(0.622/((101325/('Mini Canal'!$J$13*611*EXP(17.27*(data!$AG$3/(data!$AG$3+237.3))))))-1)*1000))/(1005*(((data!$AG$1+data!$AG$2)/2)-data!$AG$3))))>1,1,1/(1+((2258*((0.622/((101325/(1*611*EXP(17.27*(((data!$AG$1+data!$AG$2)/2)/(((data!$AG$1+data!$AG$2)/2)+237.3))))))-1)*1000-(0.622/((101325/('Mini Canal'!$J$13*611*EXP(17.27*(data!$AG$3/(data!$AG$3+237.3))))))-1)*1000))/(1005*(((data!$AG$1+data!$AG$2)/2)-data!$AG$3)))))))) -> 0 | AS65: =(AM65/(IF((237.3*LN(('Mini Canal'!$J$13*EXP(17.27*(data!$AG$3/(data!$AG$3+237.3))))))/(17.27-LN(('Mini Canal'!$J$13*EXP(17.27*(data!$AG$3/(data!$AG$3+237.3))))))<((data!$AG$1+data!$AG$2)/2),1,IF(1/(1+((2258*((0.622/((101325/(1*611*EXP(17.27*(((data!$AG$1+data!$AG$2)/2)/(((data!$AG$1+data!$AG$2)/2)+237.3))))))-1)*1000-(0.622/((101325/('Mini Canal'!$J$13*611*EXP(17.27*(data!$AG$3/(data!$AG$3+237.3))))))-1)*1000))/(1005*(((data!$AG$1+data!$AG$2)/2)-data!$AG$3))))>1,1,1/(1+((2258*((0.622/((101325/(1*611*EXP(17.27*(((data!$AG$1+data!$AG$2)/2)/(((data!$AG$1+data!$AG$2)/2)+237.3))))))-1)*1000-(0.622/((101325/('Mini Canal'!$J$13*611*EXP(17.27*(data!$AG$3/(data!$AG$3+237.3))))))-1)*1000))/(1005*(((data!$AG$1+data!$AG$2)/2)-data!$AG$3)))))))) -> 0 | AT65: 0 | AU65: 0 | AV65: 0 | AW65: 0.40 | AX65: 0 | AY65: 0 | AZ65: 0 | BB65: 0 | BC65: 0 | BD65: 0 | BE65: 0 | BG65: 0 | BH65: 0 | BI65: 0 | BJ65: 0 | BM65: 0.002558239829 | BN65: 0.0005616169468 | BO65: 1.494274772 | BP65: 3 | BR65: 370 | BT65: 370
A66: 980422 | B66: 9 | C66: 80 | D66: 2 | E66: 42 | F66: 19 | G66: 0 | H66: 0 | I66: 0 | J66: 0.0 | K66: 278 | L66: 0 | M66: 0 | N66: 0 | O66: 1.362 | P66: 1.1 | Q66: 1.1 | R66: 1.1 | S66: 41 | T66: 0 | U66: 0 | V66: 0 | W66: 7 | X66: 0 | Y66: 0 | Z66: 0 | AA66: 0.1645944941 | AB66: 0 | AC66: 0 | AD66: 0 | AE66: 0 | AF66: 0 | AG66: 0 | AH66: 0.98 | AI66: 0.98 | AJ66: 0.98 | AK66: 0 | AL66: 0 | AM66: 0 | AN66: 0 | AO66: 0 | AP66: 0 | AQ66: =(AK66/(IF((237.3*LN(('Mini Canal'!$J$13*EXP(17.27*(data!$AG$3/(data!$AG$3+237.3))))))/(17.27-LN(('Mini Canal'!$J$13*EXP(17.27*(data!$AG$3/(data!$AG$3+237.3))))))<((data!$AG$1+data!$AG$2)/2),1,IF(1/(1+((2258*((0.622/((101325/(1*611*EXP(17.27*(((data!$AG$1+data!$AG$2)/2)/(((data!$AG$1+data!$AG$2)/2)+237.3))))))-1)*1000-(0.622/((101325/('Mini Canal'!$J$13*611*EXP(17.27*(data!$AG$3/(data!$AG$3+237.3))))))-1)*1000))/(1005*(((data!$AG$1+data!$AG$2)/2)-data!$AG$3))))>1,1,1/(1+((2258*((0.622/((101325/(1*611*EXP(17.27*(((data!$AG$1+data!$AG$2)/2)/(((data!$AG$1+data!$AG$2)/2)+237.3))))))-1)*1000-(0.622/((101325/('Mini Canal'!$J$13*611*EXP(17.27*(data!$AG$3/(data!$AG$3+237.3))))))-1)*1000))/(1005*(((data!$AG$1+data!$AG$2)/2)-data!$AG$3)))))))) -> 0 | AR66: =(AL66/(IF((237.3*LN(('Mini Canal'!$J$13*EXP(17.27*(data!$AG$3/(data!$AG$3+237.3))))))/(17.27-LN(('Mini Canal'!$J$13*EXP(17.27*(data!$AG$3/(data!$AG$3+237.3))))))<((data!$AG$1+data!$AG$2)/2),1,IF(1/(1+((2258*((0.622/((101325/(1*611*EXP(17.27*(((data!$AG$1+data!$AG$2)/2)/(((data!$AG$1+data!$AG$2)/2)+237.3))))))-1)*1000-(0.622/((101325/('Mini Canal'!$J$13*611*EXP(17.27*(data!$AG$3/(data!$AG$3+237.3))))))-1)*1000))/(1005*(((data!$AG$1+data!$AG$2)/2)-data!$AG$3))))>1,1,1/(1+((2258*((0.622/((101325/(1*611*EXP(17.27*(((data!$AG$1+data!$AG$2)/2)/(((data!$AG$1+data!$AG$2)/2)+237.3))))))-1)*1000-(0.622/((101325/('Mini Canal'!$J$13*611*EXP(17.27*(data!$AG$3/(data!$AG$3+237.3))))))-1)*1000))/(1005*(((data!$AG$1+data!$AG$2)/2)-data!$AG$3)))))))) -> 0 | AS66: =(AM66/(IF((237.3*LN(('Mini Canal'!$J$13*EXP(17.27*(data!$AG$3/(data!$AG$3+237.3))))))/(17.27-LN(('Mini Canal'!$J$13*EXP(17.27*(data!$AG$3/(data!$AG$3+237.3))))))<((data!$AG$1+data!$AG$2)/2),1,IF(1/(1+((2258*((0.622/((101325/(1*611*EXP(17.27*(((data!$AG$1+data!$AG$2)/2)/(((data!$AG$1+data!$AG$2)/2)+237.3))))))-1)*1000-(0.622/((101325/('Mini Canal'!$J$13*611*EXP(17.27*(data!$AG$3/(data!$AG$3+237.3))))))-1)*1000))/(1005*(((data!$AG$1+data!$AG$2)/2)-data!$AG$3))))>1,1,1/(1+((2258*((0.622/((101325/(1*611*EXP(17.27*(((data!$AG$1+data!$AG$2)/2)/(((data!$AG$1+data!$AG$2)/2)+237.3))))))-1)*1000-(0.622/((101325/('Mini Canal'!$J$13*611*EXP(17.27*(data!$AG$3/(data!$AG$3+237.3))))))-1)*1000))/(1005*(((data!$AG$1+data!$AG$2)/2)-data!$AG$3)))))))) -> 0 | AT66: 0 | AU66: 0 | AV66: 0 | AW66: 0.53 | AX66: 0 | AY66: 0 | AZ66: 0 | BB66: 0 | BC66: 0 | BD66: 0 | BE66: 0 | BG66: 0 | BH66: 0 | BI66: 0 | BJ66: 0 | BM66: 0.01161629289 | BN66: 0.001655322747 | BO66: 1.586934682 | BP66: 1 | BR66: 410 | BT66: 410
A67: 990142 | B67: 9 | C67: 90 | D67: 2 | E67: 14 | F67: 4 | G67: 0 | H67: 0 | I67: 0 | J67: 0.0 | K67: 114 | L67: 0 | M67: 0 | N67: 0 | O67: 1.362 | P67: 1.1 | Q67: 1.1 | R67: 1.1 | S67: 17 | T67: 0 | U67: 0 | V67: 0 | W67: 3 | X67: 0 | Y67: 0 | Z67: 0 | AA67: 0.006829581822 | AB67: 0 | AC67: 0 | AD67: 0 | AE67: 0 | AF67: 0 | AG67: 0 | AH67: 0.98 | AI67: 0.98 | AJ67: 0.98 | AK67: 0 | AL67: 0 | AM67: 0 | AN67: 0 | AO67: 0 | AP67: 0 | AQ67: =(AK67/(IF((237.3*LN(('Mini Canal'!$J$13*EXP(17.27*(data!$AG$3/(data!$AG$3+237.3))))))/(17.27-LN(('Mini Canal'!$J$13*EXP(17.27*(data!$AG$3/(data!$AG$3+237.3))))))<((data!$AG$1+data!$AG$2)/2),1,IF(1/(1+((2258*((0.622/((101325/(1*611*EXP(17.27*(((data!$AG$1+data!$AG$2)/2)/(((data!$AG$1+data!$AG$2)/2)+237.3))))))-1)*1000-(0.622/((101325/('Mini Canal'!$J$13*611*EXP(17.27*(data!$AG$3/(data!$AG$3+237.3))))))-1)*1000))/(1005*(((data!$AG$1+data!$AG$2)/2)-data!$AG$3))))>1,1,1/(1+((2258*((0.622/((101325/(1*611*EXP(17.27*(((data!$AG$1+data!$AG$2)/2)/(((data!$AG$1+data!$AG$2)/2)+237.3))))))-1)*1000-(0.622/((101325/('Mini Canal'!$J$13*611*EXP(17.27*(data!$AG$3/(data!$AG$3+237.3))))))-1)*1000))/(1005*(((data!$AG$1+data!$AG$2)/2)-data!$AG$3)))))))) -> 0 | AR67: =(AL67/(IF((237.3*LN(('Mini Canal'!$J$13*EXP(17.27*(data!$AG$3/(data!$AG$3+237.3))))))/(17.27-LN(('Mini Canal'!$J$13*EXP(17.27*(data!$AG$3/(data!$AG$3+237.3))))))<((data!$AG$1+data!$AG$2)/2),1,IF(1/(1+((2258*((0.622/((101325/(1*611*EXP(17.27*(((data!$AG$1+data!$AG$2)/2)/(((data!$AG$1+data!$AG$2)/2)+237.3))))))-1)*1000-(0.622/((101325/('Mini Canal'!$J$13*611*EXP(17.27*(data!$AG$3/(data!$AG$3+237.3))))))-1)*1000))/(1005*(((data!$AG$1+data!$AG$2)/2)-data!$AG$3))))>1,1,1/(1+((2258*((0.622/((101325/(1*611*EXP(17.27*(((data!$AG$1+data!$AG$2)/2)/(((data!$AG$1+data!$AG$2)/2)+237.3))))))-1)*1000-(0.622/((101325/('Mini Canal'!$J$13*611*EXP(17.27*(data!$AG$3/(data!$AG$3+237.3))))))-1)*1000))/(1005*(((data!$AG$1+data!$AG$2)/2)-data!$AG$3)))))))) -> 0 | AS67: =(AM67/(IF((237.3*LN(('Mini Canal'!$J$13*EXP(17.27*(data!$AG$3/(data!$AG$3+237.3))))))/(17.27-LN(('Mini Canal'!$J$13*EXP(17.27*(data!$AG$3/(data!$AG$3+237.3))))))<((data!$AG$1+data!$AG$2)/2),1,IF(1/(1+((2258*((0.622/((101325/(1*611*EXP(17.27*(((data!$AG$1+data!$AG$2)/2)/(((data!$AG$1+data!$AG$2)/2)+237.3))))))-1)*1000-(0.622/((101325/('Mini Canal'!$J$13*611*EXP(17.27*(data!$AG$3/(data!$AG$3+237.3))))))-1)*1000))/(1005*(((data!$AG$1+data!$AG$2)/2)-data!$AG$3))))>1,1,1/(1+((2258*((0.622/((101325/(1*611*EXP(17.27*(((data!$AG$1+data!$AG$2)/2)/(((data!$AG$1+data!$AG$2)/2)+237.3))))))-1)*1000-(0.622/((101325/('Mini Canal'!$J$13*611*EXP(17.27*(data!$AG$3/(data!$AG$3+237.3))))))-1)*1000))/(1005*(((data!$AG$1+data!$AG$2)/2)-data!$AG$3)))))))) -> 0 | AT67: 0 | AU67: 0 | AV67: 0 | AW67: 0.15 | AX67: 0 | AY67: 0 | AZ67: 0 | BB67: 0 | BC67: 0 | BD67: 0 | BE67: 0 | BG67: 0 | BH67: 0 | BI67: 0 | BJ67: 0 | BM67: 0.001382333883 | BN67: 0.0003329081633 | BO67: 1.723172228 | BP67: 1 | BR67: 450 | BT67: 450
A68: 990182 | B68: 9 | C68: 90 | D68: 2 | E68: 18 | F68: 9 | G68: 0 | H68: 0 | I68: 0 | J68: 0.0 | K68: 135 | L68: 0 | M68: 0 | N68: 0 | O68: 1.362 | P68: 1.1 | Q68: 1.1 | R68: 1.1 | S68: 20 | T68: 0 | U68: 0 | V68: 0 | W68: 3 | X68: 0 | Y68: 0 | Z68: 0 | AA68: 0.008788827962 | AB68: 0 | AC68: 0 | AD68: 0 | AE68: 0 | AF68: 0 | AG68: 0 | AH68: 0.98 | AI68: 0.98 | AJ68: 0.98 | AK68: 0 | AL68: 0 | AM68: 0 | AN68: 0 | AO68: 0 | AP68: 0 | AQ68: =(AK68/(IF((237.3*LN(('Mini Canal'!$J$13*EXP(17.27*(data!$AG$3/(data!$AG$3+237.3))))))/(17.27-LN(('Mini Canal'!$J$13*EXP(17.27*(data!$AG$3/(data!$AG$3+237.3))))))<((data!$AG$1+data!$AG$2)/2),1,IF(1/(1+((2258*((0.622/((101325/(1*611*EXP(17.27*(((data!$AG$1+data!$AG$2)/2)/(((data!$AG$1+data!$AG$2)/2)+237.3))))))-1)*1000-(0.622/((101325/('Mini Canal'!$J$13*611*EXP(17.27*(data!$AG$3/(data!$AG$3+237.3))))))-1)*1000))/(1005*(((data!$AG$1+data!$AG$2)/2)-data!$AG$3))))>1,1,1/(1+((2258*((0.622/((101325/(1*611*EXP(17.27*(((data!$AG$1+data!$AG$2)/2)/(((data!$AG$1+data!$AG$2)/2)+237.3))))))-1)*1000-(0.622/((101325/('Mini Canal'!$J$13*611*EXP(17.27*(data!$AG$3/(data!$AG$3+237.3))))))-1)*1000))/(1005*(((data!$AG$1+data!$AG$2)/2)-data!$AG$3)))))))) -> 0 | AR68: =(AL68/(IF((237.3*LN(('Mini Canal'!$J$13*EXP(17.27*(data!$AG$3/(data!$AG$3+237.3))))))/(17.27-LN(('Mini Canal'!$J$13*EXP(17.27*(data!$AG$3/(data!$AG$3+237.3))))))<((data!$AG$1+data!$AG$2)/2),1,IF(1/(1+((2258*((0.622/((101325/(1*611*EXP(17.27*(((data!$AG$1+data!$AG$2)/2)/(((data!$AG$1+data!$AG$2)/2)+237.3))))))-1)*1000-(0.622/((101325/('Mini Canal'!$J$13*611*EXP(17.27*(data!$AG$3/(data!$AG$3+237.3))))))-1)*1000))/(1005*(((data!$AG$1+data!$AG$2)/2)-data!$AG$3))))>1,1,1/(1+((2258*((0.622/((101325/(1*611*EXP(17.27*(((data!$AG$1+data!$AG$2)/2)/(((data!$AG$1+data!$AG$2)/2)+237.3))))))-1)*1000-(0.622/((101325/('Mini Canal'!$J$13*611*EXP(17.27*(data!$AG$3/(data!$AG$3+237.3))))))-1)*1000))/(1005*(((data!$AG$1+data!$AG$2)/2)-data!$AG$3)))))))) -> 0 | AS68: =(AM68/(IF((237.3*LN(('Mini Canal'!$J$13*EXP(17.27*(data!$AG$3/(data!$AG$3+237.3))))))/(17.27-LN(('Mini Canal'!$J$13*EXP(17.27*(data!$AG$3/(data!$AG$3+237.3))))))<((data!$AG$1+data!$AG$2)/2),1,IF(1/(1+((2258*((0.622/((101325/(1*611*EXP(17.27*(((data!$AG$1+data!$AG$2)/2)/(((data!$AG$1+data!$AG$2)/2)+237.3))))))-1)*1000-(0.622/((101325/('Mini Canal'!$J$13*611*EXP(17.27*(data!$AG$3/(data!$AG$3+237.3))))))-1)*1000))/(1005*(((data!$AG$1+data!$AG$2)/2)-data!$AG$3))))>1,1,1/(1+((2258*((0.622/((101325/(1*611*EXP(17.27*(((data!$AG$1+data!$AG$2)/2)/(((data!$AG$1+data!$AG$2)/2)+237.3))))))-1)*1000-(0.622/((101325/('Mini Canal'!$J$13*611*EXP(17.27*(data!$AG$3/(data!$AG$3+237.3))))))-1)*1000))/(1005*(((data!$AG$1+data!$AG$2)/2)-data!$AG$3)))))))) -> 0 | AT68: 0 | AU68: 0 | AV68: 0 | AW68: 0.30 | AX68: 0 | AY68: 0 | AZ68: 0 | BB68: 0 | BC68: 0 | BD68: 0 | BE68: 0 | BG68: 0 | BH68: 0 | BI68: 0 | BJ68: 0 | BM68: 0.000805344706 | BN68: 0.0003979505047 | BO68: 1.813864716 | BP68: 2 | BR68: 490 | BT68: 490
A69: 990262 | B69: 9 | C69: 90 | D69: 2 | E69: 26 | F69: 9 | G69: 0 | H69: 0 | I69: 0 | J69: 0.0 | K69: 178 | L69: 0 | M69: 0 | N69: 0 | O69: 1.362 | P69: 1.1 | Q69: 1.1 | R69: 1.1 | S69: 27 | T69: 0 | U69: 0 | V69: 0 | W69: 5 | X69: 0 | Y69: 0 | Z69: 0 | AA69: 0.02220790315 | AB69: 0 | AC69: 0 | AD69: 0 | AE69: 0 | AF69: 0 | AG69: 0 | AH69: 0.98 | AI69: 0.98 | AJ69: 0.98 | AK69: 0 | AL69: 0 | AM69: 0 | AN69: 0 | AO69: 0 | AP69: 0 | AQ69: =(AK69/(IF((237.3*LN(('Mini Canal'!$J$13*EXP(17.27*(data!$AG$3/(data!$AG$3+237.3))))))/(17.27-LN(('Mini Canal'!$J$13*EXP(17.27*(data!$AG$3/(data!$AG$3+237.3))))))<((data!$AG$1+data!$AG$2)/2),1,IF(1/(1+((2258*((0.622/((101325/(1*611*EXP(17.27*(((data!$AG$1+data!$AG$2)/2)/(((data!$AG$1+data!$AG$2)/2)+237.3))))))-1)*1000-(0.622/((101325/('Mini Canal'!$J$13*611*EXP(17.27*(data!$AG$3/(data!$AG$3+237.3))))))-1)*1000))/(1005*(((data!$AG$1+data!$AG$2)/2)-data!$AG$3))))>1,1,1/(1+((2258*((0.622/((101325/(1*611*EXP(17.27*(((data!$AG$1+data!$AG$2)/2)/(((data!$AG$1+data!$AG$2)/2)+237.3))))))-1)*1000-(0.622/((101325/('Mini Canal'!$J$13*611*EXP(17.27*(data!$AG$3/(data!$AG$3+237.3))))))-1)*1000))/(1005*(((data!$AG$1+data!$AG$2)/2)-data!$AG$3)))))))) -> 0 | AR69: =(AL69/(IF((237.3*LN(('Mini Canal'!$J$13*EXP(17.27*(data!$AG$3/(data!$AG$3+237.3))))))/(17.27-LN(('Mini Canal'!$J$13*EXP(17.27*(data!$AG$3/(data!$AG$3+237.3))))))<((data!$AG$1+data!$AG$2)/2),1,IF(1/(1+((2258*((0.622/((101325/(1*611*EXP(17.27*(((data!$AG$1+data!$AG$2)/2)/(((data!$AG$1+data!$AG$2)/2)+237.3))))))-1)*1000-(0.622/((101325/('Mini Canal'!$J$13*611*EXP(17.27*(data!$AG$3/(data!$AG$3+237.3))))))-1)*1000))/(1005*(((data!$AG$1+data!$AG$2)/2)-data!$AG$3))))>1,1,1/(1+((2258*((0.622/((101325/(1*611*EXP(17.27*(((data!$AG$1+data!$AG$2)/2)/(((data!$AG$1+data!$AG$2)/2)+237.3))))))-1)*1000-(0.622/((101325/('Mini Canal'!$J$13*611*EXP(17.27*(data!$AG$3/(data!$AG$3+237.3))))))-1)*1000))/(1005*(((data!$AG$1+data!$AG$2)/2)-data!$AG$3)))))))) -> 0 | AS69: =(AM69/(IF((237.3*LN(('Mini Canal'!$J$13*EXP(17.27*(data!$AG$3/(data!$AG$3+237.3))))))/(17.27-LN(('Mini Canal'!$J$13*EXP(17.27*(data!$AG$3/(data!$AG$3+237.3))))))<((data!$AG$1+data!$AG$2)/2),1,IF(1/(1+((2258*((0.622/((101325/(1*611*EXP(17.27*(((data!$AG$1+data!$AG$2)/2)/(((data!$AG$1+data!$AG$2)/2)+237.3))))))-1)*1000-(0.622/((101325/('Mini Canal'!$J$13*611*EXP(17.27*(data!$AG$3/(data!$AG$3+237.3))))))-1)*1000))/(1005*(((data!$AG$1+data!$AG$2)/2)-data!$AG$3))))>1,1,1/(1+((2258*((0.622/((101325/(1*611*EXP(17.27*(((data!$AG$1+data!$AG$2)/2)/(((data!$AG$1+data!$AG$2)/2)+237.3))))))-1)*1000-(0.622/((101325/('Mini Canal'!$J$13*611*EXP(17.27*(data!$AG$3/(data!$AG$3+237.3))))))-1)*1000))/(1005*(((data!$AG$1+data!$AG$2)/2)-data!$AG$3)))))))) -> 0 | AT69: 0 | AU69: 0 | AV69: 0 | AW69: 0.30 | AX69: 0 | AY69: 0 | AZ69: 0 | BB69: 0 | BC69: 0 | BD69: 0 | BE69: 0 | BG69: 0 | BH69: 0 | BI69: 0 | BJ69: 0 | BM69: 0.000805344706 | BN69: 0.0003979505047 | BO69: 1.813864716 | BP69: 2 | BR69: Type,ww | BS69: Liter/cm | BT69: k1 | BU69: k2 | BV69: x | BW69: t
A70: 990342 | B70: 9 | C70: 90 | D70: 2 | E70: 34 | F70: 14 | G70: 0 | H70: 0 | I70: 0 | J70: 0.0 | K70: 231 | L70: 0 | M70: 0 | N70: 0 | O70: 1.362 | P70: 1.1 | Q70: 1.1 | R70: 1.1 | S70: 34 | T70: 0 | U70: 0 | V70: 0 | W70: 6 | X70: 0 | Y70: 0 | Z70: 0 | AA70: 0.08291273656 | AB70: 0 | AC70: 0 | AD70: 0 | AE70: 0 | AF70: 0 | AG70: 0 | AH70: 0.98 | AI70: 0.98 | AJ70: 0.98 | AK70: 0 | AL70: 0 | AM70: 0 | AN70: 0 | AO70: 0 | AP70: 0 | AQ70: =(AK70/(IF((237.3*LN(('Mini Canal'!$J$13*EXP(17.27*(data!$AG$3/(data!$AG$3+237.3))))))/(17.27-LN(('Mini Canal'!$J$13*EXP(17.27*(data!$AG$3/(data!$AG$3+237.3))))))<((data!$AG$1+data!$AG$2)/2),1,IF(1/(1+((2258*((0.622/((101325/(1*611*EXP(17.27*(((data!$AG$1+data!$AG$2)/2)/(((data!$AG$1+data!$AG$2)/2)+237.3))))))-1)*1000-(0.622/((101325/('Mini Canal'!$J$13*611*EXP(17.27*(data!$AG$3/(data!$AG$3+237.3))))))-1)*1000))/(1005*(((data!$AG$1+data!$AG$2)/2)-data!$AG$3))))>1,1,1/(1+((2258*((0.622/((101325/(1*611*EXP(17.27*(((data!$AG$1+data!$AG$2)/2)/(((data!$AG$1+data!$AG$2)/2)+237.3))))))-1)*1000-(0.622/((101325/('Mini Canal'!$J$13*611*EXP(17.27*(data!$AG$3/(data!$AG$3+237.3))))))-1)*1000))/(1005*(((data!$AG$1+data!$AG$2)/2)-data!$AG$3)))))))) -> 0 | AR70: =(AL70/(IF((237.3*LN(('Mini Canal'!$J$13*EXP(17.27*(data!$AG$3/(data!$AG$3+237.3))))))/(17.27-LN(('Mini Canal'!$J$13*EXP(17.27*(data!$AG$3/(data!$AG$3+237.3))))))<((data!$AG$1+data!$AG$2)/2),1,IF(1/(1+((2258*((0.622/((101325/(1*611*EXP(17.27*(((data!$AG$1+data!$AG$2)/2)/(((data!$AG$1+data!$AG$2)/2)+237.3))))))-1)*1000-(0.622/((101325/('Mini Canal'!$J$13*611*EXP(17.27*(data!$AG$3/(data!$AG$3+237.3))))))-1)*1000))/(1005*(((data!$AG$1+data!$AG$2)/2)-data!$AG$3))))>1,1,1/(1+((2258*((0.622/((101325/(1*611*EXP(17.27*(((data!$AG$1+data!$AG$2)/2)/(((data!$AG$1+data!$AG$2)/2)+237.3))))))-1)*1000-(0.622/((101325/('Mini Canal'!$J$13*611*EXP(17.27*(data!$AG$3/(data!$AG$3+237.3))))))-1)*1000))/(1005*(((data!$AG$1+data!$AG$2)/2)-data!$AG$3)))))))) -> 0 | AS70: =(AM70/(IF((237.3*LN(('Mini Canal'!$J$13*EXP(17.27*(data!$AG$3/(data!$AG$3+237.3))))))/(17.27-LN(('Mini Canal'!$J$13*EXP(17.27*(data!$AG$3/(data!$AG$3+237.3))))))<((data!$AG$1+data!$AG$2)/2),1,IF(1/(1+((2258*((0.622/((101325/(1*611*EXP(17.27*(((data!$AG$1+data!$AG$2)/2)/(((data!$AG$1+data!$AG$2)/2)+237.3))))))-1)*1000-(0.622/((101325/('Mini Canal'!$J$13*611*EXP(17.27*(data!$AG$3/(data!$AG$3+237.3))))))-1)*1000))/(1005*(((data!$AG$1+data!$AG$2)/2)-data!$AG$3))))>1,1,1/(1+((2258*((0.622/((101325/(1*611*EXP(17.27*(((data!$AG$1+data!$AG$2)/2)/(((data!$AG$1+data!$AG$2)/2)+237.3))))))-1)*1000-(0.622/((101325/('Mini Canal'!$J$13*611*EXP(17.27*(data!$AG$3/(data!$AG$3+237.3))))))-1)*1000))/(1005*(((data!$AG$1+data!$AG$2)/2)-data!$AG$3)))))))) -> 0 | AT70: 0 | AU70: 0 | AV70: 0 | AW70: 0.45 | AX70: 0 | AY70: 0 | AZ70: 0 | BB70: 0 | BC70: 0 | BD70: 0 | BE70: 0 | BG70: 0 | BH70: 0 | BI70: 0 | BJ70: 0 | BM70: 0.002558239829 | BN70: 0.0005616169468 | BO70: 1.494274772 | BP70: 3 | BR70: 4 | BS70: =BS71/2 -> 0.0017 | BT70: 1.38E-03 | BU70: 3.33E-04 | BV70: 1.723172228 | BW70: 1
A71: 990422 | B71: 9 | C71: 90 | D71: 2 | E71: 42 | F71: 19 | G71: 0 | H71: 0 | I71: 0 | J71: 0.0 | K71: 333 | L71: 0 | M71: 0 | N71: 0 | O71: 1.362 | P71: 1.1 | Q71: 1.1 | R71: 1.1 | S71: 50 | T71: 0 | U71: 0 | V71: 0 | W71: 9 | X71: 0 | Y71: 0 | Z71: 0 | AA71: 0.2825921202 | AB71: 0 | AC71: 0 | AD71: 0 | AE71: 0 | AF71: 0 | AG71: 0 | AH71: 0.98 | AI71: 0.98 | AJ71: 0.98 | AK71: 0 | AL71: 0 | AM71: 0 | AN71: 0 | AO71: 0 | AP71: 0 | AQ71: =(AK71/(IF((237.3*LN(('Mini Canal'!$J$13*EXP(17.27*(data!$AG$3/(data!$AG$3+237.3))))))/(17.27-LN(('Mini Canal'!$J$13*EXP(17.27*(data!$AG$3/(data!$AG$3+237.3))))))<((data!$AG$1+data!$AG$2)/2),1,IF(1/(1+((2258*((0.622/((101325/(1*611*EXP(17.27*(((data!$AG$1+data!$AG$2)/2)/(((data!$AG$1+data!$AG$2)/2)+237.3))))))-1)*1000-(0.622/((101325/('Mini Canal'!$J$13*611*EXP(17.27*(data!$AG$3/(data!$AG$3+237.3))))))-1)*1000))/(1005*(((data!$AG$1+data!$AG$2)/2)-data!$AG$3))))>1,1,1/(1+((2258*((0.622/((101325/(1*611*EXP(17.27*(((data!$AG$1+data!$AG$2)/2)/(((data!$AG$1+data!$AG$2)/2)+237.3))))))-1)*1000-(0.622/((101325/('Mini Canal'!$J$13*611*EXP(17.27*(data!$AG$3/(data!$AG$3+237.3))))))-1)*1000))/(1005*(((data!$AG$1+data!$AG$2)/2)-data!$AG$3)))))))) -> 0 | AR71: =(AL71/(IF((237.3*LN(('Mini Canal'!$J$13*EXP(17.27*(data!$AG$3/(data!$AG$3+237.3))))))/(17.27-LN(('Mini Canal'!$J$13*EXP(17.27*(data!$AG$3/(data!$AG$3+237.3))))))<((data!$AG$1+data!$AG$2)/2),1,IF(1/(1+((2258*((0.622/((101325/(1*611*EXP(17.27*(((data!$AG$1+data!$AG$2)/2)/(((data!$AG$1+data!$AG$2)/2)+237.3))))))-1)*1000-(0.622/((101325/('Mini Canal'!$J$13*611*EXP(17.27*(data!$AG$3/(data!$AG$3+237.3))))))-1)*1000))/(1005*(((data!$AG$1+data!$AG$2)/2)-data!$AG$3))))>1,1,1/(1+((2258*((0.622/((101325/(1*611*EXP(17.27*(((data!$AG$1+data!$AG$2)/2)/(((data!$AG$1+data!$AG$2)/2)+237.3))))))-1)*1000-(0.622/((101325/('Mini Canal'!$J$13*611*EXP(17.27*(data!$AG$3/(data!$AG$3+237.3))))))-1)*1000))/(1005*(((data!$AG$1+data!$AG$2)/2)-data!$AG$3)))))))) -> 0 | AS71: =(AM71/(IF((237.3*LN(('Mini Canal'!$J$13*EXP(17.27*(data!$AG$3/(data!$AG$3+237.3))))))/(17.27-LN(('Mini Canal'!$J$13*EXP(17.27*(data!$AG$3/(data!$AG$3+237.3))))))<((data!$AG$1+data!$AG$2)/2),1,IF(1/(1+((2258*((0.622/((101325/(1*611*EXP(17.27*(((data!$AG$1+data!$AG$2)/2)/(((data!$AG$1+data!$AG$2)/2)+237.3))))))-1)*1000-(0.622/((101325/('Mini Canal'!$J$13*611*EXP(17.27*(data!$AG$3/(data!$AG$3+237.3))))))-1)*1000))/(1005*(((data!$AG$1+data!$AG$2)/2)-data!$AG$3))))>1,1,1/(1+((2258*((0.622/((101325/(1*611*EXP(17.27*(((data!$AG$1+data!$AG$2)/2)/(((data!$AG$1+data!$AG$2)/2)+237.3))))))-1)*1000-(0.622/((101325/('Mini Canal'!$J$13*611*EXP(17.27*(data!$AG$3/(data!$AG$3+237.3))))))-1)*1000))/(1005*(((data!$AG$1+data!$AG$2)/2)-data!$AG$3)))))))) -> 0 | AT71: 0 | AU71: 0 | AV71: 0 | AW71: 0.60 | AX71: 0 | AY71: 0 | AZ71: 0 | BB71: 0 | BC71: 0 | BD71: 0 | BE71: 0 | BG71: 0 | BH71: 0 | BI71: 0 | BJ71: 0 | BM71: 0.01161629289 | BN71: 0.001655322747 | BO71: 1.586934682 | BP71: 1 | BR71: 5 | BS71: =BS72 -> 0.0033 | BT71: 8.05E-04 | BU71: 3.98E-04 | BV71: 1.813864716 | BW71: 2
A72: 9100142 | B72: 9 | C72: 100 | D72: 2 | E72: 14 | F72: 4 | G72: 0 | H72: 0 | I72: 0 | J72: 0.0 | K72: 133 | L72: 0 | M72: 0 | N72: 0 | O72: 1.362 | P72: 1.1 | Q72: 1.1 | R72: 1.1 | S72: 20 | T72: 0 | U72: 0 | V72: 0 | W72: 3 | X72: 0 | Y72: 0 | Z72: 0 | AA72: 0.007729081733 | AB72: 0 | AC72: 0 | AD72: 0 | AE72: 0 | AF72: 0 | AG72: 0 | AH72: 0.98 | AI72: 0.98 | AJ72: 0.98 | AK72: 0 | AL72: 0 | AM72: 0 | AN72: 0 | AO72: 0 | AP72: 0 | AQ72: =(AK72/(IF((237.3*LN(('Mini Canal'!$J$13*EXP(17.27*(data!$AG$3/(data!$AG$3+237.3))))))/(17.27-LN(('Mini Canal'!$J$13*EXP(17.27*(data!$AG$3/(data!$AG$3+237.3))))))<((data!$AG$1+data!$AG$2)/2),1,IF(1/(1+((2258*((0.622/((101325/(1*611*EXP(17.27*(((data!$AG$1+data!$AG$2)/2)/(((data!$AG$1+data!$AG$2)/2)+237.3))))))-1)*1000-(0.622/((101325/('Mini Canal'!$J$13*611*EXP(17.27*(data!$AG$3/(data!$AG$3+237.3))))))-1)*1000))/(1005*(((data!$AG$1+data!$AG$2)/2)-data!$AG$3))))>1,1,1/(1+((2258*((0.622/((101325/(1*611*EXP(17.27*(((data!$AG$1+data!$AG$2)/2)/(((data!$AG$1+data!$AG$2)/2)+237.3))))))-1)*1000-(0.622/((101325/('Mini Canal'!$J$13*611*EXP(17.27*(data!$AG$3/(data!$AG$3+237.3))))))-1)*1000))/(1005*(((data!$AG$1+data!$AG$2)/2)-data!$AG$3)))))))) -> 0 | AR72: =(AL72/(IF((237.3*LN(('Mini Canal'!$J$13*EXP(17.27*(data!$AG$3/(data!$AG$3+237.3))))))/(17.27-LN(('Mini Canal'!$J$13*EXP(17.27*(data!$AG$3/(data!$AG$3+237.3))))))<((data!$AG$1+data!$AG$2)/2),1,IF(1/(1+((2258*((0.622/((101325/(1*611*EXP(17.27*(((data!$AG$1+data!$AG$2)/2)/(((data!$AG$1+data!$AG$2)/2)+237.3))))))-1)*1000-(0.622/((101325/('Mini Canal'!$J$13*611*EXP(17.27*(data!$AG$3/(data!$AG$3+237.3))))))-1)*1000))/(1005*(((data!$AG$1+data!$AG$2)/2)-data!$AG$3))))>1,1,1/(1+((2258*((0.622/((101325/(1*611*EXP(17.27*(((data!$AG$1+data!$AG$2)/2)/(((data!$AG$1+data!$AG$2)/2)+237.3))))))-1)*1000-(0.622/((101325/('Mini Canal'!$J$13*611*EXP(17.27*(data!$AG$3/(data!$AG$3+237.3))))))-1)*1000))/(1005*(((data!$AG$1+data!$AG$2)/2)-data!$AG$3)))))))) -> 0 | AS72: =(AM72/(IF((237.3*LN(('Mini Canal'!$J$13*EXP(17.27*(data!$AG$3/(data!$AG$3+237.3))))))/(17.27-LN(('Mini Canal'!$J$13*EXP(17.27*(data!$AG$3/(data!$AG$3+237.3))))))<((data!$AG$1+data!$AG$2)/2),1,IF(1/(1+((2258*((0.622/((101325/(1*611*EXP(17.27*(((data!$AG$1+data!$AG$2)/2)/(((data!$AG$1+data!$AG$2)/2)+237.3))))))-1)*1000-(0.622/((101325/('Mini Canal'!$J$13*611*EXP(17.27*(data!$AG$3/(data!$AG$3+237.3))))))-1)*1000))/(1005*(((data!$AG$1+data!$AG$2)/2)-data!$AG$3))))>1,1,1/(1+((2258*((0.622/((101325/(1*611*EXP(17.27*(((data!$AG$1+data!$AG$2)/2)/(((data!$AG$1+data!$AG$2)/2)+237.3))))))-1)*1000-(0.622/((101325/('Mini Canal'!$J$13*611*EXP(17.27*(data!$AG$3/(data!$AG$3+237.3))))))-1)*1000))/(1005*(((data!$AG$1+data!$AG$2)/2)-data!$AG$3)))))))) -> 0 | AT72: 0 | AU72: 0 | AV72: 0 | AW72: 0.17 | AX72: 0 | AY72: 0 | AZ72: 0 | BB72: 0 | BC72: 0 | BD72: 0 | BE72: 0 | BG72: 0 | BH72: 0 | BI72: 0 | BJ72: 0 | BM72: 0.001382333883 | BN72: 0.0003329081633 | BO72: 1.723172228 | BP72: 1 | BR72: 9 | BS72: =BS73/2 -> 0.0033 | BT72: 8.05E-04 | BU72: 3.98E-04 | BV72: 1.813864716 | BW72: 2
A73: 9100182 | B73: 9 | C73: 100 | D73: 2 | E73: 18 | F73: 9 | G73: 0 | H73: 0 | I73: 0 | J73: 0.0 | K73: 158 | L73: 0 | M73: 0 | N73: 0 | O73: 1.362 | P73: 1.1 | Q73: 1.1 | R73: 1.1 | S73: 24 | T73: 0 | U73: 0 | V73: 0 | W73: 4 | X73: 0 | Y73: 0 | Z73: 0 | AA73: 0.01676434248 | AB73: 0 | AC73: 0 | AD73: 0 | AE73: 0 | AF73: 0 | AG73: 0 | AH73: 0.98 | AI73: 0.98 | AJ73: 0.98 | AK73: 0 | AL73: 0 | AM73: 0 | AN73: 0 | AO73: 0 | AP73: 0 | AQ73: =(AK73/(IF((237.3*LN(('Mini Canal'!$J$13*EXP(17.27*(data!$AG$3/(data!$AG$3+237.3))))))/(17.27-LN(('Mini Canal'!$J$13*EXP(17.27*(data!$AG$3/(data!$AG$3+237.3))))))<((data!$AG$1+data!$AG$2)/2),1,IF(1/(1+((2258*((0.622/((101325/(1*611*EXP(17.27*(((data!$AG$1+data!$AG$2)/2)/(((data!$AG$1+data!$AG$2)/2)+237.3))))))-1)*1000-(0.622/((101325/('Mini Canal'!$J$13*611*EXP(17.27*(data!$AG$3/(data!$AG$3+237.3))))))-1)*1000))/(1005*(((data!$AG$1+data!$AG$2)/2)-data!$AG$3))))>1,1,1/(1+((2258*((0.622/((101325/(1*611*EXP(17.27*(((data!$AG$1+data!$AG$2)/2)/(((data!$AG$1+data!$AG$2)/2)+237.3))))))-1)*1000-(0.622/((101325/('Mini Canal'!$J$13*611*EXP(17.27*(data!$AG$3/(data!$AG$3+237.3))))))-1)*1000))/(1005*(((data!$AG$1+data!$AG$2)/2)-data!$AG$3)))))))) -> 0 | AR73: =(AL73/(IF((237.3*LN(('Mini Canal'!$J$13*EXP(17.27*(data!$AG$3/(data!$AG$3+237.3))))))/(17.27-LN(('Mini Canal'!$J$13*EXP(17.27*(data!$AG$3/(data!$AG$3+237.3))))))<((data!$AG$1+data!$AG$2)/2),1,IF(1/(1+((2258*((0.622/((101325/(1*611*EXP(17.27*(((data!$AG$1+data!$AG$2)/2)/(((data!$AG$1+data!$AG$2)/2)+237.3))))))-1)*1000-(0.622/((101325/('Mini Canal'!$J$13*611*EXP(17.27*(data!$AG$3/(data!$AG$3+237.3))))))-1)*1000))/(1005*(((data!$AG$1+data!$AG$2)/2)-data!$AG$3))))>1,1,1/(1+((2258*((0.622/((101325/(1*611*EXP(17.27*(((data!$AG$1+data!$AG$2)/2)/(((data!$AG$1+data!$AG$2)/2)+237.3))))))-1)*1000-(0.622/((101325/('Mini Canal'!$J$13*611*EXP(17.27*(data!$AG$3/(data!$AG$3+237.3))))))-1)*1000))/(1005*(((data!$AG$1+data!$AG$2)/2)-data!$AG$3)))))))) -> 0 | AS73: =(AM73/(IF((237.3*LN(('Mini Canal'!$J$13*EXP(17.27*(data!$AG$3/(data!$AG$3+237.3))))))/(17.27-LN(('Mini Canal'!$J$13*EXP(17.27*(data!$AG$3/(data!$AG$3+237.3))))))<((data!$AG$1+data!$AG$2)/2),1,IF(1/(1+((2258*((0.622/((101325/(1*611*EXP(17.27*(((data!$AG$1+data!$AG$2)/2)/(((data!$AG$1+data!$AG$2)/2)+237.3))))))-1)*1000-(0.622/((101325/('Mini Canal'!$J$13*611*EXP(17.27*(data!$AG$3/(data!$AG$3+237.3))))))-1)*1000))/(1005*(((data!$AG$1+data!$AG$2)/2)-data!$AG$3))))>1,1,1/(1+((2258*((0.622/((101325/(1*611*EXP(17.27*(((data!$AG$1+data!$AG$2)/2)/(((data!$AG$1+data!$AG$2)/2)+237.3))))))-1)*1000-(0.622/((101325/('Mini Canal'!$J$13*611*EXP(17.27*(data!$AG$3/(data!$AG$3+237.3))))))-1)*1000))/(1005*(((data!$AG$1+data!$AG$2)/2)-data!$AG$3)))))))) -> 0 | AT73: 0 | AU73: 0 | AV73: 0 | AW73: =IF($F73=$BR$70,$C73*$BS$70,IF($F73=$BR$71,$C73*$BS$71,IF($F73=$BR$72,$C73*$BS$72,IF($F73=$BR$73,$C73*$BS$73,IF($F73=$BR$74,$C73*$BS$74,IF($F73=$BR$75,$C73*$BS$75,IF($F73=$BR$76,$C73*$BS$76,IF($F73=$BR$77,$C73*$BS$77,IF($F73=$BR$78,$C73*$BS$78,IF($F73=$BR$79,$C73*$BS$79,IF($F73=$BR$80,$C73*$BS$80,))))))))))) -> 0.33 | AX73: 0 | AY73: 0 | AZ73: 0 | BB73: 0 | BC73: 0 | BD73: 0 | BE73: 0 | BG73: 0 | BH73: 0 | BI73: 0 | BJ73: 0 | BM73: 0.000805344706 | BN73: 0.0003979505047 | BO73: 1.813864716 | BP73: 2 | BR73: 10 | BS73: =0.4/60 -> 0.0067 | BT73: 1.45E-03 | BU73: 3.78E-04 | BV73: 1.486891044 | BW73: 2
A74: 9100262 | B74: 9 | C74: 100 | D74: 2 | E74: 26 | F74: 9 | G74: 0 | H74: 0 | I74: 0 | J74: 0.0 | K74: 207 | L74: 0 | M74: 0 | N74: 0 | O74: 1.362 | P74: 1.1 | Q74: 1.1 | R74: 1.1 | S74: 31 | T74: 0 | U74: 0 | V74: 0 | W74: 5 | X74: 0 | Y74: 0 | Z74: 0 | AA74: 0.02513255993 | AB74: 0 | AC74: 0 | AD74: 0 | AE74: 0 | AF74: 0 | AG74: 0 | AH74: 0.98 | AI74: 0.98 | AJ74: 0.98 | AK74: 0 | AL74: 0 | AM74: 0 | AN74: 0 | AO74: 0 | AP74: 0 | AQ74: =(AK74/(IF((237.3*LN(('Mini Canal'!$J$13*EXP(17.27*(data!$AG$3/(data!$AG$3+237.3))))))/(17.27-LN(('Mini Canal'!$J$13*EXP(17.27*(data!$AG$3/(data!$AG$3+237.3))))))<((data!$AG$1+data!$AG$2)/2),1,IF(1/(1+((2258*((0.622/((101325/(1*611*EXP(17.27*(((data!$AG$1+data!$AG$2)/2)/(((data!$AG$1+data!$AG$2)/2)+237.3))))))-1)*1000-(0.622/((101325/('Mini Canal'!$J$13*611*EXP(17.27*(data!$AG$3/(data!$AG$3+237.3))))))-1)*1000))/(1005*(((data!$AG$1+data!$AG$2)/2)-data!$AG$3))))>1,1,1/(1+((2258*((0.622/((101325/(1*611*EXP(17.27*(((data!$AG$1+data!$AG$2)/2)/(((data!$AG$1+data!$AG$2)/2)+237.3))))))-1)*1000-(0.622/((101325/('Mini Canal'!$J$13*611*EXP(17.27*(data!$AG$3/(data!$AG$3+237.3))))))-1)*1000))/(1005*(((data!$AG$1+data!$AG$2)/2)-data!$AG$3)))))))) -> 0 | AR74: =(AL74/(IF((237.3*LN(('Mini Canal'!$J$13*EXP(17.27*(data!$AG$3/(data!$AG$3+237.3))))))/(17.27-LN(('Mini Canal'!$J$13*EXP(17.27*(data!$AG$3/(data!$AG$3+237.3))))))<((data!$AG$1+data!$AG$2)/2),1,IF(1/(1+((2258*((0.622/((101325/(1*611*EXP(17.27*(((data!$AG$1+data!$AG$2)/2)/(((data!$AG$1+data!$AG$2)/2)+237.3))))))-1)*1000-(0.622/((101325/('Mini Canal'!$J$13*611*EXP(17.27*(data!$AG$3/(data!$AG$3+237.3))))))-1)*1000))/(1005*(((data!$AG$1+data!$AG$2)/2)-data!$AG$3))))>1,1,1/(1+((2258*((0.622/((101325/(1*611*EXP(17.27*(((data!$AG$1+data!$AG$2)/2)/(((data!$AG$1+data!$AG$2)/2)+237.3))))))-1)*1000-(0.622/((101325/('Mini Canal'!$J$13*611*EXP(17.27*(data!$AG$3/(data!$AG$3+237.3))))))-1)*1000))/(1005*(((data!$AG$1+data!$AG$2)/2)-data!$AG$3)))))))) -> 0 | AS74: =(AM74/(IF((237.3*LN(('Mini Canal'!$J$13*EXP(17.27*(data!$AG$3/(data!$AG$3+237.3))))))/(17.27-LN(('Mini Canal'!$J$13*EXP(17.27*(data!$AG$3/(data!$AG$3+237.3))))))<((data!$AG$1+data!$AG$2)/2),1,IF(1/(1+((2258*((0.622/((101325/(1*611*EXP(17.27*(((data!$AG$1+data!$AG$2)/2)/(((data!$AG$1+data!$AG$2)/2)+237.3))))))-1)*1000-(0.622/((101325/('Mini Canal'!$J$13*611*EXP(17.27*(data!$AG$3/(data!$AG$3+237.3))))))-1)*1000))/(1005*(((data!$AG$1+data!$AG$2)/2)-data!$AG$3))))>1,1,1/(1+((2258*((0.622/((101325/(1*611*EXP(17.27*(((data!$AG$1+data!$AG$2)/2)/(((data!$AG$1+data!$AG$2)/2)+237.3))))))-1)*1000-(0.622/((101325/('Mini Canal'!$J$13*611*EXP(17.27*(data!$AG$3/(data!$AG$3+237.3))))))-1)*1000))/(1005*(((data!$AG$1+data!$AG$2)/2)-data!$AG$3)))))))) -> 0 | AT74: =0.0098*(($BM74*(AN74^$BO74)*($C74-14.4)*$BP74)+($BN74*AN74*AN74)) -> 0 | AU74: 0 | AV74: 0 | AW74: 0.33 | AX74: 0 | AY74: 0 | AZ74: 0 | BB74: 0 | BC74: 0 | BD74: 0 | BE74: 0 | BG74: 0 | BH74: 0 | BI74: 0 | BJ74: 0 | BM74: =IF($F74=$BR$70,$BT$70,IF($F74=$BR$71,$BT$71,IF($F74=$BR$72,$BT$72,IF($F74=$BR$73,$BT$73,IF($F74=$BR$74,$BT$74,IF($F74=$BR$75,$BT$75,IF($F74=$BR$76,$BT$76,IF($F74=$BR$77,$BT$77,IF($F74=$BR$78,$BT$78,IF($F74=$BR$79,$BT$79,IF($F74=$BR$80,$BT$80,))))))))))) -> 0.000805344706 | BN74: =IF($F74=$BR$70,$BU$70,IF($F74=$BR$71,$BU$71,IF($F74=$BR$72,$BU$72,IF($F74=$BR$73,$BU$73,IF($F74=$BR$74,$BU$74,IF($F74=$BR$75,$BU$75,IF($F74=$BR$76,$BU$76,IF($F74=$BR$77,$BU$77,IF($F74=$BR$78,$BU$78,IF($F74=$BR$79,$BU$79,IF($F74=$BR$80,$BU$80,))))))))))) -> 0.0003979505047 | BO74: =IF($F74=$BR$70,$BV$70,IF($F74=$BR$71,$BV$71,IF($F74=$BR$72,$BV$72,IF($F74=$BR$73,$BV$73,IF($F74=$BR$74,$BV$74,IF($F74=$BR$75,$BV$75,IF($F74=$BR$76,$BV$76,IF($F74=$BR$77,$BV$77,IF($F74=$BR$78,$BV$78,IF($F74=$BR$79,$BV$79,IF($F74=$BR$80,$BV$80,))))))))))) -> 1.813864716 | BP74: =IF($F74=$BR$70,$BW$70,IF($F74=$BR$71,$BW$71,IF($F74=$BR$72,$BW$72,IF($F74=$BR$73,$BW$73,IF($F74=$BR$74,$BW$74,IF($F74=$BR$75,$BW$75,IF($F74=$BR$76,$BW$76,IF($F74=$BR$77,$BW$77,IF($F74=$BR$78,$BW$78,IF($F74=$BR$79,$BW$79,IF($F74=$BR$80,$BW$80,))))))))))) -> 2 | BR74: 11 | BS74: =BS73*2 -> 0.0133 | BT74: 4.51E-03 | BU74: 6.16E-04 | BV74: 1.277604374 | BW74: 4
A75: 9100342 | B75: 9 | C75: 100 | D75: 2 | E75: 34 | F75: 14 | G75: 0 | H75: 0 | I75: 0 | J75: 0.0 | K75: 269 | L75: 0 | M75: 0 | N75: 0 | O75: 1.362 | P75: 1.1 | Q75: 1.1 | R75: 1.1 | S75: 40 | T75: 0 | U75: 0 | V75: 0 | W75: 7 | X75: 0 | Y75: 0 | Z75: 0 | AA75: 0.1181852251 | AB75: 0 | AC75: 0 | AD75: 0 | AE75: 0 | AF75: 0 | AG75: 0 | AH75: 0.98 | AI75: 0.98 | AJ75: 0.98 | AK75: 0 | AL75: 0 | AM75: 0 | AN75: 0 | AO75: 0 | AP75: 0 | AQ75: =(AK75/(IF((237.3*LN(('Mini Canal'!$J$13*EXP(17.27*(data!$AG$3/(data!$AG$3+237.3))))))/(17.27-LN(('Mini Canal'!$J$13*EXP(17.27*(data!$AG$3/(data!$AG$3+237.3))))))<((data!$AG$1+data!$AG$2)/2),1,IF(1/(1+((2258*((0.622/((101325/(1*611*EXP(17.27*(((data!$AG$1+data!$AG$2)/2)/(((data!$AG$1+data!$AG$2)/2)+237.3))))))-1)*1000-(0.622/((101325/('Mini Canal'!$J$13*611*EXP(17.27*(data!$AG$3/(data!$AG$3+237.3))))))-1)*1000))/(1005*(((data!$AG$1+data!$AG$2)/2)-data!$AG$3))))>1,1,1/(1+((2258*((0.622/((101325/(1*611*EXP(17.27*(((data!$AG$1+data!$AG$2)/2)/(((data!$AG$1+data!$AG$2)/2)+237.3))))))-1)*1000-(0.622/((101325/('Mini Canal'!$J$13*611*EXP(17.27*(data!$AG$3/(data!$AG$3+237.3))))))-1)*1000))/(1005*(((data!$AG$1+data!$AG$2)/2)-data!$AG$3)))))))) -> 0 | AR75: =(AL75/(IF((237.3*LN(('Mini Canal'!$J$13*EXP(17.27*(data!$AG$3/(data!$AG$3+237.3))))))/(17.27-LN(('Mini Canal'!$J$13*EXP(17.27*(data!$AG$3/(data!$AG$3+237.3))))))<((data!$AG$1+data!$AG$2)/2),1,IF(1/(1+((2258*((0.622/((101325/(1*611*EXP(17.27*(((data!$AG$1+data!$AG$2)/2)/(((data!$AG$1+data!$AG$2)/2)+237.3))))))-1)*1000-(0.622/((101325/('Mini Canal'!$J$13*611*EXP(17.27*(data!$AG$3/(data!$AG$3+237.3))))))-1)*1000))/(1005*(((data!$AG$1+data!$AG$2)/2)-data!$AG$3))))>1,1,1/(1+((2258*((0.622/((101325/(1*611*EXP(17.27*(((data!$AG$1+data!$AG$2)/2)/(((data!$AG$1+data!$AG$2)/2)+237.3))))))-1)*1000-(0.622/((101325/('Mini Canal'!$J$13*611*EXP(17.27*(data!$AG$3/(data!$AG$3+237.3))))))-1)*1000))/(1005*(((data!$AG$1+data!$AG$2)/2)-data!$AG$3)))))))) -> 0 | AS75: =(AM75/(IF((237.3*LN(('Mini Canal'!$J$13*EXP(17.27*(data!$AG$3/(data!$AG$3+237.3))))))/(17.27-LN(('Mini Canal'!$J$13*EXP(17.27*(data!$AG$3/(data!$AG$3+237.3))))))<((data!$AG$1+data!$AG$2)/2),1,IF(1/(1+((2258*((0.622/((101325/(1*611*EXP(17.27*(((data!$AG$1+data!$AG$2)/2)/(((data!$AG$1+data!$AG$2)/2)+237.3))))))-1)*1000-(0.622/((101325/('Mini Canal'!$J$13*611*EXP(17.27*(data!$AG$3/(data!$AG$3+237.3))))))-1)*1000))/(1005*(((data!$AG$1+data!$AG$2)/2)-data!$AG$3))))>1,1,1/(1+((2258*((0.622/((101325/(1*611*EXP(17.27*(((data!$AG$1+data!$AG$2)/2)/(((data!$AG$1+data!$AG$2)/2)+237.3))))))-1)*1000-(0.622/((101325/('Mini Canal'!$J$13*611*EXP(17.27*(data!$AG$3/(data!$AG$3+237.3))))))-1)*1000))/(1005*(((data!$AG$1+data!$AG$2)/2)-data!$AG$3)))))))) -> 0 | AT75: 0 | AU75: 0 | AV75: 0 | AW75: 0.50 | AX75: 0 | AY75: 0 | AZ75: 0 | BB75: 0 | BC75: 0 | BD75: 0 | BE75: 0 | BG75: 0 | BH75: 0 | BI75: 0 | BJ75: 0 | BM75: 0.002558239829 | BN75: 0.0005616169468 | BO75: 1.494274772 | BP75: 3 | BR75: 14 | BS75: =BS76/2 -> 0.0050 | BT75: 2.56E-03 | BU75: 5.62E-04 | BV75: 1.494274772 | BW75: 3
A76: 9100422 | B76: 9 | C76: 100 | D76: 2 | E76: 42 | F76: 19 | G76: 0 | H76: 0 | I76: 0 | J76: 0.0 | K76: 388 | L76: 0 | M76: 0 | N76: 0 | O76: 1.362 | P76: 1.1 | Q76: 1.1 | R76: 1.1 | S76: 58 | T76: 0 | U76: 0 | V76: 0 | W76: 10 | X76: 0 | Y76: 0 | Z76: 0 | AA76: 0.3780676872 | AB76: 0 | AC76: 0 | AD76: 0 | AE76: 0 | AF76: 0 | AG76: 0 | AH76: 0.98 | AI76: 0.98 | AJ76: 0.98 | AK76: 0 | AL76: 0 | AM76: 0 | AN76: 0 | AO76: 0 | AP76: 0 | AQ76: =(AK76/(IF((237.3*LN(('Mini Canal'!$J$13*EXP(17.27*(data!$AG$3/(data!$AG$3+237.3))))))/(17.27-LN(('Mini Canal'!$J$13*EXP(17.27*(data!$AG$3/(data!$AG$3+237.3))))))<((data!$AG$1+data!$AG$2)/2),1,IF(1/(1+((2258*((0.622/((101325/(1*611*EXP(17.27*(((data!$AG$1+data!$AG$2)/2)/(((data!$AG$1+data!$AG$2)/2)+237.3))))))-1)*1000-(0.622/((101325/('Mini Canal'!$J$13*611*EXP(17.27*(data!$AG$3/(data!$AG$3+237.3))))))-1)*1000))/(1005*(((data!$AG$1+data!$AG$2)/2)-data!$AG$3))))>1,1,1/(1+((2258*((0.622/((101325/(1*611*EXP(17.27*(((data!$AG$1+data!$AG$2)/2)/(((data!$AG$1+data!$AG$2)/2)+237.3))))))-1)*1000-(0.622/((101325/('Mini Canal'!$J$13*611*EXP(17.27*(data!$AG$3/(data!$AG$3+237.3))))))-1)*1000))/(1005*(((data!$AG$1+data!$AG$2)/2)-data!$AG$3)))))))) -> 0 | AR76: =(AL76/(IF((237.3*LN(('Mini Canal'!$J$13*EXP(17.27*(data!$AG$3/(data!$AG$3+237.3))))))/(17.27-LN(('Mini Canal'!$J$13*EXP(17.27*(data!$AG$3/(data!$AG$3+237.3))))))<((data!$AG$1+data!$AG$2)/2),1,IF(1/(1+((2258*((0.622/((101325/(1*611*EXP(17.27*(((data!$AG$1+data!$AG$2)/2)/(((data!$AG$1+data!$AG$2)/2)+237.3))))))-1)*1000-(0.622/((101325/('Mini Canal'!$J$13*611*EXP(17.27*(data!$AG$3/(data!$AG$3+237.3))))))-1)*1000))/(1005*(((data!$AG$1+data!$AG$2)/2)-data!$AG$3))))>1,1,1/(1+((2258*((0.622/((101325/(1*611*EXP(17.27*(((data!$AG$1+data!$AG$2)/2)/(((data!$AG$1+data!$AG$2)/2)+237.3))))))-1)*1000-(0.622/((101325/('Mini Canal'!$J$13*611*EXP(17.27*(data!$AG$3/(data!$AG$3+237.3))))))-1)*1000))/(1005*(((data!$AG$1+data!$AG$2)/2)-data!$AG$3)))))))) -> 0 | AS76: =(AM76/(IF((237.3*LN(('Mini Canal'!$J$13*EXP(17.27*(data!$AG$3/(data!$AG$3+237.3))))))/(17.27-LN(('Mini Canal'!$J$13*EXP(17.27*(data!$AG$3/(data!$AG$3+237.3))))))<((data!$AG$1+data!$AG$2)/2),1,IF(1/(1+((2258*((0.622/((101325/(1*611*EXP(17.27*(((data!$AG$1+data!$AG$2)/2)/(((data!$AG$1+data!$AG$2)/2)+237.3))))))-1)*1000-(0.622/((101325/('Mini Canal'!$J$13*611*EXP(17.27*(data!$AG$3/(data!$AG$3+237.3))))))-1)*1000))/(1005*(((data!$AG$1+data!$AG$2)/2)-data!$AG$3))))>1,1,1/(1+((2258*((0.622/((101325/(1*611*EXP(17.27*(((data!$AG$1+data!$AG$2)/2)/(((data!$AG$1+data!$AG$2)/2)+237.3))))))-1)*1000-(0.622/((101325/('Mini Canal'!$J$13*611*EXP(17.27*(data!$AG$3/(data!$AG$3+237.3))))))-1)*1000))/(1005*(((data!$AG$1+data!$AG$2)/2)-data!$AG$3)))))))) -> 0 | AT76: 0 | AU76: 0 | AV76: 0 | AW76: 0.67 | AX76: 0 | AY76: 0 | AZ76: 0 | BB76: 0 | BC76: 0 | BD76: 0 | BE76: 0 | BG76: 0 | BH76: 0 | BI76: 0 | BJ76: 0 | BM76: 0.01161629289 | BN76: 0.001655322747 | BO76: 1.586934682 | BP76: 1 | BR76: 15 | BS76: =BS73*1.5 -> 0.0100 | BT76: 1.96E-04 | BU76: 4.47E-04 | BV76: 1.766459433 | BW76: 2
A77: 9110142 | B77: 9 | C77: 110 | D77: 2 | E77: 14 | F77: 4 | G77: 0 | H77: 0 | I77: 0 | J77: 0.0 | K77: 152 | L77: 0 | M77: 0 | N77: 0 | O77: 1.362 | P77: 1.1 | Q77: 1.1 | R77: 1.1 | S77: 23 | T77: 0 | U77: 0 | V77: 0 | W77: 4 | X77: 0 | Y77: 0 | Z77: 0 | AA77: 0.01416944584 | AB77: 0 | AC77: 0 | AD77: 0 | AE77: 0 | AF77: 0 | AG77: 0 | AH77: 0.98 | AI77: 0.98 | AJ77: 0.98 | AK77: 0 | AL77: 0 | AM77: 0 | AN77: 0 | AO77: 0 | AP77: 0 | AQ77: =(AK77/(IF((237.3*LN(('Mini Canal'!$J$13*EXP(17.27*(data!$AG$3/(data!$AG$3+237.3))))))/(17.27-LN(('Mini Canal'!$J$13*EXP(17.27*(data!$AG$3/(data!$AG$3+237.3))))))<((data!$AG$1+data!$AG$2)/2),1,IF(1/(1+((2258*((0.622/((101325/(1*611*EXP(17.27*(((data!$AG$1+data!$AG$2)/2)/(((data!$AG$1+data!$AG$2)/2)+237.3))))))-1)*1000-(0.622/((101325/('Mini Canal'!$J$13*611*EXP(17.27*(data!$AG$3/(data!$AG$3+237.3))))))-1)*1000))/(1005*(((data!$AG$1+data!$AG$2)/2)-data!$AG$3))))>1,1,1/(1+((2258*((0.622/((101325/(1*611*EXP(17.27*(((data!$AG$1+data!$AG$2)/2)/(((data!$AG$1+data!$AG$2)/2)+237.3))))))-1)*1000-(0.622/((101325/('Mini Canal'!$J$13*611*EXP(17.27*(data!$AG$3/(data!$AG$3+237.3))))))-1)*1000))/(1005*(((data!$AG$1+data!$AG$2)/2)-data!$AG$3)))))))) -> 0 | AR77: =(AL77/(IF((237.3*LN(('Mini Canal'!$J$13*EXP(17.27*(data!$AG$3/(data!$AG$3+237.3))))))/(17.27-LN(('Mini Canal'!$J$13*EXP(17.27*(data!$AG$3/(data!$AG$3+237.3))))))<((data!$AG$1+data!$AG$2)/2),1,IF(1/(1+((2258*((0.622/((101325/(1*611*EXP(17.27*(((data!$AG$1+data!$AG$2)/2)/(((data!$AG$1+data!$AG$2)/2)+237.3))))))-1)*1000-(0.622/((101325/('Mini Canal'!$J$13*611*EXP(17.27*(data!$AG$3/(data!$AG$3+237.3))))))-1)*1000))/(1005*(((data!$AG$1+data!$AG$2)/2)-data!$AG$3))))>1,1,1/(1+((2258*((0.622/((101325/(1*611*EXP(17.27*(((data!$AG$1+data!$AG$2)/2)/(((data!$AG$1+data!$AG$2)/2)+237.3))))))-1)*1000-(0.622/((101325/('Mini Canal'!$J$13*611*EXP(17.27*(data!$AG$3/(data!$AG$3+237.3))))))-1)*1000))/(1005*(((data!$AG$1+data!$AG$2)/2)-data!$AG$3)))))))) -> 0 | AS77: =(AM77/(IF((237.3*LN(('Mini Canal'!$J$13*EXP(17.27*(data!$AG$3/(data!$AG$3+237.3))))))/(17.27-LN(('Mini Canal'!$J$13*EXP(17.27*(data!$AG$3/(data!$AG$3+237.3))))))<((data!$AG$1+data!$AG$2)/2),1,IF(1/(1+((2258*((0.622/((101325/(1*611*EXP(17.27*(((data!$AG$1+data!$AG$2)/2)/(((data!$AG$1+data!$AG$2)/2)+237.3))))))-1)*1000-(0.622/((101325/('Mini Canal'!$J$13*611*EXP(17.27*(data!$AG$3/(data!$AG$3+237.3))))))-1)*1000))/(1005*(((data!$AG$1+data!$AG$2)/2)-data!$AG$3))))>1,1,1/(1+((2258*((0.622/((101325/(1*611*EXP(17.27*(((data!$AG$1+data!$AG$2)/2)/(((data!$AG$1+data!$AG$2)/2)+237.3))))))-1)*1000-(0.622/((101325/('Mini Canal'!$J$13*611*EXP(17.27*(data!$AG$3/(data!$AG$3+237.3))))))-1)*1000))/(1005*(((data!$AG$1+data!$AG$2)/2)-data!$AG$3)))))))) -> 0 | AT77: 0 | AU77: 0 | AV77: 0 | AW77: 0.18 | AX77: 0 | AY77: 0 | AZ77: 0 | BB77: 0 | BC77: 0 | BD77: 0 | BE77: 0 | BG77: 0 | BH77: 0 | BI77: 0 | BJ77: 0 | BM77: 0.001382333883 | BN77: 0.0003329081633 | BO77: 1.723172228 | BP77: 1 | BR77: 16 | BS77: =BS73*3 -> 0.0200 | BT77: 2.35E-05 | BU77: 1.28E-03 | BV77: 2.17545083 | BW77: 4
A78: 9110182 | B78: 9 | C78: 110 | D78: 2 | E78: 18 | F78: 9 | G78: 0 | H78: 0 | I78: 0 | J78: 0.0 | K78: 180 | L78: 0 | M78: 0 | N78: 0 | O78: 1.362 | P78: 1.1 | Q78: 1.1 | R78: 1.1 | S78: 27 | T78: 0 | U78: 0 | V78: 0 | W78: 5 | X78: 0 | Y78: 0 | Z78: 0 | AA78: 0.02805721671 | AB78: 0 | AC78: 0 | AD78: 0 | AE78: 0 | AF78: 0 | AG78: 0 | AH78: 0.98 | AI78: 0.98 | AJ78: 0.98 | AK78: 0 | AL78: 0 | AM78: 0 | AN78: 0 | AO78: 0 | AP78: 0 | AQ78: =(AK78/(IF((237.3*LN(('Mini Canal'!$J$13*EXP(17.27*(data!$AG$3/(data!$AG$3+237.3))))))/(17.27-LN(('Mini Canal'!$J$13*EXP(17.27*(data!$AG$3/(data!$AG$3+237.3))))))<((data!$AG$1+data!$AG$2)/2),1,IF(1/(1+((2258*((0.622/((101325/(1*611*EXP(17.27*(((data!$AG$1+data!$AG$2)/2)/(((data!$AG$1+data!$AG$2)/2)+237.3))))))-1)*1000-(0.622/((101325/('Mini Canal'!$J$13*611*EXP(17.27*(data!$AG$3/(data!$AG$3+237.3))))))-1)*1000))/(1005*(((data!$AG$1+data!$AG$2)/2)-data!$AG$3))))>1,1,1/(1+((2258*((0.622/((101325/(1*611*EXP(17.27*(((data!$AG$1+data!$AG$2)/2)/(((data!$AG$1+data!$AG$2)/2)+237.3))))))-1)*1000-(0.622/((101325/('Mini Canal'!$J$13*611*EXP(17.27*(data!$AG$3/(data!$AG$3+237.3))))))-1)*1000))/(1005*(((data!$AG$1+data!$AG$2)/2)-data!$AG$3)))))))) -> 0 | AR78: =(AL78/(IF((237.3*LN(('Mini Canal'!$J$13*EXP(17.27*(data!$AG$3/(data!$AG$3+237.3))))))/(17.27-LN(('Mini Canal'!$J$13*EXP(17.27*(data!$AG$3/(data!$AG$3+237.3))))))<((data!$AG$1+data!$AG$2)/2),1,IF(1/(1+((2258*((0.622/((101325/(1*611*EXP(17.27*(((data!$AG$1+data!$AG$2)/2)/(((data!$AG$1+data!$AG$2)/2)+237.3))))))-1)*1000-(0.622/((101325/('Mini Canal'!$J$13*611*EXP(17.27*(data!$AG$3/(data!$AG$3+237.3))))))-1)*1000))/(1005*(((data!$AG$1+data!$AG$2)/2)-data!$AG$3))))>1,1,1/(1+((2258*((0.622/((101325/(1*611*EXP(17.27*(((data!$AG$1+data!$AG$2)/2)/(((data!$AG$1+data!$AG$2)/2)+237.3))))))-1)*1000-(0.622/((101325/('Mini Canal'!$J$13*611*EXP(17.27*(data!$AG$3/(data!$AG$3+237.3))))))-1)*1000))/(1005*(((data!$AG$1+data!$AG$2)/2)-data!$AG$3)))))))) -> 0 | AS78: =(AM78/(IF((237.3*LN(('Mini Canal'!$J$13*EXP(17.27*(data!$AG$3/(data!$AG$3+237.3))))))/(17.27-LN(('Mini Canal'!$J$13*EXP(17.27*(data!$AG$3/(data!$AG$3+237.3))))))<((data!$AG$1+data!$AG$2)/2),1,IF(1/(1+((2258*((0.622/((101325/(1*611*EXP(17.27*(((data!$AG$1+data!$AG$2)/2)/(((data!$AG$1+data!$AG$2)/2)+237.3))))))-1)*1000-(0.622/((101325/('Mini Canal'!$J$13*611*EXP(17.27*(data!$AG$3/(data!$AG$3+237.3))))))-1)*1000))/(1005*(((data!$AG$1+data!$AG$2)/2)-data!$AG$3))))>1,1,1/(1+((2258*((0.622/((101325/(1*611*EXP(17.27*(((data!$AG$1+data!$AG$2)/2)/(((data!$AG$1+data!$AG$2)/2)+237.3))))))-1)*1000-(0.622/((101325/('Mini Canal'!$J$13*611*EXP(17.27*(data!$AG$3/(data!$AG$3+237.3))))))-1)*1000))/(1005*(((data!$AG$1+data!$AG$2)/2)-data!$AG$3)))))))) -> 0 | AT78: 0 | AU78: 0 | AV78: 0 | AW78: 0.37 | AX78: 0 | AY78: 0 | AZ78: 0 | BB78: 0 | BC78: 0 | BD78: 0 | BE78: 0 | BG78: 0 | BH78: 0 | BI78: 0 | BJ78: 0 | BM78: 0.000805344706 | BN78: 0.0003979505047 | BO78: 1.813864716 | BP78: 2 | BR78: 19 | BS78: =BS79/2 -> 0.0067 | BT78: 1.16E-02 | BU78: 1.66E-03 | BV78: 1.586934682 | BW78: 1
A79: 9110262 | B79: 9 | C79: 110 | D79: 2 | E79: 26 | F79: 9 | G79: 0 | H79: 0 | I79: 0 | J79: 0.0 | K79: 237 | L79: 0 | M79: 0 | N79: 0 | O79: 1.362 | P79: 1.1 | Q79: 1.1 | R79: 1.1 | S79: 35 | T79: 0 | U79: 0 | V79: 0 | W79: 6 | X79: 0 | Y79: 0 | Z79: 0 | AA79: 0.03905896638 | AB79: 0 | AC79: 0 | AD79: 0 | AE79: 0 | AF79: 0 | AG79: 0 | AH79: 0.98 | AI79: 0.98 | AJ79: 0.98 | AK79: 0 | AL79: 0 | AM79: 0 | AN79: 0 | AO79: 0 | AP79: 0 | AQ79: =(AK79/(IF((237.3*LN(('Mini Canal'!$J$13*EXP(17.27*(data!$AG$3/(data!$AG$3+237.3))))))/(17.27-LN(('Mini Canal'!$J$13*EXP(17.27*(data!$AG$3/(data!$AG$3+237.3))))))<((data!$AG$1+data!$AG$2)/2),1,IF(1/(1+((2258*((0.622/((101325/(1*611*EXP(17.27*(((data!$AG$1+data!$AG$2)/2)/(((data!$AG$1+data!$AG$2)/2)+237.3))))))-1)*1000-(0.622/((101325/('Mini Canal'!$J$13*611*EXP(17.27*(data!$AG$3/(data!$AG$3+237.3))))))-1)*1000))/(1005*(((data!$AG$1+data!$AG$2)/2)-data!$AG$3))))>1,1,1/(1+((2258*((0.622/((101325/(1*611*EXP(17.27*(((data!$AG$1+data!$AG$2)/2)/(((data!$AG$1+data!$AG$2)/2)+237.3))))))-1)*1000-(0.622/((101325/('Mini Canal'!$J$13*611*EXP(17.27*(data!$AG$3/(data!$AG$3+237.3))))))-1)*1000))/(1005*(((data!$AG$1+data!$AG$2)/2)-data!$AG$3)))))))) -> 0 | AR79: =(AL79/(IF((237.3*LN(('Mini Canal'!$J$13*EXP(17.27*(data!$AG$3/(data!$AG$3+237.3))))))/(17.27-LN(('Mini Canal'!$J$13*EXP(17.27*(data!$AG$3/(data!$AG$3+237.3))))))<((data!$AG$1+data!$AG$2)/2),1,IF(1/(1+((2258*((0.622/((101325/(1*611*EXP(17.27*(((data!$AG$1+data!$AG$2)/2)/(((data!$AG$1+data!$AG$2)/2)+237.3))))))-1)*1000-(0.622/((101325/('Mini Canal'!$J$13*611*EXP(17.27*(data!$AG$3/(data!$AG$3+237.3))))))-1)*1000))/(1005*(((data!$AG$1+data!$AG$2)/2)-data!$AG$3))))>1,1,1/(1+((2258*((0.622/((101325/(1*611*EXP(17.27*(((data!$AG$1+data!$AG$2)/2)/(((data!$AG$1+data!$AG$2)/2)+237.3))))))-1)*1000-(0.622/((101325/('Mini Canal'!$J$13*611*EXP(17.27*(data!$AG$3/(data!$AG$3+237.3))))))-1)*1000))/(1005*(((data!$AG$1+data!$AG$2)/2)-data!$AG$3)))))))) -> 0 | AS79: =(AM79/(IF((237.3*LN(('Mini Canal'!$J$13*EXP(17.27*(data!$AG$3/(data!$AG$3+237.3))))))/(17.27-LN(('Mini Canal'!$J$13*EXP(17.27*(data!$AG$3/(data!$AG$3+237.3))))))<((data!$AG$1+data!$AG$2)/2),1,IF(1/(1+((2258*((0.622/((101325/(1*611*EXP(17.27*(((data!$AG$1+data!$AG$2)/2)/(((data!$AG$1+data!$AG$2)/2)+237.3))))))-1)*1000-(0.622/((101325/('Mini Canal'!$J$13*611*EXP(17.27*(data!$AG$3/(data!$AG$3+237.3))))))-1)*1000))/(1005*(((data!$AG$1+data!$AG$2)/2)-data!$AG$3))))>1,1,1/(1+((2258*((0.622/((101325/(1*611*EXP(17.27*(((data!$AG$1+data!$AG$2)/2)/(((data!$AG$1+data!$AG$2)/2)+237.3))))))-1)*1000-(0.622/((101325/('Mini Canal'!$J$13*611*EXP(17.27*(data!$AG$3/(data!$AG$3+237.3))))))-1)*1000))/(1005*(((data!$AG$1+data!$AG$2)/2)-data!$AG$3)))))))) -> 0 | AT79: 0 | AU79: 0 | AV79: 0 | AW79: 0.37 | AX79: 0 | AY79: 0 | AZ79: 0 | BB79: 0 | BC79: 0 | BD79: 0 | BE79: 0 | BG79: 0 | BH79: 0 | BI79: 0 | BJ79: 0 | BM79: 0.000805344706 | BN79: 0.0003979505047 | BO79: 1.813864716 | BP79: 2 | BR79: 20 | BS79: =BS73*2 -> 0.0133 | BT79: 1.67E-03 | BU79: 3.29E-04 | BV79: 1.369178837 | BW79: 2
A80: 9110342 | B80: 9 | C80: 110 | D80: 2 | E80: 34 | F80: 14 | G80: 0 | H80: 0 | I80: 0 | J80: 0.0 | K80: 307 | L80: 0 | M80: 0 | N80: 0 | O80: 1.362 | P80: 1.1 | Q80: 1.1 | R80: 1.1 | S80: 46 | T80: 0 | U80: 0 | V80: 0 | W80: 8 | X80: 0 | Y80: 0 | Z80: 0 | AA80: 0.1611244862 | AB80: 0 | AC80: 0 | AD80: 0 | AE80: 0 | AF80: 0 | AG80: 0 | AH80: 0.98 | AI80: 0.98 | AJ80: 0.98 | AK80: 0 | AL80: 0 | AM80: 0 | AN80: 0 | AO80: 0 | AP80: 0 | AQ80: =(AK80/(IF((237.3*LN(('Mini Canal'!$J$13*EXP(17.27*(data!$AG$3/(data!$AG$3+237.3))))))/(17.27-LN(('Mini Canal'!$J$13*EXP(17.27*(data!$AG$3/(data!$AG$3+237.3))))))<((data!$AG$1+data!$AG$2)/2),1,IF(1/(1+((2258*((0.622/((101325/(1*611*EXP(17.27*(((data!$AG$1+data!$AG$2)/2)/(((data!$AG$1+data!$AG$2)/2)+237.3))))))-1)*1000-(0.622/((101325/('Mini Canal'!$J$13*611*EXP(17.27*(data!$AG$3/(data!$AG$3+237.3))))))-1)*1000))/(1005*(((data!$AG$1+data!$AG$2)/2)-data!$AG$3))))>1,1,1/(1+((2258*((0.622/((101325/(1*611*EXP(17.27*(((data!$AG$1+data!$AG$2)/2)/(((data!$AG$1+data!$AG$2)/2)+237.3))))))-1)*1000-(0.622/((101325/('Mini Canal'!$J$13*611*EXP(17.27*(data!$AG$3/(data!$AG$3+237.3))))))-1)*1000))/(1005*(((data!$AG$1+data!$AG$2)/2)-data!$AG$3)))))))) -> 0 | AR80: =(AL80/(IF((237.3*LN(('Mini Canal'!$J$13*EXP(17.27*(data!$AG$3/(data!$AG$3+237.3))))))/(17.27-LN(('Mini Canal'!$J$13*EXP(17.27*(data!$AG$3/(data!$AG$3+237.3))))))<((data!$AG$1+data!$AG$2)/2),1,IF(1/(1+((2258*((0.622/((101325/(1*611*EXP(17.27*(((data!$AG$1+data!$AG$2)/2)/(((data!$AG$1+data!$AG$2)/2)+237.3))))))-1)*1000-(0.622/((101325/('Mini Canal'!$J$13*611*EXP(17.27*(data!$AG$3/(data!$AG$3+237.3))))))-1)*1000))/(1005*(((data!$AG$1+data!$AG$2)/2)-data!$AG$3))))>1,1,1/(1+((2258*((0.622/((101325/(1*611*EXP(17.27*(((data!$AG$1+data!$AG$2)/2)/(((data!$AG$1+data!$AG$2)/2)+237.3))))))-1)*1000-(0.622/((101325/('Mini Canal'!$J$13*611*EXP(17.27*(data!$AG$3/(data!$AG$3+237.3))))))-1)*1000))/(1005*(((data!$AG$1+data!$AG$2)/2)-data!$AG$3)))))))) -> 0 | AS80: =(AM80/(IF((237.3*LN(('Mini Canal'!$J$13*EXP(17.27*(data!$AG$3/(data!$AG$3+237.3))))))/(17.27-LN(('Mini Canal'!$J$13*EXP(17.27*(data!$AG$3/(data!$AG$3+237.3))))))<((data!$AG$1+data!$AG$2)/2),1,IF(1/(1+((2258*((0.622/((101325/(1*611*EXP(17.27*(((data!$AG$1+data!$AG$2)/2)/(((data!$AG$1+data!$AG$2)/2)+237.3))))))-1)*1000-(0.622/((101325/('Mini Canal'!$J$13*611*EXP(17.27*(data!$AG$3/(data!$AG$3+237.3))))))-1)*1000))/(1005*(((data!$AG$1+data!$AG$2)/2)-data!$AG$3))))>1,1,1/(1+((2258*((0.622/((101325/(1*611*EXP(17.27*(((data!$AG$1+data!$AG$2)/2)/(((data!$AG$1+data!$AG$2)/2)+237.3))))))-1)*1000-(0.622/((101325/('Mini Canal'!$J$13*611*EXP(17.27*(data!$AG$3/(data!$AG$3+237.3))))))-1)*1000))/(1005*(((data!$AG$1+data!$AG$2)/2)-data!$AG$3)))))))) -> 0 | AT80: 0 | AU80: 0 | AV80: 0 | AW80: 0.55 | AX80: 0 | AY80: 0 | AZ80: 0 | BB80: 0 | BC80: 0 | BD80: 0 | BE80: 0 | BG80: 0 | BH80: 0 | BI80: 0 | BJ80: 0 | BM80: 0.002558239829 | BN80: 0.0005616169468 | BO80: 1.494274772 | BP80: 3 | BR80: 21 | BS80: =BS73*4 -> 0.0267 | BT80: 1.21E-04 | BU80: 5.15E-04 | BV80: 1.862208934 | BW80: 4
A81: 9110422 | B81: 9 | C81: 110 | D81: 2 | E81: 42 | F81: 19 | G81: 0 | H81: 0 | I81: 0 | J81: 0.0 | K81: 445 | L81: 0 | M81: 0 | N81: 0 | O81: 1.362 | P81: 1.1 | Q81: 1.1 | R81: 1.1 | S81: 66 | T81: 0 | U81: 0 | V81: 0 | W81: 11 | X81: 0 | Y81: 0 | Z81: 0 | AA81: 0.4910358863 | AB81: 0 | AC81: 0 | AD81: 0 | AE81: 0 | AF81: 0 | AG81: 0 | AH81: 0.98 | AI81: 0.98 | AJ81: 0.98 | AK81: 0 | AL81: 0 | AM81: 0 | AN81: 0 | AO81: 0 | AP81: 0 | AQ81: =(AK81/(IF((237.3*LN(('Mini Canal'!$J$13*EXP(17.27*(data!$AG$3/(data!$AG$3+237.3))))))/(17.27-LN(('Mini Canal'!$J$13*EXP(17.27*(data!$AG$3/(data!$AG$3+237.3))))))<((data!$AG$1+data!$AG$2)/2),1,IF(1/(1+((2258*((0.622/((101325/(1*611*EXP(17.27*(((data!$AG$1+data!$AG$2)/2)/(((data!$AG$1+data!$AG$2)/2)+237.3))))))-1)*1000-(0.622/((101325/('Mini Canal'!$J$13*611*EXP(17.27*(data!$AG$3/(data!$AG$3+237.3))))))-1)*1000))/(1005*(((data!$AG$1+data!$AG$2)/2)-data!$AG$3))))>1,1,1/(1+((2258*((0.622/((101325/(1*611*EXP(17.27*(((data!$AG$1+data!$AG$2)/2)/(((data!$AG$1+data!$AG$2)/2)+237.3))))))-1)*1000-(0.622/((101325/('Mini Canal'!$J$13*611*EXP(17.27*(data!$AG$3/(data!$AG$3+237.3))))))-1)*1000))/(1005*(((data!$AG$1+data!$AG$2)/2)-data!$AG$3)))))))) -> 0 | AR81: =(AL81/(IF((237.3*LN(('Mini Canal'!$J$13*EXP(17.27*(data!$AG$3/(data!$AG$3+237.3))))))/(17.27-LN(('Mini Canal'!$J$13*EXP(17.27*(data!$AG$3/(data!$AG$3+237.3))))))<((data!$AG$1+data!$AG$2)/2),1,IF(1/(1+((2258*((0.622/((101325/(1*611*EXP(17.27*(((data!$AG$1+data!$AG$2)/2)/(((data!$AG$1+data!$AG$2)/2)+237.3))))))-1)*1000-(0.622/((101325/('Mini Canal'!$J$13*611*EXP(17.27*(data!$AG$3/(data!$AG$3+237.3))))))-1)*1000))/(1005*(((data!$AG$1+data!$AG$2)/2)-data!$AG$3))))>1,1,1/(1+((2258*((0.622/((101325/(1*611*EXP(17.27*(((data!$AG$1+data!$AG$2)/2)/(((data!$AG$1+data!$AG$2)/2)+237.3))))))-1)*1000-(0.622/((101325/('Mini Canal'!$J$13*611*EXP(17.27*(data!$AG$3/(data!$AG$3+237.3))))))-1)*1000))/(1005*(((data!$AG$1+data!$AG$2)/2)-data!$AG$3)))))))) -> 0 | AS81: =(AM81/(IF((237.3*LN(('Mini Canal'!$J$13*EXP(17.27*(data!$AG$3/(data!$AG$3+237.3))))))/(17.27-LN(('Mini Canal'!$J$13*EXP(17.27*(data!$AG$3/(data!$AG$3+237.3))))))<((data!$AG$1+data!$AG$2)/2),1,IF(1/(1+((2258*((0.622/((101325/(1*611*EXP(17.27*(((data!$AG$1+data!$AG$2)/2)/(((data!$AG$1+data!$AG$2)/2)+237.3))))))-1)*1000-(0.622/((101325/('Mini Canal'!$J$13*611*EXP(17.27*(data!$AG$3/(data!$AG$3+237.3))))))-1)*1000))/(1005*(((data!$AG$1+data!$AG$2)/2)-data!$AG$3))))>1,1,1/(1+((2258*((0.622/((101325/(1*611*EXP(17.27*(((data!$AG$1+data!$AG$2)/2)/(((data!$AG$1+data!$AG$2)/2)+237.3))))))-1)*1000-(0.622/((101325/('Mini Canal'!$J$13*611*EXP(17.27*(data!$AG$3/(data!$AG$3+237.3))))))-1)*1000))/(1005*(((data!$AG$1+data!$AG$2)/2)-data!$AG$3)))))))) -> 0 | AT81: 0 | AU81: 0 | AV81: 0 | AW81: 0.73 | AX81: 0 | AY81: 0 | AZ81: 0 | BB81: 0 | BC81: 0 | BD81: 0 | BE81: 0 | BG81: 0 | BH81: 0 | BI81: 0 | BJ81: 0 | BM81: 0.01161629289 | BN81: 0.001655322747 | BO81: 1.586934682 | BP81: 1
A82: 9120142 | B82: 9 | C82: 120 | D82: 2 | E82: 14 | F82: 4 | G82: 0 | H82: 0 | I82: 0 | J82: 0.0 | K82: 172 | L82: 0 | M82: 0 | N82: 0 | O82: 1.362 | P82: 1.1 | Q82: 1.1 | R82: 1.1 | S82: 26 | T82: 0 | U82: 0 | V82: 0 | W82: 4 | X82: 0 | Y82: 0 | Z82: 0 | AA82: 0.0156461452 | AB82: 0 | AC82: 0 | AD82: 0 | AE82: 0 | AF82: 0 | AG82: 0 | AH82: 0.98 | AI82: 0.98 | AJ82: 0.98 | AK82: 0 | AL82: 0 | AM82: 0 | AN82: 0 | AO82: 0 | AP82: 0 | AQ82: =(AK82/(IF((237.3*LN(('Mini Canal'!$J$13*EXP(17.27*(data!$AG$3/(data!$AG$3+237.3))))))/(17.27-LN(('Mini Canal'!$J$13*EXP(17.27*(data!$AG$3/(data!$AG$3+237.3))))))<((data!$AG$1+data!$AG$2)/2),1,IF(1/(1+((2258*((0.622/((101325/(1*611*EXP(17.27*(((data!$AG$1+data!$AG$2)/2)/(((data!$AG$1+data!$AG$2)/2)+237.3))))))-1)*1000-(0.622/((101325/('Mini Canal'!$J$13*611*EXP(17.27*(data!$AG$3/(data!$AG$3+237.3))))))-1)*1000))/(1005*(((data!$AG$1+data!$AG$2)/2)-data!$AG$3))))>1,1,1/(1+((2258*((0.622/((101325/(1*611*EXP(17.27*(((data!$AG$1+data!$AG$2)/2)/(((data!$AG$1+data!$AG$2)/2)+237.3))))))-1)*1000-(0.622/((101325/('Mini Canal'!$J$13*611*EXP(17.27*(data!$AG$3/(data!$AG$3+237.3))))))-1)*1000))/(1005*(((data!$AG$1+data!$AG$2)/2)-data!$AG$3)))))))) -> 0 | AR82: =(AL82/(IF((237.3*LN(('Mini Canal'!$J$13*EXP(17.27*(data!$AG$3/(data!$AG$3+237.3))))))/(17.27-LN(('Mini Canal'!$J$13*EXP(17.27*(data!$AG$3/(data!$AG$3+237.3))))))<((data!$AG$1+data!$AG$2)/2),1,IF(1/(1+((2258*((0.622/((101325/(1*611*EXP(17.27*(((data!$AG$1+data!$AG$2)/2)/(((data!$AG$1+data!$AG$2)/2)+237.3))))))-1)*1000-(0.622/((101325/('Mini Canal'!$J$13*611*EXP(17.27*(data!$AG$3/(data!$AG$3+237.3))))))-1)*1000))/(1005*(((data!$AG$1+data!$AG$2)/2)-data!$AG$3))))>1,1,1/(1+((2258*((0.622/((101325/(1*611*EXP(17.27*(((data!$AG$1+data!$AG$2)/2)/(((data!$AG$1+data!$AG$2)/2)+237.3))))))-1)*1000-(0.622/((101325/('Mini Canal'!$J$13*611*EXP(17.27*(data!$AG$3/(data!$AG$3+237.3))))))-1)*1000))/(1005*(((data!$AG$1+data!$AG$2)/2)-data!$AG$3)))))))) -> 0 | AS82: =(AM82/(IF((237.3*LN(('Mini Canal'!$J$13*EXP(17.27*(data!$AG$3/(data!$AG$3+237.3))))))/(17.27-LN(('Mini Canal'!$J$13*EXP(17.27*(data!$AG$3/(data!$AG$3+237.3))))))<((data!$AG$1+data!$AG$2)/2),1,IF(1/(1+((2258*((0.622/((101325/(1*611*EXP(17.27*(((data!$AG$1+data!$AG$2)/2)/(((data!$AG$1+data!$AG$2)/2)+237.3))))))-1)*1000-(0.622/((101325/('Mini Canal'!$J$13*611*EXP(17.27*(data!$AG$3/(data!$AG$3+237.3))))))-1)*1000))/(1005*(((data!$AG$1+data!$AG$2)/2)-data!$AG$3))))>1,1,1/(1+((2258*((0.622/((101325/(1*611*EXP(17.27*(((data!$AG$1+data!$AG$2)/2)/(((data!$AG$1+data!$AG$2)/2)+237.3))))))-1)*1000-(0.622/((101325/('Mini Canal'!$J$13*611*EXP(17.27*(data!$AG$3/(data!$AG$3+237.3))))))-1)*1000))/(1005*(((data!$AG$1+data!$AG$2)/2)-data!$AG$3)))))))) -> 0 | AT82: 0 | AU82: 0 | AV82: 0 | AW82: 0.20 | AX82: 0 | AY82: 0 | AZ82: 0 | BB82: 0 | BC82: 0 | BD82: 0 | BE82: 0 | BG82: 0 | BH82: 0 | BI82: 0 | BJ82: 0 | BM82: 0.001382333883 | BN82: 0.0003329081633 | BO82: 1.723172228 | BP82: 1
A83: 9120182 | B83: 9 | C83: 120 | D83: 2 | E83: 18 | F83: 9 | G83: 0 | H83: 0 | I83: 0 | J83: 0.0 | K83: 203 | L83: 0 | M83: 0 | N83: 0 | O83: 1.362 | P83: 1.1 | Q83: 1.1 | R83: 1.1 | S83: 30 | T83: 0 | U83: 0 | V83: 0 | W83: 5 | X83: 0 | Y83: 0 | Z83: 0 | AA83: 0.0309818735 | AB83: 0 | AC83: 0 | AD83: 0 | AE83: 0 | AF83: 0 | AG83: 0 | AH83: 0.98 | AI83: 0.98 | AJ83: 0.98 | AK83: 0 | AL83: 0 | AM83: 0 | AN83: 0 | AO83: 0 | AP83: 0 | AQ83: =(AK83/(IF((237.3*LN(('Mini Canal'!$J$13*EXP(17.27*(data!$AG$3/(data!$AG$3+237.3))))))/(17.27-LN(('Mini Canal'!$J$13*EXP(17.27*(data!$AG$3/(data!$AG$3+237.3))))))<((data!$AG$1+data!$AG$2)/2),1,IF(1/(1+((2258*((0.622/((101325/(1*611*EXP(17.27*(((data!$AG$1+data!$AG$2)/2)/(((data!$AG$1+data!$AG$2)/2)+237.3))))))-1)*1000-(0.622/((101325/('Mini Canal'!$J$13*611*EXP(17.27*(data!$AG$3/(data!$AG$3+237.3))))))-1)*1000))/(1005*(((data!$AG$1+data!$AG$2)/2)-data!$AG$3))))>1,1,1/(1+((2258*((0.622/((101325/(1*611*EXP(17.27*(((data!$AG$1+data!$AG$2)/2)/(((data!$AG$1+data!$AG$2)/2)+237.3))))))-1)*1000-(0.622/((101325/('Mini Canal'!$J$13*611*EXP(17.27*(data!$AG$3/(data!$AG$3+237.3))))))-1)*1000))/(1005*(((data!$AG$1+data!$AG$2)/2)-data!$AG$3)))))))) -> 0 | AR83: =(AL83/(IF((237.3*LN(('Mini Canal'!$J$13*EXP(17.27*(data!$AG$3/(data!$AG$3+237.3))))))/(17.27-LN(('Mini Canal'!$J$13*EXP(17.27*(data!$AG$3/(data!$AG$3+237.3))))))<((data!$AG$1+data!$AG$2)/2),1,IF(1/(1+((2258*((0.622/((101325/(1*611*EXP(17.27*(((data!$AG$1+data!$AG$2)/2)/(((data!$AG$1+data!$AG$2)/2)+237.3))))))-1)*1000-(0.622/((101325/('Mini Canal'!$J$13*611*EXP(17.27*(data!$AG$3/(data!$AG$3+237.3))))))-1)*1000))/(1005*(((data!$AG$1+data!$AG$2)/2)-data!$AG$3))))>1,1,1/(1+((2258*((0.622/((101325/(1*611*EXP(17.27*(((data!$AG$1+data!$AG$2)/2)/(((data!$AG$1+data!$AG$2)/2)+237.3))))))-1)*1000-(0.622/((101325/('Mini Canal'!$J$13*611*EXP(17.27*(data!$AG$3/(data!$AG$3+237.3))))))-1)*1000))/(1005*(((data!$AG$1+data!$AG$2)/2)-data!$AG$3)))))))) -> 0 | AS83: =(AM83/(IF((237.3*LN(('Mini Canal'!$J$13*EXP(17.27*(data!$AG$3/(data!$AG$3+237.3))))))/(17.27-LN(('Mini Canal'!$J$13*EXP(17.27*(data!$AG$3/(data!$AG$3+237.3))))))<((data!$AG$1+data!$AG$2)/2),1,IF(1/(1+((2258*((0.622/((101325/(1*611*EXP(17.27*(((data!$AG$1+data!$AG$2)/2)/(((data!$AG$1+data!$AG$2)/2)+237.3))))))-1)*1000-(0.622/((101325/('Mini Canal'!$J$13*611*EXP(17.27*(data!$AG$3/(data!$AG$3+237.3))))))-1)*1000))/(1005*(((data!$AG$1+data!$AG$2)/2)-data!$AG$3))))>1,1,1/(1+((2258*((0.622/((101325/(1*611*EXP(17.27*(((data!$AG$1+data!$AG$2)/2)/(((data!$AG$1+data!$AG$2)/2)+237.3))))))-1)*1000-(0.622/((101325/('Mini Canal'!$J$13*611*EXP(17.27*(data!$AG$3/(data!$AG$3+237.3))))))-1)*1000))/(1005*(((data!$AG$1+data!$AG$2)/2)-data!$AG$3)))))))) -> 0 | AT83: 0 | AU83: 0 | AV83: 0 | AW83: 0.40 | AX83: 0 | AY83: 0 | AZ83: 0 | BB83: 0 | BC83: 0 | BD83: 0 | BE83: 0 | BG83: 0 | BH83: 0 | BI83: 0 | BJ83: 0 | BM83: 0.000805344706 | BN83: 0.0003979505047 | BO83: 1.813864716 | BP83: 2
A84: 9120262 | B84: 9 | C84: 120 | D84: 2 | E84: 26 | F84: 9 | G84: 0 | H84: 0 | I84: 0 | J84: 0.0 | K84: 267 | L84: 0 | M84: 0 | N84: 0 | O84: 1.362 | P84: 1.1 | Q84: 1.1 | R84: 1.1 | S84: 40 | T84: 0 | U84: 0 | V84: 0 | W84: 7 | X84: 0 | Y84: 0 | Z84: 0 | AA84: 0.05704958476 | AB84: 0 | AC84: 0 | AD84: 0 | AE84: 0 | AF84: 0 | AG84: 0 | AH84: 0.98 | AI84: 0.98 | AJ84: 0.98 | AK84: 0 | AL84: 0 | AM84: 0 | AN84: 0 | AO84: 0 | AP84: 0 | AQ84: =(AK84/(IF((237.3*LN(('Mini Canal'!$J$13*EXP(17.27*(data!$AG$3/(data!$AG$3+237.3))))))/(17.27-LN(('Mini Canal'!$J$13*EXP(17.27*(data!$AG$3/(data!$AG$3+237.3))))))<((data!$AG$1+data!$AG$2)/2),1,IF(1/(1+((2258*((0.622/((101325/(1*611*EXP(17.27*(((data!$AG$1+data!$AG$2)/2)/(((data!$AG$1+data!$AG$2)/2)+237.3))))))-1)*1000-(0.622/((101325/('Mini Canal'!$J$13*611*EXP(17.27*(data!$AG$3/(data!$AG$3+237.3))))))-1)*1000))/(1005*(((data!$AG$1+data!$AG$2)/2)-data!$AG$3))))>1,1,1/(1+((2258*((0.622/((101325/(1*611*EXP(17.27*(((data!$AG$1+data!$AG$2)/2)/(((data!$AG$1+data!$AG$2)/2)+237.3))))))-1)*1000-(0.622/((101325/('Mini Canal'!$J$13*611*EXP(17.27*(data!$AG$3/(data!$AG$3+237.3))))))-1)*1000))/(1005*(((data!$AG$1+data!$AG$2)/2)-data!$AG$3)))))))) -> 0 | AR84: =(AL84/(IF((237.3*LN(('Mini Canal'!$J$13*EXP(17.27*(data!$AG$3/(data!$AG$3+237.3))))))/(17.27-LN(('Mini Canal'!$J$13*EXP(17.27*(data!$AG$3/(data!$AG$3+237.3))))))<((data!$AG$1+data!$AG$2)/2),1,IF(1/(1+((2258*((0.622/((101325/(1*611*EXP(17.27*(((data!$AG$1+data!$AG$2)/2)/(((data!$AG$1+data!$AG$2)/2)+237.3))))))-1)*1000-(0.622/((101325/('Mini Canal'!$J$13*611*EXP(17.27*(data!$AG$3/(data!$AG$3+237.3))))))-1)*1000))/(1005*(((data!$AG$1+data!$AG$2)/2)-data!$AG$3))))>1,1,1/(1+((2258*((0.622/((101325/(1*611*EXP(17.27*(((data!$AG$1+data!$AG$2)/2)/(((data!$AG$1+data!$AG$2)/2)+237.3))))))-1)*1000-(0.622/((101325/('Mini Canal'!$J$13*611*EXP(17.27*(data!$AG$3/(data!$AG$3+237.3))))))-1)*1000))/(1005*(((data!$AG$1+data!$AG$2)/2)-data!$AG$3)))))))) -> 0 | AS84: =(AM84/(IF((237.3*LN(('Mini Canal'!$J$13*EXP(17.27*(data!$AG$3/(data!$AG$3+237.3))))))/(17.27-LN(('Mini Canal'!$J$13*EXP(17.27*(data!$AG$3/(data!$AG$3+237.3))))))<((data!$AG$1+data!$AG$2)/2),1,IF(1/(1+((2258*((0.622/((101325/(1*611*EXP(17.27*(((data!$AG$1+data!$AG$2)/2)/(((data!$AG$1+data!$AG$2)/2)+237.3))))))-1)*1000-(0.622/((101325/('Mini Canal'!$J$13*611*EXP(17.27*(data!$AG$3/(data!$AG$3+237.3))))))-1)*1000))/(1005*(((data!$AG$1+data!$AG$2)/2)-data!$AG$3))))>1,1,1/(1+((2258*((0.622/((101325/(1*611*EXP(17.27*(((data!$AG$1+data!$AG$2)/2)/(((data!$AG$1+data!$AG$2)/2)+237.3))))))-1)*1000-(0.622/((101325/('Mini Canal'!$J$13*611*EXP(17.27*(data!$AG$3/(data!$AG$3+237.3))))))-1)*1000))/(1005*(((data!$AG$1+data!$AG$2)/2)-data!$AG$3)))))))) -> 0 | AT84: 0 | AU84: 0 | AV84: 0 | AW84: 0.40 | AX84: 0 | AY84: 0 | AZ84: 0 | BB84: 0 | BC84: 0 | BD84: 0 | BE84: 0 | BG84: 0 | BH84: 0 | BI84: 0 | BJ84: 0 | BM84: 0.000805344706 | BN84: 0.0003979505047 | BO84: 1.813864716 | BP84: 2
A85: 9120342 | B85: 9 | C85: 120 | D85: 2 | E85: 34 | F85: 14 | G85: 0 | H85: 0 | I85: 0 | J85: 0.0 | K85: 346 | L85: 0 | M85: 0 | N85: 0 | O85: 1.362 | P85: 1.1 | Q85: 1.1 | R85: 1.1 | S85: 52 | T85: 0 | U85: 0 | V85: 0 | W85: 9 | X85: 0 | Y85: 0 | Z85: 0 | AA85: 0.212210241 | AB85: 0 | AC85: 0 | AD85: 0 | AE85: 0 | AF85: 0 | AG85: 0 | AH85: 0.98 | AI85: 0.98 | AJ85: 0.98 | AK85: 0 | AL85: 0 | AM85: 0 | AN85: 0 | AO85: 0 | AP85: 0 | AQ85: =(AK85/(IF((237.3*LN(('Mini Canal'!$J$13*EXP(17.27*(data!$AG$3/(data!$AG$3+237.3))))))/(17.27-LN(('Mini Canal'!$J$13*EXP(17.27*(data!$AG$3/(data!$AG$3+237.3))))))<((data!$AG$1+data!$AG$2)/2),1,IF(1/(1+((2258*((0.622/((101325/(1*611*EXP(17.27*(((data!$AG$1+data!$AG$2)/2)/(((data!$AG$1+data!$AG$2)/2)+237.3))))))-1)*1000-(0.622/((101325/('Mini Canal'!$J$13*611*EXP(17.27*(data!$AG$3/(data!$AG$3+237.3))))))-1)*1000))/(1005*(((data!$AG$1+data!$AG$2)/2)-data!$AG$3))))>1,1,1/(1+((2258*((0.622/((101325/(1*611*EXP(17.27*(((data!$AG$1+data!$AG$2)/2)/(((data!$AG$1+data!$AG$2)/2)+237.3))))))-1)*1000-(0.622/((101325/('Mini Canal'!$J$13*611*EXP(17.27*(data!$AG$3/(data!$AG$3+237.3))))))-1)*1000))/(1005*(((data!$AG$1+data!$AG$2)/2)-data!$AG$3)))))))) -> 0 | AR85: =(AL85/(IF((237.3*LN(('Mini Canal'!$J$13*EXP(17.27*(data!$AG$3/(data!$AG$3+237.3))))))/(17.27-LN(('Mini Canal'!$J$13*EXP(17.27*(data!$AG$3/(data!$AG$3+237.3))))))<((data!$AG$1+data!$AG$2)/2),1,IF(1/(1+((2258*((0.622/((101325/(1*611*EXP(17.27*(((data!$AG$1+data!$AG$2)/2)/(((data!$AG$1+data!$AG$2)/2)+237.3))))))-1)*1000-(0.622/((101325/('Mini Canal'!$J$13*611*EXP(17.27*(data!$AG$3/(data!$AG$3+237.3))))))-1)*1000))/(1005*(((data!$AG$1+data!$AG$2)/2)-data!$AG$3))))>1,1,1/(1+((2258*((0.622/((101325/(1*611*EXP(17.27*(((data!$AG$1+data!$AG$2)/2)/(((data!$AG$1+data!$AG$2)/2)+237.3))))))-1)*1000-(0.622/((101325/('Mini Canal'!$J$13*611*EXP(17.27*(data!$AG$3/(data!$AG$3+237.3))))))-1)*1000))/(1005*(((data!$AG$1+data!$AG$2)/2)-data!$AG$3)))))))) -> 0 | AS85: =(AM85/(IF((237.3*LN(('Mini Canal'!$J$13*EXP(17.27*(data!$AG$3/(data!$AG$3+237.3))))))/(17.27-LN(('Mini Canal'!$J$13*EXP(17.27*(data!$AG$3/(data!$AG$3+237.3))))))<((data!$AG$1+data!$AG$2)/2),1,IF(1/(1+((2258*((0.622/((101325/(1*611*EXP(17.27*(((data!$AG$1+data!$AG$2)/2)/(((data!$AG$1+data!$AG$2)/2)+237.3))))))-1)*1000-(0.622/((101325/('Mini Canal'!$J$13*611*EXP(17.27*(data!$AG$3/(data!$AG$3+237.3))))))-1)*1000))/(1005*(((data!$AG$1+data!$AG$2)/2)-data!$AG$3))))>1,1,1/(1+((2258*((0.622/((101325/(1*611*EXP(17.27*(((data!$AG$1+data!$AG$2)/2)/(((data!$AG$1+data!$AG$2)/2)+237.3))))))-1)*1000-(0.622/((101325/('Mini Canal'!$J$13*611*EXP(17.27*(data!$AG$3/(data!$AG$3+237.3))))))-1)*1000))/(1005*(((data!$AG$1+data!$AG$2)/2)-data!$AG$3)))))))) -> 0 | AT85: 0 | AU85: 0 | AV85: 0 | AW85: 0.60 | AX85: 0 | AY85: 0 | AZ85: 0 | BB85: 0 | BC85: 0 | BD85: 0 | BE85: 0 | BG85: 0 | BH85: 0 | BI85: 0 | BJ85: 0 | BM85: 0.002558239829 | BN85: 0.0005616169468 | BO85: 1.494274772 | BP85: 3
A86: 9120422 | B86: 9 | C86: 120 | D86: 2 | E86: 42 | F86: 19 | G86: 0 | H86: 0 | I86: 0 | J86: 0.0 | K86: 500 | L86: 0 | M86: 0 | N86: 0 | O86: 1.362 | P86: 1.1 | Q86: 1.1 | R86: 1.1 | S86: 75 | T86: 0 | U86: 0 | V86: 0 | W86: 13 | X86: 0 | Y86: 0 | Z86: 0 | AA86: 0.7069688952 | AB86: 0 | AC86: 0 | AD86: 0 | AE86: 0 | AF86: 0 | AG86: 0 | AH86: 0.98 | AI86: 0.98 | AJ86: 0.98 | AK86: 0 | AL86: 0 | AM86: 0 | AN86: 0 | AO86: 0 | AP86: 0 | AQ86: =(AK86/(IF((237.3*LN(('Mini Canal'!$J$13*EXP(17.27*(data!$AG$3/(data!$AG$3+237.3))))))/(17.27-LN(('Mini Canal'!$J$13*EXP(17.27*(data!$AG$3/(data!$AG$3+237.3))))))<((data!$AG$1+data!$AG$2)/2),1,IF(1/(1+((2258*((0.622/((101325/(1*611*EXP(17.27*(((data!$AG$1+data!$AG$2)/2)/(((data!$AG$1+data!$AG$2)/2)+237.3))))))-1)*1000-(0.622/((101325/('Mini Canal'!$J$13*611*EXP(17.27*(data!$AG$3/(data!$AG$3+237.3))))))-1)*1000))/(1005*(((data!$AG$1+data!$AG$2)/2)-data!$AG$3))))>1,1,1/(1+((2258*((0.622/((101325/(1*611*EXP(17.27*(((data!$AG$1+data!$AG$2)/2)/(((data!$AG$1+data!$AG$2)/2)+237.3))))))-1)*1000-(0.622/((101325/('Mini Canal'!$J$13*611*EXP(17.27*(data!$AG$3/(data!$AG$3+237.3))))))-1)*1000))/(1005*(((data!$AG$1+data!$AG$2)/2)-data!$AG$3)))))))) -> 0 | AR86: =(AL86/(IF((237.3*LN(('Mini Canal'!$J$13*EXP(17.27*(data!$AG$3/(data!$AG$3+237.3))))))/(17.27-LN(('Mini Canal'!$J$13*EXP(17.27*(data!$AG$3/(data!$AG$3+237.3))))))<((data!$AG$1+data!$AG$2)/2),1,IF(1/(1+((2258*((0.622/((101325/(1*611*EXP(17.27*(((data!$AG$1+data!$AG$2)/2)/(((data!$AG$1+data!$AG$2)/2)+237.3))))))-1)*1000-(0.622/((101325/('Mini Canal'!$J$13*611*EXP(17.27*(data!$AG$3/(data!$AG$3+237.3))))))-1)*1000))/(1005*(((data!$AG$1+data!$AG$2)/2)-data!$AG$3))))>1,1,1/(1+((2258*((0.622/((101325/(1*611*EXP(17.27*(((data!$AG$1+data!$AG$2)/2)/(((data!$AG$1+data!$AG$2)/2)+237.3))))))-1)*1000-(0.622/((101325/('Mini Canal'!$J$13*611*EXP(17.27*(data!$AG$3/(data!$AG$3+237.3))))))-1)*1000))/(1005*(((data!$AG$1+data!$AG$2)/2)-data!$AG$3)))))))) -> 0 | AS86: =(AM86/(IF((237.3*LN(('Mini Canal'!$J$13*EXP(17.27*(data!$AG$3/(data!$AG$3+237.3))))))/(17.27-LN(('Mini Canal'!$J$13*EXP(17.27*(data!$AG$3/(data!$AG$3+237.3))))))<((data!$AG$1+data!$AG$2)/2),1,IF(1/(1+((2258*((0.622/((101325/(1*611*EXP(17.27*(((data!$AG$1+data!$AG$2)/2)/(((data!$AG$1+data!$AG$2)/2)+237.3))))))-1)*1000-(0.622/((101325/('Mini Canal'!$J$13*611*EXP(17.27*(data!$AG$3/(data!$AG$3+237.3))))))-1)*1000))/(1005*(((data!$AG$1+data!$AG$2)/2)-data!$AG$3))))>1,1,1/(1+((2258*((0.622/((101325/(1*611*EXP(17.27*(((data!$AG$1+data!$AG$2)/2)/(((data!$AG$1+data!$AG$2)/2)+237.3))))))-1)*1000-(0.622/((101325/('Mini Canal'!$J$13*611*EXP(17.27*(data!$AG$3/(data!$AG$3+237.3))))))-1)*1000))/(1005*(((data!$AG$1+data!$AG$2)/2)-data!$AG$3)))))))) -> 0 | AT86: 0 | AU86: 0 | AV86: 0 | AW86: 0.80 | AX86: 0 | AY86: 0 | AZ86: 0 | BB86: 0 | BC86: 0 | BD86: 0 | BE86: 0 | BG86: 0 | BH86: 0 | BI86: 0 | BJ86: 0 | BM86: 0.01161629289 | BN86: 0.001655322747 | BO86: 1.586934682 | BP86: 1
A87: 9130142 | B87: 9 | C87: 130 | D87: 2 | E87: 14 | F87: 4 | G87: 0 | H87: 0 | I87: 0 | J87: 0.0 | K87: 190 | L87: 0 | M87: 0 | N87: 0 | O87: 1.362 | P87: 1.1 | Q87: 1.1 | R87: 1.1 | S87: 28 | T87: 0 | U87: 0 | V87: 0 | W87: 5 | X87: 0 | Y87: 0 | Z87: 0 | AA87: 0.02515665609 | AB87: 0 | AC87: 0 | AD87: 0 | AE87: 0 | AF87: 0 | AG87: 0 | AH87: 0.98 | AI87: 0.98 | AJ87: 0.98 | AK87: 0 | AL87: 0 | AM87: 0 | AN87: 0 | AO87: 0 | AP87: 0 | AQ87: =(AK87/(IF((237.3*LN(('Mini Canal'!$J$13*EXP(17.27*(data!$AG$3/(data!$AG$3+237.3))))))/(17.27-LN(('Mini Canal'!$J$13*EXP(17.27*(data!$AG$3/(data!$AG$3+237.3))))))<((data!$AG$1+data!$AG$2)/2),1,IF(1/(1+((2258*((0.622/((101325/(1*611*EXP(17.27*(((data!$AG$1+data!$AG$2)/2)/(((data!$AG$1+data!$AG$2)/2)+237.3))))))-1)*1000-(0.622/((101325/('Mini Canal'!$J$13*611*EXP(17.27*(data!$AG$3/(data!$AG$3+237.3))))))-1)*1000))/(1005*(((data!$AG$1+data!$AG$2)/2)-data!$AG$3))))>1,1,1/(1+((2258*((0.622/((101325/(1*611*EXP(17.27*(((data!$AG$1+data!$AG$2)/2)/(((data!$AG$1+data!$AG$2)/2)+237.3))))))-1)*1000-(0.622/((101325/('Mini Canal'!$J$13*611*EXP(17.27*(data!$AG$3/(data!$AG$3+237.3))))))-1)*1000))/(1005*(((data!$AG$1+data!$AG$2)/2)-data!$AG$3)))))))) -> 0 | AR87: =(AL87/(IF((237.3*LN(('Mini Canal'!$J$13*EXP(17.27*(data!$AG$3/(data!$AG$3+237.3))))))/(17.27-LN(('Mini Canal'!$J$13*EXP(17.27*(data!$AG$3/(data!$AG$3+237.3))))))<((data!$AG$1+data!$AG$2)/2),1,IF(1/(1+((2258*((0.622/((101325/(1*611*EXP(17.27*(((data!$AG$1+data!$AG$2)/2)/(((data!$AG$1+data!$AG$2)/2)+237.3))))))-1)*1000-(0.622/((101325/('Mini Canal'!$J$13*611*EXP(17.27*(data!$AG$3/(data!$AG$3+237.3))))))-1)*1000))/(1005*(((data!$AG$1+data!$AG$2)/2)-data!$AG$3))))>1,1,1/(1+((2258*((0.622/((101325/(1*611*EXP(17.27*(((data!$AG$1+data!$AG$2)/2)/(((data!$AG$1+data!$AG$2)/2)+237.3))))))-1)*1000-(0.622/((101325/('Mini Canal'!$J$13*611*EXP(17.27*(data!$AG$3/(data!$AG$3+237.3))))))-1)*1000))/(1005*(((data!$AG$1+data!$AG$2)/2)-data!$AG$3)))))))) -> 0 | AS87: =(AM87/(IF((237.3*LN(('Mini Canal'!$J$13*EXP(17.27*(data!$AG$3/(data!$AG$3+237.3))))))/(17.27-LN(('Mini Canal'!$J$13*EXP(17.27*(data!$AG$3/(data!$AG$3+237.3))))))<((data!$AG$1+data!$AG$2)/2),1,IF(1/(1+((2258*((0.622/((101325/(1*611*EXP(17.27*(((data!$AG$1+data!$AG$2)/2)/(((data!$AG$1+data!$AG$2)/2)+237.3))))))-1)*1000-(0.622/((101325/('Mini Canal'!$J$13*611*EXP(17.27*(data!$AG$3/(data!$AG$3+237.3))))))-1)*1000))/(1005*(((data!$AG$1+data!$AG$2)/2)-data!$AG$3))))>1,1,1/(1+((2258*((0.622/((101325/(1*611*EXP(17.27*(((data!$AG$1+data!$AG$2)/2)/(((data!$AG$1+data!$AG$2)/2)+237.3))))))-1)*1000-(0.622/((101325/('Mini Canal'!$J$13*611*EXP(17.27*(data!$AG$3/(data!$AG$3+237.3))))))-1)*1000))/(1005*(((data!$AG$1+data!$AG$2)/2)-data!$AG$3)))))))) -> 0 | AT87: 0 | AU87: 0 | AV87: 0 | AW87: 0.22 | AX87: 0 | AY87: 0 | AZ87: 0 | BB87: 0 | BC87: 0 | BD87: 0 | BE87: 0 | BG87: 0 | BH87: 0 | BI87: 0 | BJ87: 0 | BM87: 0.001382333883 | BN87: 0.0003329081633 | BO87: 1.723172228 | BP87: 1
A88: 9130182 | B88: 9 | C88: 130 | D88: 2 | E88: 18 | F88: 9 | G88: 0 | H88: 0 | I88: 0 | J88: 0.0 | K88: 225 | L88: 0 | M88: 0 | N88: 0 | O88: 1.362 | P88: 1.1 | Q88: 1.1 | R88: 1.1 | S88: 34 | T88: 0 | U88: 0 | V88: 0 | W88: 6 | X88: 0 | Y88: 0 | Z88: 0 | AA88: 0.04720092651 | AB88: 0 | AC88: 0 | AD88: 0 | AE88: 0 | AF88: 0 | AG88: 0 | AH88: 0.98 | AI88: 0.98 | AJ88: 0.98 | AK88: 0 | AL88: 0 | AM88: 0 | AN88: 0 | AO88: 0 | AP88: 0 | AQ88: =(AK88/(IF((237.3*LN(('Mini Canal'!$J$13*EXP(17.27*(data!$AG$3/(data!$AG$3+237.3))))))/(17.27-LN(('Mini Canal'!$J$13*EXP(17.27*(data!$AG$3/(data!$AG$3+237.3))))))<((data!$AG$1+data!$AG$2)/2),1,IF(1/(1+((2258*((0.622/((101325/(1*611*EXP(17.27*(((data!$AG$1+data!$AG$2)/2)/(((data!$AG$1+data!$AG$2)/2)+237.3))))))-1)*1000-(0.622/((101325/('Mini Canal'!$J$13*611*EXP(17.27*(data!$AG$3/(data!$AG$3+237.3))))))-1)*1000))/(1005*(((data!$AG$1+data!$AG$2)/2)-data!$AG$3))))>1,1,1/(1+((2258*((0.622/((101325/(1*611*EXP(17.27*(((data!$AG$1+data!$AG$2)/2)/(((data!$AG$1+data!$AG$2)/2)+237.3))))))-1)*1000-(0.622/((101325/('Mini Canal'!$J$13*611*EXP(17.27*(data!$AG$3/(data!$AG$3+237.3))))))-1)*1000))/(1005*(((data!$AG$1+data!$AG$2)/2)-data!$AG$3)))))))) -> 0 | AR88: =(AL88/(IF((237.3*LN(('Mini Canal'!$J$13*EXP(17.27*(data!$AG$3/(data!$AG$3+237.3))))))/(17.27-LN(('Mini Canal'!$J$13*EXP(17.27*(data!$AG$3/(data!$AG$3+237.3))))))<((data!$AG$1+data!$AG$2)/2),1,IF(1/(1+((2258*((0.622/((101325/(1*611*EXP(17.27*(((data!$AG$1+data!$AG$2)/2)/(((data!$AG$1+data!$AG$2)/2)+237.3))))))-1)*1000-(0.622/((101325/('Mini Canal'!$J$13*611*EXP(17.27*(data!$AG$3/(data!$AG$3+237.3))))))-1)*1000))/(1005*(((data!$AG$1+data!$AG$2)/2)-data!$AG$3))))>1,1,1/(1+((2258*((0.622/((101325/(1*611*EXP(17.27*(((data!$AG$1+data!$AG$2)/2)/(((data!$AG$1+data!$AG$2)/2)+237.3))))))-1)*1000-(0.622/((101325/('Mini Canal'!$J$13*611*EXP(17.27*(data!$AG$3/(data!$AG$3+237.3))))))-1)*1000))/(1005*(((data!$AG$1+data!$AG$2)/2)-data!$AG$3)))))))) -> 0 | AS88: =(AM88/(IF((237.3*LN(('Mini Canal'!$J$13*EXP(17.27*(data!$AG$3/(data!$AG$3+237.3))))))/(17.27-LN(('Mini Canal'!$J$13*EXP(17.27*(data!$AG$3/(data!$AG$3+237.3))))))<((data!$AG$1+data!$AG$2)/2),1,IF(1/(1+((2258*((0.622/((101325/(1*611*EXP(17.27*(((data!$AG$1+data!$AG$2)/2)/(((data!$AG$1+data!$AG$2)/2)+237.3))))))-1)*1000-(0.622/((101325/('Mini Canal'!$J$13*611*EXP(17.27*(data!$AG$3/(data!$AG$3+237.3))))))-1)*1000))/(1005*(((data!$AG$1+data!$AG$2)/2)-data!$AG$3))))>1,1,1/(1+((2258*((0.622/((101325/(1*611*EXP(17.27*(((data!$AG$1+data!$AG$2)/2)/(((data!$AG$1+data!$AG$2)/2)+237.3))))))-1)*1000-(0.622/((101325/('Mini Canal'!$J$13*611*EXP(17.27*(data!$AG$3/(data!$AG$3+237.3))))))-1)*1000))/(1005*(((data!$AG$1+data!$AG$2)/2)-data!$AG$3)))))))) -> 0 | AT88: 0 | AU88: 0 | AV88: 0 | AW88: 0.43 | AX88: 0 | AY88: 0 | AZ88: 0 | BB88: 0 | BC88: 0 | BD88: 0 | BE88: 0 | BG88: 0 | BH88: 0 | BI88: 0 | BJ88: 0 | BM88: 0.000805344706 | BN88: 0.0003979505047 | BO88: 1.813864716 | BP88: 2
A89: 9130262 | B89: 9 | C89: 130 | D89: 2 | E89: 26 | F89: 9 | G89: 0 | H89: 0 | I89: 0 | J89: 0.0 | K89: 296 | L89: 0 | M89: 0 | N89: 0 | O89: 1.362 | P89: 1.1 | Q89: 1.1 | R89: 1.1 | S89: =ROUND(K89*POWER((($M$1-$M$2)/LN(($M$1-$M$3)/($M$2-$M$3)))/((75-65)/LN((75-20)/(65-20))),O89),0) -> 44 | T89: 0 | U89: 0 | V89: 0 | W89: =ROUND(S89*3600/(4186*ABS($M$1-$M$2)),0) -> 8 | X89: 0 | Y89: 0 | Z89: 0 | AA89: 0.07955061502 | AB89: 0 | AC89: 0 | AD89: 0 | AE89: 0 | AF89: 0 | AG89: 0 | AH89: 0.98 | AI89: 0.98 | AJ89: 0.98 | AK89: 0 | AL89: 0 | AM89: 0 | AN89: 0 | AO89: 0 | AP89: 0 | AQ89: =(AK89/(IF((237.3*LN(('Mini Canal'!$J$13*EXP(17.27*(data!$AG$3/(data!$AG$3+237.3))))))/(17.27-LN(('Mini Canal'!$J$13*EXP(17.27*(data!$AG$3/(data!$AG$3+237.3))))))<((data!$AG$1+data!$AG$2)/2),1,IF(1/(1+((2258*((0.622/((101325/(1*611*EXP(17.27*(((data!$AG$1+data!$AG$2)/2)/(((data!$AG$1+data!$AG$2)/2)+237.3))))))-1)*1000-(0.622/((101325/('Mini Canal'!$J$13*611*EXP(17.27*(data!$AG$3/(data!$AG$3+237.3))))))-1)*1000))/(1005*(((data!$AG$1+data!$AG$2)/2)-data!$AG$3))))>1,1,1/(1+((2258*((0.622/((101325/(1*611*EXP(17.27*(((data!$AG$1+data!$AG$2)/2)/(((data!$AG$1+data!$AG$2)/2)+237.3))))))-1)*1000-(0.622/((101325/('Mini Canal'!$J$13*611*EXP(17.27*(data!$AG$3/(data!$AG$3+237.3))))))-1)*1000))/(1005*(((data!$AG$1+data!$AG$2)/2)-data!$AG$3)))))))) -> 0 | AR89: =(AL89/(IF((237.3*LN(('Mini Canal'!$J$13*EXP(17.27*(data!$AG$3/(data!$AG$3+237.3))))))/(17.27-LN(('Mini Canal'!$J$13*EXP(17.27*(data!$AG$3/(data!$AG$3+237.3))))))<((data!$AG$1+data!$AG$2)/2),1,IF(1/(1+((2258*((0.622/((101325/(1*611*EXP(17.27*(((data!$AG$1+data!$AG$2)/2)/(((data!$AG$1+data!$AG$2)/2)+237.3))))))-1)*1000-(0.622/((101325/('Mini Canal'!$J$13*611*EXP(17.27*(data!$AG$3/(data!$AG$3+237.3))))))-1)*1000))/(1005*(((data!$AG$1+data!$AG$2)/2)-data!$AG$3))))>1,1,1/(1+((2258*((0.622/((101325/(1*611*EXP(17.27*(((data!$AG$1+data!$AG$2)/2)/(((data!$AG$1+data!$AG$2)/2)+237.3))))))-1)*1000-(0.622/((101325/('Mini Canal'!$J$13*611*EXP(17.27*(data!$AG$3/(data!$AG$3+237.3))))))-1)*1000))/(1005*(((data!$AG$1+data!$AG$2)/2)-data!$AG$3)))))))) -> 0 | AS89: =(AM89/(IF((237.3*LN(('Mini Canal'!$J$13*EXP(17.27*(data!$AG$3/(data!$AG$3+237.3))))))/(17.27-LN(('Mini Canal'!$J$13*EXP(17.27*(data!$AG$3/(data!$AG$3+237.3))))))<((data!$AG$1+data!$AG$2)/2),1,IF(1/(1+((2258*((0.622/((101325/(1*611*EXP(17.27*(((data!$AG$1+data!$AG$2)/2)/(((data!$AG$1+data!$AG$2)/2)+237.3))))))-1)*1000-(0.622/((101325/('Mini Canal'!$J$13*611*EXP(17.27*(data!$AG$3/(data!$AG$3+237.3))))))-1)*1000))/(1005*(((data!$AG$1+data!$AG$2)/2)-data!$AG$3))))>1,1,1/(1+((2258*((0.622/((101325/(1*611*EXP(17.27*(((data!$AG$1+data!$AG$2)/2)/(((data!$AG$1+data!$AG$2)/2)+237.3))))))-1)*1000-(0.622/((101325/('Mini Canal'!$J$13*611*EXP(17.27*(data!$AG$3/(data!$AG$3+237.3))))))-1)*1000))/(1005*(((data!$AG$1+data!$AG$2)/2)-data!$AG$3)))))))) -> 0 | AT89: 0 | AU89: 0 | AV89: 0 | AW89: 0.43 | AX89: 0 | AY89: 0 | AZ89: 0 | BB89: 0 | BC89: 0 | BD89: 0 | BE89: 0 | BG89: 0 | BH89: 0 | BI89: 0 | BJ89: 0 | BM89: 0.000805344706 | BN89: 0.0003979505047 | BO89: 1.813864716 | BP89: 2
A90: 9130342 | B90: 9 | C90: 130 | D90: 2 | E90: 34 | F90: 14 | G90: 0 | H90: 0 | I90: 0 | J90: 0.0 | K90: 385 | L90: 0 | M90: 0 | N90: 0 | O90: 1.362 | P90: 1.1 | Q90: 1.1 | R90: 1.1 | S90: 57 | T90: 0 | U90: 0 | V90: 0 | W90: 10 | X90: 0 | Y90: 0 | Z90: 0 | AA90: 0.2718949902 | AB90: 0 | AC90: 0 | AD90: 0 | AE90: 0 | AF90: 0 | AG90: 0 | AH90: 0.98 | AI90: 0.98 | AJ90: 0.98 | AK90: 0 | AL90: 0 | AM90: 0 | AN90: 0 | AO90: 0 | AP90: 0 | AQ90: =(AK90/(IF((237.3*LN(('Mini Canal'!$J$13*EXP(17.27*(data!$AG$3/(data!$AG$3+237.3))))))/(17.27-LN(('Mini Canal'!$J$13*EXP(17.27*(data!$AG$3/(data!$AG$3+237.3))))))<((data!$AG$1+data!$AG$2)/2),1,IF(1/(1+((2258*((0.622/((101325/(1*611*EXP(17.27*(((data!$AG$1+data!$AG$2)/2)/(((data!$AG$1+data!$AG$2)/2)+237.3))))))-1)*1000-(0.622/((101325/('Mini Canal'!$J$13*611*EXP(17.27*(data!$AG$3/(data!$AG$3+237.3))))))-1)*1000))/(1005*(((data!$AG$1+data!$AG$2)/2)-data!$AG$3))))>1,1,1/(1+((2258*((0.622/((101325/(1*611*EXP(17.27*(((data!$AG$1+data!$AG$2)/2)/(((data!$AG$1+data!$AG$2)/2)+237.3))))))-1)*1000-(0.622/((101325/('Mini Canal'!$J$13*611*EXP(17.27*(data!$AG$3/(data!$AG$3+237.3))))))-1)*1000))/(1005*(((data!$AG$1+data!$AG$2)/2)-data!$AG$3)))))))) -> 0 | AR90: =(AL90/(IF((237.3*LN(('Mini Canal'!$J$13*EXP(17.27*(data!$AG$3/(data!$AG$3+237.3))))))/(17.27-LN(('Mini Canal'!$J$13*EXP(17.27*(data!$AG$3/(data!$AG$3+237.3))))))<((data!$AG$1+data!$AG$2)/2),1,IF(1/(1+((2258*((0.622/((101325/(1*611*EXP(17.27*(((data!$AG$1+data!$AG$2)/2)/(((data!$AG$1+data!$AG$2)/2)+237.3))))))-1)*1000-(0.622/((101325/('Mini Canal'!$J$13*611*EXP(17.27*(data!$AG$3/(data!$AG$3+237.3))))))-1)*1000))/(1005*(((data!$AG$1+data!$AG$2)/2)-data!$AG$3))))>1,1,1/(1+((2258*((0.622/((101325/(1*611*EXP(17.27*(((data!$AG$1+data!$AG$2)/2)/(((data!$AG$1+data!$AG$2)/2)+237.3))))))-1)*1000-(0.622/((101325/('Mini Canal'!$J$13*611*EXP(17.27*(data!$AG$3/(data!$AG$3+237.3))))))-1)*1000))/(1005*(((data!$AG$1+data!$AG$2)/2)-data!$AG$3)))))))) -> 0 | AS90: =(AM90/(IF((237.3*LN(('Mini Canal'!$J$13*EXP(17.27*(data!$AG$3/(data!$AG$3+237.3))))))/(17.27-LN(('Mini Canal'!$J$13*EXP(17.27*(data!$AG$3/(data!$AG$3+237.3))))))<((data!$AG$1+data!$AG$2)/2),1,IF(1/(1+((2258*((0.622/((101325/(1*611*EXP(17.27*(((data!$AG$1+data!$AG$2)/2)/(((data!$AG$1+data!$AG$2)/2)+237.3))))))-1)*1000-(0.622/((101325/('Mini Canal'!$J$13*611*EXP(17.27*(data!$AG$3/(data!$AG$3+237.3))))))-1)*1000))/(1005*(((data!$AG$1+data!$AG$2)/2)-data!$AG$3))))>1,1,1/(1+((2258*((0.622/((101325/(1*611*EXP(17.27*(((data!$AG$1+data!$AG$2)/2)/(((data!$AG$1+data!$AG$2)/2)+237.3))))))-1)*1000-(0.622/((101325/('Mini Canal'!$J$13*611*EXP(17.27*(data!$AG$3/(data!$AG$3+237.3))))))-1)*1000))/(1005*(((data!$AG$1+data!$AG$2)/2)-data!$AG$3)))))))) -> 0 | AT90: 0 | AU90: 0 | AV90: 0 | AW90: 0.65 | AX90: 0 | AY90: 0 | AZ90: 0 | BB90: 0 | BC90: 0 | BD90: 0 | BE90: 0 | BG90: 0 | BH90: 0 | BI90: 0 | BJ90: 0 | BM90: 0.002558239829 | BN90: 0.0005616169468 | BO90: 1.494274772 | BP90: 3
A91: 9130422 | B91: 9 | C91: 130 | D91: 2 | E91: 42 | F91: 19 | G91: 0 | H91: 0 | I91: 0 | J91: 0.0 | K91: 555 | L91: 0 | M91: 0 | N91: 0 | O91: 1.362 | P91: 1.1 | Q91: 1.1 | R91: 1.1 | S91: 83 | T91: 0 | U91: 0 | V91: 0 | W91: 14 | X91: 0 | Y91: 0 | Z91: 0 | AA91: 0.8703047159 | AB91: 0 | AC91: 0 | AD91: 0 | AE91: 0 | AF91: 0 | AG91: 0 | AH91: 0.98 | AI91: 0.98 | AJ91: 0.98 | AK91: 0 | AL91: 0 | AM91: 0 | AN91: 0 | AO91: 0 | AP91: 0 | AQ91: =(AK91/(IF((237.3*LN(('Mini Canal'!$J$13*EXP(17.27*(data!$AG$3/(data!$AG$3+237.3))))))/(17.27-LN(('Mini Canal'!$J$13*EXP(17.27*(data!$AG$3/(data!$AG$3+237.3))))))<((data!$AG$1+data!$AG$2)/2),1,IF(1/(1+((2258*((0.622/((101325/(1*611*EXP(17.27*(((data!$AG$1+data!$AG$2)/2)/(((data!$AG$1+data!$AG$2)/2)+237.3))))))-1)*1000-(0.622/((101325/('Mini Canal'!$J$13*611*EXP(17.27*(data!$AG$3/(data!$AG$3+237.3))))))-1)*1000))/(1005*(((data!$AG$1+data!$AG$2)/2)-data!$AG$3))))>1,1,1/(1+((2258*((0.622/((101325/(1*611*EXP(17.27*(((data!$AG$1+data!$AG$2)/2)/(((data!$AG$1+data!$AG$2)/2)+237.3))))))-1)*1000-(0.622/((101325/('Mini Canal'!$J$13*611*EXP(17.27*(data!$AG$3/(data!$AG$3+237.3))))))-1)*1000))/(1005*(((data!$AG$1+data!$AG$2)/2)-data!$AG$3)))))))) -> 0 | AR91: =(AL91/(IF((237.3*LN(('Mini Canal'!$J$13*EXP(17.27*(data!$AG$3/(data!$AG$3+237.3))))))/(17.27-LN(('Mini Canal'!$J$13*EXP(17.27*(data!$AG$3/(data!$AG$3+237.3))))))<((data!$AG$1+data!$AG$2)/2),1,IF(1/(1+((2258*((0.622/((101325/(1*611*EXP(17.27*(((data!$AG$1+data!$AG$2)/2)/(((data!$AG$1+data!$AG$2)/2)+237.3))))))-1)*1000-(0.622/((101325/('Mini Canal'!$J$13*611*EXP(17.27*(data!$AG$3/(data!$AG$3+237.3))))))-1)*1000))/(1005*(((data!$AG$1+data!$AG$2)/2)-data!$AG$3))))>1,1,1/(1+((2258*((0.622/((101325/(1*611*EXP(17.27*(((data!$AG$1+data!$AG$2)/2)/(((data!$AG$1+data!$AG$2)/2)+237.3))))))-1)*1000-(0.622/((101325/('Mini Canal'!$J$13*611*EXP(17.27*(data!$AG$3/(data!$AG$3+237.3))))))-1)*1000))/(1005*(((data!$AG$1+data!$AG$2)/2)-data!$AG$3)))))))) -> 0 | AS91: =(AM91/(IF((237.3*LN(('Mini Canal'!$J$13*EXP(17.27*(data!$AG$3/(data!$AG$3+237.3))))))/(17.27-LN(('Mini Canal'!$J$13*EXP(17.27*(data!$AG$3/(data!$AG$3+237.3))))))<((data!$AG$1+data!$AG$2)/2),1,IF(1/(1+((2258*((0.622/((101325/(1*611*EXP(17.27*(((data!$AG$1+data!$AG$2)/2)/(((data!$AG$1+data!$AG$2)/2)+237.3))))))-1)*1000-(0.622/((101325/('Mini Canal'!$J$13*611*EXP(17.27*(data!$AG$3/(data!$AG$3+237.3))))))-1)*1000))/(1005*(((data!$AG$1+data!$AG$2)/2)-data!$AG$3))))>1,1,1/(1+((2258*((0.622/((101325/(1*611*EXP(17.27*(((data!$AG$1+data!$AG$2)/2)/(((data!$AG$1+data!$AG$2)/2)+237.3))))))-1)*1000-(0.622/((101325/('Mini Canal'!$J$13*611*EXP(17.27*(data!$AG$3/(data!$AG$3+237.3))))))-1)*1000))/(1005*(((data!$AG$1+data!$AG$2)/2)-data!$AG$3)))))))) -> 0 | AT91: 0 | AU91: 0 | AV91: 0 | AW91: 0.87 | AX91: 0 | AY91: 0 | AZ91: 0 | BB91: 0 | BC91: 0 | BD91: 0 | BE91: 0 | BG91: 0 | BH91: 0 | BI91: 0 | BJ91: 0 | BM91: 0.01161629289 | BN91: 0.001655322747 | BO91: 1.586934682 | BP91: 1
A92: 9150142 | B92: 9 | C92: 150 | D92: 2 | E92: 14 | F92: 4 | G92: 0 | H92: 0 | I92: 0 | J92: 0.0 | K92: 229 | L92: 0 | M92: 0 | N92: 0 | O92: 1.362 | P92: 1.1 | Q92: 1.1 | R92: 1.1 | S92: 34 | T92: 0 | U92: 0 | V92: 0 | W92: 6 | X92: 0 | Y92: 0 | Z92: 0 | AA92: 0.04038797971 | AB92: 0 | AC92: 0 | AD92: 0 | AE92: 0 | AF92: 0 | AG92: 0 | AH92: 0.98 | AI92: 0.98 | AJ92: 0.98 | AK92: 0 | AL92: 0 | AM92: 0 | AN92: 0 | AO92: 0 | AP92: 0 | AQ92: =(AK92/(IF((237.3*LN(('Mini Canal'!$J$13*EXP(17.27*(data!$AG$3/(data!$AG$3+237.3))))))/(17.27-LN(('Mini Canal'!$J$13*EXP(17.27*(data!$AG$3/(data!$AG$3+237.3))))))<((data!$AG$1+data!$AG$2)/2),1,IF(1/(1+((2258*((0.622/((101325/(1*611*EXP(17.27*(((data!$AG$1+data!$AG$2)/2)/(((data!$AG$1+data!$AG$2)/2)+237.3))))))-1)*1000-(0.622/((101325/('Mini Canal'!$J$13*611*EXP(17.27*(data!$AG$3/(data!$AG$3+237.3))))))-1)*1000))/(1005*(((data!$AG$1+data!$AG$2)/2)-data!$AG$3))))>1,1,1/(1+((2258*((0.622/((101325/(1*611*EXP(17.27*(((data!$AG$1+data!$AG$2)/2)/(((data!$AG$1+data!$AG$2)/2)+237.3))))))-1)*1000-(0.622/((101325/('Mini Canal'!$J$13*611*EXP(17.27*(data!$AG$3/(data!$AG$3+237.3))))))-1)*1000))/(1005*(((data!$AG$1+data!$AG$2)/2)-data!$AG$3)))))))) -> 0 | AR92: =(AL92/(IF((237.3*LN(('Mini Canal'!$J$13*EXP(17.27*(data!$AG$3/(data!$AG$3+237.3))))))/(17.27-LN(('Mini Canal'!$J$13*EXP(17.27*(data!$AG$3/(data!$AG$3+237.3))))))<((data!$AG$1+data!$AG$2)/2),1,IF(1/(1+((2258*((0.622/((101325/(1*611*EXP(17.27*(((data!$AG$1+data!$AG$2)/2)/(((data!$AG$1+data!$AG$2)/2)+237.3))))))-1)*1000-(0.622/((101325/('Mini Canal'!$J$13*611*EXP(17.27*(data!$AG$3/(data!$AG$3+237.3))))))-1)*1000))/(1005*(((data!$AG$1+data!$AG$2)/2)-data!$AG$3))))>1,1,1/(1+((2258*((0.622/((101325/(1*611*EXP(17.27*(((data!$AG$1+data!$AG$2)/2)/(((data!$AG$1+data!$AG$2)/2)+237.3))))))-1)*1000-(0.622/((101325/('Mini Canal'!$J$13*611*EXP(17.27*(data!$AG$3/(data!$AG$3+237.3))))))-1)*1000))/(1005*(((data!$AG$1+data!$AG$2)/2)-data!$AG$3)))))))) -> 0 | AS92: =(AM92/(IF((237.3*LN(('Mini Canal'!$J$13*EXP(17.27*(data!$AG$3/(data!$AG$3+237.3))))))/(17.27-LN(('Mini Canal'!$J$13*EXP(17.27*(data!$AG$3/(data!$AG$3+237.3))))))<((data!$AG$1+data!$AG$2)/2),1,IF(1/(1+((2258*((0.622/((101325/(1*611*EXP(17.27*(((data!$AG$1+data!$AG$2)/2)/(((data!$AG$1+data!$AG$2)/2)+237.3))))))-1)*1000-(0.622/((101325/('Mini Canal'!$J$13*611*EXP(17.27*(data!$AG$3/(data!$AG$3+237.3))))))-1)*1000))/(1005*(((data!$AG$1+data!$AG$2)/2)-data!$AG$3))))>1,1,1/(1+((2258*((0.622/((101325/(1*611*EXP(17.27*(((data!$AG$1+data!$AG$2)/2)/(((data!$AG$1+data!$AG$2)/2)+237.3))))))-1)*1000-(0.622/((101325/('Mini Canal'!$J$13*611*EXP(17.27*(data!$AG$3/(data!$AG$3+237.3))))))-1)*1000))/(1005*(((data!$AG$1+data!$AG$2)/2)-data!$AG$3)))))))) -> 0 | AT92: 0 | AU92: 0 | AV92: 0 | AW92: 0.25 | AX92: 0 | AY92: 0 | AZ92: 0 | BB92: 0 | BC92: 0 | BD92: 0 | BE92: 0 | BG92: 0 | BH92: 0 | BI92: 0 | BJ92: 0 | BM92: 0.001382333883 | BN92: 0.0003329081633 | BO92: 1.723172228 | BP92: 1
A93: 9150182 | B93: 9 | C93: 150 | D93: 2 | E93: 18 | F93: 9 | G93: 0 | H93: 0 | I93: 0 | J93: 0.0 | K93: 271 | L93: 0 | M93: 0 | N93: 0 | O93: 1.362 | P93: 1.1 | Q93: 1.1 | R93: 1.1 | S93: 40 | T93: 0 | U93: 0 | V93: 0 | W93: 7 | X93: 0 | Y93: 0 | Z93: 0 | AA93: 0.07320256456 | AB93: 0 | AC93: 0 | AD93: 0 | AE93: 0 | AF93: 0 | AG93: 0 | AH93: 0.98 | AI93: 0.98 | AJ93: 0.98 | AK93: 0 | AL93: 0 | AM93: 0 | AN93: 0 | AO93: 0 | AP93: 0 | AQ93: =(AK93/(IF((237.3*LN(('Mini Canal'!$J$13*EXP(17.27*(data!$AG$3/(data!$AG$3+237.3))))))/(17.27-LN(('Mini Canal'!$J$13*EXP(17.27*(data!$AG$3/(data!$AG$3+237.3))))))<((data!$AG$1+data!$AG$2)/2),1,IF(1/(1+((2258*((0.622/((101325/(1*611*EXP(17.27*(((data!$AG$1+data!$AG$2)/2)/(((data!$AG$1+data!$AG$2)/2)+237.3))))))-1)*1000-(0.622/((101325/('Mini Canal'!$J$13*611*EXP(17.27*(data!$AG$3/(data!$AG$3+237.3))))))-1)*1000))/(1005*(((data!$AG$1+data!$AG$2)/2)-data!$AG$3))))>1,1,1/(1+((2258*((0.622/((101325/(1*611*EXP(17.27*(((data!$AG$1+data!$AG$2)/2)/(((data!$AG$1+data!$AG$2)/2)+237.3))))))-1)*1000-(0.622/((101325/('Mini Canal'!$J$13*611*EXP(17.27*(data!$AG$3/(data!$AG$3+237.3))))))-1)*1000))/(1005*(((data!$AG$1+data!$AG$2)/2)-data!$AG$3)))))))) -> 0 | AR93: =(AL93/(IF((237.3*LN(('Mini Canal'!$J$13*EXP(17.27*(data!$AG$3/(data!$AG$3+237.3))))))/(17.27-LN(('Mini Canal'!$J$13*EXP(17.27*(data!$AG$3/(data!$AG$3+237.3))))))<((data!$AG$1+data!$AG$2)/2),1,IF(1/(1+((2258*((0.622/((101325/(1*611*EXP(17.27*(((data!$AG$1+data!$AG$2)/2)/(((data!$AG$1+data!$AG$2)/2)+237.3))))))-1)*1000-(0.622/((101325/('Mini Canal'!$J$13*611*EXP(17.27*(data!$AG$3/(data!$AG$3+237.3))))))-1)*1000))/(1005*(((data!$AG$1+data!$AG$2)/2)-data!$AG$3))))>1,1,1/(1+((2258*((0.622/((101325/(1*611*EXP(17.27*(((data!$AG$1+data!$AG$2)/2)/(((data!$AG$1+data!$AG$2)/2)+237.3))))))-1)*1000-(0.622/((101325/('Mini Canal'!$J$13*611*EXP(17.27*(data!$AG$3/(data!$AG$3+237.3))))))-1)*1000))/(1005*(((data!$AG$1+data!$AG$2)/2)-data!$AG$3)))))))) -> 0 | AS93: =(AM93/(IF((237.3*LN(('Mini Canal'!$J$13*EXP(17.27*(data!$AG$3/(data!$AG$3+237.3))))))/(17.27-LN(('Mini Canal'!$J$13*EXP(17.27*(data!$AG$3/(data!$AG$3+237.3))))))<((data!$AG$1+data!$AG$2)/2),1,IF(1/(1+((2258*((0.622/((101325/(1*611*EXP(17.27*(((data!$AG$1+data!$AG$2)/2)/(((data!$AG$1+data!$AG$2)/2)+237.3))))))-1)*1000-(0.622/((101325/('Mini Canal'!$J$13*611*EXP(17.27*(data!$AG$3/(data!$AG$3+237.3))))))-1)*1000))/(1005*(((data!$AG$1+data!$AG$2)/2)-data!$AG$3))))>1,1,1/(1+((2258*((0.622/((101325/(1*611*EXP(17.27*(((data!$AG$1+data!$AG$2)/2)/(((data!$AG$1+data!$AG$2)/2)+237.3))))))-1)*1000-(0.622/((101325/('Mini Canal'!$J$13*611*EXP(17.27*(data!$AG$3/(data!$AG$3+237.3))))))-1)*1000))/(1005*(((data!$AG$1+data!$AG$2)/2)-data!$AG$3)))))))) -> 0 | AT93: 0 | AU93: 0 | AV93: 0 | AW93: 0.50 | AX93: 0 | AY93: 0 | AZ93: 0 | BB93: 0 | BC93: 0 | BD93: 0 | BE93: 0 | BG93: 0 | BH93: 0 | BI93: 0 | BJ93: 0 | BM93: 0.000805344706 | BN93: 0.0003979505047 | BO93: 1.813864716 | BP93: 2
A94: 9150262 | B94: 9 | C94: 150 | D94: 2 | E94: 26 | F94: 9 | G94: 0 | H94: 0 | I94: 0 | J94: 0.0 | K94: 356 | L94: 0 | M94: 0 | N94: 0 | O94: 1.362 | P94: 1.1 | Q94: 1.1 | R94: 1.1 | S94: 53 | T94: 0 | U94: 0 | V94: 0 | W94: 9 | X94: 0 | Y94: 0 | Z94: 0 | AA94: 0.1154925284 | AB94: 0 | AC94: 0 | AD94: 0 | AE94: 0 | AF94: 0 | AG94: 0 | AH94: 0.98 | AI94: 0.98 | AJ94: 0.98 | AK94: 0 | AL94: 0 | AM94: 0 | AN94: 0 | AO94: 0 | AP94: 0 | AQ94: =(AK94/(IF((237.3*LN(('Mini Canal'!$J$13*EXP(17.27*(data!$AG$3/(data!$AG$3+237.3))))))/(17.27-LN(('Mini Canal'!$J$13*EXP(17.27*(data!$AG$3/(data!$AG$3+237.3))))))<((data!$AG$1+data!$AG$2)/2),1,IF(1/(1+((2258*((0.622/((101325/(1*611*EXP(17.27*(((data!$AG$1+data!$AG$2)/2)/(((data!$AG$1+data!$AG$2)/2)+237.3))))))-1)*1000-(0.622/((101325/('Mini Canal'!$J$13*611*EXP(17.27*(data!$AG$3/(data!$AG$3+237.3))))))-1)*1000))/(1005*(((data!$AG$1+data!$AG$2)/2)-data!$AG$3))))>1,1,1/(1+((2258*((0.622/((101325/(1*611*EXP(17.27*(((data!$AG$1+data!$AG$2)/2)/(((data!$AG$1+data!$AG$2)/2)+237.3))))))-1)*1000-(0.622/((101325/('Mini Canal'!$J$13*611*EXP(17.27*(data!$AG$3/(data!$AG$3+237.3))))))-1)*1000))/(1005*(((data!$AG$1+data!$AG$2)/2)-data!$AG$3)))))))) -> 0 | AR94: =(AL94/(IF((237.3*LN(('Mini Canal'!$J$13*EXP(17.27*(data!$AG$3/(data!$AG$3+237.3))))))/(17.27-LN(('Mini Canal'!$J$13*EXP(17.27*(data!$AG$3/(data!$AG$3+237.3))))))<((data!$AG$1+data!$AG$2)/2),1,IF(1/(1+((2258*((0.622/((101325/(1*611*EXP(17.27*(((data!$AG$1+data!$AG$2)/2)/(((data!$AG$1+data!$AG$2)/2)+237.3))))))-1)*1000-(0.622/((101325/('Mini Canal'!$J$13*611*EXP(17.27*(data!$AG$3/(data!$AG$3+237.3))))))-1)*1000))/(1005*(((data!$AG$1+data!$AG$2)/2)-data!$AG$3))))>1,1,1/(1+((2258*((0.622/((101325/(1*611*EXP(17.27*(((data!$AG$1+data!$AG$2)/2)/(((data!$AG$1+data!$AG$2)/2)+237.3))))))-1)*1000-(0.622/((101325/('Mini Canal'!$J$13*611*EXP(17.27*(data!$AG$3/(data!$AG$3+237.3))))))-1)*1000))/(1005*(((data!$AG$1+data!$AG$2)/2)-data!$AG$3)))))))) -> 0 | AS94: =(AM94/(IF((237.3*LN(('Mini Canal'!$J$13*EXP(17.27*(data!$AG$3/(data!$AG$3+237.3))))))/(17.27-LN(('Mini Canal'!$J$13*EXP(17.27*(data!$AG$3/(data!$AG$3+237.3))))))<((data!$AG$1+data!$AG$2)/2),1,IF(1/(1+((2258*((0.622/((101325/(1*611*EXP(17.27*(((data!$AG$1+data!$AG$2)/2)/(((data!$AG$1+data!$AG$2)/2)+237.3))))))-1)*1000-(0.622/((101325/('Mini Canal'!$J$13*611*EXP(17.27*(data!$AG$3/(data!$AG$3+237.3))))))-1)*1000))/(1005*(((data!$AG$1+data!$AG$2)/2)-data!$AG$3))))>1,1,1/(1+((2258*((0.622/((101325/(1*611*EXP(17.27*(((data!$AG$1+data!$AG$2)/2)/(((data!$AG$1+data!$AG$2)/2)+237.3))))))-1)*1000-(0.622/((101325/('Mini Canal'!$J$13*611*EXP(17.27*(data!$AG$3/(data!$AG$3+237.3))))))-1)*1000))/(1005*(((data!$AG$1+data!$AG$2)/2)-data!$AG$3)))))))) -> 0 | AT94: 0 | AU94: 0 | AV94: 0 | AW94: 0.50 | AX94: 0 | AY94: 0 | AZ94: 0 | BB94: 0 | BC94: 0 | BD94: 0 | BE94: 0 | BG94: 0 | BH94: 0 | BI94: 0 | BJ94: 0 | BM94: 0.000805344706 | BN94: 0.0003979505047 | BO94: 1.813864716 | BP94: 2
A95: 9150342 | B95: 9 | C95: 150 | D95: 2 | E95: 34 | F95: 14 | G95: 0 | H95: 0 | I95: 0 | J95: 0.0 | K95: 462 | L95: 0 | M95: 0 | N95: 0 | O95: 1.362 | P95: 1.1 | Q95: 1.1 | R95: 1.1 | S95: 69 | T95: 0 | U95: 0 | V95: 0 | W95: 12 | X95: 0 | Y95: 0 | Z95: 0 | AA95: 0.4187591611 | AB95: 0 | AC95: 0 | AD95: 0 | AE95: 0 | AF95: 0 | AG95: 0 | AH95: 0.98 | AI95: 0.98 | AJ95: 0.98 | AK95: 0 | AL95: 0 | AM95: 0 | AN95: 0 | AO95: 0 | AP95: 0 | AQ95: =(AK95/(IF((237.3*LN(('Mini Canal'!$J$13*EXP(17.27*(data!$AG$3/(data!$AG$3+237.3))))))/(17.27-LN(('Mini Canal'!$J$13*EXP(17.27*(data!$AG$3/(data!$AG$3+237.3))))))<((data!$AG$1+data!$AG$2)/2),1,IF(1/(1+((2258*((0.622/((101325/(1*611*EXP(17.27*(((data!$AG$1+data!$AG$2)/2)/(((data!$AG$1+data!$AG$2)/2)+237.3))))))-1)*1000-(0.622/((101325/('Mini Canal'!$J$13*611*EXP(17.27*(data!$AG$3/(data!$AG$3+237.3))))))-1)*1000))/(1005*(((data!$AG$1+data!$AG$2)/2)-data!$AG$3))))>1,1,1/(1+((2258*((0.622/((101325/(1*611*EXP(17.27*(((data!$AG$1+data!$AG$2)/2)/(((data!$AG$1+data!$AG$2)/2)+237.3))))))-1)*1000-(0.622/((101325/('Mini Canal'!$J$13*611*EXP(17.27*(data!$AG$3/(data!$AG$3+237.3))))))-1)*1000))/(1005*(((data!$AG$1+data!$AG$2)/2)-data!$AG$3)))))))) -> 0 | AR95: =(AL95/(IF((237.3*LN(('Mini Canal'!$J$13*EXP(17.27*(data!$AG$3/(data!$AG$3+237.3))))))/(17.27-LN(('Mini Canal'!$J$13*EXP(17.27*(data!$AG$3/(data!$AG$3+237.3))))))<((data!$AG$1+data!$AG$2)/2),1,IF(1/(1+((2258*((0.622/((101325/(1*611*EXP(17.27*(((data!$AG$1+data!$AG$2)/2)/(((data!$AG$1+data!$AG$2)/2)+237.3))))))-1)*1000-(0.622/((101325/('Mini Canal'!$J$13*611*EXP(17.27*(data!$AG$3/(data!$AG$3+237.3))))))-1)*1000))/(1005*(((data!$AG$1+data!$AG$2)/2)-data!$AG$3))))>1,1,1/(1+((2258*((0.622/((101325/(1*611*EXP(17.27*(((data!$AG$1+data!$AG$2)/2)/(((data!$AG$1+data!$AG$2)/2)+237.3))))))-1)*1000-(0.622/((101325/('Mini Canal'!$J$13*611*EXP(17.27*(data!$AG$3/(data!$AG$3+237.3))))))-1)*1000))/(1005*(((data!$AG$1+data!$AG$2)/2)-data!$AG$3)))))))) -> 0 | AS95: =(AM95/(IF((237.3*LN(('Mini Canal'!$J$13*EXP(17.27*(data!$AG$3/(data!$AG$3+237.3))))))/(17.27-LN(('Mini Canal'!$J$13*EXP(17.27*(data!$AG$3/(data!$AG$3+237.3))))))<((data!$AG$1+data!$AG$2)/2),1,IF(1/(1+((2258*((0.622/((101325/(1*611*EXP(17.27*(((data!$AG$1+data!$AG$2)/2)/(((data!$AG$1+data!$AG$2)/2)+237.3))))))-1)*1000-(0.622/((101325/('Mini Canal'!$J$13*611*EXP(17.27*(data!$AG$3/(data!$AG$3+237.3))))))-1)*1000))/(1005*(((data!$AG$1+data!$AG$2)/2)-data!$AG$3))))>1,1,1/(1+((2258*((0.622/((101325/(1*611*EXP(17.27*(((data!$AG$1+data!$AG$2)/2)/(((data!$AG$1+data!$AG$2)/2)+237.3))))))-1)*1000-(0.622/((101325/('Mini Canal'!$J$13*611*EXP(17.27*(data!$AG$3/(data!$AG$3+237.3))))))-1)*1000))/(1005*(((data!$AG$1+data!$AG$2)/2)-data!$AG$3)))))))) -> 0 | AT95: 0 | AU95: 0 | AV95: 0 | AW95: 0.75 | AX95: 0 | AY95: 0 | AZ95: 0 | BB95: 0 | BC95: 0 | BD95: 0 | BE95: 0 | BG95: 0 | BH95: 0 | BI95: 0 | BJ95: 0 | BM95: 0.002558239829 | BN95: 0.0005616169468 | BO95: 1.494274772 | BP95: 3
